Workbook

Sheet REPORT
A1: Surveyor’s Report
A2: Project: | B2: FRA-71-29.4 | D2: PID: | E2: 106471
A4: Scope: | B4: Aerial Mapping
A5: Type:
A7: Gray boxes denote INPUT | E7: Tan boxes denote OUTPUT (check)
A9: Datum and Coordinate System | G9: Type:
A10: Coordinate System: | C10: Ohio State Plane, South Zone | G10: (Select from List)
A11: Horizontal Reference Datum: | C11: NAD83 (2011) | G11: Bridge Monitoring
A12: Ellipsoid: | C12: GRS80 | G12: Bridge Rehab
A13: Grid to Ground Multiplier (1/CSF): | C13: 1.00009018 | D13: Factor is 8 decimal places per Survey & Mapping Specifications. | G13: Bridge Replacement
A14: Origin of Combined Scale Factor: | C14: (0,0) | G14: Culvert Rehab
A15: Vertical Reference Datum: | C15: NAVD88 | G15: Highway Widening
A16: Geoid Model: | C16: Geoid 12B | G16: Slope Repair
A17: Units: | C17: US Survey Feet (sft) | G17: Stream Maintenance
A18: Original Survey Subdivision:
A19: Township:
A20: Quarter Section/Section/Lot:
A21: Files | E21: Description
A31: References
A32: Alignment based on the following plan:
A33: Other references used:
A37: Equipment Maintenance
A38: Equipment maintenance logs are on file at the Ohio Department of Transportation, Central Office
A39: Methodology and Equipment Used
A48: Report Submitted/Prepared by: | C48: Kolton Wilson
A49: Date Submitted: | C49: 2019-04-25
A50: Surveying Performed by: | C50: Matthew O'Bryan
A51: Surveying Performed by: | C51: David Ogden
A52: Checked By: | C52: David Ogden
A55: DGN Overview Map
A56: Insert close-up screen shot of combined DGN here

Sheet CSF
A1: Combined Scale Factor Calculations | I1: Zone | J1: Index Value | K1: Project Latitude | M1: Radius of the Earth (meters) | N1: Tabular Difference | O1: Scale Factor (k) | P1: Differences | Q1: Coordinate System List
A2: Project: | B2: =REPORT!B2 -> FRA-71-29.4 | D2: PID: | E2: =REPORT!E2 -> 106471 | I2: NZ | J2: 3940 | K2: 39 | L2: 40 | M2: 7485451.598 | N2: 30.84836 | O2: 1.00023491
I3: NZ | J3: 3941 | K3: 39 | L3: 41 | M3: 7483600.697 | N3: 30.84823 | O3: 1.00022793 | P3: =O2-O3 -> 6.98e-06 | Q3: State Plane Coordinate System: Ohio North (3401)
A4: Horizontal Datum: NAD83 | C4: State Plane Coordinate System: Ohio South (3402) | I4: NZ | J4: 3942 | K4: 39 | L4: 42 | M4: 7481749.803 | N4: 30.84811 | O4: 1.00022104 | P4: 6.89e-06 | Q4: State Plane Coordinate System: Ohio South (3402)
I5: NZ | J5: 3943 | K5: 39 | L5: 43 | M5: 7479898.916 | N5: 30.84799 | O5: 1.00021424 | P5: 6.8e-06
A6: Gray boxes denote INPUT | D6: Tan boxes denote OUTPUT (check) | I6: NZ | J6: 3944 | K6: 39 | L6: 44 | M6: 7478048.037 | N6: 30.84787 | O6: 1.00020751 | P6: 6.73e-06
I7: NZ | J7: 3945 | K7: 39 | L7: 45 | M7: 7476197.165 | N7: 30.84776 | O7: 1.00020087 | P7: 6.64e-06
C8: Input Deg. | D8: Min. | E8: Sec. | F8: Zone Parameters: | I8: NZ | J8: 3946 | K8: 39 | L8: 46 | M8: 7474346.299 | N8: 30.84765 | O8: 1.00019431 | P8: 6.56e-06
A9: Project Mean Latitude (DMS): | C9: 39 | D9: 25 | E9: 41 | F9: =IF(C4="State Plane Coordinate System: Ohio North (3401)", "k = 1 at lats. 40⁰ 26' and 41⁰ 42'", "k = 1 at lats. 38⁰ 44' and 40⁰ 20'") -> k = 1 at lats. 38⁰ 44' and 40⁰ 20' | I9: NZ | J9: 3947 | K9: 39 | L9: 47 | M9: 7472495.44 | N9: 30.84754 | O9: 1.00018783 | P9: 6.48e-06
A10: =ISBLANK(D9) -> FALSE | B10: =ISBLANK(E9) -> FALSE | D10: =IF(OR(A10,B10)=TRUE,"Minute and second fields must be populated","") ->  | I10: NZ | J10: 3948 | K10: 39 | L10: 48 | M10: 7470644.588 | N10: 30.84743 | O10: 1.00018144 | P10: 6.39e-06
C11: Input Ellipsoid Height: | F11: =IF(C4="State Plane Coordinate System: Ohio North (3401)", "Origin at 82⁰ 30' long., 39⁰ 40' lat.", "Origin at 82⁰ 30' long., 38⁰ 00' lat.") -> Origin at 82⁰ 30' long., 38⁰ 00' lat. | I11: NZ | J11: 3949 | K11: 39 | L11: 49 | M11: 7468793.742 | N11: 30.84732 | O11: 1.00017513 | P11: 6.31e-06
A12: Project Mean Height (ft): | C12: 550 | F12: Origin coords: x=600,000m, y=0m | I12: NZ | J12: 3950 | K12: 39 | L12: 50 | M12: 7466942.903 | N12: 30.84722 | O12: 1.0001689 | P12: 6.23e-06
I13: NZ | J13: 3951 | K13: 39 | L13: 51 | M13: 7465092.069 | N13: 30.84712 | O13: 1.00016276 | P13: 6.14e-06
C14: Radius of the Earth * (Radius of the Earth + Proj. Mean Elev.) = | I14: NZ | J14: 3952 | K14: 39 | L14: 52 | M14: 7463241.242 | N14: 30.84703 | O14: 1.0001567 | P14: 6.06e-06
A15: Sea Level Factor: | C15: =TRUNC(20906000/(20906000+C12),9) -> 0.999973692 | I15: NZ | J15: 3953 | K15: 39 | L15: 53 | M15: 7461390.42 | N15: 30.84693 | O15: 1.00015072 | P15: 5.98e-06
I16: NZ | J16: 3954 | K16: 39 | L16: 54 | M16: 7459539.604 | N16: 30.84684 | O16: 1.00014482 | P16: 5.9e-06
C17: Tabular data proportioned according to the number of seconds: | I17: NZ | J17: 3955 | K17: 39 | L17: 55 | M17: 7457688.794 | N17: 30.84675 | O17: 1.00013901 | P17: 5.81e-06
C18: =IF($C$4="State Plane Coordinate System: Ohio North (3401)",VLOOKUP(D18,J1:O150,6),VLOOKUP(D18,J151:O310,6)) -> 0.99993607 | D18: =VALUE(IF(D9>9,CONCATENATE(C9,D9),CONCATENATE(C9*10,D9))) -> 3925 | E18: =IF(C18>C19,1-E9/60,E9/60) -> 0.6833333333 | F18: ="Scale factor at "&LEFT($D18,2)&"⁰ "&RIGHT($D18,2)&"' latitude" -> Scale factor at 39⁰ 25' latitude | I18: NZ | J18: 3956 | K18: 39 | L18: 56 | M18: 7455837.989 | N18: 30.84667 | O18: 1.00013328 | P18: 5.73e-06
C19: =IF($C$4="State Plane Coordinate System: Ohio North (3401)",VLOOKUP(D19,J2:O151,6),VLOOKUP(D19,J152:O311,6)) -> 0.99993627 | D19: =IF(D9=59,(VALUE(IF(D9>9,CONCATENATE(C9,D9),CONCATENATE(C9*10,D9)))+41),(VALUE(IF(D9>9,CONCATENATE(C9,D9),CONCATENATE(C9*10,D9)))+1)) -> 3926 | E19: =IF(C18<C19,1-E9/60,E9/60) -> 0.3166666667 | F19: ="Scale factor at "&LEFT($D19,2)&"⁰ "&RIGHT($D19,2)&"' latitude" -> Scale factor at 39⁰ 26' latitude | I19: NZ | J19: 3957 | K19: 39 | L19: 57 | M19: 7453987.189 | N19: 30.84658 | O19: 1.00012763 | P19: 5.65e-06
A20: Scale Factor (k): | C20: =C18*E18+C19*E19 -> 0.9999361333 | I20: NZ | J20: 3958 | K20: 39 | L20: 58 | M20: 7452136.394 | N20: 30.8465 | O20: 1.00012206 | P20: 5.57e-06
I21: NZ | J21: 3959 | K21: 39 | L21: 59 | M21: 7450285.604 | N21: 30.84642 | O21: 1.00011658 | P21: 5.48e-06
C22: =LEFT(A15,16)&" * "&LEFT(A20,12)&" =" -> Sea Level Factor * Scale Factor = | I22: NZ | J22: 4000 | K22: 40 | L22: 0 | M22: 7448434.819 | N22: 30.84634 | O22: 1.00011118 | P22: 5.4e-06
A23: Combined Scale Factor (CSF): | C23: =C15*C20 -> 0.999909827 | I23: NZ | J23: 4001 | K23: 40 | L23: 1 | M23: 7446584.038 | N23: 30.84627 | O23: 1.00010587 | P23: 5.31e-06
I24: NZ | J24: 4002 | K24: 40 | L24: 2 | M24: 7444733.262 | N24: 30.8462 | O24: 1.00010063 | P24: 5.24e-06
C25: Unitless Grid to Ground Multiplier: | I25: NZ | J25: 4003 | K25: 40 | L25: 3 | M25: 7442882.49 | N25: 30.84613 | O25: 1.00009548 | P25: 5.15e-06
A26: Grid to Ground Multiplier (1/CSF): | C26: =1/C23 -> 1.000090181 | I26: NZ | J26: 4004 | K26: 40 | L26: 4 | M26: 7441031.722 | N26: 30.84607 | O26: 1.00009042 | P26: 5.06e-06
I27: NZ | J27: 4005 | K27: 40 | L27: 5 | M27: 7439180.958 | N27: 30.846 | O27: 1.00008543 | P27: 4.99e-06
C28: Converts Grid Meters to Ground Feet: | I28: NZ | J28: 4006 | K28: 40 | L28: 6 | M28: 7437330.198 | N28: 30.84594 | O28: 1.00008053 | P28: 4.9e-06
A29: Project Adjustment Factor (PAF): | C29: =C26*3.28083333 -> 3.281129199 | I29: NZ | J29: 4007 | K29: 40 | L29: 7 | M29: 7435479.441 | N29: 30.84588 | O29: 1.00007571 | P29: 4.82e-06
I30: NZ | J30: 4011 | K30: 40 | L30: 11 | M30: 7428076.449 | N30: 30.84568 | O30: 1.00005728 | P30: =O34-O30 -> 4.48e-06
A31: Check spreadsheet-generated (XLS) CSF against Trimble Business Center-generated (TBC) CSF below. | I31: NZ | J31: 4012 | K31: 40 | L31: 12 | M31: 7426225.708 | N31: 30.84563 | O31: 1.00005287 | P31: =O30-O31 -> 4.41e-06
I32: NZ | J32: 4008 | K32: 40 | L32: 8 | M32: 7433628.688 | N32: 30.84583 | O32: 1.00007098 | P32: =O29-O32 -> 4.73e-06
C33: Compare to Unitless Grid to Ground Multiplier: | I33: NZ | J33: 4009 | K33: 40 | L33: 9 | M33: 7431777.939 | N33: 30.84577 | O33: 1.00006633 | P33: =O32-O33 -> 4.65e-06
A34: Input TBC-generated 1/CSF: | I34: NZ | J34: 4010 | K34: 40 | L34: 10 | M34: 7429927.192 | N34: 30.84572 | O34: 1.00006176 | P34: =O33-O34 -> 4.57e-06
I35: NZ | J35: 4013 | K35: 40 | L35: 13 | M35: 7424374.97 | N35: 30.84559 | O35: 1.00004856 | P35: =O31-O35 -> 4.31e-06
A36: Test point at one end of project: | C36: Northing (ft) | D36: Easting (ft) | F36: Grid - Ground (XLS) | I36: NZ | J36: 4014 | K36: 40 | L36: 14 | M36: 7422524.235 | N36: 30.84555 | O36: 1.00004432 | P36: =O35-O36 -> 4.24e-06
B37: Input Grid Coordinates: | F37: =IF(C37-C38>0,ABS(ROUND(C37-C38,3))&"' shift N",ABS(ROUND(C37-C38,3))&"' shift S") -> 0' shift S | G37: =IF(D37-D38>0,ABS(ROUND(D37-D38,3))&"' shift E",ABS(ROUND(D37-D38,3))&"' shift W") -> 0' shift W | I37: NZ | J37: 4015 | K37: 40 | L37: 15 | M37: 7420673.502 | N37: 30.84551 | O37: 1.00004017 | P37: 4.15e-06
A38: =$A37 -> 0 | B38: Ground (XLS): | C38: =$C37*$C$26 -> 0 | D38: =$D37*$C$26 -> 0 | F38: Ground (XLS) - Ground (TBC) | I38: NZ | J38: 4016 | K38: 40 | L38: 16 | M38: 7418822.772 | N38: 30.84547 | O38: 1.0000361 | P38: 4.07e-06
A39: =$A37 -> 0 | B39: Ground (TBC): | C39: =$C37*$C$34 -> 0 | D39: =$D37*$C$34 -> 0 | F39: =IF(C38-C39>0,ABS(ROUND(C38-C39,3))&"' shift N",ABS(ROUND(C38-C39,3))&"' shift S") -> 0' shift S | G39: =IF(D38-D39>0,ABS(ROUND(D38-D39,3))&"' shift E",ABS(ROUND(D38-D39,3))&"' shift W") -> 0' shift W | I39: NZ | J39: 4017 | K39: 40 | L39: 17 | M39: 7416972.043 | N39: 30.84544 | O39: 1.00003212 | P39: 3.98e-06
I40: NZ | J40: 4018 | K40: 40 | L40: 18 | M40: 7415121.317 | N40: 30.84541 | O40: 1.00002821 | P40: 3.91e-06
A41: Test point at other end of project: | C41: Northing (ft) | D41: Easting (ft) | F41: Grid - Ground (XLS) | I41: NZ | J41: 4019 | K41: 40 | L41: 19 | M41: 7413270.592 | N41: 30.84538 | O41: 1.0000244 | P41: 3.81e-06
B42: Input Grid Coordinates: | F42: =IF(C42-C43>0,ABS(ROUND(C42-C43,3))&"' shift N",ABS(ROUND(C42-C43,3))&"' shift S") -> 0' shift S | G42: =IF(D42-D43>0,ABS(ROUND(D42-D43,3))&"' shift E",ABS(ROUND(D42-D43,3))&"' shift W") -> 0' shift W | I42: NZ | J42: 4020 | K42: 40 | L42: 20 | M42: 7411419.869 | N42: 30.84536 | O42: 1.00002066 | P42: 3.74e-06
A43: =$A42 -> 0 | B43: Ground (XLS): | C43: =$C42*$C$26 -> 0 | D43: =$D42*$C$26 -> 0 | F43: Ground XLS - Ground TBC | I43: NZ | J43: 4021 | K43: 40 | L43: 21 | M43: 7409569.147 | N43: 30.84534 | O43: 1.00001701 | P43: 3.65e-06
A44: =$A42 -> 0 | B44: Ground (TBC): | C44: =$C42*$C$34 -> 0 | D44: =$D42*$C$34 -> 0 | F44: =IF(C43-C44>0,ABS(ROUND(C43-C44,3))&"' shift N",ABS(ROUND(C43-C44,3))&"' shift S") -> 0' shift S | G44: =IF(D43-D44>0,ABS(ROUND(D43-D44,3))&"' shift E",ABS(ROUND(D43-D44,3))&"' shift W") -> 0' shift W | I44: NZ | J44: 4022 | K44: 40 | L44: 22 | M44: 7407718.427 | N44: 30.84532 | O44: 1.00001344 | P44: 3.57e-06
I45: NZ | J45: 4023 | K45: 40 | L45: 23 | M45: 7405867.708 | N45: 30.8453 | O45: 1.00000995 | P45: 3.49e-06
A46: ="Change in computed horizontal distance between "&A$37&" and "&A$42&" due to CSF used (an approximate "&ROUND(SQRT((C38-C43)^2+(D38-D43)^2),0)&" foot distance):" -> Change in computed horizontal distance between and due to CSF used (an approximate 0 foot distance): | F46: Ground (XLS) vs. Ground (TBC) | I46: NZ | J46: 4024 | K46: 40 | L46: 24 | M46: 7404016.99 | N46: 30.84529 | O46: 1.00000655 | P46: 3.4e-06
F47: =IF(ABS(C38-C43)>ABS(C39-C44),ABS(ROUND((C38-C39)-(C43-C44),3))&"' further N-S",ABS(ROUND((C38-C39)-(C43-C44),3))&"' nearer N-S") -> 0' nearer N-S | G47: =IF(ABS(D38-D43)>ABS(D39-D44),ABS(ROUND((D38-D39)-(D43-D44),3))&"' further E-W",ABS(ROUND((D38-D39)-(D43-D44),3))&"' nearer E-W") -> 0' nearer E-W | I47: NZ | J47: 4025 | K47: 40 | L47: 25 | M47: 7402166.273 | N47: 30.84527 | O47: 1.00000323 | P47: 3.32e-06
I48: NZ | J48: 4027 | K48: 40 | L48: 27 | M48: 7398464.84 | N48: 30.84526 | O48: 0.99999685 | P48: 6.38e-06
A49: ="Change in computed horizontal distance between "&A$37&" and "&A$42&" by adjusting from grid to ground (approx. "&ROUND(SQRT((C38-C43)^2+(D38-D43)^2),0)&" ft dist.):" -> Change in computed horizontal distance between and by adjusting from grid to ground (approx. 0 ft dist.): | F49: Grid vs. Ground (XLS) | I49: NZ | J49: 4028 | K49: 40 | L49: 28 | M49: 7396614.125 | N49: 30.84525 | O49: 0.99999378 | P49: 3.07e-06
F50: =IF(ABS(C38-C43)>ABS(C37-C42),ABS(ROUND((C37-C38)-(C42-C43),3))&"' further N-S",ABS(ROUND((C37-C38)-(C42-C43),3))&"' nearer N-S") -> 0' nearer N-S | G50: =IF(ABS(D38-D43)>ABS(D37-D42),ABS(ROUND((D37-D38)-(D42-D43),3))&"' further E-W",ABS(ROUND((D37-D38)-(D42-D43),3))&"' nearer E-W") -> 0' nearer E-W | I50: NZ | J50: 4029 | K50: 40 | L50: 29 | M50: 7394763.409 | N50: 30.84525 | O50: 0.9999908 | P50: 2.98e-06
I51: NZ | J51: 4030 | K51: 40 | L51: 30 | M51: 7392912.694 | N51: 30.84525 | O51: 0.9999879 | P51: 2.9e-06
I52: NZ | J52: 4031 | K52: 40 | L52: 31 | M52: 7391061.979 | N52: 30.84526 | O52: 0.99998508 | P52: 2.82e-06
I53: NZ | J53: 4032 | K53: 40 | L53: 32 | M53: 7389211.263 | N53: 30.84526 | O53: 0.99998235 | P53: 2.73e-06
I54: NZ | J54: 4033 | K54: 40 | L54: 33 | M54: 7387360.548 | N54: 30.84527 | O54: 0.9999797 | P54: 2.65e-06
I55: NZ | J55: 4034 | K55: 40 | L55: 34 | M55: 7385509.831 | N55: 30.84528 | O55: 0.99997713 | P55: 2.57e-06
I56: NZ | J56: 4035 | K56: 40 | L56: 35 | M56: 7383659.114 | N56: 30.8453 | O56: 0.99997465 | P56: 2.48e-06
I57: NZ | J57: 4036 | K57: 40 | L57: 36 | M57: 7381808.396 | N57: 30.84532 | O57: 0.99997225 | P57: 2.4e-06
I58: NZ | J58: 4037 | K58: 40 | L58: 37 | M58: 7379957.677 | N58: 30.84533 | O58: 0.99996993 | P58: 2.32e-06
I59: NZ | J59: 4038 | K59: 40 | L59: 38 | M59: 7378106.957 | N59: 30.84536 | O59: 0.9999677 | P59: 2.23e-06
I60: NZ | J60: 4039 | K60: 40 | L60: 39 | M60: 7376256.236 | N60: 30.84538 | O60: 0.99996556 | P60: 2.14e-06
I61: NZ | J61: 4040 | K61: 40 | L61: 40 | M61: 7374405.513 | N61: 30.84541 | O61: 0.99996349 | P61: 2.07e-06
I62: NZ | J62: 4041 | K62: 40 | L62: 41 | M62: 7372554.789 | N62: 30.84544 | O62: 0.99996151 | P62: 1.98e-06
I63: NZ | J63: 4042 | K63: 40 | L63: 42 | M63: 7370704.062 | N63: 30.84547 | O63: 0.99995961 | P63: 1.9e-06
I64: NZ | J64: 4043 | K64: 40 | L64: 43 | M64: 7368853.334 | N64: 30.8455 | O64: 0.9999578 | P64: 1.81e-06
I65: NZ | J65: 4044 | K65: 40 | L65: 44 | M65: 7367002.604 | N65: 30.84554 | O65: 0.99995607 | P65: 1.73e-06
I66: NZ | J66: 4045 | K66: 40 | L66: 45 | M66: 7365151.872 | N66: 30.84558 | O66: 0.99995443 | P66: 1.64e-06
I67: NZ | J67: 4046 | K67: 40 | L67: 46 | M67: 7363301.137 | N67: 30.84562 | O67: 0.99995287 | P67: 1.56e-06
I68: NZ | J68: 4047 | K68: 40 | L68: 47 | M68: 7361450.399 | N68: 30.84567 | O68: 0.99995139 | P68: =O67-O68 -> 1.48e-06
I69: NZ | J69: 4048 | K69: 40 | L69: 48 | M69: 7359599.659 | N69: 30.84572 | O69: 0.99995 | P69: 1.39e-06
I70: NZ | J70: 4049 | K70: 40 | L70: 49 | M70: 7357748.916 | N70: 30.84577 | O70: 0.99994869 | P70: 1.31e-06
I71: NZ | J71: 4050 | K71: 40 | L71: 50 | M71: 7355898.17 | N71: 30.84582 | O71: 0.99994746 | P71: 1.23e-06
I72: NZ | J72: 4051 | K72: 40 | L72: 51 | M72: 7354047.421 | N72: 30.84588 | O72: 0.99994632 | P72: 1.14e-06
I73: NZ | J73: 4052 | K73: 40 | L73: 52 | M73: 7352196.669 | N73: 30.84593 | O73: 0.99994527 | P73: 1.05e-06
I74: NZ | J74: 4053 | K74: 40 | L74: 53 | M74: 7350345.913 | N74: 30.84599 | O74: 0.99994429 | P74: 9.8e-07
I75: NZ | J75: 4054 | K75: 40 | L75: 54 | M75: 7348495.153 | N75: 30.84606 | O75: 0.9999434 | P75: 8.899999999e-07
I76: NZ | J76: 4055 | K76: 40 | L76: 55 | M76: 7346644.39 | N76: 30.84612 | O76: 0.9999426 | P76: 8e-07
I77: NZ | J77: 4056 | K77: 40 | L77: 56 | M77: 7344793.622 | N77: 30.84619 | O77: 0.99994188 | P77: 7.200000001e-07
I78: NZ | J78: 4057 | K78: 40 | L78: 57 | M78: 7342942.851 | N78: 30.84626 | O78: 0.99994124 | P78: 6.4e-07
I79: NZ | J79: 4058 | K79: 40 | L79: 58 | M79: 7341092.075 | N79: 30.84634 | O79: 0.99994069 | P79: 5.5e-07
I80: NZ | J80: 4059 | K80: 40 | L80: 59 | M80: 7339241.295 | N80: 30.84641 | O80: 0.99994022 | P80: 4.699999999e-07
I81: NZ | J81: 4100 | K81: 41 | L81: 0 | M81: 7337390.51 | N81: 30.84649 | O81: 0.99993984 | P81: 3.8e-07
I82: NZ | J82: 4101 | K82: 41 | L82: 1 | M82: 7335539.72 | N82: 30.84657 | O82: 0.99993954 | P82: 3.000000001e-07
I83: NZ | J83: 4102 | K83: 41 | L83: 2 | M83: 7333688.926 | N83: 30.84666 | O83: 0.99993932 | P83: 2.2e-07
I84: NZ | J84: 4103 | K84: 41 | L84: 3 | M84: 7331838.127 | N84: 30.84674 | O84: 0.99993919 | P84: 1.3e-07
I85: NZ | J85: 4104 | K85: 41 | L85: 4 | M85: 7329987.322 | N85: 30.84683 | O85: 0.99993914 | P85: 5.000000003e-08
I86: NZ | J86: 4105 | K86: 41 | L86: 5 | M86: 7328136.512 | N86: 30.84693 | O86: 0.99993918 | P86: -4.000000009e-08
I87: NZ | J87: 4106 | K87: 41 | L87: 6 | M87: 7326285.696 | N87: 30.84702 | O87: 0.9999393 | P87: -1.199999999e-07
I88: NZ | J88: 4107 | K88: 41 | L88: 7 | M88: 7324434.875 | N88: 30.84712 | O88: 0.9999395 | P88: -2e-07
I89: NZ | J89: 4108 | K89: 41 | L89: 8 | M89: 7322584.048 | N89: 30.84722 | O89: 0.99993979 | P89: -2.9e-07
I90: NZ | J90: 4109 | K90: 41 | L90: 9 | M90: 7320733.215 | N90: 30.84732 | O90: 0.99994017 | P90: -3.8e-07
I91: NZ | J91: 4110 | K91: 41 | L91: 10 | M91: 7318882.376 | N91: 30.84742 | O91: 0.99994063 | P91: -4.6e-07
I92: NZ | J92: 4111 | K92: 41 | L92: 11 | M92: 7317031.531 | N92: 30.84753 | O92: 0.99994117 | P92: -5.4e-07
I93: NZ | J93: 4112 | K93: 41 | L93: 12 | M93: 7315180.679 | N93: 30.84764 | O93: 0.9999418 | P93: -6.299999999e-07
I94: NZ | J94: 4113 | K94: 41 | L94: 13 | M94: 7313329.82 | N94: 30.84776 | O94: 0.99994251 | P94: -7.1e-07
I95: NZ | J95: 4114 | K95: 41 | L95: 14 | M95: 7311478.955 | N95: 30.84787 | O95: 0.99994331 | P95: -8e-07
I96: NZ | J96: 4115 | K96: 41 | L96: 15 | M96: 7309628.083 | N96: 30.84799 | O96: 0.99994419 | P96: -8.8e-07
I97: NZ | J97: 4116 | K97: 41 | L97: 16 | M97: 7307777.203 | N97: 30.84811 | O97: 0.99994515 | P97: -9.599999999e-07
I98: NZ | J98: 4117 | K98: 41 | L98: 17 | M98: 7305926.317 | N98: 30.84823 | O98: 0.9999462 | P98: -1.05e-06
I99: NZ | J99: 4118 | K99: 41 | L99: 18 | M99: 7304075.423 | N99: 30.84836 | O99: 0.99994734 | P99: -1.14e-06
I100: NZ | J100: 4119 | K100: 41 | L100: 19 | M100: 7302224.521 | N100: 30.84849 | O100: 0.99994856 | P100: =O99-O100 -> -1.22e-06
I101: NZ | J101: 4120 | K101: 41 | L101: 20 | M101: 7300373.612 | N101: 30.84862 | O101: 0.99994986 | P101: -1.3e-06
I102: NZ | J102: 4121 | K102: 41 | L102: 21 | M102: 7298522.695 | N102: 30.84875 | O102: 0.99995125 | P102: -1.39e-06
I103: NZ | J103: 4122 | K103: 41 | L103: 22 | M103: 7296671.77 | N103: 30.84889 | O103: 0.99995272 | P103: -1.47e-06
I104: NZ | J104: 4123 | K104: 41 | L104: 23 | M104: 7294820.837 | N104: 30.84903 | O104: 0.99995428 | P104: -1.56e-06
I105: NZ | J105: 4124 | K105: 41 | L105: 24 | M105: 7292969.895 | N105: 30.84917 | O105: 0.99995592 | P105: -1.64e-06
I106: NZ | J106: 4125 | K106: 41 | L106: 25 | M106: 7291118.945 | N106: 30.84931 | O106: 0.99995765 | P106: -1.73e-06
I107: NZ | J107: 4126 | K107: 41 | L107: 26 | M107: 7289267.986 | N107: 30.84946 | O107: 0.99995946 | P107: -1.81e-06
I108: NZ | J108: 4127 | K108: 41 | L108: 27 | M108: 7287417.018 | N108: 30.84961 | O108: 0.99996136 | P108: -1.9e-06
I109: NZ | J109: 4128 | K109: 41 | L109: 28 | M109: 7285566.042 | N109: 30.84976 | O109: 0.99996334 | P109: -1.98e-06
I110: NZ | J110: 4129 | K110: 41 | L110: 29 | M110: 7283715.056 | N110: 30.84992 | O110: 0.99996541 | P110: -2.07e-06
I111: NZ | J111: 4130 | K111: 41 | L111: 30 | M111: 7281864.061 | N111: 30.85007 | O111: 0.99996756 | P111: -2.15e-06
I112: NZ | J112: 4131 | K112: 41 | L112: 31 | M112: 7280013.057 | N112: 30.85023 | O112: 0.99996979 | P112: -2.23e-06
I113: NZ | J113: 4132 | K113: 41 | L113: 32 | M113: 7278162.043 | N113: 30.8504 | O113: 0.99997212 | P113: -2.33e-06
I114: NZ | J114: 4133 | K114: 41 | L114: 33 | M114: 7276311.019 | N114: 30.85056 | O114: 0.99997452 | P114: -2.4e-06
I115: NZ | J115: 4134 | K115: 41 | L115: 34 | M115: 7274459.985 | N115: 30.85073 | O115: 0.99997701 | P115: -2.49e-06
I116: NZ | J116: 4135 | K116: 41 | L116: 35 | M116: 7272608.941 | N116: 30.8509 | O116: 0.99997959 | P116: -2.58e-06
I117: NZ | J117: 4136 | K117: 41 | L117: 36 | M117: 7270757.887 | N117: 30.85107 | O117: 0.99998225 | P117: -2.66e-06
I118: NZ | J118: 4137 | K118: 41 | L118: 37 | M118: 7268906.823 | N118: 30.85125 | O118: 0.99998499 | P118: -2.74e-06
I119: NZ | J119: 4138 | K119: 41 | L119: 38 | M119: 7267055.748 | N119: 30.85143 | O119: 0.99998783 | P119: -2.84e-06
I120: NZ | J120: 4139 | K120: 41 | L120: 39 | M120: 7265204.662 | N120: 30.85161 | O120: 0.99999074 | P120: -2.91e-06
I121: NZ | J121: 4140 | K121: 41 | L121: 40 | M121: 7263353.566 | N121: 30.85179 | O121: 0.99999374 | P121: -3e-06
I122: NZ | J122: 4141 | K122: 41 | L122: 41 | M122: 7261502.458 | N122: 30.85198 | O122: 0.99999683 | P122: -3.09e-06
I123: NZ | J123: 4142 | K123: 41 | L123: 42 | M123: 7259651.339 | N123: 30.85217 | O123: 1 | P123: -3.17e-06
I124: NZ | J124: 4143 | K124: 41 | L124: 43 | M124: 7257800.209 | N124: 30.85236 | O124: 1.00000326 | P124: -3.26e-06
I125: NZ | J125: 4144 | K125: 41 | L125: 44 | M125: 7255949.068 | N125: 30.85255 | O125: 1.0000066 | P125: -3.34e-06
I126: NZ | J126: 4145 | K126: 41 | L126: 45 | M126: 7254097.915 | N126: 30.85275 | O126: 1.00001002 | P126: -3.42e-06
I127: NZ | J127: 4146 | K127: 41 | L127: 46 | M127: 7252246.75 | N127: 30.85295 | O127: 1.00001354 | P127: -3.52e-06
I128: NZ | J128: 4147 | K128: 41 | L128: 47 | M128: 7250395.573 | N128: 30.85315 | O128: 1.00001713 | P128: -3.59e-06
I129: NZ | J129: 4148 | K129: 41 | L129: 48 | M129: 7248544.384 | N129: 30.85336 | O129: 1.00002082 | P129: -3.69e-06
I130: NZ | J130: 4149 | K130: 41 | L130: 49 | M130: 7246693.182 | N130: 30.85356 | O130: 1.00002458 | P130: -3.76e-06
I131: NZ | J131: 4150 | K131: 41 | L131: 50 | M131: 7244841.968 | N131: 30.85377 | O131: 1.00002844 | P131: -3.86e-06
I132: NZ | J132: 4151 | K132: 41 | L132: 51 | M132: 7242990.742 | N132: 30.85399 | O132: 1.00003238 | P132: =O131-O132 -> -3.94e-06
I133: NZ | J133: 4152 | K133: 41 | L133: 52 | M133: 7241139.503 | N133: 30.8542 | O133: 1.0000364 | P133: -4.02e-06
I134: NZ | J134: 4153 | K134: 41 | L134: 53 | M134: 7239288.251 | N134: 30.85442 | O134: 1.00004051 | P134: -4.11e-06
I135: NZ | J135: 4154 | K135: 41 | L135: 54 | M135: 7237436.985 | N135: 30.85464 | O135: 1.0000447 | P135: -4.19e-06
I136: NZ | J136: 4155 | K136: 41 | L136: 55 | M136: 7235585.707 | N136: 30.85486 | O136: 1.00004898 | P136: -4.28e-06
I137: NZ | J137: 4156 | K137: 41 | L137: 56 | M137: 7233734.415 | N137: 30.85509 | O137: 1.00005335 | P137: -4.37e-06
I138: NZ | J138: 4157 | K138: 41 | L138: 57 | M138: 7231883.11 | N138: 30.85532 | O138: 1.0000578 | P138: -4.45e-06
I139: NZ | J139: 4158 | K139: 41 | L139: 58 | M139: 7230031.791 | N139: 30.85555 | O139: 1.00006234 | P139: -4.54e-06
I140: NZ | J140: 4159 | K140: 41 | L140: 59 | M140: 7228180.458 | N140: 30.85578 | O140: 1.00006696 | P140: -4.62e-06
I141: NZ | J141: 4200 | K141: 42 | L141: 0 | M141: 7226329.111 | N141: 30.85602 | O141: 1.00007167 | P141: -4.71e-06
I142: NZ | J142: 4201 | K142: 42 | L142: 1 | M142: 7224477.749 | N142: 30.85626 | O142: 1.00007646 | P142: -4.79e-06
I143: NZ | J143: 4202 | K143: 42 | L143: 2 | M143: 7222626.374 | N143: 30.8565 | O143: 1.00008134 | P143: -4.88e-06
I144: NZ | J144: 4203 | K144: 42 | L144: 3 | M144: 7220774.984 | N144: 30.85675 | O144: 1.0000863 | P144: -4.96e-06
I145: NZ | J145: 4204 | K145: 42 | L145: 4 | M145: 7218923.579 | N145: 30.85699 | O145: 1.00009135 | P145: -5.05e-06
I146: NZ | J146: 4205 | K146: 42 | L146: 5 | M146: 7217072.16 | N146: 30.85724 | O146: 1.00009649 | P146: -5.14e-06
I147: NZ | J147: 4206 | K147: 42 | L147: 6 | M147: 7215220.725 | N147: 30.85749 | O147: 1.00010171 | P147: -5.22e-06
I148: NZ | J148: 4207 | K148: 42 | L148: 7 | M148: 7213369.275 | N148: 30.85775 | O148: 1.00010702 | P148: -5.31e-06
I149: NZ | J149: 4208 | K149: 42 | L149: 8 | M149: 7211517.811 | N149: 30.85801 | O149: 1.00011241 | P149: -5.39e-06
I150: NZ | J150: 4209 | K150: 42 | L150: 9 | M150: 7209666.33 | N150: 30.85827 | O150: 1.00011789 | P150: -5.48e-06
I151: NZ | J151: 4210 | K151: 42 | L151: 10 | M151: 7207814.834 | N151: 30.85853 | O151: 1.00012345 | P151: -5.56e-06
I152: SZ | J152: 3800 | K152: 38 | L152: 0 | M152: 7932869.037 | N152: 30.83922 | O152: 1.00022476
I153: SZ | J153: 3801 | K153: 38 | L153: 1 | M153: 7931018.684 | N153: 30.8391 | O153: 1.00021786 | P153: =O152-O153 -> 6.9e-06
I154: SZ | J154: 3802 | K154: 38 | L154: 2 | M154: 7929168.338 | N154: 30.83898 | O154: 1.00021105 | P154: 6.81e-06
I155: SZ | J155: 3803 | K155: 38 | L155: 3 | M155: 7927318 | N155: 30.83886 | O155: 1.00020433 | P155: 6.72e-06
I156: SZ | J156: 3804 | K156: 38 | L156: 4 | M156: 7925467.668 | N156: 30.83874 | O156: 1.00019768 | P156: 6.65e-06
I157: SZ | J157: 3805 | K157: 38 | L157: 5 | M157: 7923617.343 | N157: 30.83863 | O157: 1.00019112 | P157: 6.56e-06
I158: SZ | J158: 3806 | K158: 38 | L158: 6 | M158: 7921767.026 | N158: 30.83852 | O158: 1.00018464 | P158: 6.48e-06
I159: SZ | J159: 3807 | K159: 38 | L159: 7 | M159: 7919916.715 | N159: 30.83841 | O159: 1.00017825 | P159: 6.39e-06
I160: SZ | J160: 3808 | K160: 38 | L160: 8 | M160: 7918066.41 | N160: 30.8383 | O160: 1.00017193 | P160: 6.32e-06
I161: SZ | J161: 3809 | K161: 38 | L161: 9 | M161: 7916216.112 | N161: 30.8382 | O161: 1.0001657 | P161: 6.23e-06
I162: SZ | J162: 3810 | K162: 38 | L162: 10 | M162: 7914365.82 | N162: 30.8381 | O162: 1.00015956 | P162: 6.14e-06
I163: SZ | J163: 3811 | K163: 38 | L163: 11 | M163: 7912515.534 | N163: 30.8381 | O163: 1.00015349 | P163: 6.07e-06
I164: SZ | J164: 3812 | K164: 38 | L164: 12 | M164: 7910665.253 | N164: 30.83791 | O164: 1.00014751 | P164: 5.98e-06
I165: SZ | J165: 3813 | K165: 38 | L165: 13 | M165: 7908814.979 | N165: 30.83782 | O165: 1.00014161 | P165: 5.9e-06
I166: SZ | J166: 3814 | K166: 38 | L166: 14 | M166: 7906964.71 | N166: 30.83772 | O166: 1.0001358 | P166: 5.81e-06
I167: SZ | J167: 3815 | K167: 38 | L167: 15 | M167: 7905114.446 | N167: 30.83764 | O167: 1.00013007 | P167: 5.73e-06
I168: SZ | J168: 3816 | K168: 38 | L168: 16 | M168: 7903264.188 | N168: 30.83755 | O168: 1.00012442 | P168: 5.65e-06
I169: SZ | J169: 3817 | K169: 38 | L169: 17 | M169: 7901413.935 | N169: 30.83747 | O169: 1.00011885 | P169: 5.57e-06
I170: SZ | J170: 3818 | K170: 38 | L170: 18 | M170: 7899563.687 | N170: 30.83739 | O170: 1.00011337 | P170: 5.48e-06
I171: SZ | J171: 3819 | K171: 38 | L171: 19 | M171: 7897713.444 | N171: 30.83731 | O171: 1.00010797 | P171: 5.4e-06
I172: SZ | J172: 3820 | K172: 38 | L172: 20 | M172: 7895863.205 | N172: 30.83724 | O172: 1.00010265 | P172: 5.32e-06
I173: SZ | J173: 3821 | K173: 38 | L173: 21 | M173: 7894012.971 | N173: 30.83717 | O173: 1.00009741 | P173: 5.24e-06
I174: SZ | J174: 3822 | K174: 38 | L174: 22 | M174: 7892162.741 | N174: 30.8371 | O174: 1.00009226 | P174: 5.15e-06
I175: SZ | J175: 3823 | K175: 38 | L175: 23 | M175: 7890312.515 | N175: 30.83703 | O175: 1.0000872 | P175: 5.06e-06
I176: SZ | J176: 3824 | K176: 38 | L176: 24 | M176: 7888462.293 | N176: 30.83696 | O176: 1.00008221 | P176: 4.99e-06
I177: SZ | J177: 3825 | K177: 38 | L177: 25 | M177: 7886612.075 | N177: 30.8369 | O177: 1.00007731 | P177: 4.9e-06
I178: SZ | J178: 3826 | K178: 38 | L178: 26 | M178: 7884761.861 | N178: 30.83684 | O178: 1.00007249 | P178: 4.82e-06
I179: SZ | J179: 3827 | K179: 38 | L179: 27 | M179: 7882911.651 | N179: 30.83679 | O179: 1.00006776 | P179: 4.73e-06
I180: SZ | J180: 3828 | K180: 38 | L180: 28 | M180: 7881061.444 | N180: 30.83673 | O180: 1.0000631 | P180: 4.66e-06
I181: SZ | J181: 3829 | K181: 38 | L181: 29 | M181: 7879211.24 | N181: 30.83668 | O181: 1.00005853 | P181: 4.57e-06
I182: SZ | J182: 3830 | K182: 38 | L182: 30 | M182: 7877361.039 | N182: 30.83663 | O182: 1.00005405 | P182: 4.48e-06
I183: SZ | J183: 3831 | K183: 38 | L183: 31 | M183: 7875510.841 | N183: 30.83658 | O183: 1.00004965 | P183: 4.4e-06
I184: SZ | J184: 3832 | K184: 38 | L184: 32 | M184: 7873660.646 | N184: 30.83654 | O184: 1.00004533 | P184: 4.32e-06
I185: SZ | J185: 3833 | K185: 38 | L185: 33 | M185: 7871810.453 | N185: 30.8365 | O185: 1.00004109 | P185: =O184-O185 -> 4.24e-06
I186: SZ | J186: 3834 | K186: 38 | L186: 34 | M186: 7869960.263 | N186: 30.83646 | O186: 1.00003694 | P186: 4.15e-06
I187: SZ | J187: 3835 | K187: 38 | L187: 35 | M187: 7868110.076 | N187: 30.83642 | O187: 1.00003287 | P187: 4.07e-06
I188: SZ | J188: 3836 | K188: 38 | L188: 36 | M188: 7866259.89 | N188: 30.83639 | O188: 1.00002888 | P188: 3.99e-06
I189: SZ | J189: 3837 | K189: 38 | L189: 37 | M189: 7864409.707 | N189: 30.83636 | O189: 1.00002498 | P189: 3.9e-06
I190: SZ | J190: 3838 | K190: 38 | L190: 38 | M190: 7862559.525 | N190: 30.83633 | O190: 1.00002116 | P190: 3.82e-06
I191: SZ | J191: 3839 | K191: 38 | L191: 39 | M191: 7860709.345 | N191: 30.83631 | O191: 1.00001743 | P191: 3.73e-06
I192: SZ | J192: 3840 | K192: 38 | L192: 40 | M192: 7858859.167 | N192: 30.83628 | O192: 1.00001377 | P192: 3.66e-06
I193: SZ | J193: 3841 | K193: 38 | L193: 41 | M193: 7857008.99 | N193: 30.83626 | O193: 1.00001021 | P193: 3.56e-06
I194: SZ | J194: 3842 | K194: 38 | L194: 42 | M194: 7855158.814 | N194: 30.83624 | O194: 1.00000672 | P194: 3.49e-06
I195: SZ | J195: 3843 | K195: 38 | L195: 43 | M195: 7853308.64 | N195: 30.83623 | O195: 1.00000332 | P195: 3.4e-06
I196: SZ | J196: 3844 | K196: 38 | L196: 44 | M196: 7851458.466 | N196: 30.83622 | O196: 1 | P196: 3.32e-06
I197: SZ | J197: 3845 | K197: 38 | L197: 45 | M197: 7849608.293 | N197: 30.83621 | O197: 0.99999677 | P197: 3.23e-06
I198: SZ | J198: 3846 | K198: 38 | L198: 46 | M198: 7847758.121 | N198: 30.8362 | O198: 0.99999361 | P198: 3.16e-06
I199: SZ | J199: 3847 | K199: 38 | L199: 47 | M199: 7845907.949 | N199: 30.83619 | O199: 0.99999055 | P199: 3.06e-06
I200: SZ | J200: 3848 | K200: 38 | L200: 48 | M200: 7844057.777 | N200: 30.83619 | O200: 0.99998756 | P200: 2.99e-06
... 111 more rows

Sheet GRID>GRND
A1: Project: | B1: =REPORT!B2 -> FRA-71-29.4 | F1: Input Units (please select): | G1: State Plane Grid - US Survey Feet | J1: Unitless Grid to Ground Factor: | K1: =REPORT!C13 -> 1.00009018
A2: Pid: | B2: =REPORT!E2 -> 106471 | F2: Output Units (please select): | G2: Ground - US Survey Feet | J2: Project Adjustment Factor: | K2: =K1*K3 -> 3.281129199
J3: Metric to US Survey Feet Factor: | K3: =3937/1200 -> 3.280833333
A5: INPUT | G5: OUTPUT
A6: =G1 -> State Plane Grid - US Survey Feet | G6: =G2 -> Ground - US Survey Feet | N6: INPUT UNITS
A7: NAME | B7: NORTH | C7: EAST | D7: ORTHO HT | E7: FEATURE | G7: NAME | H7: NORTH | I7: EAST | J7: ORTHO HT | K7: FEATURE | N7: State Plane Grid - Meters
G8: =A8 -> 0 | H8: =IF(AND($G$1="STATE PLANE GRID - METERS",$G$2="STATE PLANE GRID - US SURVEY FEET"),B8*$K$3,IF(AND($G$1="STATE PLANE GRID - METERS",$G$2="GROUND - METERS"),B8*$K$1,IF(AND($G$1="STATE PLANE GRID - METERS",$G$2="GROUND - US SURVEY FEET"),B8*$K$2,IF(AND($G$1="STATE PLANE GRID - US SURVEY FEET",$G$2="STATE PLANE GRID - METERS"),B8/$K$3,IF(AND($G$1="STATE PLANE GRID - US SURVEY FEET",$G$2="GROUND - METERS"),B8/$K$2,IF(AND($G$1="STATE PLANE GRID - US SURVEY FEET",$G$2="GROUND - US SURVEY FEET"),B8*$K$1,IF(AND($G$1="GROUND - METERS",$G$2="STATE PLANE GRID - US SURVEY FEET"),B8*$K$3/$K$1,IF(AND($G$1="GROUND - METERS",$G$2="STATE PLANE GRID - METERS"),B8/$K$1,IF(AND($G$1="GROUND - METERS",$G$2="GROUND - US SURVEY FEET"),B8*$K$3,IF(AND($G$1="GROUND - US SURVEY FEET",$G$2="STATE PLANE GRID - US SURVEY FEET"),B8/$K$1,IF(AND($G$1="GROUND - US SURVEY FEET",$G$2="STATE PLANE GRID - METERS"),B8/$K$2,IF(AND($G$1="GROUND - US SURVEY FEET",$G$2="GROUND - METERS"),B8/$K$3)))))))))))) -> 0 | I8: =IF(AND($G$1="STATE PLANE GRID - METERS",$G$2="STATE PLANE GRID - US SURVEY FEET"),C8*$K$3,IF(AND($G$1="STATE PLANE GRID - METERS",$G$2="GROUND - METERS"),C8*$K$1,IF(AND($G$1="STATE PLANE GRID - METERS",$G$2="GROUND - US SURVEY FEET"),C8*$K$2,IF(AND($G$1="STATE PLANE GRID - US SURVEY FEET",$G$2="STATE PLANE GRID - METERS"),C8/$K$3,IF(AND($G$1="STATE PLANE GRID - US SURVEY FEET",$G$2="GROUND - METERS"),C8/$K$2,IF(AND($G$1="STATE PLANE GRID - US SURVEY FEET",$G$2="GROUND - US SURVEY FEET"),C8*$K$1,IF(AND($G$1="GROUND - METERS",$G$2="STATE PLANE GRID - US SURVEY FEET"),C8*$K$3/$K$1,IF(AND($G$1="GROUND - METERS",$G$2="STATE PLANE GRID - METERS"),C8/$K$1,IF(AND($G$1="GROUND - METERS",$G$2="GROUND - US SURVEY FEET"),C8*$K$3,IF(AND($G$1="GROUND - US SURVEY FEET",$G$2="STATE PLANE GRID - US SURVEY FEET"),C8/$K$1,IF(AND($G$1="GROUND - US SURVEY FEET",$G$2="STATE PLANE GRID - METERS"),C8/$K$2,IF(AND($G$1="GROUND - US SURVEY FEET",$G$2="GROUND - METERS"),C8/$K$3)))))))))))) -> 0 | J8: =IF(AND($G$1="STATE PLANE GRID - METERS",$G$2="STATE PLANE GRID - US SURVEY FEET"),D8*$K$3,IF(AND($G$1="STATE PLANE GRID - METERS",$G$2="GROUND - METERS"),B8,IF(AND($G$1="STATE PLANE GRID - METERS",$G$2="GROUND - US SURVEY FEET"),D8*$K$3,IF(AND($G$1="STATE PLANE GRID - US SURVEY FEET",$G$2="STATE PLANE GRID - METERS"),D8/$K$3,IF(AND($G$1="STATE PLANE GRID - US SURVEY FEET",$G$2="GROUND - METERS"),D8/$K$3,IF(AND($G$1="STATE PLANE GRID - US SURVEY FEET",$G$2="GROUND - US SURVEY FEET"),D8,IF(AND($G$1="GROUND - METERS",$G$2="STATE PLANE GRID - US SURVEY FEET"),D8*$K$3,IF(AND($G$1="GROUND - METERS",$G$2="STATE PLANE GRID - METERS"),D8,IF(AND($G$1="GROUND - METERS",$G$2="GROUND - US SURVEY FEET"),D8*$K$3,IF(AND($G$1="GROUND - US SURVEY FEET",$G$2="STATE PLANE GRID - US SURVEY FEET"),D8,IF(AND($G$1="GROUND - US SURVEY FEET",$G$2="STATE PLANE GRID - METERS"),D8/$K$3,IF(AND($G$1="GROUND - US SURVEY FEET",$G$2="GROUND - METERS"),D8/$K$3)))))))))))) -> 0 | K8: =E8 -> 0 | N8: State Plane Grid - US Survey Feet
G9: 0 | H9: 0 | I9: 0 | J9: 0 | K9: 0 | N9: Ground - Meters
G10: 0 | H10: 0 | I10: 0 | J10: 0 | K10: 0 | N10: Ground - US Survey Feet
G11: 0 | H11: 0 | I11: 0 | J11: 0 | K11: 0
G12: 0 | H12: 0 | I12: 0 | J12: 0 | K12: 0
G13: 0 | H13: 0 | I13: 0 | J13: 0 | K13: 0
G14: 0 | H14: 0 | I14: 0 | J14: 0 | K14: 0
G15: 0 | H15: 0 | I15: 0 | J15: 0 | K15: 0
G16: 0 | H16: 0 | I16: 0 | J16: 0 | K16: 0
G17: 0 | H17: 0 | I17: 0 | J17: 0 | K17: 0
G18: 0 | H18: 0 | I18: 0 | J18: 0 | K18: 0
G19: 0 | H19: 0 | I19: 0 | J19: 0 | K19: 0
G20: 0 | H20: 0 | I20: 0 | J20: 0 | K20: 0
G21: 0 | H21: 0 | I21: 0 | J21: 0 | K21: 0
G22: 0 | H22: 0 | I22: 0 | J22: 0 | K22: 0
G23: 0 | H23: 0 | I23: 0 | J23: 0 | K23: 0
G24: 0 | H24: 0 | I24: 0 | J24: 0 | K24: 0
G25: 0 | H25: 0 | I25: 0 | J25: 0 | K25: 0
G26: 0 | H26: 0 | I26: 0 | J26: 0 | K26: 0
G27: 0 | H27: 0 | I27: 0 | J27: 0 | K27: 0
G28: 0 | H28: 0 | I28: 0 | J28: 0 | K28: 0
G29: 0 | H29: 0 | I29: 0 | J29: 0 | K29: 0
G30: 0 | H30: 0 | I30: 0 | J30: 0 | K30: 0
G31: 0 | H31: 0 | I31: 0 | J31: 0 | K31: 0
G32: 0 | H32: 0 | I32: 0 | J32: 0 | K32: 0
G33: 0 | H33: 0 | I33: 0 | J33: 0 | K33: 0
G34: 0 | H34: 0 | I34: 0 | J34: 0 | K34: 0
G35: 0 | H35: 0 | I35: 0 | J35: 0 | K35: 0
G36: 0 | H36: 0 | I36: 0 | J36: 0 | K36: 0
G37: 0 | H37: 0 | I37: 0 | J37: 0 | K37: 0
G38: 0 | H38: 0 | I38: 0 | J38: 0 | K38: 0
G39: 0 | H39: 0 | I39: 0 | J39: 0 | K39: 0
G40: 0 | H40: =IF(AND($G$1="STATE PLANE GRID - METERS",$G$2="STATE PLANE GRID - US SURVEY FEET"),B40*$K$3,IF(AND($G$1="STATE PLANE GRID - METERS",$G$2="GROUND - METERS"),B40*$K$1,IF(AND($G$1="STATE PLANE GRID - METERS",$G$2="GROUND - US SURVEY FEET"),B40*$K$2,IF(AND($G$1="STATE PLANE GRID - US SURVEY FEET",$G$2="STATE PLANE GRID - METERS"),B40/$K$3,IF(AND($G$1="STATE PLANE GRID - US SURVEY FEET",$G$2="GROUND - METERS"),B40/$K$2,IF(AND($G$1="STATE PLANE GRID - US SURVEY FEET",$G$2="GROUND - US SURVEY FEET"),B40*$K$1,IF(AND($G$1="GROUND - METERS",$G$2="STATE PLANE GRID - US SURVEY FEET"),B40*$K$3/$K$1,IF(AND($G$1="GROUND - METERS",$G$2="STATE PLANE GRID - METERS"),B40/$K$1,IF(AND($G$1="GROUND - METERS",$G$2="GROUND - US SURVEY FEET"),B40*$K$3,IF(AND($G$1="GROUND - US SURVEY FEET",$G$2="STATE PLANE GRID - US SURVEY FEET"),B40/$K$1,IF(AND($G$1="GROUND - US SURVEY FEET",$G$2="STATE PLANE GRID - METERS"),B40/$K$2,IF(AND($G$1="GROUND - US SURVEY FEET",$G$2="GROUND - METERS"),B40/$K$3)))))))))))) -> 0 | I40: =IF(AND($G$1="STATE PLANE GRID - METERS",$G$2="STATE PLANE GRID - US SURVEY FEET"),C40*$K$3,IF(AND($G$1="STATE PLANE GRID - METERS",$G$2="GROUND - METERS"),C40*$K$1,IF(AND($G$1="STATE PLANE GRID - METERS",$G$2="GROUND - US SURVEY FEET"),C40*$K$2,IF(AND($G$1="STATE PLANE GRID - US SURVEY FEET",$G$2="STATE PLANE GRID - METERS"),C40/$K$3,IF(AND($G$1="STATE PLANE GRID - US SURVEY FEET",$G$2="GROUND - METERS"),C40/$K$2,IF(AND($G$1="STATE PLANE GRID - US SURVEY FEET",$G$2="GROUND - US SURVEY FEET"),C40*$K$1,IF(AND($G$1="GROUND - METERS",$G$2="STATE PLANE GRID - US SURVEY FEET"),C40*$K$3/$K$1,IF(AND($G$1="GROUND - METERS",$G$2="STATE PLANE GRID - METERS"),C40/$K$1,IF(AND($G$1="GROUND - METERS",$G$2="GROUND - US SURVEY FEET"),C40*$K$3,IF(AND($G$1="GROUND - US SURVEY FEET",$G$2="STATE PLANE GRID - US SURVEY FEET"),C40/$K$1,IF(AND($G$1="GROUND - US SURVEY FEET",$G$2="STATE PLANE GRID - METERS"),C40/$K$2,IF(AND($G$1="GROUND - US SURVEY FEET",$G$2="GROUND - METERS"),C40/$K$3)))))))))))) -> 0 | J40: =IF(AND($G$1="STATE PLANE GRID - METERS",$G$2="STATE PLANE GRID - US SURVEY FEET"),D40*$K$3,IF(AND($G$1="STATE PLANE GRID - METERS",$G$2="GROUND - METERS"),B40,IF(AND($G$1="STATE PLANE GRID - METERS",$G$2="GROUND - US SURVEY FEET"),D40*$K$3,IF(AND($G$1="STATE PLANE GRID - US SURVEY FEET",$G$2="STATE PLANE GRID - METERS"),D40/$K$3,IF(AND($G$1="STATE PLANE GRID - US SURVEY FEET",$G$2="GROUND - METERS"),D40/$K$3,IF(AND($G$1="STATE PLANE GRID - US SURVEY FEET",$G$2="GROUND - US SURVEY FEET"),D40,IF(AND($G$1="GROUND - METERS",$G$2="STATE PLANE GRID - US SURVEY FEET"),D40*$K$3,IF(AND($G$1="GROUND - METERS",$G$2="STATE PLANE GRID - METERS"),D40,IF(AND($G$1="GROUND - METERS",$G$2="GROUND - US SURVEY FEET"),D40*$K$3,IF(AND($G$1="GROUND - US SURVEY FEET",$G$2="STATE PLANE GRID - US SURVEY FEET"),D40,IF(AND($G$1="GROUND - US SURVEY FEET",$G$2="STATE PLANE GRID - METERS"),D40/$K$3,IF(AND($G$1="GROUND - US SURVEY FEET",$G$2="GROUND - METERS"),D40/$K$3)))))))))))) -> 0 | K40: 0
G41: 0 | H41: 0 | I41: 0 | J41: 0 | K41: 0
G42: 0 | H42: 0 | I42: 0 | J42: 0 | K42: 0
G43: 0 | H43: 0 | I43: 0 | J43: 0 | K43: 0
G44: 0 | H44: 0 | I44: 0 | J44: 0 | K44: 0
G45: 0 | H45: 0 | I45: 0 | J45: 0 | K45: 0
G46: 0 | H46: 0 | I46: 0 | J46: 0 | K46: 0
G47: 0 | H47: 0 | I47: 0 | J47: 0 | K47: 0
G48: 0 | H48: 0 | I48: 0 | J48: 0 | K48: 0
G49: 0 | H49: 0 | I49: 0 | J49: 0 | K49: 0
G50: 0 | H50: 0 | I50: 0 | J50: 0 | K50: 0
G51: 0 | H51: 0 | I51: 0 | J51: 0 | K51: 0
G52: 0 | H52: 0 | I52: 0 | J52: 0 | K52: 0
G53: 0 | H53: 0 | I53: 0 | J53: 0 | K53: 0
G54: 0 | H54: 0 | I54: 0 | J54: 0 | K54: 0
G55: 0 | H55: 0 | I55: 0 | J55: 0 | K55: 0
G56: 0 | H56: 0 | I56: 0 | J56: 0 | K56: 0
G57: 0 | H57: 0 | I57: 0 | J57: 0 | K57: 0
G58: 0 | H58: 0 | I58: 0 | J58: 0 | K58: 0
G59: 0 | H59: 0 | I59: 0 | J59: 0 | K59: 0
G60: 0 | H60: 0 | I60: 0 | J60: 0 | K60: 0
G61: 0 | H61: 0 | I61: 0 | J61: 0 | K61: 0
G62: 0 | H62: 0 | I62: 0 | J62: 0 | K62: 0
G63: 0 | H63: 0 | I63: 0 | J63: 0 | K63: 0
G64: 0 | H64: 0 | I64: 0 | J64: 0 | K64: 0
G65: 0 | H65: 0 | I65: 0 | J65: 0 | K65: 0
G66: 0 | H66: 0 | I66: 0 | J66: 0 | K66: 0
G67: 0 | H67: 0 | I67: 0 | J67: 0 | K67: 0
G68: 0 | H68: 0 | I68: 0 | J68: 0 | K68: 0
G69: 0 | H69: 0 | I69: 0 | J69: 0 | K69: 0
G70: 0 | H70: 0 | I70: 0 | J70: 0 | K70: 0
G71: 0 | H71: 0 | I71: 0 | J71: 0 | K71: 0
G72: =A72 -> 0 | H72: =IF(AND($G$1="STATE PLANE GRID - METERS",$G$2="STATE PLANE GRID - US SURVEY FEET"),B72*$K$3,IF(AND($G$1="STATE PLANE GRID - METERS",$G$2="GROUND - METERS"),B72*$K$1,IF(AND($G$1="STATE PLANE GRID - METERS",$G$2="GROUND - US SURVEY FEET"),B72*$K$2,IF(AND($G$1="STATE PLANE GRID - US SURVEY FEET",$G$2="STATE PLANE GRID - METERS"),B72/$K$3,IF(AND($G$1="STATE PLANE GRID - US SURVEY FEET",$G$2="GROUND - METERS"),B72/$K$2,IF(AND($G$1="STATE PLANE GRID - US SURVEY FEET",$G$2="GROUND - US SURVEY FEET"),B72*$K$1,IF(AND($G$1="GROUND - METERS",$G$2="STATE PLANE GRID - US SURVEY FEET"),B72*$K$3/$K$1,IF(AND($G$1="GROUND - METERS",$G$2="STATE PLANE GRID - METERS"),B72/$K$1,IF(AND($G$1="GROUND - METERS",$G$2="GROUND - US SURVEY FEET"),B72*$K$3,IF(AND($G$1="GROUND - US SURVEY FEET",$G$2="STATE PLANE GRID - US SURVEY FEET"),B72/$K$1,IF(AND($G$1="GROUND - US SURVEY FEET",$G$2="STATE PLANE GRID - METERS"),B72/$K$2,IF(AND($G$1="GROUND - US SURVEY FEET",$G$2="GROUND - METERS"),B72/$K$3)))))))))))) -> 0 | I72: =IF(AND($G$1="STATE PLANE GRID - METERS",$G$2="STATE PLANE GRID - US SURVEY FEET"),C72*$K$3,IF(AND($G$1="STATE PLANE GRID - METERS",$G$2="GROUND - METERS"),C72*$K$1,IF(AND($G$1="STATE PLANE GRID - METERS",$G$2="GROUND - US SURVEY FEET"),C72*$K$2,IF(AND($G$1="STATE PLANE GRID - US SURVEY FEET",$G$2="STATE PLANE GRID - METERS"),C72/$K$3,IF(AND($G$1="STATE PLANE GRID - US SURVEY FEET",$G$2="GROUND - METERS"),C72/$K$2,IF(AND($G$1="STATE PLANE GRID - US SURVEY FEET",$G$2="GROUND - US SURVEY FEET"),C72*$K$1,IF(AND($G$1="GROUND - METERS",$G$2="STATE PLANE GRID - US SURVEY FEET"),C72*$K$3/$K$1,IF(AND($G$1="GROUND - METERS",$G$2="STATE PLANE GRID - METERS"),C72/$K$1,IF(AND($G$1="GROUND - METERS",$G$2="GROUND - US SURVEY FEET"),C72*$K$3,IF(AND($G$1="GROUND - US SURVEY FEET",$G$2="STATE PLANE GRID - US SURVEY FEET"),C72/$K$1,IF(AND($G$1="GROUND - US SURVEY FEET",$G$2="STATE PLANE GRID - METERS"),C72/$K$2,IF(AND($G$1="GROUND - US SURVEY FEET",$G$2="GROUND - METERS"),C72/$K$3)))))))))))) -> 0 | J72: =IF(AND($G$1="STATE PLANE GRID - METERS",$G$2="STATE PLANE GRID - US SURVEY FEET"),D72*$K$3,IF(AND($G$1="STATE PLANE GRID - METERS",$G$2="GROUND - METERS"),B72,IF(AND($G$1="STATE PLANE GRID - METERS",$G$2="GROUND - US SURVEY FEET"),D72*$K$3,IF(AND($G$1="STATE PLANE GRID - US SURVEY FEET",$G$2="STATE PLANE GRID - METERS"),D72/$K$3,IF(AND($G$1="STATE PLANE GRID - US SURVEY FEET",$G$2="GROUND - METERS"),D72/$K$3,IF(AND($G$1="STATE PLANE GRID - US SURVEY FEET",$G$2="GROUND - US SURVEY FEET"),D72,IF(AND($G$1="GROUND - METERS",$G$2="STATE PLANE GRID - US SURVEY FEET"),D72*$K$3,IF(AND($G$1="GROUND - METERS",$G$2="STATE PLANE GRID - METERS"),D72,IF(AND($G$1="GROUND - METERS",$G$2="GROUND - US SURVEY FEET"),D72*$K$3,IF(AND($G$1="GROUND - US SURVEY FEET",$G$2="STATE PLANE GRID - US SURVEY FEET"),D72,IF(AND($G$1="GROUND - US SURVEY FEET",$G$2="STATE PLANE GRID - METERS"),D72/$K$3,IF(AND($G$1="GROUND - US SURVEY FEET",$G$2="GROUND - METERS"),D72/$K$3)))))))))))) -> 0 | K72: =E72 -> 0
G73: 0 | H73: 0 | I73: 0 | J73: 0 | K73: 0
G74: 0 | H74: 0 | I74: 0 | J74: 0 | K74: 0
G75: 0 | H75: 0 | I75: 0 | J75: 0 | K75: 0
G76: 0 | H76: 0 | I76: 0 | J76: 0 | K76: 0
G77: 0 | H77: 0 | I77: 0 | J77: 0 | K77: 0
G78: 0 | H78: 0 | I78: 0 | J78: 0 | K78: 0
G79: 0 | H79: 0 | I79: 0 | J79: 0 | K79: 0
G80: 0 | H80: 0 | I80: 0 | J80: 0 | K80: 0
G81: 0 | H81: 0 | I81: 0 | J81: 0 | K81: 0
G82: 0 | H82: 0 | I82: 0 | J82: 0 | K82: 0
G83: 0 | H83: 0 | I83: 0 | J83: 0 | K83: 0
G84: 0 | H84: 0 | I84: 0 | J84: 0 | K84: 0
G85: 0 | H85: 0 | I85: 0 | J85: 0 | K85: 0
G86: 0 | H86: 0 | I86: 0 | J86: 0 | K86: 0
G87: 0 | H87: 0 | I87: 0 | J87: 0 | K87: 0
G88: 0 | H88: 0 | I88: 0 | J88: 0 | K88: 0
G89: 0 | H89: 0 | I89: 0 | J89: 0 | K89: 0
G90: 0 | H90: 0 | I90: 0 | J90: 0 | K90: 0
G91: 0 | H91: 0 | I91: 0 | J91: 0 | K91: 0
G92: 0 | H92: 0 | I92: 0 | J92: 0 | K92: 0
G93: 0 | H93: 0 | I93: 0 | J93: 0 | K93: 0
G94: 0 | H94: 0 | I94: 0 | J94: 0 | K94: 0
G95: 0 | H95: 0 | I95: 0 | J95: 0 | K95: 0

Sheet OWNERS
A1: First | B1: Last | C1: Address | D1: City | E1: State | F1: Zip Code | G1: Deed Book/Page | H1: Auditor Parcel Number | I1: Area | J1: Section | K1: Lot | L1: Tax Map Parcel

Sheet OSIP
B1: Project: | C1: =REPORT!B2 -> FRA-71-29.4
B2: Pid: | C2: =REPORT!E2 -> 106471
A4: Calculate the Project Coordinates for the corners of the Aerial Mapping Raster File
A5: To scale the Geo-referenced file to the Project Datum | N5: Project County: | P5: =REPORT!B2 -> FRA-71-29.4 | Q5: =MID(P5,1,3) -> FRA
O7: Photo Corners | Q7: Pixel Range
A8: INPUT: SP GRID - US SURVEY FEET | N8: COUNTY | O8: EASTING | P8: NORTHING | Q8: EASTING | R8: NORTHING
B9: X (East) | C9: Y (North) | N9: ADA | O9: 1620000 | P9: 215000 | Q9: 130000 | R9: 175000
A10: Lower left (SW) origin: | B10: =VLOOKUP(MID(REPORT!B2,1,3),OSIP!N9:R96,2,FALSE) -> 1755000 | C10: =VLOOKUP(MID(REPORT!B2,1,3),OSIP!N9:R96,3,FALSE) -> 650000 | D10: Enter X,Y from Georeferenced Raster File Header | N10: ALL | O10: 1440000 | P10: 355000 | Q10: 150000 | R10: 110000
A11: Pixel Range: | B11: =VLOOKUP(MID(REPORT!B2,1,3),OSIP!N9:R96,4,FALSE) -> 145000 | C11: =VLOOKUP(MID(REPORT!B2,1,3),OSIP!N9:R96,5,FALSE) -> 135000 | D11: Enter X,Y from Georeferenced Raster File Header | N11: ASD | O11: 1985000 | P11: 320000 | Q11: 90000 | R11: 195000
A12: Upper right (NE) origin: | B12: =B10+B11 -> 1900000 | C12: =C10+C11 -> 785000 | D12: Calculated NE ORIGIN using Delta X & Delta Y | N12: ASH | O12: 2375000 | P12: 670000 | Q12: 140000 | R12: 185000
N13: ATH | O13: 2025000 | P13: 430000 | Q13: 165000 | R13: 140000
A14: PAF (scale multiplier): | B14: =REPORT!C13 -> 1.00009018 | D14: Enter Unitless Project Adjustment Factor for Project | N14: AUG | O14: 1420000 | P14: 255000 | Q14: 170000 | R14: 125000
N15: BEL | O15: 2320000 | P15: 675000 | Q15: 155000 | R15: 120000
A16: OUTPUT: PROJECT GROUND - US SURVEY FEET | N16: BRO | O16: 1525000 | P16: 230000 | Q16: 115000 | R16: 235000
B17: X (East) | C17: Y (North) | N17: BUT | O17: 1310000 | P17: 475000 | Q17: 145000 | R17: 115000
A18: Lower left (SW) origin (MAP01): | B18: =PRODUCT(B10,B14) -> 1755158.266 | C18: =PRODUCT(C10,B14) -> 650058.617 | D18: Calculated Scaled ORIGIN Coordinates | N18: CAR | O18: 2295000 | P18: 275000 | Q18: 130000 | R18: 120000
A19: Upper right (NE) origin (MAP02): | B19: =PRODUCT(B12,B14) -> 1900171.342 | C19: =PRODUCT(C12,B14) -> 785070.7913 | D19: Calculated Scaled ORIGIN Coordinates | N19: CHP | O19: 1535000 | P19: 730000 | Q19: 160000 | R19: 105000
N20: CLA | O20: 1530000 | P20: 645000 | Q20: 160000 | R20: 105000
D21: (Edit Header & Footer for Printing File report copy) | N21: CLE | O21: 1450000 | P21: 280000 | Q21: 100000 | R21: 190000
N22: CLI | O22: 1540000 | P22: 445000 | Q22: 125000 | R22: 130000
A23: 1) Place a Shape (BOX) in the MicroStation file at the Project Origin Coordinates and use KEY-IN COMMAND XY= (X value),(Y value) for both corners | N23: COL | O23: 2355000 | P23: 335000 | Q23: 165000 | R23: 130000
A24: 2) Attach the Raster File using the "INTERACTIVE" Toggle & PLACE at the Corners of the BOX | N24: COS | O24: 2050000 | P24: 175000 | Q24: 165000 | R24: 115000
N25: CRA | O25: 1795000 | P25: 375000 | Q25: 115000 | R25: 115000
A26: This will scale the Aerial Mapping Ortho Photo to fit the PROJECT COORDINATES | N26: CUY | O26: 2110000 | P26: 585000 | Q26: 170000 | R26: 145000
N27: DAR | O27: 1315000 | P27: 700000 | Q27: 115000 | R27: 170000
N28: DEF | O28: 1330000 | P28: 550000 | Q28: 165000 | R28: 100000
N29: DEL | O29: 1755000 | P29: 165000 | Q29: 150000 | R29: 120000
N30: ERI | O30: 1855000 | P30: 585000 | Q30: 160000 | R30: 135000
N31: FAI | O31: 1870000 | P31: 565000 | Q31: 140000 | R31: 145000
N32: FAY | O32: 1635000 | P32: 500000 | Q32: 125000 | R32: 130000
N33: FRA | O33: 1755000 | P33: 650000 | Q33: 145000 | R33: 135000
N34: FUL | O34: 1445000 | P34: 665000 | Q34: 150000 | R34: 90000
N35: GAL | O35: 1940000 | P35: 210000 | Q35: 145000 | R35: 170000
N36: GEA | O36: 2270000 | P36: 610000 | Q36: 110000 | R36: 145000
N37: GRE | O37: 1510000 | P37: 565000 | Q37: 140000 | R37: 115000
N38: GUE | O38: 2180000 | P38: 670000 | Q38: 145000 | R38: 145000
N39: HAM | O39: 1305000 | P39: 375000 | Q39: 170000 | R39: 110000
N40: HAN | O40: 1585000 | P40: 420000 | Q40: 135000 | R40: 135000
N41: HAR | O41: 1580000 | P41: 305000 | Q41: 135000 | R41: 120000
N42: HAS | O42: 2290000 | P42: 180000 | Q42: 135000 | R42: 105000
N43: HEN | O43: 1460000 | P43: 545000 | Q43: 130000 | R43: 125000
N44: HIG | O44: 1575000 | P44: 370000 | Q44: 155000 | R44: 135000
N45: HOC | O45: 1895000 | P45: 495000 | Q45: 170000 | R45: 115000
N46: HOL | O46: 2045000 | P46: 280000 | Q46: 160000 | R46: 90000
N47: HUR | O47: 1870000 | P47: 480000 | Q47: 145000 | R47: 115000
N48: JAC | O48: 1880000 | P48: 305000 | Q48: 110000 | R48: 140000
N49: JEF | O49: 2400000 | P49: 180000 | Q49: 100000 | R49: 165000
N50: KNO | O50: 1895000 | P50: 205000 | Q50: 165000 | R50: 130000
N51: LAK | O51: 2240000 | P51: 690000 | Q51: 140000 | R51: 115000
N52: LAW | O52: 1875000 | P52: 145000 | Q52: 155000 | R52: 165000
N53: LIC | O53: 1885000 | P53: 695000 | Q53: 175000 | R53: 135000
N54: LOG | O54: 1545000 | P54: 205000 | Q54: 145000 | R54: 120000
N55: LOR | O55: 2005000 | P55: 505000 | Q55: 135000 | R55: 175000
N56: LUC | O56: 1585000 | P56: 635000 | Q56: 225000 | R56: 125000
N57: MAD | O57: 1640000 | P57: 615000 | Q57: 135000 | R57: 160000
N58: MAH | O58: 2355000 | P58: 450000 | Q58: 165000 | R58: 95000
N59: MAR | O59: 1710000 | P59: 275000 | Q59: 160000 | R59: 105000
N60: MED | O60: 2055000 | P60: 480000 | Q60: 140000 | R60: 110000
N61: MEG | O61: 2015000 | P61: 315000 | Q61: 175000 | R61: 125000
N62: MER | O62: 1325000 | P62: 255000 | Q62: 110000 | R62: 145000
N63: MIA | O63: 1425000 | P63: 685000 | Q63: 120000 | R63: 125000
N64: MOE | O64: 2300000 | P64: 560000 | Q64: 145000 | R64: 125000
N65: MOT | O65: 1410000 | P65: 575000 | Q65: 125000 | R65: 130000
N66: MRG | O66: 2085000 | P66: 525000 | Q66: 145000 | R66: 125000
N67: MRW | O67: 1820000 | P67: 245000 | Q67: 115000 | R67: 140000
N68: MUS | O68: 2040000 | P68: 640000 | Q68: 160000 | R68: 150000
N69: NOB | O69: 2190000 | P69: 575000 | Q69: 135000 | R69: 140000
N70: OTT | O70: 1715000 | P70: 650000 | Q70: 20000 | R70: 105000
N71: PAU | O71: 1330000 | P71: 485000 | Q71: 135000 | R71: 105000
N72: PER | O72: 1975000 | P72: 560000 | Q72: 130000 | R72: 145000
N73: PIC | O73: 1750000 | P73: 530000 | Q73: 155000 | R73: 135000
N74: PIK | O74: 1715000 | P74: 345000 | Q74: 175000 | R74: 95000
N75: POR | O75: 2270000 | P75: 480000 | Q75: 115000 | R75: 140000
N76: PRE | O76: 1310000 | P76: 575000 | Q76: 105000 | R76: 135000
N77: PUT | O77: 1440000 | P77: 435000 | Q77: 150000 | R77: 120000
N78: RIC | O78: 1900000 | P78: 320000 | Q78: 115000 | R78: 165000
N79: ROS | O79: 1715000 | P79: 425000 | Q79: 190000 | R79: 130000
N80: SAN | O80: 1715000 | P80: 575000 | Q80: 165000 | R80: 100000
N81: SCI | O81: 1745000 | P81: 205000 | Q81: 185000 | R81: 170000
N82: SEN | O82: 1710000 | P82: 480000 | Q82: 170000 | R82: 105000
N83: SHE | O83: 1425000 | P83: 190000 | Q83: 130000 | R83: 115000
N84: STA | O84: 2200000 | P84: 350000 | Q84: 165000 | R84: 135000
N85: SUM | O85: 2190000 | P85: 450000 | Q85: 85000 | R85: 175000
N86: TRU | O86: 2375000 | P86: 535000 | Q86: 145000 | R86: 140000
N87: TUS | O87: 2185000 | P87: 200000 | Q87: 130000 | R87: 170000
N88: UNI | O88: 1650000 | P88: 160000 | Q88: 265000 | R88: 295000
N89: VAN | O89: 1325000 | P89: 375000 | Q89: 135000 | R89: 120000
N90: VIN | O90: 1890000 | P90: 370000 | Q90: 150000 | R90: 140000
N91: WAR | O91: 1440000 | P91: 460000 | Q91: 115000 | R91: 125000
N92: WAS | O92: 2150000 | P92: 440000 | Q92: 235000 | R92: 165000
N93: WAY | O93: 2070000 | P93: 360000 | Q93: 135000 | R93: 125000
N94: WIL | O94: 1335000 | P94: 645000 | Q94: 130000 | R94: 105000
N95: WOO | O95: 1585000 | P95: 545000 | Q95: 135000 | R95: 170000
N96: WYA | O96: 1685000 | P96: 370000 | Q96: 115000 | R96: 115000

Sheet MON TABLE
A1: PROJECT: | E1: =REPORT!B2 -> FRA-71-29.4 | H1: PID: | M1: =REPORT!$E$2 -> 106471
A2: PROJECT GROUND COORDINATES - US SURVEY FEET | I2: PROJECT CONTROL POINTS | J2: STATE PLANE GRID COORDINATES | P2: MONUMENTS TO BE SET
P3: DURING CONSTRUCTION
A4: Project coordinates (U.S. Survey Feet) are relative to State Plane Grid coordinates (meters) by a Project Adjustment Factor of: | H4: =C103 -> 3.281129199 | J4: Horiz. Datum: | K4: =REPORT!C11 -> NAD83 (2011) | L4: =REPORT!C10 -> Ohio State Plane, South Zone | N4: Vert. Datum: | O4: =REPORT!C15 -> NAVD88
P5: ITEM 623.05 | Q5: ITEM 623.05
B6: ="C/L of Right-of-Way SR "&MID(E1,5,3) -> C/L of Right-of-Way SR 71- | D6: =REPORT!C32&" used for alignment" -> used for alignment | J6: =REPORT!A44&" defined by GPS from CORS using "&REPORT!C16&". All other elevations are established by leveling from "&REPORT!A44&"." -> defined by GPS from CORS using Geoid 12B. All other elevations are established by leveling from . | P6: MONUMENT | Q6: REFERENCE
A7: NAME | B7: STATION | C7: OFFSET (US FT) | D7: RT/LT | E7: NORTH (US FT) | F7: EAST (US FT) | G7: ELEVATION (US FT) | H7: FEATURE | I7: DESCRIPTION | J7: NAME | K7: NORTH (sft) | L7: EAST (sft) | M7: ORTHO HT (sft) | N7: NORTH (US FT) | O7: EAST (US FT) | P7: ASSEMBLY | Q7: MONUMENT
D8: =IF(C8<0,"LT","RT") -> RT | J8: =A8 -> 0 | K8: =E8/$C$103 -> 0 | L8: =F8/$C$103 -> 0 | M8: =G8/$C$104 -> 0 | N8: =$K8*$C$104 -> 0 | O8: =$L8*$C$104 -> 0
D9: =IF(C9<0,"LT","RT") -> RT | J9: =A9 -> 0 | K9: 0 | L9: 0 | M9: 0 | N9: 0 | O9: 0
D10: RT | J10: 0 | K10: 0 | L10: 0 | M10: 0 | N10: 0 | O10: 0
D11: RT | J11: 0 | K11: 0 | L11: 0 | M11: 0 | N11: 0 | O11: 0
D12: RT | J12: 0 | K12: 0 | L12: 0 | M12: 0 | N12: 0 | O12: 0
D13: RT | J13: 0 | K13: 0 | L13: 0 | M13: 0 | N13: 0 | O13: 0
D14: RT | J14: 0 | K14: 0 | L14: 0 | M14: 0 | N14: 0 | O14: 0
D15: RT | J15: 0 | K15: 0 | L15: 0 | M15: 0 | N15: 0 | O15: 0
D16: RT | J16: 0 | K16: 0 | L16: 0 | M16: 0 | N16: 0 | O16: 0
D17: RT | J17: 0 | K17: 0 | L17: 0 | M17: 0 | N17: 0 | O17: 0
D18: RT | J18: 0 | K18: 0 | L18: 0 | M18: 0 | N18: 0 | O18: 0
D19: RT | J19: 0 | K19: 0 | L19: 0 | M19: 0 | N19: 0 | O19: 0
D20: RT | J20: 0 | K20: 0 | L20: 0 | M20: 0 | N20: 0 | O20: 0
D21: RT | J21: 0 | K21: 0 | L21: 0 | M21: 0 | N21: 0 | O21: 0
D22: RT | J22: 0 | K22: 0 | L22: 0 | M22: 0 | N22: 0 | O22: 0
D23: RT | J23: 0 | K23: 0 | L23: 0 | M23: 0 | N23: 0 | O23: 0
D24: RT | J24: 0 | K24: 0 | L24: 0 | M24: 0 | N24: 0 | O24: 0
D25: RT | J25: 0 | K25: 0 | L25: 0 | M25: 0 | N25: 0 | O25: 0
D26: RT | J26: 0 | K26: 0 | L26: 0 | M26: 0 | N26: 0 | O26: 0
D27: RT | J27: 0 | K27: 0 | L27: 0 | M27: 0 | N27: 0 | O27: 0
D28: RT | J28: 0 | K28: 0 | L28: 0 | M28: 0 | N28: 0 | O28: 0
D29: RT | J29: 0 | K29: 0 | L29: 0 | M29: 0 | N29: 0 | O29: 0
D30: RT | J30: 0 | K30: 0 | L30: 0 | M30: 0 | N30: 0 | O30: 0
D31: RT | J31: 0 | K31: 0 | L31: 0 | M31: 0 | N31: 0 | O31: 0
D32: RT | J32: =A32 -> 0 | K32: 0 | L32: 0 | M32: 0 | N32: 0 | O32: 0
D33: RT | J33: 0 | K33: 0 | L33: 0 | M33: 0 | N33: 0 | O33: 0
D34: RT | J34: 0 | K34: 0 | L34: 0 | M34: 0 | N34: 0 | O34: 0
D35: RT | J35: 0 | K35: 0 | L35: 0 | M35: 0 | N35: 0 | O35: 0
D36: RT | J36: =A36 -> 0 | K36: 0 | L36: 0 | M36: 0 | N36: 0 | O36: 0
D37: RT | J37: =A37 -> 0 | K37: 0 | L37: 0 | M37: 0 | N37: 0 | O37: 0
A38: ="EXISTING MONUMENTATION "&"CENTERLINE OF RIGHT OF WAY STATE ROUTE "&MID(E1,5,3) -> EXISTING MONUMENTATION CENTERLINE OF RIGHT OF WAY STATE ROUTE 71- | I38: EXISTING CENTERLINE CONTROL POINTS | J38: Horiz. Datum: | K38: =REPORT!C11 -> NAD83 (2011) | L38: =REPORT!C10 -> Ohio State Plane, South Zone | N38: Vert. Datum: | O38: =REPORT!C15 -> NAVD88
A39: NAME | B39: STATION | C39: OFFSET (US FT) | D39: RT/LT | E39: NORTH (US FT) | F39: EAST (US FT) | G39: ELEVATION (US FT) | H39: FEATURE | I39: DESCRIPTION | J39: NAME | K39: NORTH (sft) | L39: EAST (sft) | M39: ORTHO HT (sft) | N39: NORTH (US FT) | O39: EAST (US FT)
D40: =IF(C40<0,"LT","RT") -> RT | J40: =A40 -> 0 | K40: =E40/$C$103 -> 0 | L40: =F40/$C$103 -> 0 | M40: =G40/$C$104 -> 0 | N40: =$K40*$C$104 -> 0 | O40: =$L40*$C$104 -> 0
D41: RT | J41: 0 | K41: 0 | L41: 0 | M41: 0 | N41: 0 | O41: 0
D42: RT | J42: 0 | K42: 0 | L42: 0 | M42: 0 | N42: 0 | O42: 0
D43: RT | J43: 0 | K43: 0 | L43: 0 | M43: 0 | N43: 0 | O43: 0
D44: RT | J44: 0 | K44: 0 | L44: 0 | M44: 0 | N44: 0 | O44: 0
D45: RT | J45: 0 | K45: 0 | L45: 0 | M45: 0 | N45: 0 | O45: 0
D46: RT | J46: 0 | K46: 0 | L46: 0 | M46: 0 | N46: 0 | O46: 0
D47: RT | J47: 0 | K47: 0 | L47: 0 | M47: 0 | N47: 0 | O47: 0
D48: RT | J48: 0 | K48: 0 | L48: 0 | M48: 0 | N48: 0 | O48: 0
D49: RT | J49: 0 | K49: 0 | L49: 0 | M49: 0 | N49: 0 | O49: 0
D50: RT | J50: 0 | K50: 0 | L50: 0 | M50: 0 | N50: 0 | O50: 0
D51: RT | J51: =A51 -> 0 | K51: 0 | L51: 0 | M51: 0 | N51: 0 | O51: 0
D52: RT | J52: 0 | K52: 0 | L52: 0 | M52: 0 | N52: 0 | O52: 0
D53: RT | J53: 0 | K53: 0 | L53: 0 | M53: 0 | N53: 0 | O53: 0
D54: RT | J54: 0 | K54: 0 | L54: 0 | M54: 0 | N54: 0 | O54: 0
D55: RT | J55: 0 | K55: 0 | L55: 0 | M55: 0 | N55: 0 | O55: 0
D56: RT | J56: 0 | K56: 0 | L56: 0 | M56: 0 | N56: 0 | O56: 0
D57: RT | J57: =A57 -> 0 | K57: 0 | L57: 0 | M57: 0 | N57: 0 | O57: 0
D58: RT | J58: 0 | K58: 0 | L58: 0 | M58: 0 | N58: 0 | O58: 0
D59: RT | J59: 0 | K59: 0 | L59: 0 | M59: 0 | N59: 0 | O59: 0
D60: RT | J60: 0 | K60: 0 | L60: 0 | M60: 0 | N60: 0 | O60: 0
D61: RT | J61: 0 | K61: 0 | L61: 0 | M61: 0 | N61: 0 | O61: 0
D62: RT | J62: 0 | K62: 0 | L62: 0 | M62: 0 | N62: 0 | O62: 0
D63: RT | J63: 0 | K63: 0 | L63: 0 | M63: 0 | N63: 0 | O63: 0
D64: RT | J64: 0 | K64: 0 | L64: 0 | M64: 0 | N64: 0 | O64: 0
D65: RT | J65: 0 | K65: 0 | L65: 0 | M65: 0 | N65: 0 | O65: 0
D66: RT | J66: 0 | K66: 0 | L66: 0 | M66: 0 | N66: 0 | O66: 0
D67: RT | J67: 0 | K67: 0 | L67: 0 | M67: 0 | N67: 0 | O67: 0
D68: RT | J68: 0 | K68: 0 | L68: 0 | M68: 0 | N68: 0 | O68: 0
D69: RT | J69: 0 | K69: 0 | L69: 0 | M69: 0 | N69: 0 | O69: 0
A70: =" CENTERLINE OF RIGHT OF WAY & CONSTRUCTION "&"STATE ROUTE "&MID(E1,5,3) -> CENTERLINE OF RIGHT OF WAY & CONSTRUCTION STATE ROUTE 71- | I70: CENTERLINE ALIGNMENT | J70: Horiz. Datum: | K70: =REPORT!C11 -> NAD83 (2011) | L70: =REPORT!C10 -> Ohio State Plane, South Zone | N70: Vert. Datum: | O70: =REPORT!C15 -> NAVD88
A71: NAME | B71: STATION | C71: OFFSET (US FT) | D71: RT/LT | E71: NORTH (US FT) | F71: EAST (US FT) | G71: ELEVATION (US FT) | H71: FEATURE | I71: DESCRIPTION | J71: NAME | K71: NORTH (sft) | L71: EAST (sft) | M71: ORTHO HT (sft) | N71: NORTH (US FT) | O71: EAST (US FT)
D72: =IF(C72<0,"LT","RT") -> RT | J72: =A72 -> 0 | K72: =E72/$C$103 -> 0 | L72: =F72/$C$103 -> 0 | M72: =G72/$C$104 -> 0 | N72: =$K72*$C$104 -> 0 | O72: =$L72*$C$104 -> 0
D73: RT | J73: =A73 -> 0 | K73: 0 | L73: 0 | M73: 0 | N73: 0 | O73: 0
D74: RT | J74: 0 | K74: 0 | L74: 0 | M74: 0 | N74: 0 | O74: 0
D75: RT | J75: 0 | K75: 0 | L75: 0 | M75: 0 | N75: 0 | O75: 0
D76: RT | J76: =A76 -> 0 | K76: 0 | L76: 0 | M76: 0 | N76: 0 | O76: 0
D77: RT | J77: 0 | K77: 0 | L77: 0 | M77: 0 | N77: 0 | O77: 0
D78: RT | J78: 0 | K78: 0 | L78: 0 | M78: 0 | N78: 0 | O78: 0
D79: RT | J79: 0 | K79: 0 | L79: 0 | M79: 0 | N79: 0 | O79: 0
D80: RT | J80: 0 | K80: 0 | L80: 0 | M80: 0 | N80: 0 | O80: 0
D81: RT | J81: 0 | K81: 0 | L81: 0 | M81: 0 | N81: 0 | O81: 0
D82: RT | J82: 0 | K82: 0 | L82: 0 | M82: 0 | N82: 0 | O82: 0
D83: RT | J83: 0 | K83: 0 | L83: 0 | M83: 0 | N83: 0 | O83: 0
D84: RT | J84: 0 | K84: 0 | L84: 0 | M84: 0 | N84: 0 | O84: 0
D85: RT | J85: 0 | K85: 0 | L85: 0 | M85: 0 | N85: 0 | O85: 0
D86: RT | J86: 0 | K86: 0 | L86: 0 | M86: 0 | N86: 0 | O86: 0
D87: RT | J87: 0 | K87: 0 | L87: 0 | M87: 0 | N87: 0 | O87: 0
D88: RT | J88: 0 | K88: 0 | L88: 0 | M88: 0 | N88: 0 | O88: 0
D89: RT | J89: 0 | K89: 0 | L89: 0 | M89: 0 | N89: 0 | O89: 0
D90: RT | J90: 0 | K90: 0 | L90: 0 | M90: 0 | N90: 0 | O90: 0
D91: RT | J91: 0 | K91: 0 | L91: 0 | M91: 0 | N91: 0 | O91: 0
D92: RT | J92: 0 | K92: 0 | L92: 0 | M92: 0 | N92: 0 | O92: 0
D93: RT | J93: 0 | K93: 0 | L93: 0 | M93: 0 | N93: 0 | O93: 0
D94: RT | J94: 0 | K94: 0 | L94: 0 | M94: 0 | N94: 0 | O94: 0
D95: RT | J95: 0 | K95: 0 | L95: 0 | M95: 0 | N95: 0 | O95: 0
D96: RT | J96: 0 | K96: 0 | L96: 0 | M96: 0 | N96: 0 | O96: 0
D97: RT | J97: 0 | K97: 0 | L97: 0 | M97: 0 | N97: 0 | O97: 0
D98: RT | J98: 0 | K98: 0 | L98: 0 | M98: 0 | N98: 0 | O98: 0
D99: RT | J99: 0 | K99: 0 | L99: 0 | M99: 0 | N99: 0 | O99: 0
D100: RT | J100: 0 | K100: 0 | L100: 0 | M100: 0 | N100: 0 | O100: 0
D101: RT | J101: 0 | K101: 0 | L101: 0 | M101: 0 | N101: 0 | O101: 0
A102: Grid to Ground Multiplier (1/CSF) = | C102: =REPORT!C13 -> 1.00009018 | E102: State Plane Grid to Project Ground (same units) | I102: Unitless Factor:
A103: Project Adjustment Factor (PAF) = | C103: =C102*C104 -> 3.281129199 | E103: State Plane Grid (meters) to Project Ground (US Survey Feet) | I103: =REPORT!A45&REPORT!A46&REPORT!C46 -> 
A104: English to metric conversion = | C104: =3937/1200 -> 3.280833333 | E104: US Survey foor to meters conversion factor | I104: Primary Project Control:
A105: PROJECT coordinates are scaled from GRID coordinates about the Ohio North Zone grid point N=0, E=0 (N 39⁰ 27' 01.76097", W 89⁰ 28' 32.98476"). | I105: =REPORT!A41&REPORT!A42&REPORT!A43 -> 
A107: PROJECT GROUND COORDINATES - US SURVEY FEET | I107: PROPOSED RIGHT OF WAY MONUMENTS | J107: STATE PLANE GRID COORDINATES | P107: MONUMENTS TO BE RESET
P108: AFTER CONSTRUCTION
A109: =A4 -> Project coordinates (U.S. Survey Feet) are relative to State Plane Grid coordinates (meters) by a Project Adjustment Factor of: | H109: =H4 -> 3.281129199
J110: Horiz. Datum: | K110: =REPORT!C11 -> NAD83 (2011) | L110: =REPORT!C10 -> Ohio State Plane, South Zone | N110: Vert. Datum: | O110: =REPORT!C15 -> NAVD88 | P110: ITEM 623.05 | Q110: ITEM 623.05
B111: =$B$6 -> C/L of Right-of-Way SR 71- | D111: =$D$6 -> used for alignment | P111: RIGHT OF WAY | Q111: BOUNDARY
A112: NAME | B112: STATION | C112: OFFSET (US FT) | D112: RT/LT | E112: NORTH (US FT) | F112: EAST (US FT) | G112: ELEVATION (US FT) | H112: FEATURE | I112: DESCRIPTION | J112: NAME | K112: NORTH (sft) | L112: EAST (sft) | M112: ORTHO HT (sft) | N112: NORTH (US FT) | O112: EAST (US FT) | P112: PIN (TYPE "B") | Q112: PIN (TYPE "B")
D113: =IF(C113<0,"LT","RT") -> RT | J113: =A113 -> 0 | K113: =E113/$C$103 -> 0 | L113: =F113/$C$103 -> 0 | M113: =G113/$C$104 -> 0 | N113: =$K113*$C$104 -> 0 | O113: =$L113*$C$104 -> 0
D114: =IF(C114<0,"LT","RT") -> RT | J114: =A114 -> 0 | K114: =E114/$C$103 -> 0 | L114: =F114/$C$103 -> 0 | M114: =G114/$C$104 -> 0 | N114: 0 | O114: 0
D115: RT | J115: 0 | K115: 0 | L115: 0 | M115: 0 | N115: 0 | O115: 0
D116: RT | J116: 0 | K116: 0 | L116: 0 | M116: 0 | N116: 0 | O116: 0
D117: RT | J117: 0 | K117: 0 | L117: 0 | M117: 0 | N117: 0 | O117: 0
D118: RT | J118: 0 | K118: 0 | L118: 0 | M118: 0 | N118: 0 | O118: 0
D119: RT | J119: 0 | K119: 0 | L119: 0 | M119: 0 | N119: 0 | O119: 0
D120: RT | J120: 0 | K120: 0 | L120: 0 | M120: 0 | N120: 0 | O120: 0
D121: RT | J121: 0 | K121: 0 | L121: 0 | M121: 0 | N121: 0 | O121: 0
D122: RT | J122: 0 | K122: 0 | L122: 0 | M122: 0 | N122: 0 | O122: 0
D123: RT | J123: 0 | K123: 0 | L123: 0 | M123: 0 | N123: 0 | O123: 0
D124: RT | J124: 0 | K124: 0 | L124: 0 | M124: 0 | N124: 0 | O124: 0
D125: RT | J125: 0 | K125: 0 | L125: 0 | M125: 0 | N125: 0 | O125: 0
D126: RT | J126: 0 | K126: =E126/$C$103 -> 0 | L126: 0 | M126: 0 | N126: 0 | O126: 0
D127: RT | J127: 0 | K127: 0 | L127: 0 | M127: 0 | N127: 0 | O127: 0
D128: RT | J128: 0 | K128: 0 | L128: 0 | M128: 0 | N128: 0 | O128: 0
D129: RT | J129: 0 | K129: 0 | L129: 0 | M129: 0 | N129: 0 | O129: 0
D130: RT | J130: =A130 -> 0 | K130: 0 | L130: =F130/$C$103 -> 0 | M130: =G130/$C$104 -> 0 | N130: 0 | O130: 0
D131: RT | J131: 0 | K131: 0 | L131: 0 | M131: 0 | N131: 0 | O131: 0
D132: RT | J132: 0 | K132: 0 | L132: 0 | M132: 0 | N132: 0 | O132: 0
D133: RT | J133: 0 | K133: 0 | L133: 0 | M133: 0 | N133: 0 | O133: 0
D134: RT | J134: =A134 -> 0 | K134: =E134/$C$103 -> 0 | L134: =F134/$C$103 -> 0 | M134: =G134/$C$104 -> 0 | N134: 0 | O134: 0
D135: RT | J135: 0 | K135: 0 | L135: 0 | M135: 0 | N135: 0 | O135: 0
D136: RT | J136: 0 | K136: 0 | L136: 0 | M136: 0 | N136: 0 | O136: 0
D137: RT | J137: 0 | K137: 0 | L137: 0 | M137: 0 | N137: 0 | O137: 0
D138: RT | J138: 0 | K138: 0 | L138: 0 | M138: 0 | N138: 0 | O138: 0
D139: RT | J139: 0 | K139: 0 | L139: 0 | M139: 0 | N139: 0 | O139: 0
D140: RT | J140: 0 | K140: 0 | L140: 0 | M140: 0 | N140: 0 | O140: 0
D141: RT | J141: 0 | K141: 0 | L141: 0 | M141: 0 | N141: 0 | O141: 0
D142: RT | J142: 0 | K142: 0 | L142: 0 | M142: 0 | N142: 0 | O142: 0
J143: SUBTOTAL MONUMENTS - QUANTITY CARRIED TO CENTERLINE PLAT SHEET 3 OF 4 | P143: =+SUM(P112:P142) -> 0 | Q143: =+SUM(Q7:Q142) -> 0
A147: PROJECT GROUND COORDINATES - US SURVEY FEET | I147: EXISTING RIGHT OF WAY POINTS | J147: STATE PLANE GRID COORDINATES
A149: =A4 -> Project coordinates (U.S. Survey Feet) are relative to State Plane Grid coordinates (meters) by a Project Adjustment Factor of: | H149: =H4 -> 3.281129199
J150: Horiz. Datum: | K150: =REPORT!C11 -> NAD83 (2011) | L150: =REPORT!C10 -> Ohio State Plane, South Zone | N150: Vert. Datum: | O150: =REPORT!C15 -> NAVD88
B151: =$B$6 -> C/L of Right-of-Way SR 71- | D151: =$D$6 -> used for alignment
A152: NAME | B152: STATION | C152: OFFSET (US FT) | D152: RT/LT | E152: NORTH (US FT) | F152: EAST (US FT) | G152: ELEVATION (US FT) | H152: FEATURE | I152: DESCRIPTION | J152: NAME | K152: NORTH (sft) | L152: EAST (sft) | M152: ORTHO HT (sft) | N152: NORTH (US FT) | O152: EAST (US FT)
D153: =IF(C153<0,"LT","RT") -> RT | J153: =A153 -> 0 | K153: =E153/$C$103 -> 0 | L153: 0 | M153: =G153/$C$104 -> 0 | N153: =$K153*$C$104 -> 0 | O153: =$L153*$C$104 -> 0
D154: RT | J154: 0 | K154: 0 | L154: 0 | M154: 0 | N154: 0 | O154: 0
D155: RT | J155: 0 | K155: 0 | L155: 0 | M155: 0 | N155: 0 | O155: 0
D156: RT | J156: 0 | K156: 0 | L156: 0 | M156: 0 | N156: 0 | O156: 0
D157: RT | J157: 0 | K157: 0 | L157: 0 | M157: 0 | N157: 0 | O157: 0
D158: RT | J158: 0 | K158: 0 | L158: 0 | M158: 0 | N158: 0 | O158: 0
D159: RT | J159: 0 | K159: 0 | L159: 0 | M159: 0 | N159: 0 | O159: 0
D160: RT | J160: =A160 -> 0 | K160: =E160/$C$103 -> 0 | L160: =F160/$C$103 -> 0 | M160: =G160/$C$104 -> 0 | N160: 0 | O160: 0
D161: RT | J161: 0 | K161: 0 | L161: 0 | M161: 0 | N161: 0 | O161: 0
D162: RT | J162: 0 | K162: 0 | L162: 0 | M162: 0 | N162: 0 | O162: 0
D163: RT | J163: 0 | K163: 0 | L163: 0 | M163: 0 | N163: 0 | O163: 0
D164: RT | J164: 0 | K164: 0 | L164: 0 | M164: 0 | N164: 0 | O164: 0
D165: RT | J165: 0 | K165: 0 | L165: 0 | M165: 0 | N165: 0 | O165: 0
D166: RT | J166: 0 | K166: 0 | L166: 0 | M166: 0 | N166: 0 | O166: 0
D167: RT | J167: 0 | K167: 0 | L167: 0 | M167: 0 | N167: 0 | O167: 0
D168: RT | J168: 0 | K168: 0 | L168: 0 | M168: 0 | N168: 0 | O168: 0
D169: RT | J169: 0 | K169: 0 | L169: 0 | M169: 0 | N169: 0 | O169: 0
D170: RT | J170: 0 | K170: 0 | L170: 0 | M170: 0 | N170: 0 | O170: 0
D171: RT | J171: 0 | K171: 0 | L171: 0 | M171: 0 | N171: 0 | O171: 0
D172: RT | J172: 0 | K172: 0 | L172: 0 | M172: 0 | N172: 0 | O172: 0
D173: RT | J173: 0 | K173: 0 | L173: 0 | M173: 0 | N173: 0 | O173: 0
D174: RT | J174: 0 | K174: 0 | L174: 0 | M174: 0 | N174: 0 | O174: 0
D175: RT | J175: 0 | K175: 0 | L175: 0 | M175: 0 | N175: 0 | O175: 0
D176: RT | J176: 0 | K176: 0 | L176: 0 | M176: 0 | N176: 0 | O176: 0
D177: RT | J177: 0 | K177: 0 | L177: 0 | M177: 0 | N177: 0 | O177: 0
D178: RT | J178: 0 | K178: 0 | L178: 0 | M178: 0 | N178: 0 | O178: 0
D179: RT | J179: 0 | K179: 0 | L179: 0 | M179: 0 | N179: 0 | O179: 0
D180: RT | J180: 0 | K180: 0 | L180: 0 | M180: 0 | N180: 0 | O180: 0
D181: RT | J181: 0 | K181: 0 | L181: 0 | M181: 0 | N181: 0 | O181: 0
D182: RT | J182: 0 | K182: 0 | L182: 0 | M182: 0 | N182: 0 | O182: 0
A184: PROJECT GROUND COORDINATES - US SURVEY FEET | I184: EXISTING BOUNDARY MONUMENTS | J184: STATE PLANE GRID COORDINATES
A185: =A4 -> Project coordinates (U.S. Survey Feet) are relative to State Plane Grid coordinates (meters) by a Project Adjustment Factor of: | H185: =H4 -> 3.281129199
J186: Horiz. Datum: | K186: =REPORT!C11 -> NAD83 (2011) | L186: =REPORT!C10 -> Ohio State Plane, South Zone | N186: Vert. Datum: | O186: =REPORT!C15 -> NAVD88
B187: =$B$6 -> C/L of Right-of-Way SR 71- | D187: =$D$6 -> used for alignment
A188: NAME | B188: STATION | C188: OFFSET (US FT) | D188: RT/LT | E188: NORTH (US FT) | F188: EAST (US FT) | G188: ELEVATION (US FT) | H188: FEATURE | I188: DESCRIPTION | J188: NAME | K188: NORTH (sft) | L188: EAST (sft) | M188: ORTHO HT (sft) | N188: NORTH (US FT) | O188: EAST (US FT)
D189: =IF(C189<0,"LT","RT") -> RT | J189: =A189 -> 0 | K189: =E189/$C$103 -> 0 | L189: 0 | M189: =G189/$C$104 -> 0 | N189: =$K189*$C$104 -> 0 | O189: =$L189*$C$104 -> 0
D190: RT | J190: =A190 -> 0 | K190: =E190/$C$103 -> 0 | L190: =F190/$C$103 -> 0 | M190: =G190/$C$104 -> 0 | N190: 0 | O190: 0
D191: RT | J191: 0 | K191: 0 | L191: 0 | M191: 0 | N191: 0 | O191: 0
D192: RT | J192: 0 | K192: 0 | L192: 0 | M192: 0 | N192: 0 | O192: 0
D193: RT | J193: =A193 -> 0 | K193: =E193/$C$103 -> 0 | L193: =F193/$C$103 -> 0 | M193: =G193/$C$104 -> 0 | N193: 0 | O193: 0
D194: RT | J194: 0 | K194: 0 | L194: 0 | M194: 0 | N194: 0 | O194: 0
D195: RT | J195: 0 | K195: 0 | L195: 0 | M195: 0 | N195: 0 | O195: 0
D196: RT | J196: 0 | K196: 0 | L196: 0 | M196: 0 | N196: 0 | O196: 0
D197: RT | J197: 0 | K197: 0 | L197: 0 | M197: 0 | N197: 0 | O197: 0
D198: RT | J198: 0 | K198: 0 | L198: 0 | M198: 0 | N198: 0 | O198: 0
D199: RT | J199: 0 | K199: 0 | L199: 0 | M199: 0 | N199: 0 | O199: 0
D200: RT | J200: 0 | K200: 0 | L200: 0 | M200: 0 | N200: 0 | O200: 0
D201: RT | J201: 0 | K201: 0 | L201: 0 | M201: 0 | N201: 0 | O201: 0
D202: RT | J202: 0 | K202: 0 | L202: 0 | M202: 0 | N202: 0 | O202: 0
D203: RT | J203: 0 | K203: 0 | L203: 0 | M203: 0 | N203: 0 | O203: 0
D204: RT | J204: 0 | K204: 0 | L204: 0 | M204: 0 | N204: 0 | O204: 0
D205: RT | J205: 0 | K205: 0 | L205: 0 | M205: 0 | N205: 0 | O205: 0
D206: RT | J206: 0 | K206: 0 | L206: 0 | M206: 0 | N206: 0 | O206: 0
... 12 more rows

Sheet GPS_IMPORT
A1: SV1 | B1: 3.10.2019 | C1: 00:55:28.100 | D1: 379910.5744 | E1: 2458017.041 | F1: 995.3562934 | G1: AERTAR
A2: SV1 | B2: 3.10.2019 | C2: 00:55:39.200 | D2: 379910.5763 | E2: 2458017.042 | F2: 995.3580847 | G2: AERTAR
A3: SV1 | B3: 3.10.2019 | C3: 00:55:50.100 | D3: 379910.5722 | E3: 2458017.044 | F3: 995.3443586 | G3: AERTAR
A4: SV1 | B4: 3.1032019 | C4: 00:55:55.100 | D4: 37998 | E4: 2458016.05 | F4: 995.861 | G4: AERTAR
A5: SV1 | B5: 3.10.2019 | C5: 00:56:01.400 | D5: 379910.5696 | E5: 2458017.05 | F5: 995.363763 | G5: AERTAR
A6: SV1 | B6: 3.10.2019 | C6: 00:56:19.100 | D6: 379910.5735 | E6: 2458017.055 | F6: 995.3536379 | G6: AERTAR
A7: SV1 | B7: 3.10.2019 | C7: 00:56:30.100 | D7: 379910.5705 | E7: 2458017.052 | F7: 995.3542103 | G7: AERTAR
A8: SV1 | B8: 3.10.2019 | C8: 00:56:41.300 | D8: 379910.566 | E8: 2458017.056 | F8: 995.34306 | G8: AERTAR
A9: SV1 | B9: 3.10.2019 | C9: 00:56:52.100 | D9: 379910.5695 | E9: 2458017.061 | F9: 995.3530081 | G9: AERTAR
A10: SV1 | B10: 3.10.2019 | C10: 00:57:10 | D10: 379910.5563 | E10: 2458017.053 | F10: 995.3626883 | G10: AERTAR
A11: SV1 | B11: 3.10.2019 | C11: 00:57:20.100 | D11: 379910.5531 | E11: 2458017.048 | F11: 995.3603765 | G11: AERTAR
A12: SV1 | B12: 3.10.2019 | C12: 00:57:31.500 | D12: 379910.5497 | E12: 2458017.046 | F12: 995.369609 | G12: AERTAR
A13: SV1 | B13: 3.10.2019 | C13: 00:57:42.100 | D13: 379910.5641 | E13: 2458017.05 | F13: 995.3678771 | G13: AERTAR
A14: SV2 | B14: 3.10.2019 | C14: 00:03:36.500 | D14: 380188.4094 | E14: 2460342.983 | F14: 975.0115022 | G14: AERTAR
A15: SV2 | B15: 3.10.2019 | C15: 00:03:49.100 | D15: 380188.4117 | E15: 2460342.987 | F15: 975.009115 | G15: AERTAR
A16: SV2 | B16: 3.10.2019 | C16: 00:03:59 | D16: 380188.4062 | E16: 2460342.988 | F16: 975.0067348 | G16: AERTAR
A17: SV2 | B17: 3.10.2019 | C17: 00:04:09.100 | D17: 380188.3998 | E17: 2460342.99 | F17: 975.0066036 | G17: AERTAR
A18: SV2 | B18: 3.10.2019 | C18: 00:04:22 | D18: 380188.3954 | E18: 2460342.989 | F18: 975.0057821 | G18: AERTAR
A19: SV2 | B19: 3.10.2019 | C19: 00:04:32 | D19: 380188.3945 | E19: 2460342.987 | F19: 975.0060164 | G19: AERTAR
A20: SV2 | B20: 3.10.2019 | C20: 00:04:42 | D20: 380188.3956 | E20: 2460342.989 | F20: 975.0021983 | G20: AERTAR
A21: SV2 | B21: 3.10.2019 | C21: 00:04:52.100 | D21: 380188.3951 | E21: 2460342.992 | F21: 975.0073072 | G21: AERTAR
A22: SV2 | B22: 3.10.2019 | C22: 00:05:06.200 | D22: 380188.3961 | E22: 2460342.991 | F22: 975.0010384 | G22: AERTAR
A23: SV2 | B23: 3.10.2019 | C23: 00:05:16.300 | D23: 380188.3947 | E23: 2460342.986 | F23: 975.005303 | G23: AERTAR
A24: SV2 | B24: 3.10.2019 | C24: 00:05:26.400 | D24: 380188.3923 | E24: 2460342.987 | F24: 975.0064561 | G24: AERTAR
A25: SV2 | B25: 3.10.2019 | C25: 00:05:37.100 | D25: 380188.3926 | E25: 2460342.984 | F25: 975.0184051 | G25: AERTAR
A26: SV2 | B26: 3.10.2019 | C26: 00:05:56.400 | D26: 380188.3838 | E26: 2460342.983 | F26: 975.0333965 | G26: AERTAR
A27: SV3 | B27: 3.10.2019 | C27: 00:34:20.100 | D27: 376919.5236 | E27: 2458129.79 | F27: 1021.849536 | G27: AERTAR
A28: SV3 | B28: 3.10.2019 | C28: 00:34:30.200 | D28: 376919.5224 | E28: 2458129.792 | F28: 1021.86292 | G28: AERTAR
A29: SV3 | B29: 3.10.2019 | C29: 00:34:41.300 | D29: 376919.5176 | E29: 2458129.797 | F29: 1021.865229 | G29: AERTAR
A30: SV3 | B30: 3.10.2019 | C30: 00:34:52 | D30: 376919.5253 | E30: 2458129.797 | F30: 1021.870789 | G30: AERTAR
A31: SV3 | B31: 3.10.2019 | C31: 00:35:07 | D31: 376919.5249 | E31: 2458129.796 | F31: 1021.868166 | G31: AERTAR
A32: SV3 | B32: 3.10.2019 | C32: 00:35:19 | D32: 376919.5301 | E32: 2458129.797 | F32: 1021.870578 | G32: AERTAR
A33: SV3 | B33: 3.10.2019 | C33: 00:35:29.100 | D33: 376919.5237 | E33: 2458129.799 | F33: 1021.862183 | G33: AERTAR
A34: SV3 | B34: 3.10.2019 | C34: 00:35:40 | D34: 376919.5245 | E34: 2458129.796 | F34: 1021.859932 | G34: AERTAR
A35: SV3 | B35: 3.10.2019 | C35: 00:35:55.100 | D35: 376919.5314 | E35: 2458129.794 | F35: 1021.849082 | G35: AERTAR
A36: SV3 | B36: 3.10.2019 | C36: 00:36:06.200 | D36: 376919.5305 | E36: 2458129.793 | F36: 1021.852582 | G36: AERTAR
A37: SV3 | B37: 3.10.2019 | C37: 00:36:17.100 | D37: 376919.5265 | E37: 2458129.785 | F37: 1021.861501 | G37: AERTAR
A38: SV3 | B38: 3.10.2019 | C38: 00:36:28 | D38: 376919.5281 | E38: 2458129.785 | F38: 1021.849278 | G38: AERTAR
A39: CNTL1 | B39: 3.10.2019 | C39: 00:37:16.500 | D39: 376931.9647 | E39: 2458075.603 | F39: 1021.869206 | G39: IPINS
A40: CNTL1 | B40: 3.10.2019 | C40: 00:37:25.100 | D40: 376931.9664 | E40: 2458075.596 | F40: 1021.86035 | G40: IPINS
A41: CNTL1 | B41: 3.10.2019 | C41: 00:37:34.200 | D41: 376931.9692 | E41: 2458075.598 | F41: 1021.865102 | G41: IPINS
A42: CNTL1 | B42: 3.10.2019 | C42: 00:37:45.100 | D42: 376931.9678 | E42: 2458075.599 | F42: 1021.866611 | G42: IPINS
A43: CNTL1 | B43: 3.10.2019 | C43: 00:38:03.100 | D43: 376931.9695 | E43: 2458075.591 | F43: 1021.868127 | G43: IPINS
A44: CNTL1 | B44: 3.10.2019 | C44: 00:38:14 | D44: 376931.9726 | E44: 2458075.593 | F44: 1021.854132 | G44: IPINS
A45: CNTL1 | B45: 3.10.2019 | C45: 00:38:25 | D45: 376931.9665 | E45: 2458075.596 | F45: 1021.851454 | G45: IPINS
A46: CNTL1 | B46: 3.10.2019 | C46: 00:38:35 | D46: 376931.9654 | E46: 2458075.598 | F46: 1021.848056 | G46: IPINS
A47: CNTL1 | B47: 3.10.2019 | C47: 00:38:50 | D47: 376931.9709 | E47: 2458075.601 | F47: 1021.834984 | G47: IPINS
A48: CNTL1 | B48: 3.10.2019 | C48: 00:39:00 | D48: 376931.9714 | E48: 2458075.6 | F48: 1021.838636 | G48: IPINS
A49: CNTL1 | B49: 3.10.2019 | C49: 00:39:11.200 | D49: 376931.9709 | E49: 2458075.601 | F49: 1021.840596 | G49: IPINS
A50: CNTL1 | B50: 3.10.2019 | C50: 00:39:23.900 | D50: 376931.9686 | E50: 2458075.602 | F50: 1021.843629 | G50: IPINS
A51: CNTL2 | B51: 3.10.2019 | C51: 00:41:43.100 | D51: 376988.9551 | E51: 2458323.44 | F51: 1012.845392 | G51: IPINS
A52: CNTL2 | B52: 3.10.2019 | C52: 00:41:56.400 | D52: 376988.9587 | E52: 2458323.446 | F52: 1012.862208 | G52: IPINS
A53: CNTL2 | B53: 3.10.2019 | C53: 00:42:08.100 | D53: 376988.9565 | E53: 2458323.449 | F53: 1012.877662 | G53: IPINS
A54: CNTL2 | B54: 3.10.2019 | C54: 00:42:19.200 | D54: 376988.951 | E54: 2458323.454 | F54: 1012.872436 | G54: IPINS
A55: CNTL2 | B55: 3.10.2019 | C55: 00:42:34.200 | D55: 376988.9547 | E55: 2458323.453 | F55: 1012.89104 | G55: IPINS
A56: CNTL2 | B56: 3.10.2019 | C56: 00:42:45.100 | D56: 376988.9511 | E56: 2458323.452 | F56: 1012.887639 | G56: IPINS
A57: CNTL2 | B57: 3.10.2019 | C57: 00:42:56.200 | D57: 376988.9535 | E57: 2458323.444 | F57: 1012.879321 | G57: IPINS
A58: CNTL2 | B58: 3.10.2019 | C58: 00:43:07 | D58: 376988.9523 | E58: 2458323.446 | F58: 1012.885921 | G58: IPINS
A59: CNTL2 | B59: 3.10.2019 | C59: 00:43:23.200 | D59: 376988.9616 | E59: 2458323.445 | F59: 1012.862546 | G59: IPINS
A60: CNTL2 | B60: 3.10.2019 | C60: 00:43:36.300 | D60: 376988.9594 | E60: 2458323.447 | F60: 1012.867202 | G60: IPINS
A61: CNTL2 | B61: 3.10.2019 | C61: 00:43:47.600 | D61: 376988.9684 | E61: 2458323.449 | F61: 1012.88205 | G61: IPINS
A62: CNTL2 | B62: 3.10.2019 | C62: 00:43:58.900 | D62: 376988.9674 | E62: 2458323.444 | F62: 1012.903228 | G62: IPINS
A63: CNTL3 | B63: 3.10.2019 | C63: 00:46:28.100 | D63: 376669.8652 | E63: 2458138.111 | F63: 1034.830856 | G63: IPINS
A64: CNTL3 | B64: 3.10.2019 | C64: 00:46:39.100 | D64: 376669.8685 | E64: 2458138.113 | F64: 1034.813615 | G64: IPINS
A65: CNTL3 | B65: 3.10.2019 | C65: 00:46:50.200 | D65: 376669.8664 | E65: 2458138.112 | F65: 1034.802247 | G65: IPINS
A66: CNTL3 | B66: 3.10.2019 | C66: 00:47:02 | D66: 376669.865 | E66: 2458138.109 | F66: 1034.793834 | G66: IPINS
A67: CNTL3 | B67: 3.10.2019 | C67: 00:47:19.200 | D67: 376669.8498 | E67: 2458138.116 | F67: 1034.769674 | G67: IPINS
A68: CNTL3 | B68: 3.10.2019 | C68: 00:47:30.100 | D68: 376669.8521 | E68: 2458138.114 | F68: 1034.771191 | G68: IPINS
A69: CNTL3 | B69: 3.10.2019 | C69: 00:47:41.300 | D69: 376669.855 | E69: 2458138.119 | F69: 1034.768132 | G69: IPINS
A70: CNTL3 | B70: 3.10.2019 | C70: 00:47:52 | D70: 376669.8502 | E70: 2458138.118 | F70: 1034.76109 | G70: IPINS
A71: CNTL3 | B71: 3.10.2019 | C71: 00:48:09 | D71: 376669.8557 | E71: 2458138.123 | F71: 1034.738589 | G71: IPINS
A72: CNTL3 | B72: 3.10.2019 | C72: 00:48:20.100 | D72: 376669.8592 | E72: 2458138.125 | F72: 1034.731296 | G72: IPINS
A73: CNTL3 | B73: 3.10.2019 | C73: 00:48:32.200 | D73: 376669.8538 | E73: 2458138.126 | F73: 1034.740121 | G73: IPINS
A74: CNTL3 | B74: 3.10.2019 | C74: 00:48:44.100 | D74: 376669.8529 | E74: 2458138.127 | F74: 1034.733468 | G74: IPINS
A75: SV100 | B75: 3.10.2019 | C75: 00:49:22 | D75: 376673.1764 | E75: 2458142.713 | F75: 1034.566355 | G75: AERLCS
A76: SV101 | B76: 3.10.2019 | C76: 00:49:42.100 | D76: 376709.3007 | E76: 2458165.291 | F76: 1031.876168 | G76: AERLCS
A77: SV102 | B77: 3.10.2019 | C77: 00:50:02.100 | D77: 376749.0563 | E77: 2458190.298 | F77: 1029.835811 | G77: AERLCS
A78: SV103 | B78: 3.10.2019 | C78: 00:50:17.100 | D78: 376776.1349 | E78: 2458192.264 | F78: 1027.429228 | G78: AERLCS
A79: SV104 | B79: 3.10.2019 | C79: 00:50:31.300 | D79: 376795.9235 | E79: 2458183.904 | F79: 1025.134531 | G79: AERLCS
A80: SV105 | B80: 3.10.2019 | C80: 00:51:20.100 | D80: 376897.3627 | E80: 2458102.972 | F80: 1022.553993 | G80: AERLCS
A81: SV106 | B81: 3.10.2019 | C81: 00:51:37.100 | D81: 376921.0051 | E81: 2458084.425 | F81: 1021.705267 | G81: AERLCS
A82: SV107 | B82: 3.10.2019 | C82: 00:51:52 | D82: 376935.2076 | E82: 2458060.264 | F82: 1021.703259 | G82: AERLCS
A83: SV108 | B83: 3.10.2019 | C83: 00:52:15 | D83: 376961.1149 | E83: 2458078.088 | F83: 1018.554144 | G83: AERLCS
A84: SV109 | B84: 3.10.2019 | C84: 00:52:28 | D84: 376980.5007 | E84: 2458086.667 | F84: 1016.489729 | G84: AERLCS
A85: SV110 | B85: 3.10.2019 | C85: 00:52:44.100 | D85: 376998.9209 | E85: 2458110.952 | F85: 1015.089625 | G85: AERLCS
A86: SV111 | B86: 3.10.2019 | C86: 00:52:58.200 | D86: 377016.3436 | E86: 2458128.998 | F86: 1013.7243 | G86: AERLCS
A87: SV112 | B87: 3.10.2019 | C87: 00:53:15 | D87: 377025.1937 | E87: 2458159.103 | F87: 1013.077426 | G87: AERLCS
A88: SV113 | B88: 3.10.2019 | C88: 00:53:32.100 | D88: 376998.6266 | E88: 2458180.255 | F88: 1015.47008 | G88: AERLCS
A89: SV114 | B89: 3.10.2019 | C89: 00:53:46.300 | D89: 376976.4189 | E89: 2458180.572 | F89: 1017.1995 | G89: AERLCS
A90: SV115 | B90: 3.10.2019 | C90: 00:54:10.200 | D90: 376946.9382 | E90: 2458180.615 | F90: 1019.356899 | G90: AERLCS
A91: SV116 | B91: 3.10.2019 | C91: 00:54:22 | D91: 376929.2071 | E91: 2458177.993 | F91: 1020.810205 | G91: AERLCS
A92: SV117 | B92: 3.10.2019 | C92: 00:54:34.900 | D92: 376918.1397 | E92: 2458165.814 | F92: 1021.90865 | G92: AERLCS
A93: SV118 | B93: 3.10.2019 | C93: 00:54:49 | D93: 376925.2487 | E93: 2458144.802 | F93: 1021.251177 | G93: AERLCS
A94: SV119 | B94: 3.10.2019 | C94: 00:55:03 | D94: 376935.8656 | E94: 2458123.995 | F94: 1020.454624 | G94: AERLCS
A95: SV120 | B95: 3.10.2019 | C95: 00:55:19 | D95: 376951.8879 | E95: 2458105.158 | F95: 1019.325548 | G95: AERLCS
A96: SV121 | B96: 3.10.2019 | C96: 00:55:32 | D96: 376972.0054 | E96: 2458115.294 | F96: 1017.519968 | G96: AERLCS
A97: SV122 | B97: 3.10.2019 | C97: 00:55:56.400 | D97: 376947.3944 | E97: 2458157.541 | F97: 1019.46431 | G97: AERLCS
A98: SV123 | B98: 3.10.2019 | C98: 00:16:17 | D98: 376859 | E98: 2458133.885 | F98: 1023.466682 | G98: H
A99: SV124 | B99: 3.10.2019 | C99: 00:16:28 | D99: 376851.9523 | E99: 2458130.583 | F99: 1023.418062 | G99: H
A100: SV125 | B100: 3.10.2019 | C100: 00:16:39 | D100: 376844.1245 | E100: 2458127.035 | F100: 1023.411869 | G100: H
A101: SV126 | B101: 3.10.2019 | C101: 00:16:50.400 | D101: 376836.7929 | E101: 2458124.284 | F101: 1023.467323 | G101: H
A102: SV127 | B102: 3.10.2019 | C102: 00:17:00 | D102: 376828.9632 | E102: 2458121.769 | F102: 1023.560277 | G102: H
A103: SV128 | B103: 3.10.2019 | C103: 00:17:11.200 | D103: 376820.0288 | E103: 2458117.677 | F103: 1023.691664 | G103: H
A104: SV129 | B104: 3.10.2019 | C104: 00:17:23.900 | D104: 376810.9116 | E104: 2458111.702 | F104: 1023.903292 | G104: H
A105: SV130 | B105: 3.10.2019 | C105: 00:17:37 | D105: 376804.1403 | E105: 2458106.483 | F105: 1023.997729 | G105: H
A106: SV131 | B106: 3.10.2019 | C106: 00:17:46.900 | D106: 376798.7103 | E106: 2458101.789 | F106: 1024.08977 | G106: H
A107: SV132 | B107: 3.10.2019 | C107: 00:17:57.900 | D107: 376793.7884 | E107: 2458098.014 | F107: 1024.167166 | G107: H
A108: SV133 | B108: 3.10.2019 | C108: 00:18:56.300 | D108: 376705.9296 | E108: 2458015.844 | F108: 1028.88783 | G108: AERLCH
A109: SV134 | B109: 3.10.2019 | C109: 00:19:17.600 | D109: 376666.9573 | E109: 2457966.367 | F109: 1033.658589 | G109: AERLCH
A110: SV135 | B110: 3.10.2019 | C110: 00:19:50.400 | D110: 376634.9792 | E110: 2457912.19 | F110: 1038.100972 | G110: AERLCH
A111: SV136 | B111: 3.10.2019 | C111: 00:20:41.100 | D111: 376592.2176 | E111: 2457828.495 | F111: 1036.709625 | G111: AERLCH
A112: SV137 | B112: 3.10.2019 | C112: 00:23:17.100 | D112: 376564.0057 | E112: 2457761.99 | F112: 1031.344696 | G112: AERLCH
A113: SV138 | B113: 3.10.2019 | C113: 00:23:48.100 | D113: 376552.2787 | E113: 2457721.125 | F113: 1026.853115 | G113: AERLCH
A114: SV139 | B114: 3.10.2019 | C114: 00:24:06.300 | D114: 376549.4643 | E114: 2457699.093 | F114: 1024.85152 | G114: AERLCH
A115: SV140 | B115: 3.10.2019 | C115: 00:24:33 | D115: 376552.7836 | E115: 2457671.444 | F115: 1021.993851 | G115: AERLCH
A116: SV141 | B116: 3.10.2019 | C116: 00:25:09 | D116: 376560.3364 | E116: 2457649.615 | F116: 1019.442472 | G116: AERLCH
A117: SV142 | B117: 3.10.2019 | C117: 00:25:30.800 | D117: 376569.9603 | E117: 2457626.872 | F117: 1016.255034 | G117: AERLCH
A118: SV143 | B118: 3.10.2019 | C118: 00:27:20.100 | D118: 376594.5799 | E118: 2457563.539 | F118: 1005.807114 | G118: AERLCH
A119: SV144 | B119: 3.10.2019 | C119: 00:28:22.900 | D119: 376599.6625 | E119: 2457556.045 | F119: 1004.287458 | G119: H
A120: SV145 | B120: 3.10.2019 | C120: 00:28:45.400 | D120: 376602.4259 | E120: 2457549.606 | F120: 1003.124242 | G120: H
A121: SV146 | B121: 3.10.2019 | C121: 00:28:58 | D121: 376604.7902 | E121: 2457544.233 | F121: 1002.003041 | G121: H
A122: SV147 | B122: 3.10.2019 | C122: 00:29:11.300 | D122: 376608.7722 | E122: 2457537.076 | F122: 1000.676258 | G122: H
A123: SV148 | B123: 3.10.2019 | C123: 00:30:21.900 | D123: 376611.3405 | E123: 2457532.079 | F123: 999.8141404 | G123: H
A124: SV149 | B124: 3.10.2019 | C124: 00:30:32.300 | D124: 376614.9326 | E124: 2457526.291 | F124: 998.8117352 | G124: H
A125: SV150 | B125: 3.10.2019 | C125: 00:30:44 | D125: 376618.7021 | E125: 2457520.578 | F125: 997.5930169 | G125: H
A126: SV151 | B126: 3.10.2019 | C126: 00:30:58.100 | D126: 376621.4988 | E126: 2457515.351 | F126: 996.5615282 | G126: H
A127: SV152 | B127: 3.10.2019 | C127: 00:31:10 | D127: 376624.6427 | E127: 2457510.601 | F127: 995.6760475 | G127: H
A128: SV153 | B128: 3.10.2019 | C128: 00:31:24 | D128: 376627.605 | E128: 2457506.375 | F128: 994.9329008 | G128: H
A129: SV154 | B129: 3.10.2019 | C129: 00:31:53.100 | D129: 376638.1719 | E129: 2457484.257 | F129: 992.1038865 | G129: AERLCH
A130: SV155 | B130: 3.10.2019 | C130: 00:32:23.800 | D130: 376640.0547 | E130: 2457471.035 | F130: 991.0519948 | G130: AERLCH
A131: SV156 | B131: 3.10.2019 | C131: 00:32:38.200 | D131: 376634.9474 | E131: 2457456.75 | F131: 991.0156068 | G131: AERLCH
A132: SV157 | B132: 3.10.2019 | C132: 00:33:01.400 | D132: 376626.0825 | E132: 2457447.331 | F132: 990.9890514 | G132: AERLCH
A133: SV158 | B133: 3.10.2019 | C133: 00:33:12 | D133: 376618.946 | E133: 2457440.977 | F133: 991.0886733 | G133: AERLCH
A134: SV159 | B134: 3.10.2019 | C134: 00:33:23 | D134: 376613.2933 | E134: 2457434.541 | F134: 991.2178711 | G134: AERLCH
A135: SV160 | B135: 3.10.2019 | C135: 00:33:35.100 | D135: 376607.2658 | E135: 2457427.36 | F135: 991.3217769 | G135: AERLCH
A136: SV161 | B136: 3.10.2019 | C136: 00:33:54.900 | D136: 376601.547 | E136: 2457421.441 | F136: 991.3917477 | G136: AERLCH
A137: SV162 | B137: 3.10.2019 | C137: 00:34:07.400 | D137: 376595.7439 | E137: 2457415.239 | F137: 991.5246871 | G137: AERLCH
A138: SV163 | B138: 3.10.2019 | C138: 00:35:47.200 | D138: 375746.2746 | E138: 2456816.832 | F138: 1004.961487 | G138: AERLCH
A139: SV164 | B139: 3.10.2019 | C139: 00:36:12.900 | D139: 375769.7528 | E139: 2456840.28 | F139: 1005.39933 | G139: AERLCH
A140: SV165 | B140: 3.10.2019 | C140: 00:36:34.900 | D140: 375794.8928 | E140: 2456865.297 | F140: 1006.535662 | G140: AERLCH
A141: SV166 | B141: 3.10.2019 | C141: 00:37:07.500 | D141: 375832.7071 | E141: 2456900.245 | F141: 1009.450099 | G141: AERLCH
A142: SV167 | B142: 3.10.2019 | C142: 00:37:42.500 | D142: 375867.6302 | E142: 2456937.556 | F142: 1011.335369 | G142: AERLCH
A143: SV168 | B143: 3.10.2019 | C143: 00:38:08.600 | D143: 375851.2137 | E143: 2456944.926 | F143: 1010.932264 | G143: AERLCS
A144: SV169 | B144: 3.10.2019 | C144: 00:38:22.200 | D144: 375860.3225 | E144: 2456949.72 | F144: 1010.926906 | G144: AERLCS
A145: SV170 | B145: 3.10.2019 | C145: 00:38:34 | D145: 375866.0419 | E145: 2456955.694 | F145: 1010.974126 | G145: AERLCS
A146: SV171 | B146: 3.10.2019 | C146: 00:38:47 | D146: 375874.8954 | E146: 2456961.214 | F146: 1010.771861 | G146: AERLCS
A147: SV172 | B147: 3.10.2019 | C147: 00:38:57.800 | D147: 375880.7368 | E147: 2456965.784 | F147: 1010.673824 | G147: AERLCS
A148: SV173 | B148: 3.10.2019 | C148: 00:39:19.800 | D148: 375887.9674 | E148: 2456969.839 | F148: 1010.57677 | G148: AERLCS
A149: SV174 | B149: 3.10.2019 | C149: 00:39:31.200 | D149: 375895.0476 | E149: 2456974.26 | F149: 1010.275756 | G149: AERLCS
A150: SV4 | B150: 3.10.2019 | C150: 00:46:56.100 | D150: 372819.6602 | E150: 2455642.174 | F150: 1050.176859 | G150: AERTAR
A151: SV4 | B151: 3.10.2019 | C151: 00:47:07.800 | D151: 372819.6774 | E151: 2455642.176 | F151: 1050.19959 | G151: AERTAR
A152: SV4 | B152: 3.10.2019 | C152: 00:47:18.700 | D152: 372819.6849 | E152: 2455642.178 | F152: 1050.187571 | G152: AERTAR
A153: SV4 | B153: 3.10.2019 | C153: 00:47:31 | D153: 372819.6828 | E153: 2455642.171 | F153: 1050.209758 | G153: AERTAR
A154: SV4 | B154: 3.10.2019 | C154: 00:47:52.800 | D154: 372819.6817 | E154: 2455642.19 | F154: 1050.178557 | G154: AERTAR
A155: SV4 | B155: 3.10.2019 | C155: 00:48:06 | D155: 372819.6859 | E155: 2455642.194 | F155: 1050.170725 | G155: AERTAR
A156: SV4 | B156: 3.10.2019 | C156: 00:48:17.900 | D156: 372819.6879 | E156: 2455642.189 | F156: 1050.188883 | G156: AERTAR
A157: SV4 | B157: 3.10.2019 | C157: 00:48:31 | D157: 372819.6954 | E157: 2455642.2 | F157: 1050.175234 | G157: AERTAR
A158: SV4 | B158: 3.10.2019 | C158: 00:48:48.800 | D158: 372819.6895 | E158: 2455642.204 | F158: 1050.171057 | G158: AERTAR
A159: SV4 | B159: 3.10.2019 | C159: 00:48:59.800 | D159: 372819.6942 | E159: 2455642.201 | F159: 1050.156585 | G159: AERTAR
A160: SV4 | B160: 3.10.2019 | C160: 00:49:11 | D160: 372819.685 | E160: 2455642.194 | F160: 1050.132344 | G160: AERTAR
A161: SV4 | B161: 3.10.2019 | C161: 00:49:22.700 | D161: 372819.6831 | E161: 2455642.199 | F161: 1050.131785 | G161: AERTAR
A162: SV5 | B162: 3.10.2019 | C162: 00:55:16 | D162: 372152.4575 | E162: 2457046.191 | F162: 1086.083648 | G162: AERTAR
A163: SV5 | B163: 3.10.2019 | C163: 00:55:26 | D163: 372152.4557 | E163: 2457046.191 | F163: 1086.079234 | G163: AERTAR
A164: SV5 | B164: 3.10.2019 | C164: 00:55:36 | D164: 372152.4524 | E164: 2457046.19 | F164: 1086.067662 | G164: AERTAR
A165: SV5 | B165: 3.10.2019 | C165: 00:55:46 | D165: 372152.4411 | E165: 2457046.183 | F165: 1086.081458 | G165: AERTAR
A166: SV5 | B166: 3.10.2019 | C166: 00:56:01.100 | D166: 372152.4418 | E166: 2457046.181 | F166: 1086.091511 | G166: AERTAR
A167: SV5 | B167: 3.10.2019 | C167: 00:56:11.800 | D167: 372152.4486 | E167: 2457046.177 | F167: 1086.103574 | G167: AERTAR
A168: SV5 | B168: 3.10.2019 | C168: 00:56:22.700 | D168: 372152.4354 | E168: 2457046.177 | F168: 1086.134238 | G168: AERTAR
A169: SV5 | B169: 3.10.2019 | C169: 00:56:34.800 | D169: 372152.4531 | E169: 2457046.189 | F169: 1086.122991 | G169: AERTAR
A170: SV5 | B170: 3.10.2019 | C170: 00:56:58.900 | D170: 372152.4532 | E170: 2457046.187 | F170: 1086.141419 | G170: AERTAR
A171: SV5 | B171: 3.10.2019 | C171: 00:57:19.800 | D171: 372152.4484 | E171: 2457046.187 | F171: 1086.148356 | G171: AERTAR
A172: SV5 | B172: 3.10.2019 | C172: 00:57:31.100 | D172: 372152.4541 | E172: 2457046.19 | F172: 1086.148505 | G172: AERTAR
A173: SV5 | B173: 3.10.2019 | C173: 00:57:41.700 | D173: 372152.4491 | E173: 2457046.195 | F173: 1086.156129 | G173: AERTAR

Sheet SV1
A1: VRS GNSS Project Control Monument Coordinate Analysis
A3: Project: | B3: =REPORT!B2 -> FRA-71-29.4 | C3: GPS Antenna: | D3: LEICA GS14 | J3: Report Date: | K3: =REPORT!C49 -> 2019-04-25
A4: PID: | B4: =REPORT!E2 -> 106471 | C4: VRS Network: | D4: ODOT VRS | J4: Prepared By: | K4: =REPORT!C48 -> Kolton Wilson
A5: Point ID: | B5: SV1 | C5: No. of Sessions: | D5: =COUNTIF(GPS_IMPORT!A2:A1000,$B$5) -> 12 | J5: Checked By: | K5: =REPORT!C52 -> David Ogden
A6: SESSION # | B6: Point | C6: Observation Date | D6: Start Time | E6: Northing(sft) | F6: Easting(sft) | G6: Height(sft) | H6: ∆ Northing(sft) | I6: ∆ Easting(sft) | J6: ∆ Height(sft) | K6: Include in Solution?
A7: 1 | B7: =IF(ROWS(GPS_IMPORT!$1:1)<=COUNTIF(GPS_IMPORT!$A$2:$A$10000,$B$5),INDEX(GPS_IMPORT!$2:$10000,MATCH($B$5,(GPS_IMPORT!$A$2:$A$10000),0)+ROWS($1:1)-1,COLUMN()-1),0) -> SV1 | C7: =IF(ROWS(GPS_IMPORT!$1:1)<=COUNTIF(GPS_IMPORT!$A$2:$A$10000,$B$5),INDEX(GPS_IMPORT!$2:$10000,MATCH($B$5,(GPS_IMPORT!$A$2:$A$10000),0)+ROWS($1:1)-1,COLUMN()-1),0) -> 3.10.2019 | D7: =IF(ROWS(GPS_IMPORT!$1:1)<=COUNTIF(GPS_IMPORT!$A$2:$A$10000,$B$5),INDEX(GPS_IMPORT!$2:$10000,MATCH($B$5,(GPS_IMPORT!$A$2:$A$10000),0)+ROWS($1:1)-1,COLUMN()-1),0) -> 00:55:39.200 | E7: =IF(ROWS(GPS_IMPORT!$1:1)<=COUNTIF(GPS_IMPORT!$A$2:$A$10000,$B$5),INDEX(GPS_IMPORT!$2:$10000,MATCH($B$5,(GPS_IMPORT!$A$2:$A$10000),0)+ROWS($1:1)-1,COLUMN()-1),0) -> 379910.5763 | F7: =IF(ROWS(GPS_IMPORT!$1:1)<=COUNTIF(GPS_IMPORT!$A$2:$A$10000,$B$5),INDEX(GPS_IMPORT!$2:$10000,MATCH($B$5,(GPS_IMPORT!$A$2:$A$10000),0)+ROWS($1:1)-1,COLUMN()-1),0) -> 2458017.042 | G7: =IF(ROWS(GPS_IMPORT!$1:1)<=COUNTIF(GPS_IMPORT!$A$2:$A$10000,$B$5),INDEX(GPS_IMPORT!$2:$10000,MATCH($B$5,(GPS_IMPORT!$A$2:$A$10000),0)+ROWS($1:1)-1,COLUMN()-1),0) -> 995.3580847 | H7: =IF(E7>0,E$22-E7,0) -> -28492.72457 | I7: -0.07474999968 | J7: 0.041221425 | K7: TRUE
A8: 2 | B8: =IF(ROWS(GPS_IMPORT!$1:2)<=COUNTIF(GPS_IMPORT!$A$2:$A$10000,$B$5),INDEX(GPS_IMPORT!$2:$10000,MATCH($B$5,(GPS_IMPORT!$A$2:$A$10000),0)+ROWS($1:2)-1,COLUMN()-1),0) -> SV1 | C8: =IF(ROWS(GPS_IMPORT!$1:2)<=COUNTIF(GPS_IMPORT!$A$2:$A$10000,$B$5),INDEX(GPS_IMPORT!$2:$10000,MATCH($B$5,(GPS_IMPORT!$A$2:$A$10000),0)+ROWS($1:2)-1,COLUMN()-1),0) -> 3.10.2019 | D8: =IF(ROWS(GPS_IMPORT!$1:2)<=COUNTIF(GPS_IMPORT!$A$2:$A$10000,$B$5),INDEX(GPS_IMPORT!$2:$10000,MATCH($B$5,(GPS_IMPORT!$A$2:$A$10000),0)+ROWS($1:2)-1,COLUMN()-1),0) -> 00:55:50.100 | E8: =IF(ROWS(GPS_IMPORT!$1:2)<=COUNTIF(GPS_IMPORT!$A$2:$A$10000,$B$5),INDEX(GPS_IMPORT!$2:$10000,MATCH($B$5,(GPS_IMPORT!$A$2:$A$10000),0)+ROWS($1:2)-1,COLUMN()-1),0) -> 379910.5722 | F8: =IF(ROWS(GPS_IMPORT!$1:2)<=COUNTIF(GPS_IMPORT!$A$2:$A$10000,$B$5),INDEX(GPS_IMPORT!$2:$10000,MATCH($B$5,(GPS_IMPORT!$A$2:$A$10000),0)+ROWS($1:2)-1,COLUMN()-1),0) -> 2458017.044 | G8: =IF(ROWS(GPS_IMPORT!$1:2)<=COUNTIF(GPS_IMPORT!$A$2:$A$10000,$B$5),INDEX(GPS_IMPORT!$2:$10000,MATCH($B$5,(GPS_IMPORT!$A$2:$A$10000),0)+ROWS($1:2)-1,COLUMN()-1),0) -> 995.3443586 | H8: -28492.72047 | I8: -0.07675000001 | J8: 0.054947525 | K8: TRUE
A9: 3 | B9: =IF(ROWS(GPS_IMPORT!$1:3)<=COUNTIF(GPS_IMPORT!$A$2:$A$10000,$B$5),INDEX(GPS_IMPORT!$2:$10000,MATCH($B$5,(GPS_IMPORT!$A$2:$A$10000),0)+ROWS($1:3)-1,COLUMN()-1),0) -> SV1 | C9: =IF(ROWS(GPS_IMPORT!$1:3)<=COUNTIF(GPS_IMPORT!$A$2:$A$10000,$B$5),INDEX(GPS_IMPORT!$2:$10000,MATCH($B$5,(GPS_IMPORT!$A$2:$A$10000),0)+ROWS($1:3)-1,COLUMN()-1),0) -> 3.1032019 | D9: =IF(ROWS(GPS_IMPORT!$1:3)<=COUNTIF(GPS_IMPORT!$A$2:$A$10000,$B$5),INDEX(GPS_IMPORT!$2:$10000,MATCH($B$5,(GPS_IMPORT!$A$2:$A$10000),0)+ROWS($1:3)-1,COLUMN()-1),0) -> 00:55:55.100 | E9: =IF(ROWS(GPS_IMPORT!$1:3)<=COUNTIF(GPS_IMPORT!$A$2:$A$10000,$B$5),INDEX(GPS_IMPORT!$2:$10000,MATCH($B$5,(GPS_IMPORT!$A$2:$A$10000),0)+ROWS($1:3)-1,COLUMN()-1),0) -> 37998 | F9: =IF(ROWS(GPS_IMPORT!$1:3)<=COUNTIF(GPS_IMPORT!$A$2:$A$10000,$B$5),INDEX(GPS_IMPORT!$2:$10000,MATCH($B$5,(GPS_IMPORT!$A$2:$A$10000),0)+ROWS($1:3)-1,COLUMN()-1),0) -> 2458016.05 | G9: =IF(ROWS(GPS_IMPORT!$1:3)<=COUNTIF(GPS_IMPORT!$A$2:$A$10000,$B$5),INDEX(GPS_IMPORT!$2:$10000,MATCH($B$5,(GPS_IMPORT!$A$2:$A$10000),0)+ROWS($1:3)-1,COLUMN()-1),0) -> 995.861 | H9: 313419.8517 | I9: 0.9172500004 | J9: -0.461693875 | K9: TRUE
A10: 4 | B10: =IF(ROWS(GPS_IMPORT!$1:4)<=COUNTIF(GPS_IMPORT!$A$2:$A$10000,$B$5),INDEX(GPS_IMPORT!$2:$10000,MATCH($B$5,(GPS_IMPORT!$A$2:$A$10000),0)+ROWS($1:4)-1,COLUMN()-1),0) -> SV1 | C10: =IF(ROWS(GPS_IMPORT!$1:4)<=COUNTIF(GPS_IMPORT!$A$2:$A$10000,$B$5),INDEX(GPS_IMPORT!$2:$10000,MATCH($B$5,(GPS_IMPORT!$A$2:$A$10000),0)+ROWS($1:4)-1,COLUMN()-1),0) -> 3.10.2019 | D10: =IF(ROWS(GPS_IMPORT!$1:4)<=COUNTIF(GPS_IMPORT!$A$2:$A$10000,$B$5),INDEX(GPS_IMPORT!$2:$10000,MATCH($B$5,(GPS_IMPORT!$A$2:$A$10000),0)+ROWS($1:4)-1,COLUMN()-1),0) -> 00:56:01.400 | E10: =IF(ROWS(GPS_IMPORT!$1:4)<=COUNTIF(GPS_IMPORT!$A$2:$A$10000,$B$5),INDEX(GPS_IMPORT!$2:$10000,MATCH($B$5,(GPS_IMPORT!$A$2:$A$10000),0)+ROWS($1:4)-1,COLUMN()-1),0) -> 379910.5696 | F10: =IF(ROWS(GPS_IMPORT!$1:4)<=COUNTIF(GPS_IMPORT!$A$2:$A$10000,$B$5),INDEX(GPS_IMPORT!$2:$10000,MATCH($B$5,(GPS_IMPORT!$A$2:$A$10000),0)+ROWS($1:4)-1,COLUMN()-1),0) -> 2458017.05 | G10: =IF(ROWS(GPS_IMPORT!$1:4)<=COUNTIF(GPS_IMPORT!$A$2:$A$10000,$B$5),INDEX(GPS_IMPORT!$2:$10000,MATCH($B$5,(GPS_IMPORT!$A$2:$A$10000),0)+ROWS($1:4)-1,COLUMN()-1),0) -> 995.363763 | H10: -28492.71787 | I10: -0.08274999959 | J10: 0.035543125 | K10: TRUE
A11: 5 | B11: =IF(ROWS(GPS_IMPORT!$1:5)<=COUNTIF(GPS_IMPORT!$A$2:$A$10000,$B$5),INDEX(GPS_IMPORT!$2:$10000,MATCH($B$5,(GPS_IMPORT!$A$2:$A$10000),0)+ROWS($1:5)-1,COLUMN()-1),0) -> SV1 | C11: =IF(ROWS(GPS_IMPORT!$1:5)<=COUNTIF(GPS_IMPORT!$A$2:$A$10000,$B$5),INDEX(GPS_IMPORT!$2:$10000,MATCH($B$5,(GPS_IMPORT!$A$2:$A$10000),0)+ROWS($1:5)-1,COLUMN()-1),0) -> 3.10.2019 | D11: =IF(ROWS(GPS_IMPORT!$1:5)<=COUNTIF(GPS_IMPORT!$A$2:$A$10000,$B$5),INDEX(GPS_IMPORT!$2:$10000,MATCH($B$5,(GPS_IMPORT!$A$2:$A$10000),0)+ROWS($1:5)-1,COLUMN()-1),0) -> 00:56:19.100 | E11: =IF(ROWS(GPS_IMPORT!$1:5)<=COUNTIF(GPS_IMPORT!$A$2:$A$10000,$B$5),INDEX(GPS_IMPORT!$2:$10000,MATCH($B$5,(GPS_IMPORT!$A$2:$A$10000),0)+ROWS($1:5)-1,COLUMN()-1),0) -> 379910.5735 | F11: =IF(ROWS(GPS_IMPORT!$1:5)<=COUNTIF(GPS_IMPORT!$A$2:$A$10000,$B$5),INDEX(GPS_IMPORT!$2:$10000,MATCH($B$5,(GPS_IMPORT!$A$2:$A$10000),0)+ROWS($1:5)-1,COLUMN()-1),0) -> 2458017.055 | G11: =IF(ROWS(GPS_IMPORT!$1:5)<=COUNTIF(GPS_IMPORT!$A$2:$A$10000,$B$5),INDEX(GPS_IMPORT!$2:$10000,MATCH($B$5,(GPS_IMPORT!$A$2:$A$10000),0)+ROWS($1:5)-1,COLUMN()-1),0) -> 995.3536379 | H11: -28492.72177 | I11: -0.08774999995 | J11: 0.045668225 | K11: TRUE
A12: 6 | B12: =IF(ROWS(GPS_IMPORT!$1:6)<=COUNTIF(GPS_IMPORT!$A$2:$A$10000,$B$5),INDEX(GPS_IMPORT!$2:$10000,MATCH($B$5,(GPS_IMPORT!$A$2:$A$10000),0)+ROWS($1:6)-1,COLUMN()-1),0) -> SV1 | C12: =IF(ROWS(GPS_IMPORT!$1:6)<=COUNTIF(GPS_IMPORT!$A$2:$A$10000,$B$5),INDEX(GPS_IMPORT!$2:$10000,MATCH($B$5,(GPS_IMPORT!$A$2:$A$10000),0)+ROWS($1:6)-1,COLUMN()-1),0) -> 3.10.2019 | D12: =IF(ROWS(GPS_IMPORT!$1:6)<=COUNTIF(GPS_IMPORT!$A$2:$A$10000,$B$5),INDEX(GPS_IMPORT!$2:$10000,MATCH($B$5,(GPS_IMPORT!$A$2:$A$10000),0)+ROWS($1:6)-1,COLUMN()-1),0) -> 00:56:30.100 | E12: =IF(ROWS(GPS_IMPORT!$1:6)<=COUNTIF(GPS_IMPORT!$A$2:$A$10000,$B$5),INDEX(GPS_IMPORT!$2:$10000,MATCH($B$5,(GPS_IMPORT!$A$2:$A$10000),0)+ROWS($1:6)-1,COLUMN()-1),0) -> 379910.5705 | F12: =IF(ROWS(GPS_IMPORT!$1:6)<=COUNTIF(GPS_IMPORT!$A$2:$A$10000,$B$5),INDEX(GPS_IMPORT!$2:$10000,MATCH($B$5,(GPS_IMPORT!$A$2:$A$10000),0)+ROWS($1:6)-1,COLUMN()-1),0) -> 2458017.052 | G12: =IF(ROWS(GPS_IMPORT!$1:6)<=COUNTIF(GPS_IMPORT!$A$2:$A$10000,$B$5),INDEX(GPS_IMPORT!$2:$10000,MATCH($B$5,(GPS_IMPORT!$A$2:$A$10000),0)+ROWS($1:6)-1,COLUMN()-1),0) -> 995.3542103 | H12: -28492.71877 | I12: -0.08474999992 | J12: 0.045095825 | K12: TRUE
A13: 7 | B13: =IF(ROWS(GPS_IMPORT!$1:7)<=COUNTIF(GPS_IMPORT!$A$2:$A$10000,$B$5),INDEX(GPS_IMPORT!$2:$10000,MATCH($B$5,(GPS_IMPORT!$A$2:$A$10000),0)+ROWS($1:7)-1,COLUMN()-1),0) -> SV1 | C13: =IF(ROWS(GPS_IMPORT!$1:7)<=COUNTIF(GPS_IMPORT!$A$2:$A$10000,$B$5),INDEX(GPS_IMPORT!$2:$10000,MATCH($B$5,(GPS_IMPORT!$A$2:$A$10000),0)+ROWS($1:7)-1,COLUMN()-1),0) -> 3.10.2019 | D13: =IF(ROWS(GPS_IMPORT!$1:7)<=COUNTIF(GPS_IMPORT!$A$2:$A$10000,$B$5),INDEX(GPS_IMPORT!$2:$10000,MATCH($B$5,(GPS_IMPORT!$A$2:$A$10000),0)+ROWS($1:7)-1,COLUMN()-1),0) -> 00:56:41.300 | E13: =IF(ROWS(GPS_IMPORT!$1:7)<=COUNTIF(GPS_IMPORT!$A$2:$A$10000,$B$5),INDEX(GPS_IMPORT!$2:$10000,MATCH($B$5,(GPS_IMPORT!$A$2:$A$10000),0)+ROWS($1:7)-1,COLUMN()-1),0) -> 379910.566 | F13: =IF(ROWS(GPS_IMPORT!$1:7)<=COUNTIF(GPS_IMPORT!$A$2:$A$10000,$B$5),INDEX(GPS_IMPORT!$2:$10000,MATCH($B$5,(GPS_IMPORT!$A$2:$A$10000),0)+ROWS($1:7)-1,COLUMN()-1),0) -> 2458017.056 | G13: =IF(ROWS(GPS_IMPORT!$1:7)<=COUNTIF(GPS_IMPORT!$A$2:$A$10000,$B$5),INDEX(GPS_IMPORT!$2:$10000,MATCH($B$5,(GPS_IMPORT!$A$2:$A$10000),0)+ROWS($1:7)-1,COLUMN()-1),0) -> 995.34306 | H13: -28492.71427 | I13: -0.08874999965 | J13: 0.056246125 | K13: TRUE
A14: 8 | B14: =IF(ROWS(GPS_IMPORT!$1:8)<=COUNTIF(GPS_IMPORT!$A$2:$A$10000,$B$5),INDEX(GPS_IMPORT!$2:$10000,MATCH($B$5,(GPS_IMPORT!$A$2:$A$10000),0)+ROWS($1:8)-1,COLUMN()-1),0) -> SV1 | C14: =IF(ROWS(GPS_IMPORT!$1:8)<=COUNTIF(GPS_IMPORT!$A$2:$A$10000,$B$5),INDEX(GPS_IMPORT!$2:$10000,MATCH($B$5,(GPS_IMPORT!$A$2:$A$10000),0)+ROWS($1:8)-1,COLUMN()-1),0) -> 3.10.2019 | D14: =IF(ROWS(GPS_IMPORT!$1:8)<=COUNTIF(GPS_IMPORT!$A$2:$A$10000,$B$5),INDEX(GPS_IMPORT!$2:$10000,MATCH($B$5,(GPS_IMPORT!$A$2:$A$10000),0)+ROWS($1:8)-1,COLUMN()-1),0) -> 00:56:52.100 | E14: =IF(ROWS(GPS_IMPORT!$1:8)<=COUNTIF(GPS_IMPORT!$A$2:$A$10000,$B$5),INDEX(GPS_IMPORT!$2:$10000,MATCH($B$5,(GPS_IMPORT!$A$2:$A$10000),0)+ROWS($1:8)-1,COLUMN()-1),0) -> 379910.5695 | F14: =IF(ROWS(GPS_IMPORT!$1:8)<=COUNTIF(GPS_IMPORT!$A$2:$A$10000,$B$5),INDEX(GPS_IMPORT!$2:$10000,MATCH($B$5,(GPS_IMPORT!$A$2:$A$10000),0)+ROWS($1:8)-1,COLUMN()-1),0) -> 2458017.061 | G14: =IF(ROWS(GPS_IMPORT!$1:8)<=COUNTIF(GPS_IMPORT!$A$2:$A$10000,$B$5),INDEX(GPS_IMPORT!$2:$10000,MATCH($B$5,(GPS_IMPORT!$A$2:$A$10000),0)+ROWS($1:8)-1,COLUMN()-1),0) -> 995.3530081 | H14: -28492.71777 | I14: -0.09375 | J14: 0.046298025 | K14: TRUE
A15: 9 | B15: =IF(ROWS(GPS_IMPORT!$1:9)<=COUNTIF(GPS_IMPORT!$A$2:$A$10000,$B$5),INDEX(GPS_IMPORT!$2:$10000,MATCH($B$5,(GPS_IMPORT!$A$2:$A$10000),0)+ROWS($1:9)-1,COLUMN()-1),0) -> SV1 | C15: =IF(ROWS(GPS_IMPORT!$1:9)<=COUNTIF(GPS_IMPORT!$A$2:$A$10000,$B$5),INDEX(GPS_IMPORT!$2:$10000,MATCH($B$5,(GPS_IMPORT!$A$2:$A$10000),0)+ROWS($1:9)-1,COLUMN()-1),0) -> 3.10.2019 | D15: =IF(ROWS(GPS_IMPORT!$1:9)<=COUNTIF(GPS_IMPORT!$A$2:$A$10000,$B$5),INDEX(GPS_IMPORT!$2:$10000,MATCH($B$5,(GPS_IMPORT!$A$2:$A$10000),0)+ROWS($1:9)-1,COLUMN()-1),0) -> 00:57:10 | E15: =IF(ROWS(GPS_IMPORT!$1:9)<=COUNTIF(GPS_IMPORT!$A$2:$A$10000,$B$5),INDEX(GPS_IMPORT!$2:$10000,MATCH($B$5,(GPS_IMPORT!$A$2:$A$10000),0)+ROWS($1:9)-1,COLUMN()-1),0) -> 379910.5563 | F15: =IF(ROWS(GPS_IMPORT!$1:9)<=COUNTIF(GPS_IMPORT!$A$2:$A$10000,$B$5),INDEX(GPS_IMPORT!$2:$10000,MATCH($B$5,(GPS_IMPORT!$A$2:$A$10000),0)+ROWS($1:9)-1,COLUMN()-1),0) -> 2458017.053 | G15: =IF(ROWS(GPS_IMPORT!$1:9)<=COUNTIF(GPS_IMPORT!$A$2:$A$10000,$B$5),INDEX(GPS_IMPORT!$2:$10000,MATCH($B$5,(GPS_IMPORT!$A$2:$A$10000),0)+ROWS($1:9)-1,COLUMN()-1),0) -> 995.3626883 | H15: -28492.70457 | I15: -0.08574999962 | J15: 0.036617825 | K15: TRUE
A16: 10 | B16: =IF(ROWS(GPS_IMPORT!$1:10)<=COUNTIF(GPS_IMPORT!$A$2:$A$10000,$B$5),INDEX(GPS_IMPORT!$2:$10000,MATCH($B$5,(GPS_IMPORT!$A$2:$A$10000),0)+ROWS($1:10)-1,COLUMN()-1),0) -> SV1 | C16: =IF(ROWS(GPS_IMPORT!$1:10)<=COUNTIF(GPS_IMPORT!$A$2:$A$10000,$B$5),INDEX(GPS_IMPORT!$2:$10000,MATCH($B$5,(GPS_IMPORT!$A$2:$A$10000),0)+ROWS($1:10)-1,COLUMN()-1),0) -> 3.10.2019 | D16: =IF(ROWS(GPS_IMPORT!$1:10)<=COUNTIF(GPS_IMPORT!$A$2:$A$10000,$B$5),INDEX(GPS_IMPORT!$2:$10000,MATCH($B$5,(GPS_IMPORT!$A$2:$A$10000),0)+ROWS($1:10)-1,COLUMN()-1),0) -> 00:57:20.100 | E16: =IF(ROWS(GPS_IMPORT!$1:10)<=COUNTIF(GPS_IMPORT!$A$2:$A$10000,$B$5),INDEX(GPS_IMPORT!$2:$10000,MATCH($B$5,(GPS_IMPORT!$A$2:$A$10000),0)+ROWS($1:10)-1,COLUMN()-1),0) -> 379910.5531 | F16: =IF(ROWS(GPS_IMPORT!$1:10)<=COUNTIF(GPS_IMPORT!$A$2:$A$10000,$B$5),INDEX(GPS_IMPORT!$2:$10000,MATCH($B$5,(GPS_IMPORT!$A$2:$A$10000),0)+ROWS($1:10)-1,COLUMN()-1),0) -> 2458017.048 | G16: =IF(ROWS(GPS_IMPORT!$1:10)<=COUNTIF(GPS_IMPORT!$A$2:$A$10000,$B$5),INDEX(GPS_IMPORT!$2:$10000,MATCH($B$5,(GPS_IMPORT!$A$2:$A$10000),0)+ROWS($1:10)-1,COLUMN()-1),0) -> 995.3603765 | H16: -28492.70137 | I16: -0.08074999973 | J16: 0.038929625 | K16: TRUE
A17: 11 | B17: =IF(ROWS(GPS_IMPORT!$1:11)<=COUNTIF(GPS_IMPORT!$A$2:$A$10000,$B$5),INDEX(GPS_IMPORT!$2:$10000,MATCH($B$5,(GPS_IMPORT!$A$2:$A$10000),0)+ROWS($1:11)-1,COLUMN()-1),0) -> SV1 | C17: =IF(ROWS(GPS_IMPORT!$1:11)<=COUNTIF(GPS_IMPORT!$A$2:$A$10000,$B$5),INDEX(GPS_IMPORT!$2:$10000,MATCH($B$5,(GPS_IMPORT!$A$2:$A$10000),0)+ROWS($1:11)-1,COLUMN()-1),0) -> 3.10.2019 | D17: =IF(ROWS(GPS_IMPORT!$1:11)<=COUNTIF(GPS_IMPORT!$A$2:$A$10000,$B$5),INDEX(GPS_IMPORT!$2:$10000,MATCH($B$5,(GPS_IMPORT!$A$2:$A$10000),0)+ROWS($1:11)-1,COLUMN()-1),0) -> 00:57:31.500 | E17: =IF(ROWS(GPS_IMPORT!$1:11)<=COUNTIF(GPS_IMPORT!$A$2:$A$10000,$B$5),INDEX(GPS_IMPORT!$2:$10000,MATCH($B$5,(GPS_IMPORT!$A$2:$A$10000),0)+ROWS($1:11)-1,COLUMN()-1),0) -> 379910.5497 | F17: =IF(ROWS(GPS_IMPORT!$1:11)<=COUNTIF(GPS_IMPORT!$A$2:$A$10000,$B$5),INDEX(GPS_IMPORT!$2:$10000,MATCH($B$5,(GPS_IMPORT!$A$2:$A$10000),0)+ROWS($1:11)-1,COLUMN()-1),0) -> 2458017.046 | G17: =IF(ROWS(GPS_IMPORT!$1:11)<=COUNTIF(GPS_IMPORT!$A$2:$A$10000,$B$5),INDEX(GPS_IMPORT!$2:$10000,MATCH($B$5,(GPS_IMPORT!$A$2:$A$10000),0)+ROWS($1:11)-1,COLUMN()-1),0) -> 995.369609 | H17: -28492.69797 | I17: -0.07874999987 | J17: 0.029697125 | K17: TRUE
A18: 12 | B18: =IF(ROWS(GPS_IMPORT!$1:12)<=COUNTIF(GPS_IMPORT!$A$2:$A$10000,$B$5),INDEX(GPS_IMPORT!$2:$10000,MATCH($B$5,(GPS_IMPORT!$A$2:$A$10000),0)+ROWS($1:12)-1,COLUMN()-1),0) -> SV1 | C18: =IF(ROWS(GPS_IMPORT!$1:12)<=COUNTIF(GPS_IMPORT!$A$2:$A$10000,$B$5),INDEX(GPS_IMPORT!$2:$10000,MATCH($B$5,(GPS_IMPORT!$A$2:$A$10000),0)+ROWS($1:12)-1,COLUMN()-1),0) -> 3.10.2019 | D18: =IF(ROWS(GPS_IMPORT!$1:12)<=COUNTIF(GPS_IMPORT!$A$2:$A$10000,$B$5),INDEX(GPS_IMPORT!$2:$10000,MATCH($B$5,(GPS_IMPORT!$A$2:$A$10000),0)+ROWS($1:12)-1,COLUMN()-1),0) -> 00:57:42.100 | E18: =IF(ROWS(GPS_IMPORT!$1:12)<=COUNTIF(GPS_IMPORT!$A$2:$A$10000,$B$5),INDEX(GPS_IMPORT!$2:$10000,MATCH($B$5,(GPS_IMPORT!$A$2:$A$10000),0)+ROWS($1:12)-1,COLUMN()-1),0) -> 379910.5641 | F18: =IF(ROWS(GPS_IMPORT!$1:12)<=COUNTIF(GPS_IMPORT!$A$2:$A$10000,$B$5),INDEX(GPS_IMPORT!$2:$10000,MATCH($B$5,(GPS_IMPORT!$A$2:$A$10000),0)+ROWS($1:12)-1,COLUMN()-1),0) -> 2458017.05 | G18: =IF(ROWS(GPS_IMPORT!$1:12)<=COUNTIF(GPS_IMPORT!$A$2:$A$10000,$B$5),INDEX(GPS_IMPORT!$2:$10000,MATCH($B$5,(GPS_IMPORT!$A$2:$A$10000),0)+ROWS($1:12)-1,COLUMN()-1),0) -> 995.3678771 | H18: -28492.71237 | I18: -0.08274999959 | J18: 0.031429025 | K18: TRUE
A19: 13 | B19: =IF(ROWS(GPS_IMPORT!$1:13)<=COUNTIF(GPS_IMPORT!$A$2:$A$10000,$B$5),INDEX(GPS_IMPORT!$2:$10000,MATCH($B$5,(GPS_IMPORT!$A$2:$A$10000),0)+ROWS($1:13)-1,COLUMN()-1),0) -> 0 | C19: =IF(ROWS(GPS_IMPORT!$1:13)<=COUNTIF(GPS_IMPORT!$A$2:$A$10000,$B$5),INDEX(GPS_IMPORT!$2:$10000,MATCH($B$5,(GPS_IMPORT!$A$2:$A$10000),0)+ROWS($1:13)-1,COLUMN()-1),0) -> 00:00:00 | D19: =IF(ROWS(GPS_IMPORT!$1:13)<=COUNTIF(GPS_IMPORT!$A$2:$A$10000,$B$5),INDEX(GPS_IMPORT!$2:$10000,MATCH($B$5,(GPS_IMPORT!$A$2:$A$10000),0)+ROWS($1:13)-1,COLUMN()-1),0) -> 00:00:00 | E19: =IF(ROWS(GPS_IMPORT!$1:13)<=COUNTIF(GPS_IMPORT!$A$2:$A$10000,$B$5),INDEX(GPS_IMPORT!$2:$10000,MATCH($B$5,(GPS_IMPORT!$A$2:$A$10000),0)+ROWS($1:13)-1,COLUMN()-1),0) -> 0 | F19: =IF(ROWS(GPS_IMPORT!$1:13)<=COUNTIF(GPS_IMPORT!$A$2:$A$10000,$B$5),INDEX(GPS_IMPORT!$2:$10000,MATCH($B$5,(GPS_IMPORT!$A$2:$A$10000),0)+ROWS($1:13)-1,COLUMN()-1),0) -> 0 | G19: =IF(ROWS(GPS_IMPORT!$1:13)<=COUNTIF(GPS_IMPORT!$A$2:$A$10000,$B$5),INDEX(GPS_IMPORT!$2:$10000,MATCH($B$5,(GPS_IMPORT!$A$2:$A$10000),0)+ROWS($1:13)-1,COLUMN()-1),0) -> 0 | H19: =IF(E19>0,E$22-E19,0) -> 0 | I19: 0 | J19: 0 | K19: FALSE
A20: 14 | B20: =IF(ROWS(GPS_IMPORT!$1:14)<=COUNTIF(GPS_IMPORT!$A$2:$A$10000,$B$5),INDEX(GPS_IMPORT!$2:$10000,MATCH($B$5,(GPS_IMPORT!$A$2:$A$10000),0)+ROWS($1:14)-1,COLUMN()-1),0) -> 0 | C20: =IF(ROWS(GPS_IMPORT!$1:14)<=COUNTIF(GPS_IMPORT!$A$2:$A$10000,$B$5),INDEX(GPS_IMPORT!$2:$10000,MATCH($B$5,(GPS_IMPORT!$A$2:$A$10000),0)+ROWS($1:14)-1,COLUMN()-1),0) -> 00:00:00 | D20: =IF(ROWS(GPS_IMPORT!$1:14)<=COUNTIF(GPS_IMPORT!$A$2:$A$10000,$B$5),INDEX(GPS_IMPORT!$2:$10000,MATCH($B$5,(GPS_IMPORT!$A$2:$A$10000),0)+ROWS($1:14)-1,COLUMN()-1),0) -> 00:00:00 | E20: =IF(ROWS(GPS_IMPORT!$1:14)<=COUNTIF(GPS_IMPORT!$A$2:$A$10000,$B$5),INDEX(GPS_IMPORT!$2:$10000,MATCH($B$5,(GPS_IMPORT!$A$2:$A$10000),0)+ROWS($1:14)-1,COLUMN()-1),0) -> 0 | F20: =IF(ROWS(GPS_IMPORT!$1:14)<=COUNTIF(GPS_IMPORT!$A$2:$A$10000,$B$5),INDEX(GPS_IMPORT!$2:$10000,MATCH($B$5,(GPS_IMPORT!$A$2:$A$10000),0)+ROWS($1:14)-1,COLUMN()-1),0) -> 0 | G20: =IF(ROWS(GPS_IMPORT!$1:14)<=COUNTIF(GPS_IMPORT!$A$2:$A$10000,$B$5),INDEX(GPS_IMPORT!$2:$10000,MATCH($B$5,(GPS_IMPORT!$A$2:$A$10000),0)+ROWS($1:14)-1,COLUMN()-1),0) -> 0 | H20: 0 | I20: 0 | J20: 0 | K20: FALSE
A21: 15 | B21: =IF(ROWS(GPS_IMPORT!$1:15)<=COUNTIF(GPS_IMPORT!$A$2:$A$10000,$B$5),INDEX(GPS_IMPORT!$2:$10000,MATCH($B$5,(GPS_IMPORT!$A$2:$A$10000),0)+ROWS($1:15)-1,COLUMN()-1),0) -> 0 | C21: =IF(ROWS(GPS_IMPORT!$1:15)<=COUNTIF(GPS_IMPORT!$A$2:$A$10000,$B$5),INDEX(GPS_IMPORT!$2:$10000,MATCH($B$5,(GPS_IMPORT!$A$2:$A$10000),0)+ROWS($1:15)-1,COLUMN()-1),0) -> 00:00:00 | D21: =IF(ROWS(GPS_IMPORT!$1:15)<=COUNTIF(GPS_IMPORT!$A$2:$A$10000,$B$5),INDEX(GPS_IMPORT!$2:$10000,MATCH($B$5,(GPS_IMPORT!$A$2:$A$10000),0)+ROWS($1:15)-1,COLUMN()-1),0) -> 00:00:00 | E21: =IF(ROWS(GPS_IMPORT!$1:15)<=COUNTIF(GPS_IMPORT!$A$2:$A$10000,$B$5),INDEX(GPS_IMPORT!$2:$10000,MATCH($B$5,(GPS_IMPORT!$A$2:$A$10000),0)+ROWS($1:15)-1,COLUMN()-1),0) -> 0 | F21: =IF(ROWS(GPS_IMPORT!$1:15)<=COUNTIF(GPS_IMPORT!$A$2:$A$10000,$B$5),INDEX(GPS_IMPORT!$2:$10000,MATCH($B$5,(GPS_IMPORT!$A$2:$A$10000),0)+ROWS($1:15)-1,COLUMN()-1),0) -> 0 | G21: =IF(ROWS(GPS_IMPORT!$1:15)<=COUNTIF(GPS_IMPORT!$A$2:$A$10000,$B$5),INDEX(GPS_IMPORT!$2:$10000,MATCH($B$5,(GPS_IMPORT!$A$2:$A$10000),0)+ROWS($1:15)-1,COLUMN()-1),0) -> 0 | H21: 0 | I21: 0 | J21: 0 | K21: FALSE
D22: AVERAGE | E22: =(IF($K$7=TRUE,E7,0)+IF($K$8=TRUE,E8,0)+IF($K$9=TRUE,E9,0)+IF($K$10=TRUE,E10,0)+IF($K$11=TRUE,E11,0)+IF($K$12=TRUE,E12,0)+IF($K$13=TRUE,E13,0)+IF($K$14=TRUE,E14,0)+IF($K$15=TRUE,E15,0)+IF($K$16=TRUE,E16,0)+IF($K$17=TRUE,E17,0)+IF($K$18=TRUE,E18,0)+IF($K$19=TRUE,E19,0)+IF($K$20=TRUE,E20,0)+IF($K$21=TRUE,E21,0))/(IF($K$7=TRUE,1,0)+IF($K$8=TRUE,1,0)+IF($K$9=TRUE,1,0)+IF($K$10=TRUE,1,0)+IF($K$11=TRUE,1,0)+IF($K$12=TRUE,1,0)+IF($K$13=TRUE,1,0)+IF($K$14=TRUE,1,0)+IF($K$15=TRUE,1,0)+IF($K$16=TRUE,1,0)+IF($K$17=TRUE,1,0)+IF($K$18=TRUE,1,0)+IF($K$19=TRUE,1,0)+IF($K$20=TRUE,1,0)+IF($K$21=TRUE,1,0)) -> 351417.8517 | F22: =(IF($K$7=TRUE,F7,0)+IF($K$8=TRUE,F8,0)+IF($K$9=TRUE,F9,0)+IF($K$10=TRUE,F10,0)+IF($K$11=TRUE,F11,0)+IF($K$12=TRUE,F12,0)+IF($K$13=TRUE,F13,0)+IF($K$14=TRUE,F14,0)+IF($K$15=TRUE,F15,0)+IF($K$16=TRUE,F16,0)+IF($K$17=TRUE,F17,0)+IF($K$18=TRUE,F18,0)+IF($K$19=TRUE,F19,0)+IF($K$20=TRUE,F20,0)+IF($K$21=TRUE,F21,0))/(IF($K$7=TRUE,1,0)+IF($K$8=TRUE,1,0)+IF($K$9=TRUE,1,0)+IF($K$10=TRUE,1,0)+IF($K$11=TRUE,1,0)+IF($K$12=TRUE,1,0)+IF($K$13=TRUE,1,0)+IF($K$14=TRUE,1,0)+IF($K$15=TRUE,1,0)+IF($K$16=TRUE,1,0)+IF($K$17=TRUE,1,0)+IF($K$18=TRUE,1,0)+IF($K$19=TRUE,1,0)+IF($K$20=TRUE,1,0)+IF($K$21=TRUE,1,0)) -> 2458016.967 | G22: =(IF($K$7=TRUE,G7,0)+IF($K$8=TRUE,G8,0)+IF($K$9=TRUE,G9,0)+IF($K$10=TRUE,G10,0)+IF($K$11=TRUE,G11,0)+IF($K$12=TRUE,G12,0)+IF($K$13=TRUE,G13,0)+IF($K$14=TRUE,G14,0)+IF($K$15=TRUE,G15,0)+IF($K$16=TRUE,G16,0)+IF($K$17=TRUE,G17,0)+IF($K$18=TRUE,G18,0)+IF($K$19=TRUE,G19,0)+IF($K$20=TRUE,G20,0)+IF($K$21=TRUE,G21,0))/ (IF($K$7=TRUE,1,0)+IF($K$8=TRUE,1,0)+IF($K$9=TRUE,1,0)+IF($K$10=TRUE,1,0)+IF($K$11=TRUE,1,0)+IF($K$12=TRUE,1,0)+IF($K$13=TRUE,1,0)+IF($K$14=TRUE,1,0)+IF($K$15=TRUE,1,0)+IF($K$16=TRUE,1,0)+IF($K$17=TRUE,1,0)+IF($K$18=TRUE,1,0)+IF($K$19=TRUE,1,0)+IF($K$20=TRUE,1,0)+IF($K$21=TRUE,1,0)) -> 995.3993061 | H22: RMSE: | I22: RMSE: | J22: RMSE:
G23: RMSE IN US SURVEY FEET: | H23: =SQRT(( (IF($K$7=TRUE,H7^2,0))+(IF($K$8=TRUE,H8^2,0))+(IF($K$9=TRUE,H9^2,0))+(IF($K$10=TRUE,H10^2,0))+(IF($K$11=TRUE,H11^2,0))+(IF($K$12=TRUE,H12^2,0))+(IF($K$13=TRUE,H13^2,0))+(IF($K$14=TRUE,H14^2,0))+(IF($K$15=TRUE,H15^2,0))+(IF($K$16=TRUE,H16^2,0))+(IF($K$17=TRUE,H17^2,0))+(IF($K$18=TRUE,H18^2,0))+(IF($K$19=TRUE,H19^2,0))+(IF($K$20=TRUE,H20^2,0))+(IF($K$21=TRUE,H21^2,0)))/ (IF($K$7=TRUE,1,0)+IF($K$8=TRUE,1,0)+IF($K$9=TRUE,1,0)+IF($K$10=TRUE,1,0)+IF($K$11=TRUE,1,0)+IF($K$12=TRUE,1,0)+IF($K$13=TRUE,1,0)+IF($K$14=TRUE,1,0)+IF($K$15=TRUE,1,0)+IF($K$16=TRUE,1,0)+IF($K$17=TRUE,1,0)+IF($K$18=TRUE,1,0)+IF($K$19=TRUE,1,0)+IF($K$20=TRUE,1,0)+IF($K$21=TRUE,1,0))) -> 94499.64091 | I23: =SQRT(( (IF($K$7=TRUE,I7^2,0))+(IF($K$8=TRUE,I8^2,0))+(IF($K$9=TRUE,I9^2,0))+(IF($K$10=TRUE,I10^2,0))+(IF($K$11=TRUE,I11^2,0))+(IF($K$12=TRUE,I12^2,0))+(IF($K$13=TRUE,I13^2,0))+(IF($K$14=TRUE,I14^2,0))+(IF($K$15=TRUE,I15^2,0))+(IF($K$16=TRUE,I16^2,0))+(IF($K$17=TRUE,I17^2,0))+(IF($K$18=TRUE,I18^2,0))+(IF($K$19=TRUE,I19^2,0))+(IF($K$20=TRUE,I20^2,0))+(IF($K$21=TRUE,I21^2,0)))/ (IF($K$7=TRUE,1,0)+IF($K$8=TRUE,1,0)+IF($K$9=TRUE,1,0)+IF($K$10=TRUE,1,0)+IF($K$11=TRUE,1,0)+IF($K$12=TRUE,1,0)+IF($K$13=TRUE,1,0)+IF($K$14=TRUE,1,0)+IF($K$15=TRUE,1,0)+IF($K$16=TRUE,1,0)+IF($K$17=TRUE,1,0)+IF($K$18=TRUE,1,0)+IF($K$19=TRUE,1,0)+IF($K$20=TRUE,1,0)+IF($K$21=TRUE,1,0))) -> 0.2766080636 | J23: =SQRT(( (IF($K$7=TRUE,J7^2,0))+(IF($K$8=TRUE,J8^2,0))+(IF($K$9=TRUE,J9^2,0))+(IF($K$10=TRUE,J10^2,0))+(IF($K$11=TRUE,J11^2,0))+(IF($K$12=TRUE,J12^2,0))+(IF($K$13=TRUE,J13^2,0))+(IF($K$14=TRUE,J14^2,0))+(IF($K$15=TRUE,J15^2,0))+(IF($K$16=TRUE,J16^2,0))+(IF($K$17=TRUE,J17^2,0))+(IF($K$18=TRUE,J18^2,0))+(IF($K$19=TRUE,J19^2,0))+(IF($K$20=TRUE,J20^2,0))+(IF($K$21=TRUE,J21^2,0)))/ (IF($K$7=TRUE,1,0)+IF($K$8=TRUE,1,0)+IF($K$9=TRUE,1,0)+IF($K$10=TRUE,1,0)+IF($K$11=TRUE,1,0)+IF($K$12=TRUE,1,0)+IF($K$13=TRUE,1,0)+IF($K$14=TRUE,1,0)+IF($K$15=TRUE,1,0)+IF($K$16=TRUE,1,0)+IF($K$17=TRUE,1,0)+IF($K$18=TRUE,1,0)+IF($K$19=TRUE,1,0)+IF($K$20=TRUE,1,0)+IF($K$21=TRUE,1,0))) -> 0.1394320091
D24: 1
C25: UNITLESS GRID TO GROUND MULTIPLIER | D25: =IF(REPORT!C13="n/a","0.00000000",REPORT!C13) -> 1.00009018 | H25: =IF(H23<=0.029,"PASS","FAIL") -> FAIL | I25: =IF(I23<=0.029,"PASS","FAIL") -> FAIL | J25: =IF(J23<=0.039,"PASS","FAIL") -> FAIL
A27: AVERAGED GPS-DERIVED POSITION | I27: Notes:
B28: MONUMENT COORDINATES | D28: NORTHING | E28: EASTING | F28: ORTHO HEIGHT
B29: US Survey Feet (GRID) | D29: =$E$22 -> 351417.8517 | E29: =$F$22 -> 2458016.967 | F29: =$G$22 -> 995.3993061
A31: LEVELED ELEVATION
A32: US SURVEY FEET | C32: =IFERROR(VLOOKUP(B5,'LEVEL RUN'!A8:I59,9,FALSE),"N/A") -> N/A | D32: (Type the leveled elevation or N/A if no leveled elevation is available)
A33: MONUMENT HELD | D33: (Type the monument name from which leveling originated)
A34: LEVELED ELEVATION - GPS DERIVED ELEVATION = | E34: =IF(C32="N/A","N/A",C32-(F29*D24)) -> N/A
A36: FINAL MONUMENT COORDINATES
B37: MONUMENT COORDINATES | D37: NORTHING | E37: EASTING | F37: ELEVATION | G37: FEATURE CODE
B38: US SURVEY FEET (GRID) | D38: =$E$22*$D$24 -> 351417.8517 | E38: =$F$22*$D$24 -> 2458016.967 | F38: =IF($C$32="N/A",($G$22*$D$24),$C$32) -> 995.3993061 | G38: =VLOOKUP($B$5,GPS_IMPORT!$A$2:$G$2000,7,FALSE) -> AERTAR
B39: US SURVEY FEET (GROUND) | D39: =$D$38*$D$25 -> 351449.5426 | E39: =$E$38*$D$25 -> 2458238.631 | F39: =IF($C$32="N/A",($G$22*$D$24),$C$32) -> 995.3993061 | G39: =$G$38 -> AERTAR
A41: ∆ North, ∆ East, and ∆ Ht. are the difference between the average northing, easting, and height for each observation. | I41: Mask Angle: | J41: 10°

Sheet SV2
A1: VRS GNSS Project Control Monument Coordinate Analysis
A3: Project: | B3: =REPORT!B2 -> FRA-71-29.4 | C3: GPS Antenna: | D3: LEICA GS14 | J3: Report Date: | K3: =REPORT!C49 -> 2019-04-25
A4: PID: | B4: =REPORT!E2 -> 106471 | C4: VRS Network: | D4: ODOT VRS | J4: Prepared By: | K4: =REPORT!C48 -> Kolton Wilson
A5: Point ID: | B5: SV2 | C5: No. of Sessions: | D5: =COUNTIF(GPS_IMPORT!A2:A1000,$B$5) -> 13 | J5: Checked By: | K5: =REPORT!C52 -> David Ogden
A6: SESSION # | B6: Point | C6: Observation Date | D6: Start Time | E6: Northing(sft) | F6: Easting(sft) | G6: Height(sft) | H6: ∆ Northing(sft) | I6: ∆ Easting(sft) | J6: ∆ Height(sft) | K6: Include in Solution?
A7: 1 | B7: =IF(ROWS(GPS_IMPORT!$1:1)<=COUNTIF(GPS_IMPORT!$A$2:$A$10000,$B$5),INDEX(GPS_IMPORT!$2:$10000,MATCH($B$5,(GPS_IMPORT!$A$2:$A$10000),0)+ROWS($1:1)-1,COLUMN()-1),0) -> SV2 | C7: =IF(ROWS(GPS_IMPORT!$1:1)<=COUNTIF(GPS_IMPORT!$A$2:$A$10000,$B$5),INDEX(GPS_IMPORT!$2:$10000,MATCH($B$5,(GPS_IMPORT!$A$2:$A$10000),0)+ROWS($1:1)-1,COLUMN()-1),0) -> 3.10.2019 | D7: =IF(ROWS(GPS_IMPORT!$1:1)<=COUNTIF(GPS_IMPORT!$A$2:$A$10000,$B$5),INDEX(GPS_IMPORT!$2:$10000,MATCH($B$5,(GPS_IMPORT!$A$2:$A$10000),0)+ROWS($1:1)-1,COLUMN()-1),0) -> 00:03:36.500 | E7: =IF(ROWS(GPS_IMPORT!$1:1)<=COUNTIF(GPS_IMPORT!$A$2:$A$10000,$B$5),INDEX(GPS_IMPORT!$2:$10000,MATCH($B$5,(GPS_IMPORT!$A$2:$A$10000),0)+ROWS($1:1)-1,COLUMN()-1),0) -> 380188.4094 | F7: =IF(ROWS(GPS_IMPORT!$1:1)<=COUNTIF(GPS_IMPORT!$A$2:$A$10000,$B$5),INDEX(GPS_IMPORT!$2:$10000,MATCH($B$5,(GPS_IMPORT!$A$2:$A$10000),0)+ROWS($1:1)-1,COLUMN()-1),0) -> 2460342.983 | G7: =IF(ROWS(GPS_IMPORT!$1:1)<=COUNTIF(GPS_IMPORT!$A$2:$A$10000,$B$5),INDEX(GPS_IMPORT!$2:$10000,MATCH($B$5,(GPS_IMPORT!$A$2:$A$10000),0)+ROWS($1:1)-1,COLUMN()-1),0) -> 975.0115022 | H7: =IF(E7>0,E$22-E7,0) -> -0.01078333333 | I7: 0.004750000313 | J7: -0.004297016667 | K7: TRUE
A8: 2 | B8: =IF(ROWS(GPS_IMPORT!$1:2)<=COUNTIF(GPS_IMPORT!$A$2:$A$10000,$B$5),INDEX(GPS_IMPORT!$2:$10000,MATCH($B$5,(GPS_IMPORT!$A$2:$A$10000),0)+ROWS($1:2)-1,COLUMN()-1),0) -> SV2 | C8: =IF(ROWS(GPS_IMPORT!$1:2)<=COUNTIF(GPS_IMPORT!$A$2:$A$10000,$B$5),INDEX(GPS_IMPORT!$2:$10000,MATCH($B$5,(GPS_IMPORT!$A$2:$A$10000),0)+ROWS($1:2)-1,COLUMN()-1),0) -> 3.10.2019 | D8: =IF(ROWS(GPS_IMPORT!$1:2)<=COUNTIF(GPS_IMPORT!$A$2:$A$10000,$B$5),INDEX(GPS_IMPORT!$2:$10000,MATCH($B$5,(GPS_IMPORT!$A$2:$A$10000),0)+ROWS($1:2)-1,COLUMN()-1),0) -> 00:03:49.100 | E8: =IF(ROWS(GPS_IMPORT!$1:2)<=COUNTIF(GPS_IMPORT!$A$2:$A$10000,$B$5),INDEX(GPS_IMPORT!$2:$10000,MATCH($B$5,(GPS_IMPORT!$A$2:$A$10000),0)+ROWS($1:2)-1,COLUMN()-1),0) -> 380188.4117 | F8: =IF(ROWS(GPS_IMPORT!$1:2)<=COUNTIF(GPS_IMPORT!$A$2:$A$10000,$B$5),INDEX(GPS_IMPORT!$2:$10000,MATCH($B$5,(GPS_IMPORT!$A$2:$A$10000),0)+ROWS($1:2)-1,COLUMN()-1),0) -> 2460342.987 | G8: =IF(ROWS(GPS_IMPORT!$1:2)<=COUNTIF(GPS_IMPORT!$A$2:$A$10000,$B$5),INDEX(GPS_IMPORT!$2:$10000,MATCH($B$5,(GPS_IMPORT!$A$2:$A$10000),0)+ROWS($1:2)-1,COLUMN()-1),0) -> 975.009115 | H8: -0.01308333332 | I8: 0.0007500001229 | J8: -0.001909816667 | K8: TRUE
A9: 3 | B9: =IF(ROWS(GPS_IMPORT!$1:3)<=COUNTIF(GPS_IMPORT!$A$2:$A$10000,$B$5),INDEX(GPS_IMPORT!$2:$10000,MATCH($B$5,(GPS_IMPORT!$A$2:$A$10000),0)+ROWS($1:3)-1,COLUMN()-1),0) -> SV2 | C9: =IF(ROWS(GPS_IMPORT!$1:3)<=COUNTIF(GPS_IMPORT!$A$2:$A$10000,$B$5),INDEX(GPS_IMPORT!$2:$10000,MATCH($B$5,(GPS_IMPORT!$A$2:$A$10000),0)+ROWS($1:3)-1,COLUMN()-1),0) -> 3.10.2019 | D9: =IF(ROWS(GPS_IMPORT!$1:3)<=COUNTIF(GPS_IMPORT!$A$2:$A$10000,$B$5),INDEX(GPS_IMPORT!$2:$10000,MATCH($B$5,(GPS_IMPORT!$A$2:$A$10000),0)+ROWS($1:3)-1,COLUMN()-1),0) -> 00:03:59 | E9: =IF(ROWS(GPS_IMPORT!$1:3)<=COUNTIF(GPS_IMPORT!$A$2:$A$10000,$B$5),INDEX(GPS_IMPORT!$2:$10000,MATCH($B$5,(GPS_IMPORT!$A$2:$A$10000),0)+ROWS($1:3)-1,COLUMN()-1),0) -> 380188.4062 | F9: =IF(ROWS(GPS_IMPORT!$1:3)<=COUNTIF(GPS_IMPORT!$A$2:$A$10000,$B$5),INDEX(GPS_IMPORT!$2:$10000,MATCH($B$5,(GPS_IMPORT!$A$2:$A$10000),0)+ROWS($1:3)-1,COLUMN()-1),0) -> 2460342.988 | G9: =IF(ROWS(GPS_IMPORT!$1:3)<=COUNTIF(GPS_IMPORT!$A$2:$A$10000,$B$5),INDEX(GPS_IMPORT!$2:$10000,MATCH($B$5,(GPS_IMPORT!$A$2:$A$10000),0)+ROWS($1:3)-1,COLUMN()-1),0) -> 975.0067348 | H9: -0.007583333354 | I9: -0.0002499995753 | J9: 0.0004703833332 | K9: TRUE
A10: 4 | B10: =IF(ROWS(GPS_IMPORT!$1:4)<=COUNTIF(GPS_IMPORT!$A$2:$A$10000,$B$5),INDEX(GPS_IMPORT!$2:$10000,MATCH($B$5,(GPS_IMPORT!$A$2:$A$10000),0)+ROWS($1:4)-1,COLUMN()-1),0) -> SV2 | C10: =IF(ROWS(GPS_IMPORT!$1:4)<=COUNTIF(GPS_IMPORT!$A$2:$A$10000,$B$5),INDEX(GPS_IMPORT!$2:$10000,MATCH($B$5,(GPS_IMPORT!$A$2:$A$10000),0)+ROWS($1:4)-1,COLUMN()-1),0) -> 3.10.2019 | D10: =IF(ROWS(GPS_IMPORT!$1:4)<=COUNTIF(GPS_IMPORT!$A$2:$A$10000,$B$5),INDEX(GPS_IMPORT!$2:$10000,MATCH($B$5,(GPS_IMPORT!$A$2:$A$10000),0)+ROWS($1:4)-1,COLUMN()-1),0) -> 00:04:09.100 | E10: =IF(ROWS(GPS_IMPORT!$1:4)<=COUNTIF(GPS_IMPORT!$A$2:$A$10000,$B$5),INDEX(GPS_IMPORT!$2:$10000,MATCH($B$5,(GPS_IMPORT!$A$2:$A$10000),0)+ROWS($1:4)-1,COLUMN()-1),0) -> 380188.3998 | F10: =IF(ROWS(GPS_IMPORT!$1:4)<=COUNTIF(GPS_IMPORT!$A$2:$A$10000,$B$5),INDEX(GPS_IMPORT!$2:$10000,MATCH($B$5,(GPS_IMPORT!$A$2:$A$10000),0)+ROWS($1:4)-1,COLUMN()-1),0) -> 2460342.99 | G10: =IF(ROWS(GPS_IMPORT!$1:4)<=COUNTIF(GPS_IMPORT!$A$2:$A$10000,$B$5),INDEX(GPS_IMPORT!$2:$10000,MATCH($B$5,(GPS_IMPORT!$A$2:$A$10000),0)+ROWS($1:4)-1,COLUMN()-1),0) -> 975.0066036 | H10: -0.001183333341 | I10: -0.002249999903 | J10: 0.0006015833333 | K10: TRUE
A11: 5 | B11: =IF(ROWS(GPS_IMPORT!$1:5)<=COUNTIF(GPS_IMPORT!$A$2:$A$10000,$B$5),INDEX(GPS_IMPORT!$2:$10000,MATCH($B$5,(GPS_IMPORT!$A$2:$A$10000),0)+ROWS($1:5)-1,COLUMN()-1),0) -> SV2 | C11: =IF(ROWS(GPS_IMPORT!$1:5)<=COUNTIF(GPS_IMPORT!$A$2:$A$10000,$B$5),INDEX(GPS_IMPORT!$2:$10000,MATCH($B$5,(GPS_IMPORT!$A$2:$A$10000),0)+ROWS($1:5)-1,COLUMN()-1),0) -> 3.10.2019 | D11: =IF(ROWS(GPS_IMPORT!$1:5)<=COUNTIF(GPS_IMPORT!$A$2:$A$10000,$B$5),INDEX(GPS_IMPORT!$2:$10000,MATCH($B$5,(GPS_IMPORT!$A$2:$A$10000),0)+ROWS($1:5)-1,COLUMN()-1),0) -> 00:04:22 | E11: =IF(ROWS(GPS_IMPORT!$1:5)<=COUNTIF(GPS_IMPORT!$A$2:$A$10000,$B$5),INDEX(GPS_IMPORT!$2:$10000,MATCH($B$5,(GPS_IMPORT!$A$2:$A$10000),0)+ROWS($1:5)-1,COLUMN()-1),0) -> 380188.3954 | F11: =IF(ROWS(GPS_IMPORT!$1:5)<=COUNTIF(GPS_IMPORT!$A$2:$A$10000,$B$5),INDEX(GPS_IMPORT!$2:$10000,MATCH($B$5,(GPS_IMPORT!$A$2:$A$10000),0)+ROWS($1:5)-1,COLUMN()-1),0) -> 2460342.989 | G11: =IF(ROWS(GPS_IMPORT!$1:5)<=COUNTIF(GPS_IMPORT!$A$2:$A$10000,$B$5),INDEX(GPS_IMPORT!$2:$10000,MATCH($B$5,(GPS_IMPORT!$A$2:$A$10000),0)+ROWS($1:5)-1,COLUMN()-1),0) -> 975.0057821 | H11: 0.003216666693 | I11: -0.001249999739 | J11: 0.001423083333 | K11: TRUE
A12: 6 | B12: =IF(ROWS(GPS_IMPORT!$1:6)<=COUNTIF(GPS_IMPORT!$A$2:$A$10000,$B$5),INDEX(GPS_IMPORT!$2:$10000,MATCH($B$5,(GPS_IMPORT!$A$2:$A$10000),0)+ROWS($1:6)-1,COLUMN()-1),0) -> SV2 | C12: =IF(ROWS(GPS_IMPORT!$1:6)<=COUNTIF(GPS_IMPORT!$A$2:$A$10000,$B$5),INDEX(GPS_IMPORT!$2:$10000,MATCH($B$5,(GPS_IMPORT!$A$2:$A$10000),0)+ROWS($1:6)-1,COLUMN()-1),0) -> 3.10.2019 | D12: =IF(ROWS(GPS_IMPORT!$1:6)<=COUNTIF(GPS_IMPORT!$A$2:$A$10000,$B$5),INDEX(GPS_IMPORT!$2:$10000,MATCH($B$5,(GPS_IMPORT!$A$2:$A$10000),0)+ROWS($1:6)-1,COLUMN()-1),0) -> 00:04:32 | E12: =IF(ROWS(GPS_IMPORT!$1:6)<=COUNTIF(GPS_IMPORT!$A$2:$A$10000,$B$5),INDEX(GPS_IMPORT!$2:$10000,MATCH($B$5,(GPS_IMPORT!$A$2:$A$10000),0)+ROWS($1:6)-1,COLUMN()-1),0) -> 380188.3945 | F12: =IF(ROWS(GPS_IMPORT!$1:6)<=COUNTIF(GPS_IMPORT!$A$2:$A$10000,$B$5),INDEX(GPS_IMPORT!$2:$10000,MATCH($B$5,(GPS_IMPORT!$A$2:$A$10000),0)+ROWS($1:6)-1,COLUMN()-1),0) -> 2460342.987 | G12: =IF(ROWS(GPS_IMPORT!$1:6)<=COUNTIF(GPS_IMPORT!$A$2:$A$10000,$B$5),INDEX(GPS_IMPORT!$2:$10000,MATCH($B$5,(GPS_IMPORT!$A$2:$A$10000),0)+ROWS($1:6)-1,COLUMN()-1),0) -> 975.0060164 | H12: 0.004116666678 | I12: 0.0007500001229 | J12: 0.001188783333 | K12: TRUE
A13: 7 | B13: =IF(ROWS(GPS_IMPORT!$1:7)<=COUNTIF(GPS_IMPORT!$A$2:$A$10000,$B$5),INDEX(GPS_IMPORT!$2:$10000,MATCH($B$5,(GPS_IMPORT!$A$2:$A$10000),0)+ROWS($1:7)-1,COLUMN()-1),0) -> SV2 | C13: =IF(ROWS(GPS_IMPORT!$1:7)<=COUNTIF(GPS_IMPORT!$A$2:$A$10000,$B$5),INDEX(GPS_IMPORT!$2:$10000,MATCH($B$5,(GPS_IMPORT!$A$2:$A$10000),0)+ROWS($1:7)-1,COLUMN()-1),0) -> 3.10.2019 | D13: =IF(ROWS(GPS_IMPORT!$1:7)<=COUNTIF(GPS_IMPORT!$A$2:$A$10000,$B$5),INDEX(GPS_IMPORT!$2:$10000,MATCH($B$5,(GPS_IMPORT!$A$2:$A$10000),0)+ROWS($1:7)-1,COLUMN()-1),0) -> 00:04:42 | E13: =IF(ROWS(GPS_IMPORT!$1:7)<=COUNTIF(GPS_IMPORT!$A$2:$A$10000,$B$5),INDEX(GPS_IMPORT!$2:$10000,MATCH($B$5,(GPS_IMPORT!$A$2:$A$10000),0)+ROWS($1:7)-1,COLUMN()-1),0) -> 380188.3956 | F13: =IF(ROWS(GPS_IMPORT!$1:7)<=COUNTIF(GPS_IMPORT!$A$2:$A$10000,$B$5),INDEX(GPS_IMPORT!$2:$10000,MATCH($B$5,(GPS_IMPORT!$A$2:$A$10000),0)+ROWS($1:7)-1,COLUMN()-1),0) -> 2460342.989 | G13: =IF(ROWS(GPS_IMPORT!$1:7)<=COUNTIF(GPS_IMPORT!$A$2:$A$10000,$B$5),INDEX(GPS_IMPORT!$2:$10000,MATCH($B$5,(GPS_IMPORT!$A$2:$A$10000),0)+ROWS($1:7)-1,COLUMN()-1),0) -> 975.0021983 | H13: 0.003016666684 | I13: -0.001249999739 | J13: 0.005006883333 | K13: TRUE
A14: 8 | B14: =IF(ROWS(GPS_IMPORT!$1:8)<=COUNTIF(GPS_IMPORT!$A$2:$A$10000,$B$5),INDEX(GPS_IMPORT!$2:$10000,MATCH($B$5,(GPS_IMPORT!$A$2:$A$10000),0)+ROWS($1:8)-1,COLUMN()-1),0) -> SV2 | C14: =IF(ROWS(GPS_IMPORT!$1:8)<=COUNTIF(GPS_IMPORT!$A$2:$A$10000,$B$5),INDEX(GPS_IMPORT!$2:$10000,MATCH($B$5,(GPS_IMPORT!$A$2:$A$10000),0)+ROWS($1:8)-1,COLUMN()-1),0) -> 3.10.2019 | D14: =IF(ROWS(GPS_IMPORT!$1:8)<=COUNTIF(GPS_IMPORT!$A$2:$A$10000,$B$5),INDEX(GPS_IMPORT!$2:$10000,MATCH($B$5,(GPS_IMPORT!$A$2:$A$10000),0)+ROWS($1:8)-1,COLUMN()-1),0) -> 00:04:52.100 | E14: =IF(ROWS(GPS_IMPORT!$1:8)<=COUNTIF(GPS_IMPORT!$A$2:$A$10000,$B$5),INDEX(GPS_IMPORT!$2:$10000,MATCH($B$5,(GPS_IMPORT!$A$2:$A$10000),0)+ROWS($1:8)-1,COLUMN()-1),0) -> 380188.3951 | F14: =IF(ROWS(GPS_IMPORT!$1:8)<=COUNTIF(GPS_IMPORT!$A$2:$A$10000,$B$5),INDEX(GPS_IMPORT!$2:$10000,MATCH($B$5,(GPS_IMPORT!$A$2:$A$10000),0)+ROWS($1:8)-1,COLUMN()-1),0) -> 2460342.992 | G14: =IF(ROWS(GPS_IMPORT!$1:8)<=COUNTIF(GPS_IMPORT!$A$2:$A$10000,$B$5),INDEX(GPS_IMPORT!$2:$10000,MATCH($B$5,(GPS_IMPORT!$A$2:$A$10000),0)+ROWS($1:8)-1,COLUMN()-1),0) -> 975.0073072 | H14: 0.003516666649 | I14: -0.004249999765 | J14: -0.0001020166668 | K14: TRUE
A15: 9 | B15: =IF(ROWS(GPS_IMPORT!$1:9)<=COUNTIF(GPS_IMPORT!$A$2:$A$10000,$B$5),INDEX(GPS_IMPORT!$2:$10000,MATCH($B$5,(GPS_IMPORT!$A$2:$A$10000),0)+ROWS($1:9)-1,COLUMN()-1),0) -> SV2 | C15: =IF(ROWS(GPS_IMPORT!$1:9)<=COUNTIF(GPS_IMPORT!$A$2:$A$10000,$B$5),INDEX(GPS_IMPORT!$2:$10000,MATCH($B$5,(GPS_IMPORT!$A$2:$A$10000),0)+ROWS($1:9)-1,COLUMN()-1),0) -> 3.10.2019 | D15: =IF(ROWS(GPS_IMPORT!$1:9)<=COUNTIF(GPS_IMPORT!$A$2:$A$10000,$B$5),INDEX(GPS_IMPORT!$2:$10000,MATCH($B$5,(GPS_IMPORT!$A$2:$A$10000),0)+ROWS($1:9)-1,COLUMN()-1),0) -> 00:05:06.200 | E15: =IF(ROWS(GPS_IMPORT!$1:9)<=COUNTIF(GPS_IMPORT!$A$2:$A$10000,$B$5),INDEX(GPS_IMPORT!$2:$10000,MATCH($B$5,(GPS_IMPORT!$A$2:$A$10000),0)+ROWS($1:9)-1,COLUMN()-1),0) -> 380188.3961 | F15: =IF(ROWS(GPS_IMPORT!$1:9)<=COUNTIF(GPS_IMPORT!$A$2:$A$10000,$B$5),INDEX(GPS_IMPORT!$2:$10000,MATCH($B$5,(GPS_IMPORT!$A$2:$A$10000),0)+ROWS($1:9)-1,COLUMN()-1),0) -> 2460342.991 | G15: =IF(ROWS(GPS_IMPORT!$1:9)<=COUNTIF(GPS_IMPORT!$A$2:$A$10000,$B$5),INDEX(GPS_IMPORT!$2:$10000,MATCH($B$5,(GPS_IMPORT!$A$2:$A$10000),0)+ROWS($1:9)-1,COLUMN()-1),0) -> 975.0010384 | H15: 0.00251666666 | I15: -0.003249999601 | J15: 0.006166783333 | K15: TRUE
A16: 10 | B16: =IF(ROWS(GPS_IMPORT!$1:10)<=COUNTIF(GPS_IMPORT!$A$2:$A$10000,$B$5),INDEX(GPS_IMPORT!$2:$10000,MATCH($B$5,(GPS_IMPORT!$A$2:$A$10000),0)+ROWS($1:10)-1,COLUMN()-1),0) -> SV2 | C16: =IF(ROWS(GPS_IMPORT!$1:10)<=COUNTIF(GPS_IMPORT!$A$2:$A$10000,$B$5),INDEX(GPS_IMPORT!$2:$10000,MATCH($B$5,(GPS_IMPORT!$A$2:$A$10000),0)+ROWS($1:10)-1,COLUMN()-1),0) -> 3.10.2019 | D16: =IF(ROWS(GPS_IMPORT!$1:10)<=COUNTIF(GPS_IMPORT!$A$2:$A$10000,$B$5),INDEX(GPS_IMPORT!$2:$10000,MATCH($B$5,(GPS_IMPORT!$A$2:$A$10000),0)+ROWS($1:10)-1,COLUMN()-1),0) -> 00:05:16.300 | E16: =IF(ROWS(GPS_IMPORT!$1:10)<=COUNTIF(GPS_IMPORT!$A$2:$A$10000,$B$5),INDEX(GPS_IMPORT!$2:$10000,MATCH($B$5,(GPS_IMPORT!$A$2:$A$10000),0)+ROWS($1:10)-1,COLUMN()-1),0) -> 380188.3947 | F16: =IF(ROWS(GPS_IMPORT!$1:10)<=COUNTIF(GPS_IMPORT!$A$2:$A$10000,$B$5),INDEX(GPS_IMPORT!$2:$10000,MATCH($B$5,(GPS_IMPORT!$A$2:$A$10000),0)+ROWS($1:10)-1,COLUMN()-1),0) -> 2460342.986 | G16: =IF(ROWS(GPS_IMPORT!$1:10)<=COUNTIF(GPS_IMPORT!$A$2:$A$10000,$B$5),INDEX(GPS_IMPORT!$2:$10000,MATCH($B$5,(GPS_IMPORT!$A$2:$A$10000),0)+ROWS($1:10)-1,COLUMN()-1),0) -> 975.005303 | H16: 0.003916666668 | I16: 0.001750000287 | J16: 0.001902183333 | K16: TRUE
A17: 11 | B17: =IF(ROWS(GPS_IMPORT!$1:11)<=COUNTIF(GPS_IMPORT!$A$2:$A$10000,$B$5),INDEX(GPS_IMPORT!$2:$10000,MATCH($B$5,(GPS_IMPORT!$A$2:$A$10000),0)+ROWS($1:11)-1,COLUMN()-1),0) -> SV2 | C17: =IF(ROWS(GPS_IMPORT!$1:11)<=COUNTIF(GPS_IMPORT!$A$2:$A$10000,$B$5),INDEX(GPS_IMPORT!$2:$10000,MATCH($B$5,(GPS_IMPORT!$A$2:$A$10000),0)+ROWS($1:11)-1,COLUMN()-1),0) -> 3.10.2019 | D17: =IF(ROWS(GPS_IMPORT!$1:11)<=COUNTIF(GPS_IMPORT!$A$2:$A$10000,$B$5),INDEX(GPS_IMPORT!$2:$10000,MATCH($B$5,(GPS_IMPORT!$A$2:$A$10000),0)+ROWS($1:11)-1,COLUMN()-1),0) -> 00:05:26.400 | E17: =IF(ROWS(GPS_IMPORT!$1:11)<=COUNTIF(GPS_IMPORT!$A$2:$A$10000,$B$5),INDEX(GPS_IMPORT!$2:$10000,MATCH($B$5,(GPS_IMPORT!$A$2:$A$10000),0)+ROWS($1:11)-1,COLUMN()-1),0) -> 380188.3923 | F17: =IF(ROWS(GPS_IMPORT!$1:11)<=COUNTIF(GPS_IMPORT!$A$2:$A$10000,$B$5),INDEX(GPS_IMPORT!$2:$10000,MATCH($B$5,(GPS_IMPORT!$A$2:$A$10000),0)+ROWS($1:11)-1,COLUMN()-1),0) -> 2460342.987 | G17: =IF(ROWS(GPS_IMPORT!$1:11)<=COUNTIF(GPS_IMPORT!$A$2:$A$10000,$B$5),INDEX(GPS_IMPORT!$2:$10000,MATCH($B$5,(GPS_IMPORT!$A$2:$A$10000),0)+ROWS($1:11)-1,COLUMN()-1),0) -> 975.0064561 | H17: 0.006316666666 | I17: 0.0007500001229 | J17: 0.0007490833332 | K17: TRUE
A18: 12 | B18: =IF(ROWS(GPS_IMPORT!$1:12)<=COUNTIF(GPS_IMPORT!$A$2:$A$10000,$B$5),INDEX(GPS_IMPORT!$2:$10000,MATCH($B$5,(GPS_IMPORT!$A$2:$A$10000),0)+ROWS($1:12)-1,COLUMN()-1),0) -> SV2 | C18: =IF(ROWS(GPS_IMPORT!$1:12)<=COUNTIF(GPS_IMPORT!$A$2:$A$10000,$B$5),INDEX(GPS_IMPORT!$2:$10000,MATCH($B$5,(GPS_IMPORT!$A$2:$A$10000),0)+ROWS($1:12)-1,COLUMN()-1),0) -> 3.10.2019 | D18: =IF(ROWS(GPS_IMPORT!$1:12)<=COUNTIF(GPS_IMPORT!$A$2:$A$10000,$B$5),INDEX(GPS_IMPORT!$2:$10000,MATCH($B$5,(GPS_IMPORT!$A$2:$A$10000),0)+ROWS($1:12)-1,COLUMN()-1),0) -> 00:05:37.100 | E18: =IF(ROWS(GPS_IMPORT!$1:12)<=COUNTIF(GPS_IMPORT!$A$2:$A$10000,$B$5),INDEX(GPS_IMPORT!$2:$10000,MATCH($B$5,(GPS_IMPORT!$A$2:$A$10000),0)+ROWS($1:12)-1,COLUMN()-1),0) -> 380188.3926 | F18: =IF(ROWS(GPS_IMPORT!$1:12)<=COUNTIF(GPS_IMPORT!$A$2:$A$10000,$B$5),INDEX(GPS_IMPORT!$2:$10000,MATCH($B$5,(GPS_IMPORT!$A$2:$A$10000),0)+ROWS($1:12)-1,COLUMN()-1),0) -> 2460342.984 | G18: =IF(ROWS(GPS_IMPORT!$1:12)<=COUNTIF(GPS_IMPORT!$A$2:$A$10000,$B$5),INDEX(GPS_IMPORT!$2:$10000,MATCH($B$5,(GPS_IMPORT!$A$2:$A$10000),0)+ROWS($1:12)-1,COLUMN()-1),0) -> 975.0184051 | H18: 0.006016666652 | I18: 0.003750000149 | J18: -0.01119991667 | K18: TRUE
A19: 13 | B19: =IF(ROWS(GPS_IMPORT!$1:13)<=COUNTIF(GPS_IMPORT!$A$2:$A$10000,$B$5),INDEX(GPS_IMPORT!$2:$10000,MATCH($B$5,(GPS_IMPORT!$A$2:$A$10000),0)+ROWS($1:13)-1,COLUMN()-1),0) -> SV2 | C19: =IF(ROWS(GPS_IMPORT!$1:13)<=COUNTIF(GPS_IMPORT!$A$2:$A$10000,$B$5),INDEX(GPS_IMPORT!$2:$10000,MATCH($B$5,(GPS_IMPORT!$A$2:$A$10000),0)+ROWS($1:13)-1,COLUMN()-1),0) -> 3.10.2019 | D19: =IF(ROWS(GPS_IMPORT!$1:13)<=COUNTIF(GPS_IMPORT!$A$2:$A$10000,$B$5),INDEX(GPS_IMPORT!$2:$10000,MATCH($B$5,(GPS_IMPORT!$A$2:$A$10000),0)+ROWS($1:13)-1,COLUMN()-1),0) -> 00:05:56.400 | E19: =IF(ROWS(GPS_IMPORT!$1:13)<=COUNTIF(GPS_IMPORT!$A$2:$A$10000,$B$5),INDEX(GPS_IMPORT!$2:$10000,MATCH($B$5,(GPS_IMPORT!$A$2:$A$10000),0)+ROWS($1:13)-1,COLUMN()-1),0) -> 380188.3838 | F19: =IF(ROWS(GPS_IMPORT!$1:13)<=COUNTIF(GPS_IMPORT!$A$2:$A$10000,$B$5),INDEX(GPS_IMPORT!$2:$10000,MATCH($B$5,(GPS_IMPORT!$A$2:$A$10000),0)+ROWS($1:13)-1,COLUMN()-1),0) -> 2460342.983 | G19: =IF(ROWS(GPS_IMPORT!$1:13)<=COUNTIF(GPS_IMPORT!$A$2:$A$10000,$B$5),INDEX(GPS_IMPORT!$2:$10000,MATCH($B$5,(GPS_IMPORT!$A$2:$A$10000),0)+ROWS($1:13)-1,COLUMN()-1),0) -> 975.0333965 | H19: =IF(E19>0,E$22-E19,0) -> 0.01481666666 | I19: 0.004750000313 | J19: -0.02619131667 | K19: FALSE
A20: 14 | B20: =IF(ROWS(GPS_IMPORT!$1:14)<=COUNTIF(GPS_IMPORT!$A$2:$A$10000,$B$5),INDEX(GPS_IMPORT!$2:$10000,MATCH($B$5,(GPS_IMPORT!$A$2:$A$10000),0)+ROWS($1:14)-1,COLUMN()-1),0) -> 0 | C20: =IF(ROWS(GPS_IMPORT!$1:14)<=COUNTIF(GPS_IMPORT!$A$2:$A$10000,$B$5),INDEX(GPS_IMPORT!$2:$10000,MATCH($B$5,(GPS_IMPORT!$A$2:$A$10000),0)+ROWS($1:14)-1,COLUMN()-1),0) -> 00:00:00 | D20: =IF(ROWS(GPS_IMPORT!$1:14)<=COUNTIF(GPS_IMPORT!$A$2:$A$10000,$B$5),INDEX(GPS_IMPORT!$2:$10000,MATCH($B$5,(GPS_IMPORT!$A$2:$A$10000),0)+ROWS($1:14)-1,COLUMN()-1),0) -> 00:00:00 | E20: =IF(ROWS(GPS_IMPORT!$1:14)<=COUNTIF(GPS_IMPORT!$A$2:$A$10000,$B$5),INDEX(GPS_IMPORT!$2:$10000,MATCH($B$5,(GPS_IMPORT!$A$2:$A$10000),0)+ROWS($1:14)-1,COLUMN()-1),0) -> 0 | F20: =IF(ROWS(GPS_IMPORT!$1:14)<=COUNTIF(GPS_IMPORT!$A$2:$A$10000,$B$5),INDEX(GPS_IMPORT!$2:$10000,MATCH($B$5,(GPS_IMPORT!$A$2:$A$10000),0)+ROWS($1:14)-1,COLUMN()-1),0) -> 0 | G20: =IF(ROWS(GPS_IMPORT!$1:14)<=COUNTIF(GPS_IMPORT!$A$2:$A$10000,$B$5),INDEX(GPS_IMPORT!$2:$10000,MATCH($B$5,(GPS_IMPORT!$A$2:$A$10000),0)+ROWS($1:14)-1,COLUMN()-1),0) -> 0 | H20: 0 | I20: 0 | J20: 0 | K20: FALSE
A21: 15 | B21: =IF(ROWS(GPS_IMPORT!$1:15)<=COUNTIF(GPS_IMPORT!$A$2:$A$10000,$B$5),INDEX(GPS_IMPORT!$2:$10000,MATCH($B$5,(GPS_IMPORT!$A$2:$A$10000),0)+ROWS($1:15)-1,COLUMN()-1),0) -> 0 | C21: =IF(ROWS(GPS_IMPORT!$1:15)<=COUNTIF(GPS_IMPORT!$A$2:$A$10000,$B$5),INDEX(GPS_IMPORT!$2:$10000,MATCH($B$5,(GPS_IMPORT!$A$2:$A$10000),0)+ROWS($1:15)-1,COLUMN()-1),0) -> 00:00:00 | D21: =IF(ROWS(GPS_IMPORT!$1:15)<=COUNTIF(GPS_IMPORT!$A$2:$A$10000,$B$5),INDEX(GPS_IMPORT!$2:$10000,MATCH($B$5,(GPS_IMPORT!$A$2:$A$10000),0)+ROWS($1:15)-1,COLUMN()-1),0) -> 00:00:00 | E21: =IF(ROWS(GPS_IMPORT!$1:15)<=COUNTIF(GPS_IMPORT!$A$2:$A$10000,$B$5),INDEX(GPS_IMPORT!$2:$10000,MATCH($B$5,(GPS_IMPORT!$A$2:$A$10000),0)+ROWS($1:15)-1,COLUMN()-1),0) -> 0 | F21: =IF(ROWS(GPS_IMPORT!$1:15)<=COUNTIF(GPS_IMPORT!$A$2:$A$10000,$B$5),INDEX(GPS_IMPORT!$2:$10000,MATCH($B$5,(GPS_IMPORT!$A$2:$A$10000),0)+ROWS($1:15)-1,COLUMN()-1),0) -> 0 | G21: =IF(ROWS(GPS_IMPORT!$1:15)<=COUNTIF(GPS_IMPORT!$A$2:$A$10000,$B$5),INDEX(GPS_IMPORT!$2:$10000,MATCH($B$5,(GPS_IMPORT!$A$2:$A$10000),0)+ROWS($1:15)-1,COLUMN()-1),0) -> 0 | H21: 0 | I21: 0 | J21: 0 | K21: FALSE
D22: AVERAGE | E22: =(IF($K$7=TRUE,E7,0)+IF($K$8=TRUE,E8,0)+IF($K$9=TRUE,E9,0)+IF($K$10=TRUE,E10,0)+IF($K$11=TRUE,E11,0)+IF($K$12=TRUE,E12,0)+IF($K$13=TRUE,E13,0)+IF($K$14=TRUE,E14,0)+IF($K$15=TRUE,E15,0)+IF($K$16=TRUE,E16,0)+IF($K$17=TRUE,E17,0)+IF($K$18=TRUE,E18,0)+IF($K$19=TRUE,E19,0)+IF($K$20=TRUE,E20,0)+IF($K$21=TRUE,E21,0))/(IF($K$7=TRUE,1,0)+IF($K$8=TRUE,1,0)+IF($K$9=TRUE,1,0)+IF($K$10=TRUE,1,0)+IF($K$11=TRUE,1,0)+IF($K$12=TRUE,1,0)+IF($K$13=TRUE,1,0)+IF($K$14=TRUE,1,0)+IF($K$15=TRUE,1,0)+IF($K$16=TRUE,1,0)+IF($K$17=TRUE,1,0)+IF($K$18=TRUE,1,0)+IF($K$19=TRUE,1,0)+IF($K$20=TRUE,1,0)+IF($K$21=TRUE,1,0)) -> 380188.3986 | F22: =(IF($K$7=TRUE,F7,0)+IF($K$8=TRUE,F8,0)+IF($K$9=TRUE,F9,0)+IF($K$10=TRUE,F10,0)+IF($K$11=TRUE,F11,0)+IF($K$12=TRUE,F12,0)+IF($K$13=TRUE,F13,0)+IF($K$14=TRUE,F14,0)+IF($K$15=TRUE,F15,0)+IF($K$16=TRUE,F16,0)+IF($K$17=TRUE,F17,0)+IF($K$18=TRUE,F18,0)+IF($K$19=TRUE,F19,0)+IF($K$20=TRUE,F20,0)+IF($K$21=TRUE,F21,0))/(IF($K$7=TRUE,1,0)+IF($K$8=TRUE,1,0)+IF($K$9=TRUE,1,0)+IF($K$10=TRUE,1,0)+IF($K$11=TRUE,1,0)+IF($K$12=TRUE,1,0)+IF($K$13=TRUE,1,0)+IF($K$14=TRUE,1,0)+IF($K$15=TRUE,1,0)+IF($K$16=TRUE,1,0)+IF($K$17=TRUE,1,0)+IF($K$18=TRUE,1,0)+IF($K$19=TRUE,1,0)+IF($K$20=TRUE,1,0)+IF($K$21=TRUE,1,0)) -> 2460342.988 | G22: =(IF($K$7=TRUE,G7,0)+IF($K$8=TRUE,G8,0)+IF($K$9=TRUE,G9,0)+IF($K$10=TRUE,G10,0)+IF($K$11=TRUE,G11,0)+IF($K$12=TRUE,G12,0)+IF($K$13=TRUE,G13,0)+IF($K$14=TRUE,G14,0)+IF($K$15=TRUE,G15,0)+IF($K$16=TRUE,G16,0)+IF($K$17=TRUE,G17,0)+IF($K$18=TRUE,G18,0)+IF($K$19=TRUE,G19,0)+IF($K$20=TRUE,G20,0)+IF($K$21=TRUE,G21,0))/ (IF($K$7=TRUE,1,0)+IF($K$8=TRUE,1,0)+IF($K$9=TRUE,1,0)+IF($K$10=TRUE,1,0)+IF($K$11=TRUE,1,0)+IF($K$12=TRUE,1,0)+IF($K$13=TRUE,1,0)+IF($K$14=TRUE,1,0)+IF($K$15=TRUE,1,0)+IF($K$16=TRUE,1,0)+IF($K$17=TRUE,1,0)+IF($K$18=TRUE,1,0)+IF($K$19=TRUE,1,0)+IF($K$20=TRUE,1,0)+IF($K$21=TRUE,1,0)) -> 975.0072052 | H22: RMSE: | I22: RMSE: | J22: RMSE:
G23: RMSE IN US SURVEY FEET: | H23: =SQRT(( (IF($K$7=TRUE,H7^2,0))+(IF($K$8=TRUE,H8^2,0))+(IF($K$9=TRUE,H9^2,0))+(IF($K$10=TRUE,H10^2,0))+(IF($K$11=TRUE,H11^2,0))+(IF($K$12=TRUE,H12^2,0))+(IF($K$13=TRUE,H13^2,0))+(IF($K$14=TRUE,H14^2,0))+(IF($K$15=TRUE,H15^2,0))+(IF($K$16=TRUE,H16^2,0))+(IF($K$17=TRUE,H17^2,0))+(IF($K$18=TRUE,H18^2,0))+(IF($K$19=TRUE,H19^2,0))+(IF($K$20=TRUE,H20^2,0))+(IF($K$21=TRUE,H21^2,0)))/ (IF($K$7=TRUE,1,0)+IF($K$8=TRUE,1,0)+IF($K$9=TRUE,1,0)+IF($K$10=TRUE,1,0)+IF($K$11=TRUE,1,0)+IF($K$12=TRUE,1,0)+IF($K$13=TRUE,1,0)+IF($K$14=TRUE,1,0)+IF($K$15=TRUE,1,0)+IF($K$16=TRUE,1,0)+IF($K$17=TRUE,1,0)+IF($K$18=TRUE,1,0)+IF($K$19=TRUE,1,0)+IF($K$20=TRUE,1,0)+IF($K$21=TRUE,1,0))) -> 0.006408956407 | I23: =SQRT(( (IF($K$7=TRUE,I7^2,0))+(IF($K$8=TRUE,I8^2,0))+(IF($K$9=TRUE,I9^2,0))+(IF($K$10=TRUE,I10^2,0))+(IF($K$11=TRUE,I11^2,0))+(IF($K$12=TRUE,I12^2,0))+(IF($K$13=TRUE,I13^2,0))+(IF($K$14=TRUE,I14^2,0))+(IF($K$15=TRUE,I15^2,0))+(IF($K$16=TRUE,I16^2,0))+(IF($K$17=TRUE,I17^2,0))+(IF($K$18=TRUE,I18^2,0))+(IF($K$19=TRUE,I19^2,0))+(IF($K$20=TRUE,I20^2,0))+(IF($K$21=TRUE,I21^2,0)))/ (IF($K$7=TRUE,1,0)+IF($K$8=TRUE,1,0)+IF($K$9=TRUE,1,0)+IF($K$10=TRUE,1,0)+IF($K$11=TRUE,1,0)+IF($K$12=TRUE,1,0)+IF($K$13=TRUE,1,0)+IF($K$14=TRUE,1,0)+IF($K$15=TRUE,1,0)+IF($K$16=TRUE,1,0)+IF($K$17=TRUE,1,0)+IF($K$18=TRUE,1,0)+IF($K$19=TRUE,1,0)+IF($K$20=TRUE,1,0)+IF($K$21=TRUE,1,0))) -> 0.002553592226 | J23: =SQRT(( (IF($K$7=TRUE,J7^2,0))+(IF($K$8=TRUE,J8^2,0))+(IF($K$9=TRUE,J9^2,0))+(IF($K$10=TRUE,J10^2,0))+(IF($K$11=TRUE,J11^2,0))+(IF($K$12=TRUE,J12^2,0))+(IF($K$13=TRUE,J13^2,0))+(IF($K$14=TRUE,J14^2,0))+(IF($K$15=TRUE,J15^2,0))+(IF($K$16=TRUE,J16^2,0))+(IF($K$17=TRUE,J17^2,0))+(IF($K$18=TRUE,J18^2,0))+(IF($K$19=TRUE,J19^2,0))+(IF($K$20=TRUE,J20^2,0))+(IF($K$21=TRUE,J21^2,0)))/ (IF($K$7=TRUE,1,0)+IF($K$8=TRUE,1,0)+IF($K$9=TRUE,1,0)+IF($K$10=TRUE,1,0)+IF($K$11=TRUE,1,0)+IF($K$12=TRUE,1,0)+IF($K$13=TRUE,1,0)+IF($K$14=TRUE,1,0)+IF($K$15=TRUE,1,0)+IF($K$16=TRUE,1,0)+IF($K$17=TRUE,1,0)+IF($K$18=TRUE,1,0)+IF($K$19=TRUE,1,0)+IF($K$20=TRUE,1,0)+IF($K$21=TRUE,1,0))) -> 0.004270629855
D24: 1
C25: UNITLESS GRID TO GROUND MULTIPLIER | D25: =IF(REPORT!C13="n/a","0.00000000",REPORT!C13) -> 1.00009018 | H25: =IF(H23<=0.029,"PASS","FAIL") -> PASS | I25: =IF(I23<=0.029,"PASS","FAIL") -> PASS | J25: =IF(J23<=0.039,"PASS","FAIL") -> PASS
A27: AVERAGED GPS-DERIVED POSITION | I27: Notes:
B28: MONUMENT COORDINATES | D28: NORTHING | E28: EASTING | F28: ORTHO HEIGHT
B29: US Survey Feet (GRID) | D29: =$E$22 -> 380188.3986 | E29: =$F$22 -> 2460342.988 | F29: =$G$22 -> 975.0072052
A31: LEVELED ELEVATION
A32: US SURVEY FEET | C32: =IFERROR(VLOOKUP(B5,'LEVEL RUN'!A8:I59,9,FALSE),"N/A") -> N/A | D32: (Type the leveled elevation or N/A if no leveled elevation is available)
A33: MONUMENT HELD | D33: (Type the monument name from which leveling originated)
A34: LEVELED ELEVATION - GPS DERIVED ELEVATION = | E34: =IF(C32="N/A","N/A",C32-(F29*D24)) -> N/A
A36: FINAL MONUMENT COORDINATES
B37: MONUMENT COORDINATES | D37: NORTHING | E37: EASTING | F37: ELEVATION | G37: FEATURE CODE
B38: US SURVEY FEET (GRID) | D38: =$E$22*$D$24 -> 380188.3986 | E38: =$F$22*$D$24 -> 2460342.988 | F38: =IF($C$32="N/A",($G$22*$D$24),$C$32) -> 975.0072052 | G38: =VLOOKUP($B$5,GPS_IMPORT!$A$2:$G$2000,7,FALSE) -> AERTAR
B39: US SURVEY FEET (GROUND) | D39: =$D$38*$D$25 -> 380222.684 | E39: =$E$38*$D$25 -> 2460564.861 | F39: =IF($C$32="N/A",($G$22*$D$24),$C$32) -> 975.0072052 | G39: =G38 -> AERTAR
A41: ∆ North, ∆ East, and ∆ Ht. are the difference between the average northing, easting, and height for each observation. | I41: Mask Angle: | J41: 10°

Sheet SV3
A1: VRS GNSS Project Control Monument Coordinate Analysis
A3: Project: | B3: =REPORT!B2 -> FRA-71-29.4 | C3: GPS Antenna: | D3: LEICA GS14 | J3: Report Date: | K3: =REPORT!C49 -> 2019-04-25
A4: PID: | B4: =REPORT!E2 -> 106471 | C4: VRS Network: | D4: ODOT VRS | J4: Prepared By: | K4: =REPORT!C48 -> Kolton Wilson
A5: Point ID: | B5: SV3 | C5: No. of Sessions: | D5: =COUNTIF(GPS_IMPORT!A2:A1000,$B$5) -> 12 | J5: Checked By: | K5: =REPORT!C52 -> David Ogden
A6: SESSION # | B6: Point | C6: Observation Date | D6: Start Time | E6: Northing(sft) | F6: Easting(sft) | G6: Height(sft) | H6: ∆ Northing(sft) | I6: ∆ Easting(sft) | J6: ∆ Height(sft) | K6: Include in Solution?
A7: 1 | B7: =IF(ROWS(GPS_IMPORT!$1:1)<=COUNTIF(GPS_IMPORT!$A$2:$A$10000,$B$5),INDEX(GPS_IMPORT!$2:$10000,MATCH($B$5,(GPS_IMPORT!$A$2:$A$10000),0)+ROWS($1:1)-1,COLUMN()-1),0) -> SV3 | C7: =IF(ROWS(GPS_IMPORT!$1:1)<=COUNTIF(GPS_IMPORT!$A$2:$A$10000,$B$5),INDEX(GPS_IMPORT!$2:$10000,MATCH($B$5,(GPS_IMPORT!$A$2:$A$10000),0)+ROWS($1:1)-1,COLUMN()-1),0) -> 3.10.2019 | D7: =IF(ROWS(GPS_IMPORT!$1:1)<=COUNTIF(GPS_IMPORT!$A$2:$A$10000,$B$5),INDEX(GPS_IMPORT!$2:$10000,MATCH($B$5,(GPS_IMPORT!$A$2:$A$10000),0)+ROWS($1:1)-1,COLUMN()-1),0) -> 00:34:20.100 | E7: =IF(ROWS(GPS_IMPORT!$1:1)<=COUNTIF(GPS_IMPORT!$A$2:$A$10000,$B$5),INDEX(GPS_IMPORT!$2:$10000,MATCH($B$5,(GPS_IMPORT!$A$2:$A$10000),0)+ROWS($1:1)-1,COLUMN()-1),0) -> 376919.5236 | F7: =IF(ROWS(GPS_IMPORT!$1:1)<=COUNTIF(GPS_IMPORT!$A$2:$A$10000,$B$5),INDEX(GPS_IMPORT!$2:$10000,MATCH($B$5,(GPS_IMPORT!$A$2:$A$10000),0)+ROWS($1:1)-1,COLUMN()-1),0) -> 2458129.79 | G7: =IF(ROWS(GPS_IMPORT!$1:1)<=COUNTIF(GPS_IMPORT!$A$2:$A$10000,$B$5),INDEX(GPS_IMPORT!$2:$10000,MATCH($B$5,(GPS_IMPORT!$A$2:$A$10000),0)+ROWS($1:1)-1,COLUMN()-1),0) -> 1021.849536 | H7: =IF(E7>0,E$22-E7,0) -> 0.002116666641 | I7: 0.003416666761 | J7: 0.010612 | K7: TRUE
A8: 2 | B8: =IF(ROWS(GPS_IMPORT!$1:2)<=COUNTIF(GPS_IMPORT!$A$2:$A$10000,$B$5),INDEX(GPS_IMPORT!$2:$10000,MATCH($B$5,(GPS_IMPORT!$A$2:$A$10000),0)+ROWS($1:2)-1,COLUMN()-1),0) -> SV3 | C8: =IF(ROWS(GPS_IMPORT!$1:2)<=COUNTIF(GPS_IMPORT!$A$2:$A$10000,$B$5),INDEX(GPS_IMPORT!$2:$10000,MATCH($B$5,(GPS_IMPORT!$A$2:$A$10000),0)+ROWS($1:2)-1,COLUMN()-1),0) -> 3.10.2019 | D8: =IF(ROWS(GPS_IMPORT!$1:2)<=COUNTIF(GPS_IMPORT!$A$2:$A$10000,$B$5),INDEX(GPS_IMPORT!$2:$10000,MATCH($B$5,(GPS_IMPORT!$A$2:$A$10000),0)+ROWS($1:2)-1,COLUMN()-1),0) -> 00:34:30.200 | E8: =IF(ROWS(GPS_IMPORT!$1:2)<=COUNTIF(GPS_IMPORT!$A$2:$A$10000,$B$5),INDEX(GPS_IMPORT!$2:$10000,MATCH($B$5,(GPS_IMPORT!$A$2:$A$10000),0)+ROWS($1:2)-1,COLUMN()-1),0) -> 376919.5224 | F8: =IF(ROWS(GPS_IMPORT!$1:2)<=COUNTIF(GPS_IMPORT!$A$2:$A$10000,$B$5),INDEX(GPS_IMPORT!$2:$10000,MATCH($B$5,(GPS_IMPORT!$A$2:$A$10000),0)+ROWS($1:2)-1,COLUMN()-1),0) -> 2458129.792 | G8: =IF(ROWS(GPS_IMPORT!$1:2)<=COUNTIF(GPS_IMPORT!$A$2:$A$10000,$B$5),INDEX(GPS_IMPORT!$2:$10000,MATCH($B$5,(GPS_IMPORT!$A$2:$A$10000),0)+ROWS($1:2)-1,COLUMN()-1),0) -> 1021.86292 | H8: 0.00331666664 | I8: 0.001416666899 | J8: -0.002772 | K8: TRUE
A9: 3 | B9: =IF(ROWS(GPS_IMPORT!$1:3)<=COUNTIF(GPS_IMPORT!$A$2:$A$10000,$B$5),INDEX(GPS_IMPORT!$2:$10000,MATCH($B$5,(GPS_IMPORT!$A$2:$A$10000),0)+ROWS($1:3)-1,COLUMN()-1),0) -> SV3 | C9: =IF(ROWS(GPS_IMPORT!$1:3)<=COUNTIF(GPS_IMPORT!$A$2:$A$10000,$B$5),INDEX(GPS_IMPORT!$2:$10000,MATCH($B$5,(GPS_IMPORT!$A$2:$A$10000),0)+ROWS($1:3)-1,COLUMN()-1),0) -> 3.10.2019 | D9: =IF(ROWS(GPS_IMPORT!$1:3)<=COUNTIF(GPS_IMPORT!$A$2:$A$10000,$B$5),INDEX(GPS_IMPORT!$2:$10000,MATCH($B$5,(GPS_IMPORT!$A$2:$A$10000),0)+ROWS($1:3)-1,COLUMN()-1),0) -> 00:34:41.300 | E9: =IF(ROWS(GPS_IMPORT!$1:3)<=COUNTIF(GPS_IMPORT!$A$2:$A$10000,$B$5),INDEX(GPS_IMPORT!$2:$10000,MATCH($B$5,(GPS_IMPORT!$A$2:$A$10000),0)+ROWS($1:3)-1,COLUMN()-1),0) -> 376919.5176 | F9: =IF(ROWS(GPS_IMPORT!$1:3)<=COUNTIF(GPS_IMPORT!$A$2:$A$10000,$B$5),INDEX(GPS_IMPORT!$2:$10000,MATCH($B$5,(GPS_IMPORT!$A$2:$A$10000),0)+ROWS($1:3)-1,COLUMN()-1),0) -> 2458129.797 | G9: =IF(ROWS(GPS_IMPORT!$1:3)<=COUNTIF(GPS_IMPORT!$A$2:$A$10000,$B$5),INDEX(GPS_IMPORT!$2:$10000,MATCH($B$5,(GPS_IMPORT!$A$2:$A$10000),0)+ROWS($1:3)-1,COLUMN()-1),0) -> 1021.865229 | H9: 0.008116666635 | I9: -0.003583332989 | J9: -0.005081 | K9: TRUE
A10: 4 | B10: =IF(ROWS(GPS_IMPORT!$1:4)<=COUNTIF(GPS_IMPORT!$A$2:$A$10000,$B$5),INDEX(GPS_IMPORT!$2:$10000,MATCH($B$5,(GPS_IMPORT!$A$2:$A$10000),0)+ROWS($1:4)-1,COLUMN()-1),0) -> SV3 | C10: =IF(ROWS(GPS_IMPORT!$1:4)<=COUNTIF(GPS_IMPORT!$A$2:$A$10000,$B$5),INDEX(GPS_IMPORT!$2:$10000,MATCH($B$5,(GPS_IMPORT!$A$2:$A$10000),0)+ROWS($1:4)-1,COLUMN()-1),0) -> 3.10.2019 | D10: =IF(ROWS(GPS_IMPORT!$1:4)<=COUNTIF(GPS_IMPORT!$A$2:$A$10000,$B$5),INDEX(GPS_IMPORT!$2:$10000,MATCH($B$5,(GPS_IMPORT!$A$2:$A$10000),0)+ROWS($1:4)-1,COLUMN()-1),0) -> 00:34:52 | E10: =IF(ROWS(GPS_IMPORT!$1:4)<=COUNTIF(GPS_IMPORT!$A$2:$A$10000,$B$5),INDEX(GPS_IMPORT!$2:$10000,MATCH($B$5,(GPS_IMPORT!$A$2:$A$10000),0)+ROWS($1:4)-1,COLUMN()-1),0) -> 376919.5253 | F10: =IF(ROWS(GPS_IMPORT!$1:4)<=COUNTIF(GPS_IMPORT!$A$2:$A$10000,$B$5),INDEX(GPS_IMPORT!$2:$10000,MATCH($B$5,(GPS_IMPORT!$A$2:$A$10000),0)+ROWS($1:4)-1,COLUMN()-1),0) -> 2458129.797 | G10: =IF(ROWS(GPS_IMPORT!$1:4)<=COUNTIF(GPS_IMPORT!$A$2:$A$10000,$B$5),INDEX(GPS_IMPORT!$2:$10000,MATCH($B$5,(GPS_IMPORT!$A$2:$A$10000),0)+ROWS($1:4)-1,COLUMN()-1),0) -> 1021.870789 | H10: 0.0004166666768 | I10: -0.003583332989 | J10: -0.010641 | K10: TRUE
A11: 5 | B11: =IF(ROWS(GPS_IMPORT!$1:5)<=COUNTIF(GPS_IMPORT!$A$2:$A$10000,$B$5),INDEX(GPS_IMPORT!$2:$10000,MATCH($B$5,(GPS_IMPORT!$A$2:$A$10000),0)+ROWS($1:5)-1,COLUMN()-1),0) -> SV3 | C11: =IF(ROWS(GPS_IMPORT!$1:5)<=COUNTIF(GPS_IMPORT!$A$2:$A$10000,$B$5),INDEX(GPS_IMPORT!$2:$10000,MATCH($B$5,(GPS_IMPORT!$A$2:$A$10000),0)+ROWS($1:5)-1,COLUMN()-1),0) -> 3.10.2019 | D11: =IF(ROWS(GPS_IMPORT!$1:5)<=COUNTIF(GPS_IMPORT!$A$2:$A$10000,$B$5),INDEX(GPS_IMPORT!$2:$10000,MATCH($B$5,(GPS_IMPORT!$A$2:$A$10000),0)+ROWS($1:5)-1,COLUMN()-1),0) -> 00:35:07 | E11: =IF(ROWS(GPS_IMPORT!$1:5)<=COUNTIF(GPS_IMPORT!$A$2:$A$10000,$B$5),INDEX(GPS_IMPORT!$2:$10000,MATCH($B$5,(GPS_IMPORT!$A$2:$A$10000),0)+ROWS($1:5)-1,COLUMN()-1),0) -> 376919.5249 | F11: =IF(ROWS(GPS_IMPORT!$1:5)<=COUNTIF(GPS_IMPORT!$A$2:$A$10000,$B$5),INDEX(GPS_IMPORT!$2:$10000,MATCH($B$5,(GPS_IMPORT!$A$2:$A$10000),0)+ROWS($1:5)-1,COLUMN()-1),0) -> 2458129.796 | G11: =IF(ROWS(GPS_IMPORT!$1:5)<=COUNTIF(GPS_IMPORT!$A$2:$A$10000,$B$5),INDEX(GPS_IMPORT!$2:$10000,MATCH($B$5,(GPS_IMPORT!$A$2:$A$10000),0)+ROWS($1:5)-1,COLUMN()-1),0) -> 1021.868166 | H11: 0.0008166666375 | I11: -0.002583333291 | J11: -0.008018 | K11: TRUE
A12: 6 | B12: =IF(ROWS(GPS_IMPORT!$1:6)<=COUNTIF(GPS_IMPORT!$A$2:$A$10000,$B$5),INDEX(GPS_IMPORT!$2:$10000,MATCH($B$5,(GPS_IMPORT!$A$2:$A$10000),0)+ROWS($1:6)-1,COLUMN()-1),0) -> SV3 | C12: =IF(ROWS(GPS_IMPORT!$1:6)<=COUNTIF(GPS_IMPORT!$A$2:$A$10000,$B$5),INDEX(GPS_IMPORT!$2:$10000,MATCH($B$5,(GPS_IMPORT!$A$2:$A$10000),0)+ROWS($1:6)-1,COLUMN()-1),0) -> 3.10.2019 | D12: =IF(ROWS(GPS_IMPORT!$1:6)<=COUNTIF(GPS_IMPORT!$A$2:$A$10000,$B$5),INDEX(GPS_IMPORT!$2:$10000,MATCH($B$5,(GPS_IMPORT!$A$2:$A$10000),0)+ROWS($1:6)-1,COLUMN()-1),0) -> 00:35:19 | E12: =IF(ROWS(GPS_IMPORT!$1:6)<=COUNTIF(GPS_IMPORT!$A$2:$A$10000,$B$5),INDEX(GPS_IMPORT!$2:$10000,MATCH($B$5,(GPS_IMPORT!$A$2:$A$10000),0)+ROWS($1:6)-1,COLUMN()-1),0) -> 376919.5301 | F12: =IF(ROWS(GPS_IMPORT!$1:6)<=COUNTIF(GPS_IMPORT!$A$2:$A$10000,$B$5),INDEX(GPS_IMPORT!$2:$10000,MATCH($B$5,(GPS_IMPORT!$A$2:$A$10000),0)+ROWS($1:6)-1,COLUMN()-1),0) -> 2458129.797 | G12: =IF(ROWS(GPS_IMPORT!$1:6)<=COUNTIF(GPS_IMPORT!$A$2:$A$10000,$B$5),INDEX(GPS_IMPORT!$2:$10000,MATCH($B$5,(GPS_IMPORT!$A$2:$A$10000),0)+ROWS($1:6)-1,COLUMN()-1),0) -> 1021.870578 | H12: -0.004383333318 | I12: -0.003583332989 | J12: -0.01043 | K12: TRUE
A13: 7 | B13: =IF(ROWS(GPS_IMPORT!$1:7)<=COUNTIF(GPS_IMPORT!$A$2:$A$10000,$B$5),INDEX(GPS_IMPORT!$2:$10000,MATCH($B$5,(GPS_IMPORT!$A$2:$A$10000),0)+ROWS($1:7)-1,COLUMN()-1),0) -> SV3 | C13: =IF(ROWS(GPS_IMPORT!$1:7)<=COUNTIF(GPS_IMPORT!$A$2:$A$10000,$B$5),INDEX(GPS_IMPORT!$2:$10000,MATCH($B$5,(GPS_IMPORT!$A$2:$A$10000),0)+ROWS($1:7)-1,COLUMN()-1),0) -> 3.10.2019 | D13: =IF(ROWS(GPS_IMPORT!$1:7)<=COUNTIF(GPS_IMPORT!$A$2:$A$10000,$B$5),INDEX(GPS_IMPORT!$2:$10000,MATCH($B$5,(GPS_IMPORT!$A$2:$A$10000),0)+ROWS($1:7)-1,COLUMN()-1),0) -> 00:35:29.100 | E13: =IF(ROWS(GPS_IMPORT!$1:7)<=COUNTIF(GPS_IMPORT!$A$2:$A$10000,$B$5),INDEX(GPS_IMPORT!$2:$10000,MATCH($B$5,(GPS_IMPORT!$A$2:$A$10000),0)+ROWS($1:7)-1,COLUMN()-1),0) -> 376919.5237 | F13: =IF(ROWS(GPS_IMPORT!$1:7)<=COUNTIF(GPS_IMPORT!$A$2:$A$10000,$B$5),INDEX(GPS_IMPORT!$2:$10000,MATCH($B$5,(GPS_IMPORT!$A$2:$A$10000),0)+ROWS($1:7)-1,COLUMN()-1),0) -> 2458129.799 | G13: =IF(ROWS(GPS_IMPORT!$1:7)<=COUNTIF(GPS_IMPORT!$A$2:$A$10000,$B$5),INDEX(GPS_IMPORT!$2:$10000,MATCH($B$5,(GPS_IMPORT!$A$2:$A$10000),0)+ROWS($1:7)-1,COLUMN()-1),0) -> 1021.862183 | H13: 0.002016666636 | I13: -0.005583333317 | J13: -0.002035 | K13: TRUE
A14: 8 | B14: =IF(ROWS(GPS_IMPORT!$1:8)<=COUNTIF(GPS_IMPORT!$A$2:$A$10000,$B$5),INDEX(GPS_IMPORT!$2:$10000,MATCH($B$5,(GPS_IMPORT!$A$2:$A$10000),0)+ROWS($1:8)-1,COLUMN()-1),0) -> SV3 | C14: =IF(ROWS(GPS_IMPORT!$1:8)<=COUNTIF(GPS_IMPORT!$A$2:$A$10000,$B$5),INDEX(GPS_IMPORT!$2:$10000,MATCH($B$5,(GPS_IMPORT!$A$2:$A$10000),0)+ROWS($1:8)-1,COLUMN()-1),0) -> 3.10.2019 | D14: =IF(ROWS(GPS_IMPORT!$1:8)<=COUNTIF(GPS_IMPORT!$A$2:$A$10000,$B$5),INDEX(GPS_IMPORT!$2:$10000,MATCH($B$5,(GPS_IMPORT!$A$2:$A$10000),0)+ROWS($1:8)-1,COLUMN()-1),0) -> 00:35:40 | E14: =IF(ROWS(GPS_IMPORT!$1:8)<=COUNTIF(GPS_IMPORT!$A$2:$A$10000,$B$5),INDEX(GPS_IMPORT!$2:$10000,MATCH($B$5,(GPS_IMPORT!$A$2:$A$10000),0)+ROWS($1:8)-1,COLUMN()-1),0) -> 376919.5245 | F14: =IF(ROWS(GPS_IMPORT!$1:8)<=COUNTIF(GPS_IMPORT!$A$2:$A$10000,$B$5),INDEX(GPS_IMPORT!$2:$10000,MATCH($B$5,(GPS_IMPORT!$A$2:$A$10000),0)+ROWS($1:8)-1,COLUMN()-1),0) -> 2458129.796 | G14: =IF(ROWS(GPS_IMPORT!$1:8)<=COUNTIF(GPS_IMPORT!$A$2:$A$10000,$B$5),INDEX(GPS_IMPORT!$2:$10000,MATCH($B$5,(GPS_IMPORT!$A$2:$A$10000),0)+ROWS($1:8)-1,COLUMN()-1),0) -> 1021.859932 | H14: 0.001216666657 | I14: -0.002583333291 | J14: 0.0002159999999 | K14: TRUE
A15: 9 | B15: =IF(ROWS(GPS_IMPORT!$1:9)<=COUNTIF(GPS_IMPORT!$A$2:$A$10000,$B$5),INDEX(GPS_IMPORT!$2:$10000,MATCH($B$5,(GPS_IMPORT!$A$2:$A$10000),0)+ROWS($1:9)-1,COLUMN()-1),0) -> SV3 | C15: =IF(ROWS(GPS_IMPORT!$1:9)<=COUNTIF(GPS_IMPORT!$A$2:$A$10000,$B$5),INDEX(GPS_IMPORT!$2:$10000,MATCH($B$5,(GPS_IMPORT!$A$2:$A$10000),0)+ROWS($1:9)-1,COLUMN()-1),0) -> 3.10.2019 | D15: =IF(ROWS(GPS_IMPORT!$1:9)<=COUNTIF(GPS_IMPORT!$A$2:$A$10000,$B$5),INDEX(GPS_IMPORT!$2:$10000,MATCH($B$5,(GPS_IMPORT!$A$2:$A$10000),0)+ROWS($1:9)-1,COLUMN()-1),0) -> 00:35:55.100 | E15: =IF(ROWS(GPS_IMPORT!$1:9)<=COUNTIF(GPS_IMPORT!$A$2:$A$10000,$B$5),INDEX(GPS_IMPORT!$2:$10000,MATCH($B$5,(GPS_IMPORT!$A$2:$A$10000),0)+ROWS($1:9)-1,COLUMN()-1),0) -> 376919.5314 | F15: =IF(ROWS(GPS_IMPORT!$1:9)<=COUNTIF(GPS_IMPORT!$A$2:$A$10000,$B$5),INDEX(GPS_IMPORT!$2:$10000,MATCH($B$5,(GPS_IMPORT!$A$2:$A$10000),0)+ROWS($1:9)-1,COLUMN()-1),0) -> 2458129.794 | G15: =IF(ROWS(GPS_IMPORT!$1:9)<=COUNTIF(GPS_IMPORT!$A$2:$A$10000,$B$5),INDEX(GPS_IMPORT!$2:$10000,MATCH($B$5,(GPS_IMPORT!$A$2:$A$10000),0)+ROWS($1:9)-1,COLUMN()-1),0) -> 1021.849082 | H15: -0.005683333322 | I15: -0.0005833334289 | J15: 0.011066 | K15: TRUE
A16: 10 | B16: =IF(ROWS(GPS_IMPORT!$1:10)<=COUNTIF(GPS_IMPORT!$A$2:$A$10000,$B$5),INDEX(GPS_IMPORT!$2:$10000,MATCH($B$5,(GPS_IMPORT!$A$2:$A$10000),0)+ROWS($1:10)-1,COLUMN()-1),0) -> SV3 | C16: =IF(ROWS(GPS_IMPORT!$1:10)<=COUNTIF(GPS_IMPORT!$A$2:$A$10000,$B$5),INDEX(GPS_IMPORT!$2:$10000,MATCH($B$5,(GPS_IMPORT!$A$2:$A$10000),0)+ROWS($1:10)-1,COLUMN()-1),0) -> 3.10.2019 | D16: =IF(ROWS(GPS_IMPORT!$1:10)<=COUNTIF(GPS_IMPORT!$A$2:$A$10000,$B$5),INDEX(GPS_IMPORT!$2:$10000,MATCH($B$5,(GPS_IMPORT!$A$2:$A$10000),0)+ROWS($1:10)-1,COLUMN()-1),0) -> 00:36:06.200 | E16: =IF(ROWS(GPS_IMPORT!$1:10)<=COUNTIF(GPS_IMPORT!$A$2:$A$10000,$B$5),INDEX(GPS_IMPORT!$2:$10000,MATCH($B$5,(GPS_IMPORT!$A$2:$A$10000),0)+ROWS($1:10)-1,COLUMN()-1),0) -> 376919.5305 | F16: =IF(ROWS(GPS_IMPORT!$1:10)<=COUNTIF(GPS_IMPORT!$A$2:$A$10000,$B$5),INDEX(GPS_IMPORT!$2:$10000,MATCH($B$5,(GPS_IMPORT!$A$2:$A$10000),0)+ROWS($1:10)-1,COLUMN()-1),0) -> 2458129.793 | G16: =IF(ROWS(GPS_IMPORT!$1:10)<=COUNTIF(GPS_IMPORT!$A$2:$A$10000,$B$5),INDEX(GPS_IMPORT!$2:$10000,MATCH($B$5,(GPS_IMPORT!$A$2:$A$10000),0)+ROWS($1:10)-1,COLUMN()-1),0) -> 1021.852582 | H16: -0.004783333337 | I16: 0.000416666735 | J16: 0.007566 | K16: TRUE
A17: 11 | B17: =IF(ROWS(GPS_IMPORT!$1:11)<=COUNTIF(GPS_IMPORT!$A$2:$A$10000,$B$5),INDEX(GPS_IMPORT!$2:$10000,MATCH($B$5,(GPS_IMPORT!$A$2:$A$10000),0)+ROWS($1:11)-1,COLUMN()-1),0) -> SV3 | C17: =IF(ROWS(GPS_IMPORT!$1:11)<=COUNTIF(GPS_IMPORT!$A$2:$A$10000,$B$5),INDEX(GPS_IMPORT!$2:$10000,MATCH($B$5,(GPS_IMPORT!$A$2:$A$10000),0)+ROWS($1:11)-1,COLUMN()-1),0) -> 3.10.2019 | D17: =IF(ROWS(GPS_IMPORT!$1:11)<=COUNTIF(GPS_IMPORT!$A$2:$A$10000,$B$5),INDEX(GPS_IMPORT!$2:$10000,MATCH($B$5,(GPS_IMPORT!$A$2:$A$10000),0)+ROWS($1:11)-1,COLUMN()-1),0) -> 00:36:17.100 | E17: =IF(ROWS(GPS_IMPORT!$1:11)<=COUNTIF(GPS_IMPORT!$A$2:$A$10000,$B$5),INDEX(GPS_IMPORT!$2:$10000,MATCH($B$5,(GPS_IMPORT!$A$2:$A$10000),0)+ROWS($1:11)-1,COLUMN()-1),0) -> 376919.5265 | F17: =IF(ROWS(GPS_IMPORT!$1:11)<=COUNTIF(GPS_IMPORT!$A$2:$A$10000,$B$5),INDEX(GPS_IMPORT!$2:$10000,MATCH($B$5,(GPS_IMPORT!$A$2:$A$10000),0)+ROWS($1:11)-1,COLUMN()-1),0) -> 2458129.785 | G17: =IF(ROWS(GPS_IMPORT!$1:11)<=COUNTIF(GPS_IMPORT!$A$2:$A$10000,$B$5),INDEX(GPS_IMPORT!$2:$10000,MATCH($B$5,(GPS_IMPORT!$A$2:$A$10000),0)+ROWS($1:11)-1,COLUMN()-1),0) -> 1021.861501 | H17: -0.000783333322 | I17: 0.008416666649 | J17: -0.001353 | K17: TRUE
A18: 12 | B18: =IF(ROWS(GPS_IMPORT!$1:12)<=COUNTIF(GPS_IMPORT!$A$2:$A$10000,$B$5),INDEX(GPS_IMPORT!$2:$10000,MATCH($B$5,(GPS_IMPORT!$A$2:$A$10000),0)+ROWS($1:12)-1,COLUMN()-1),0) -> SV3 | C18: =IF(ROWS(GPS_IMPORT!$1:12)<=COUNTIF(GPS_IMPORT!$A$2:$A$10000,$B$5),INDEX(GPS_IMPORT!$2:$10000,MATCH($B$5,(GPS_IMPORT!$A$2:$A$10000),0)+ROWS($1:12)-1,COLUMN()-1),0) -> 3.10.2019 | D18: =IF(ROWS(GPS_IMPORT!$1:12)<=COUNTIF(GPS_IMPORT!$A$2:$A$10000,$B$5),INDEX(GPS_IMPORT!$2:$10000,MATCH($B$5,(GPS_IMPORT!$A$2:$A$10000),0)+ROWS($1:12)-1,COLUMN()-1),0) -> 00:36:28 | E18: =IF(ROWS(GPS_IMPORT!$1:12)<=COUNTIF(GPS_IMPORT!$A$2:$A$10000,$B$5),INDEX(GPS_IMPORT!$2:$10000,MATCH($B$5,(GPS_IMPORT!$A$2:$A$10000),0)+ROWS($1:12)-1,COLUMN()-1),0) -> 376919.5281 | F18: =IF(ROWS(GPS_IMPORT!$1:12)<=COUNTIF(GPS_IMPORT!$A$2:$A$10000,$B$5),INDEX(GPS_IMPORT!$2:$10000,MATCH($B$5,(GPS_IMPORT!$A$2:$A$10000),0)+ROWS($1:12)-1,COLUMN()-1),0) -> 2458129.785 | G18: =IF(ROWS(GPS_IMPORT!$1:12)<=COUNTIF(GPS_IMPORT!$A$2:$A$10000,$B$5),INDEX(GPS_IMPORT!$2:$10000,MATCH($B$5,(GPS_IMPORT!$A$2:$A$10000),0)+ROWS($1:12)-1,COLUMN()-1),0) -> 1021.849278 | H18: -0.00238333334 | I18: 0.008416666649 | J18: 0.01087 | K18: TRUE
A19: 13 | B19: =IF(ROWS(GPS_IMPORT!$1:13)<=COUNTIF(GPS_IMPORT!$A$2:$A$10000,$B$5),INDEX(GPS_IMPORT!$2:$10000,MATCH($B$5,(GPS_IMPORT!$A$2:$A$10000),0)+ROWS($1:13)-1,COLUMN()-1),0) -> 0 | C19: =IF(ROWS(GPS_IMPORT!$1:13)<=COUNTIF(GPS_IMPORT!$A$2:$A$10000,$B$5),INDEX(GPS_IMPORT!$2:$10000,MATCH($B$5,(GPS_IMPORT!$A$2:$A$10000),0)+ROWS($1:13)-1,COLUMN()-1),0) -> 00:00:00 | D19: =IF(ROWS(GPS_IMPORT!$1:13)<=COUNTIF(GPS_IMPORT!$A$2:$A$10000,$B$5),INDEX(GPS_IMPORT!$2:$10000,MATCH($B$5,(GPS_IMPORT!$A$2:$A$10000),0)+ROWS($1:13)-1,COLUMN()-1),0) -> 00:00:00 | E19: =IF(ROWS(GPS_IMPORT!$1:13)<=COUNTIF(GPS_IMPORT!$A$2:$A$10000,$B$5),INDEX(GPS_IMPORT!$2:$10000,MATCH($B$5,(GPS_IMPORT!$A$2:$A$10000),0)+ROWS($1:13)-1,COLUMN()-1),0) -> 0 | F19: =IF(ROWS(GPS_IMPORT!$1:13)<=COUNTIF(GPS_IMPORT!$A$2:$A$10000,$B$5),INDEX(GPS_IMPORT!$2:$10000,MATCH($B$5,(GPS_IMPORT!$A$2:$A$10000),0)+ROWS($1:13)-1,COLUMN()-1),0) -> 0 | G19: =IF(ROWS(GPS_IMPORT!$1:13)<=COUNTIF(GPS_IMPORT!$A$2:$A$10000,$B$5),INDEX(GPS_IMPORT!$2:$10000,MATCH($B$5,(GPS_IMPORT!$A$2:$A$10000),0)+ROWS($1:13)-1,COLUMN()-1),0) -> 0 | H19: =IF(E19>0,E$22-E19,0) -> 0 | I19: 0 | J19: 0 | K19: FALSE
A20: 14 | B20: =IF(ROWS(GPS_IMPORT!$1:14)<=COUNTIF(GPS_IMPORT!$A$2:$A$10000,$B$5),INDEX(GPS_IMPORT!$2:$10000,MATCH($B$5,(GPS_IMPORT!$A$2:$A$10000),0)+ROWS($1:14)-1,COLUMN()-1),0) -> 0 | C20: =IF(ROWS(GPS_IMPORT!$1:14)<=COUNTIF(GPS_IMPORT!$A$2:$A$10000,$B$5),INDEX(GPS_IMPORT!$2:$10000,MATCH($B$5,(GPS_IMPORT!$A$2:$A$10000),0)+ROWS($1:14)-1,COLUMN()-1),0) -> 00:00:00 | D20: =IF(ROWS(GPS_IMPORT!$1:14)<=COUNTIF(GPS_IMPORT!$A$2:$A$10000,$B$5),INDEX(GPS_IMPORT!$2:$10000,MATCH($B$5,(GPS_IMPORT!$A$2:$A$10000),0)+ROWS($1:14)-1,COLUMN()-1),0) -> 00:00:00 | E20: =IF(ROWS(GPS_IMPORT!$1:14)<=COUNTIF(GPS_IMPORT!$A$2:$A$10000,$B$5),INDEX(GPS_IMPORT!$2:$10000,MATCH($B$5,(GPS_IMPORT!$A$2:$A$10000),0)+ROWS($1:14)-1,COLUMN()-1),0) -> 0 | F20: =IF(ROWS(GPS_IMPORT!$1:14)<=COUNTIF(GPS_IMPORT!$A$2:$A$10000,$B$5),INDEX(GPS_IMPORT!$2:$10000,MATCH($B$5,(GPS_IMPORT!$A$2:$A$10000),0)+ROWS($1:14)-1,COLUMN()-1),0) -> 0 | G20: =IF(ROWS(GPS_IMPORT!$1:14)<=COUNTIF(GPS_IMPORT!$A$2:$A$10000,$B$5),INDEX(GPS_IMPORT!$2:$10000,MATCH($B$5,(GPS_IMPORT!$A$2:$A$10000),0)+ROWS($1:14)-1,COLUMN()-1),0) -> 0 | H20: 0 | I20: 0 | J20: 0 | K20: FALSE
A21: 15 | B21: =IF(ROWS(GPS_IMPORT!$1:15)<=COUNTIF(GPS_IMPORT!$A$2:$A$10000,$B$5),INDEX(GPS_IMPORT!$2:$10000,MATCH($B$5,(GPS_IMPORT!$A$2:$A$10000),0)+ROWS($1:15)-1,COLUMN()-1),0) -> 0 | C21: =IF(ROWS(GPS_IMPORT!$1:15)<=COUNTIF(GPS_IMPORT!$A$2:$A$10000,$B$5),INDEX(GPS_IMPORT!$2:$10000,MATCH($B$5,(GPS_IMPORT!$A$2:$A$10000),0)+ROWS($1:15)-1,COLUMN()-1),0) -> 00:00:00 | D21: =IF(ROWS(GPS_IMPORT!$1:15)<=COUNTIF(GPS_IMPORT!$A$2:$A$10000,$B$5),INDEX(GPS_IMPORT!$2:$10000,MATCH($B$5,(GPS_IMPORT!$A$2:$A$10000),0)+ROWS($1:15)-1,COLUMN()-1),0) -> 00:00:00 | E21: =IF(ROWS(GPS_IMPORT!$1:15)<=COUNTIF(GPS_IMPORT!$A$2:$A$10000,$B$5),INDEX(GPS_IMPORT!$2:$10000,MATCH($B$5,(GPS_IMPORT!$A$2:$A$10000),0)+ROWS($1:15)-1,COLUMN()-1),0) -> 0 | F21: =IF(ROWS(GPS_IMPORT!$1:15)<=COUNTIF(GPS_IMPORT!$A$2:$A$10000,$B$5),INDEX(GPS_IMPORT!$2:$10000,MATCH($B$5,(GPS_IMPORT!$A$2:$A$10000),0)+ROWS($1:15)-1,COLUMN()-1),0) -> 0 | G21: =IF(ROWS(GPS_IMPORT!$1:15)<=COUNTIF(GPS_IMPORT!$A$2:$A$10000,$B$5),INDEX(GPS_IMPORT!$2:$10000,MATCH($B$5,(GPS_IMPORT!$A$2:$A$10000),0)+ROWS($1:15)-1,COLUMN()-1),0) -> 0 | H21: 0 | I21: 0 | J21: 0 | K21: FALSE
D22: AVERAGE | E22: =(IF($K$7=TRUE,E7,0)+IF($K$8=TRUE,E8,0)+IF($K$9=TRUE,E9,0)+IF($K$10=TRUE,E10,0)+IF($K$11=TRUE,E11,0)+IF($K$12=TRUE,E12,0)+IF($K$13=TRUE,E13,0)+IF($K$14=TRUE,E14,0)+IF($K$15=TRUE,E15,0)+IF($K$16=TRUE,E16,0)+IF($K$17=TRUE,E17,0)+IF($K$18=TRUE,E18,0)+IF($K$19=TRUE,E19,0)+IF($K$20=TRUE,E20,0)+IF($K$21=TRUE,E21,0))/(IF($K$7=TRUE,1,0)+IF($K$8=TRUE,1,0)+IF($K$9=TRUE,1,0)+IF($K$10=TRUE,1,0)+IF($K$11=TRUE,1,0)+IF($K$12=TRUE,1,0)+IF($K$13=TRUE,1,0)+IF($K$14=TRUE,1,0)+IF($K$15=TRUE,1,0)+IF($K$16=TRUE,1,0)+IF($K$17=TRUE,1,0)+IF($K$18=TRUE,1,0)+IF($K$19=TRUE,1,0)+IF($K$20=TRUE,1,0)+IF($K$21=TRUE,1,0)) -> 376919.5257 | F22: =(IF($K$7=TRUE,F7,0)+IF($K$8=TRUE,F8,0)+IF($K$9=TRUE,F9,0)+IF($K$10=TRUE,F10,0)+IF($K$11=TRUE,F11,0)+IF($K$12=TRUE,F12,0)+IF($K$13=TRUE,F13,0)+IF($K$14=TRUE,F14,0)+IF($K$15=TRUE,F15,0)+IF($K$16=TRUE,F16,0)+IF($K$17=TRUE,F17,0)+IF($K$18=TRUE,F18,0)+IF($K$19=TRUE,F19,0)+IF($K$20=TRUE,F20,0)+IF($K$21=TRUE,F21,0))/(IF($K$7=TRUE,1,0)+IF($K$8=TRUE,1,0)+IF($K$9=TRUE,1,0)+IF($K$10=TRUE,1,0)+IF($K$11=TRUE,1,0)+IF($K$12=TRUE,1,0)+IF($K$13=TRUE,1,0)+IF($K$14=TRUE,1,0)+IF($K$15=TRUE,1,0)+IF($K$16=TRUE,1,0)+IF($K$17=TRUE,1,0)+IF($K$18=TRUE,1,0)+IF($K$19=TRUE,1,0)+IF($K$20=TRUE,1,0)+IF($K$21=TRUE,1,0)) -> 2458129.793 | G22: =(IF($K$7=TRUE,G7,0)+IF($K$8=TRUE,G8,0)+IF($K$9=TRUE,G9,0)+IF($K$10=TRUE,G10,0)+IF($K$11=TRUE,G11,0)+IF($K$12=TRUE,G12,0)+IF($K$13=TRUE,G13,0)+IF($K$14=TRUE,G14,0)+IF($K$15=TRUE,G15,0)+IF($K$16=TRUE,G16,0)+IF($K$17=TRUE,G17,0)+IF($K$18=TRUE,G18,0)+IF($K$19=TRUE,G19,0)+IF($K$20=TRUE,G20,0)+IF($K$21=TRUE,G21,0))/ (IF($K$7=TRUE,1,0)+IF($K$8=TRUE,1,0)+IF($K$9=TRUE,1,0)+IF($K$10=TRUE,1,0)+IF($K$11=TRUE,1,0)+IF($K$12=TRUE,1,0)+IF($K$13=TRUE,1,0)+IF($K$14=TRUE,1,0)+IF($K$15=TRUE,1,0)+IF($K$16=TRUE,1,0)+IF($K$17=TRUE,1,0)+IF($K$18=TRUE,1,0)+IF($K$19=TRUE,1,0)+IF($K$20=TRUE,1,0)+IF($K$21=TRUE,1,0)) -> 1021.860148 | H22: RMSE: | I22: RMSE: | J22: RMSE:
G23: RMSE IN US SURVEY FEET: | H23: =SQRT(( (IF($K$7=TRUE,H7^2,0))+(IF($K$8=TRUE,H8^2,0))+(IF($K$9=TRUE,H9^2,0))+(IF($K$10=TRUE,H10^2,0))+(IF($K$11=TRUE,H11^2,0))+(IF($K$12=TRUE,H12^2,0))+(IF($K$13=TRUE,H13^2,0))+(IF($K$14=TRUE,H14^2,0))+(IF($K$15=TRUE,H15^2,0))+(IF($K$16=TRUE,H16^2,0))+(IF($K$17=TRUE,H17^2,0))+(IF($K$18=TRUE,H18^2,0))+(IF($K$19=TRUE,H19^2,0))+(IF($K$20=TRUE,H20^2,0))+(IF($K$21=TRUE,H21^2,0)))/ (IF($K$7=TRUE,1,0)+IF($K$8=TRUE,1,0)+IF($K$9=TRUE,1,0)+IF($K$10=TRUE,1,0)+IF($K$11=TRUE,1,0)+IF($K$12=TRUE,1,0)+IF($K$13=TRUE,1,0)+IF($K$14=TRUE,1,0)+IF($K$15=TRUE,1,0)+IF($K$16=TRUE,1,0)+IF($K$17=TRUE,1,0)+IF($K$18=TRUE,1,0)+IF($K$19=TRUE,1,0)+IF($K$20=TRUE,1,0)+IF($K$21=TRUE,1,0))) -> 0.003746516888 | I23: =SQRT(( (IF($K$7=TRUE,I7^2,0))+(IF($K$8=TRUE,I8^2,0))+(IF($K$9=TRUE,I9^2,0))+(IF($K$10=TRUE,I10^2,0))+(IF($K$11=TRUE,I11^2,0))+(IF($K$12=TRUE,I12^2,0))+(IF($K$13=TRUE,I13^2,0))+(IF($K$14=TRUE,I14^2,0))+(IF($K$15=TRUE,I15^2,0))+(IF($K$16=TRUE,I16^2,0))+(IF($K$17=TRUE,I17^2,0))+(IF($K$18=TRUE,I18^2,0))+(IF($K$19=TRUE,I19^2,0))+(IF($K$20=TRUE,I20^2,0))+(IF($K$21=TRUE,I21^2,0)))/ (IF($K$7=TRUE,1,0)+IF($K$8=TRUE,1,0)+IF($K$9=TRUE,1,0)+IF($K$10=TRUE,1,0)+IF($K$11=TRUE,1,0)+IF($K$12=TRUE,1,0)+IF($K$13=TRUE,1,0)+IF($K$14=TRUE,1,0)+IF($K$15=TRUE,1,0)+IF($K$16=TRUE,1,0)+IF($K$17=TRUE,1,0)+IF($K$18=TRUE,1,0)+IF($K$19=TRUE,1,0)+IF($K$20=TRUE,1,0)+IF($K$21=TRUE,1,0))) -> 0.00446203111 | J23: =SQRT(( (IF($K$7=TRUE,J7^2,0))+(IF($K$8=TRUE,J8^2,0))+(IF($K$9=TRUE,J9^2,0))+(IF($K$10=TRUE,J10^2,0))+(IF($K$11=TRUE,J11^2,0))+(IF($K$12=TRUE,J12^2,0))+(IF($K$13=TRUE,J13^2,0))+(IF($K$14=TRUE,J14^2,0))+(IF($K$15=TRUE,J15^2,0))+(IF($K$16=TRUE,J16^2,0))+(IF($K$17=TRUE,J17^2,0))+(IF($K$18=TRUE,J18^2,0))+(IF($K$19=TRUE,J19^2,0))+(IF($K$20=TRUE,J20^2,0))+(IF($K$21=TRUE,J21^2,0)))/ (IF($K$7=TRUE,1,0)+IF($K$8=TRUE,1,0)+IF($K$9=TRUE,1,0)+IF($K$10=TRUE,1,0)+IF($K$11=TRUE,1,0)+IF($K$12=TRUE,1,0)+IF($K$13=TRUE,1,0)+IF($K$14=TRUE,1,0)+IF($K$15=TRUE,1,0)+IF($K$16=TRUE,1,0)+IF($K$17=TRUE,1,0)+IF($K$18=TRUE,1,0)+IF($K$19=TRUE,1,0)+IF($K$20=TRUE,1,0)+IF($K$21=TRUE,1,0))) -> 0.007833131004
D24: 1
C25: UNITLESS GRID TO GROUND MULTIPLIER | D25: =IF(REPORT!C13="n/a","0.00000000",REPORT!C13) -> 1.00009018 | H25: =IF(H23<=0.029,"PASS","FAIL") -> PASS | I25: =IF(I23<=0.029,"PASS","FAIL") -> PASS | J25: =IF(J23<=0.039,"PASS","FAIL") -> PASS
A27: AVERAGED GPS-DERIVED POSITION | I27: Notes:
B28: MONUMENT COORDINATES | D28: NORTHING | E28: EASTING | F28: ORTHO HEIGHT
B29: US Survey Feet (GRID) | D29: =$E$22 -> 376919.5257 | E29: =$F$22 -> 2458129.793 | F29: =$G$22 -> 1021.860148
A31: LEVELED ELEVATION
A32: US SURVEY FEET | C32: =IFERROR(VLOOKUP(B5,'LEVEL RUN'!A8:I59,9,FALSE),"N/A") -> N/A | D32: (Type the leveled elevation or N/A if no leveled elevation is available)
A33: MONUMENT HELD | D33: (Type the monument name from which leveling originated)
A34: LEVELED ELEVATION - GPS DERIVED ELEVATION = | E34: =IF(C32="N/A","N/A",C32-(F29*D24)) -> N/A
A36: FINAL MONUMENT COORDINATES
B37: MONUMENT COORDINATES | D37: NORTHING | E37: EASTING | F37: ELEVATION | G37: FEATURE CODE
B38: US SURVEY FEET (GRID) | D38: =$E$22*$D$24 -> 376919.5257 | E38: =$F$22*$D$24 -> 2458129.793 | F38: =IF($C$32="N/A",($G$22*$D$24),$C$32) -> 1021.860148 | G38: =VLOOKUP($B$5,GPS_IMPORT!$A$2:$G$2000,7,FALSE) -> AERTAR
B39: US SURVEY FEET (GROUND) | D39: =$D$38*$D$25 -> 376953.5163 | E39: =$E$38*$D$25 -> 2458351.468 | F39: =IF($C$32="N/A",($G$22*$D$24),$C$32) -> 1021.860148 | G39: =G38 -> AERTAR
A41: ∆ North, ∆ East, and ∆ Ht. are the difference between the average northing, easting, and height for each observation. | I41: Mask Angle: | J41: 10°

Sheet SV4
A1: VRS GNSS Project Control Monument Coordinate Analysis
A3: Project: | B3: =REPORT!B2 -> FRA-71-29.4 | C3: GPS Antenna: | D3: LEICA GS14 | J3: Report Date: | K3: =REPORT!C49 -> 2019-04-25
A4: PID: | B4: =REPORT!E2 -> 106471 | C4: VRS Network: | D4: ODOT VRS | J4: Prepared By: | K4: =REPORT!C48 -> Kolton Wilson
A5: Point ID: | B5: SV4 | C5: No. of Sessions: | D5: =COUNTIF(GPS_IMPORT!A2:A1000,$B$5) -> 12 | J5: Checked By: | K5: =REPORT!C52 -> David Ogden
A6: SESSION # | B6: Point | C6: Observation Date | D6: Start Time | E6: Northing(sft) | F6: Easting(sft) | G6: Height(sft) | H6: ∆ Northing(sft) | I6: ∆ Easting(sft) | J6: ∆ Height(sft) | K6: Include in Solution?
A7: 1 | B7: =IF(ROWS(GPS_IMPORT!$1:1)<=COUNTIF(GPS_IMPORT!$A$2:$A$10000,$B$5),INDEX(GPS_IMPORT!$2:$10000,MATCH($B$5,(GPS_IMPORT!$A$2:$A$10000),0)+ROWS($1:1)-1,COLUMN()-1),0) -> SV4 | C7: =IF(ROWS(GPS_IMPORT!$1:1)<=COUNTIF(GPS_IMPORT!$A$2:$A$10000,$B$5),INDEX(GPS_IMPORT!$2:$10000,MATCH($B$5,(GPS_IMPORT!$A$2:$A$10000),0)+ROWS($1:1)-1,COLUMN()-1),0) -> 3.10.2019 | D7: =IF(ROWS(GPS_IMPORT!$1:1)<=COUNTIF(GPS_IMPORT!$A$2:$A$10000,$B$5),INDEX(GPS_IMPORT!$2:$10000,MATCH($B$5,(GPS_IMPORT!$A$2:$A$10000),0)+ROWS($1:1)-1,COLUMN()-1),0) -> 00:46:56.100 | E7: =IF(ROWS(GPS_IMPORT!$1:1)<=COUNTIF(GPS_IMPORT!$A$2:$A$10000,$B$5),INDEX(GPS_IMPORT!$2:$10000,MATCH($B$5,(GPS_IMPORT!$A$2:$A$10000),0)+ROWS($1:1)-1,COLUMN()-1),0) -> 372819.6602 | F7: =IF(ROWS(GPS_IMPORT!$1:1)<=COUNTIF(GPS_IMPORT!$A$2:$A$10000,$B$5),INDEX(GPS_IMPORT!$2:$10000,MATCH($B$5,(GPS_IMPORT!$A$2:$A$10000),0)+ROWS($1:1)-1,COLUMN()-1),0) -> 2455642.174 | G7: =IF(ROWS(GPS_IMPORT!$1:1)<=COUNTIF(GPS_IMPORT!$A$2:$A$10000,$B$5),INDEX(GPS_IMPORT!$2:$10000,MATCH($B$5,(GPS_IMPORT!$A$2:$A$10000),0)+ROWS($1:1)-1,COLUMN()-1),0) -> 1050.176859 | H7: =IF(E7>0,E$22-E7,0) -> 0.02380000008 | I7: 0.01516666682 | J7: -0.003613333333 | K7: TRUE
A8: 2 | B8: =IF(ROWS(GPS_IMPORT!$1:2)<=COUNTIF(GPS_IMPORT!$A$2:$A$10000,$B$5),INDEX(GPS_IMPORT!$2:$10000,MATCH($B$5,(GPS_IMPORT!$A$2:$A$10000),0)+ROWS($1:2)-1,COLUMN()-1),0) -> SV4 | C8: =IF(ROWS(GPS_IMPORT!$1:2)<=COUNTIF(GPS_IMPORT!$A$2:$A$10000,$B$5),INDEX(GPS_IMPORT!$2:$10000,MATCH($B$5,(GPS_IMPORT!$A$2:$A$10000),0)+ROWS($1:2)-1,COLUMN()-1),0) -> 3.10.2019 | D8: =IF(ROWS(GPS_IMPORT!$1:2)<=COUNTIF(GPS_IMPORT!$A$2:$A$10000,$B$5),INDEX(GPS_IMPORT!$2:$10000,MATCH($B$5,(GPS_IMPORT!$A$2:$A$10000),0)+ROWS($1:2)-1,COLUMN()-1),0) -> 00:47:07.800 | E8: =IF(ROWS(GPS_IMPORT!$1:2)<=COUNTIF(GPS_IMPORT!$A$2:$A$10000,$B$5),INDEX(GPS_IMPORT!$2:$10000,MATCH($B$5,(GPS_IMPORT!$A$2:$A$10000),0)+ROWS($1:2)-1,COLUMN()-1),0) -> 372819.6774 | F8: =IF(ROWS(GPS_IMPORT!$1:2)<=COUNTIF(GPS_IMPORT!$A$2:$A$10000,$B$5),INDEX(GPS_IMPORT!$2:$10000,MATCH($B$5,(GPS_IMPORT!$A$2:$A$10000),0)+ROWS($1:2)-1,COLUMN()-1),0) -> 2455642.176 | G8: =IF(ROWS(GPS_IMPORT!$1:2)<=COUNTIF(GPS_IMPORT!$A$2:$A$10000,$B$5),INDEX(GPS_IMPORT!$2:$10000,MATCH($B$5,(GPS_IMPORT!$A$2:$A$10000),0)+ROWS($1:2)-1,COLUMN()-1),0) -> 1050.19959 | H8: 0.006600000081 | I8: 0.01316666696 | J8: -0.02634433333 | K8: TRUE
A9: 3 | B9: =IF(ROWS(GPS_IMPORT!$1:3)<=COUNTIF(GPS_IMPORT!$A$2:$A$10000,$B$5),INDEX(GPS_IMPORT!$2:$10000,MATCH($B$5,(GPS_IMPORT!$A$2:$A$10000),0)+ROWS($1:3)-1,COLUMN()-1),0) -> SV4 | C9: =IF(ROWS(GPS_IMPORT!$1:3)<=COUNTIF(GPS_IMPORT!$A$2:$A$10000,$B$5),INDEX(GPS_IMPORT!$2:$10000,MATCH($B$5,(GPS_IMPORT!$A$2:$A$10000),0)+ROWS($1:3)-1,COLUMN()-1),0) -> 3.10.2019 | D9: =IF(ROWS(GPS_IMPORT!$1:3)<=COUNTIF(GPS_IMPORT!$A$2:$A$10000,$B$5),INDEX(GPS_IMPORT!$2:$10000,MATCH($B$5,(GPS_IMPORT!$A$2:$A$10000),0)+ROWS($1:3)-1,COLUMN()-1),0) -> 00:47:18.700 | E9: =IF(ROWS(GPS_IMPORT!$1:3)<=COUNTIF(GPS_IMPORT!$A$2:$A$10000,$B$5),INDEX(GPS_IMPORT!$2:$10000,MATCH($B$5,(GPS_IMPORT!$A$2:$A$10000),0)+ROWS($1:3)-1,COLUMN()-1),0) -> 372819.6849 | F9: =IF(ROWS(GPS_IMPORT!$1:3)<=COUNTIF(GPS_IMPORT!$A$2:$A$10000,$B$5),INDEX(GPS_IMPORT!$2:$10000,MATCH($B$5,(GPS_IMPORT!$A$2:$A$10000),0)+ROWS($1:3)-1,COLUMN()-1),0) -> 2455642.178 | G9: =IF(ROWS(GPS_IMPORT!$1:3)<=COUNTIF(GPS_IMPORT!$A$2:$A$10000,$B$5),INDEX(GPS_IMPORT!$2:$10000,MATCH($B$5,(GPS_IMPORT!$A$2:$A$10000),0)+ROWS($1:3)-1,COLUMN()-1),0) -> 1050.187571 | H9: -0.0008999999263 | I9: 0.0111666671 | J9: -0.01432533333 | K9: TRUE
A10: 4 | B10: =IF(ROWS(GPS_IMPORT!$1:4)<=COUNTIF(GPS_IMPORT!$A$2:$A$10000,$B$5),INDEX(GPS_IMPORT!$2:$10000,MATCH($B$5,(GPS_IMPORT!$A$2:$A$10000),0)+ROWS($1:4)-1,COLUMN()-1),0) -> SV4 | C10: =IF(ROWS(GPS_IMPORT!$1:4)<=COUNTIF(GPS_IMPORT!$A$2:$A$10000,$B$5),INDEX(GPS_IMPORT!$2:$10000,MATCH($B$5,(GPS_IMPORT!$A$2:$A$10000),0)+ROWS($1:4)-1,COLUMN()-1),0) -> 3.10.2019 | D10: =IF(ROWS(GPS_IMPORT!$1:4)<=COUNTIF(GPS_IMPORT!$A$2:$A$10000,$B$5),INDEX(GPS_IMPORT!$2:$10000,MATCH($B$5,(GPS_IMPORT!$A$2:$A$10000),0)+ROWS($1:4)-1,COLUMN()-1),0) -> 00:47:31 | E10: =IF(ROWS(GPS_IMPORT!$1:4)<=COUNTIF(GPS_IMPORT!$A$2:$A$10000,$B$5),INDEX(GPS_IMPORT!$2:$10000,MATCH($B$5,(GPS_IMPORT!$A$2:$A$10000),0)+ROWS($1:4)-1,COLUMN()-1),0) -> 372819.6828 | F10: =IF(ROWS(GPS_IMPORT!$1:4)<=COUNTIF(GPS_IMPORT!$A$2:$A$10000,$B$5),INDEX(GPS_IMPORT!$2:$10000,MATCH($B$5,(GPS_IMPORT!$A$2:$A$10000),0)+ROWS($1:4)-1,COLUMN()-1),0) -> 2455642.171 | G10: =IF(ROWS(GPS_IMPORT!$1:4)<=COUNTIF(GPS_IMPORT!$A$2:$A$10000,$B$5),INDEX(GPS_IMPORT!$2:$10000,MATCH($B$5,(GPS_IMPORT!$A$2:$A$10000),0)+ROWS($1:4)-1,COLUMN()-1),0) -> 1050.209758 | H10: 0.001200000057 | I10: 0.01816666685 | J10: -0.03651233333 | K10: TRUE
A11: 5 | B11: =IF(ROWS(GPS_IMPORT!$1:5)<=COUNTIF(GPS_IMPORT!$A$2:$A$10000,$B$5),INDEX(GPS_IMPORT!$2:$10000,MATCH($B$5,(GPS_IMPORT!$A$2:$A$10000),0)+ROWS($1:5)-1,COLUMN()-1),0) -> SV4 | C11: =IF(ROWS(GPS_IMPORT!$1:5)<=COUNTIF(GPS_IMPORT!$A$2:$A$10000,$B$5),INDEX(GPS_IMPORT!$2:$10000,MATCH($B$5,(GPS_IMPORT!$A$2:$A$10000),0)+ROWS($1:5)-1,COLUMN()-1),0) -> 3.10.2019 | D11: =IF(ROWS(GPS_IMPORT!$1:5)<=COUNTIF(GPS_IMPORT!$A$2:$A$10000,$B$5),INDEX(GPS_IMPORT!$2:$10000,MATCH($B$5,(GPS_IMPORT!$A$2:$A$10000),0)+ROWS($1:5)-1,COLUMN()-1),0) -> 00:47:52.800 | E11: =IF(ROWS(GPS_IMPORT!$1:5)<=COUNTIF(GPS_IMPORT!$A$2:$A$10000,$B$5),INDEX(GPS_IMPORT!$2:$10000,MATCH($B$5,(GPS_IMPORT!$A$2:$A$10000),0)+ROWS($1:5)-1,COLUMN()-1),0) -> 372819.6817 | F11: =IF(ROWS(GPS_IMPORT!$1:5)<=COUNTIF(GPS_IMPORT!$A$2:$A$10000,$B$5),INDEX(GPS_IMPORT!$2:$10000,MATCH($B$5,(GPS_IMPORT!$A$2:$A$10000),0)+ROWS($1:5)-1,COLUMN()-1),0) -> 2455642.19 | G11: =IF(ROWS(GPS_IMPORT!$1:5)<=COUNTIF(GPS_IMPORT!$A$2:$A$10000,$B$5),INDEX(GPS_IMPORT!$2:$10000,MATCH($B$5,(GPS_IMPORT!$A$2:$A$10000),0)+ROWS($1:5)-1,COLUMN()-1),0) -> 1050.178557 | H11: 0.002300000051 | I11: -0.0008333330043 | J11: -0.005311333333 | K11: TRUE
A12: 6 | B12: =IF(ROWS(GPS_IMPORT!$1:6)<=COUNTIF(GPS_IMPORT!$A$2:$A$10000,$B$5),INDEX(GPS_IMPORT!$2:$10000,MATCH($B$5,(GPS_IMPORT!$A$2:$A$10000),0)+ROWS($1:6)-1,COLUMN()-1),0) -> SV4 | C12: =IF(ROWS(GPS_IMPORT!$1:6)<=COUNTIF(GPS_IMPORT!$A$2:$A$10000,$B$5),INDEX(GPS_IMPORT!$2:$10000,MATCH($B$5,(GPS_IMPORT!$A$2:$A$10000),0)+ROWS($1:6)-1,COLUMN()-1),0) -> 3.10.2019 | D12: =IF(ROWS(GPS_IMPORT!$1:6)<=COUNTIF(GPS_IMPORT!$A$2:$A$10000,$B$5),INDEX(GPS_IMPORT!$2:$10000,MATCH($B$5,(GPS_IMPORT!$A$2:$A$10000),0)+ROWS($1:6)-1,COLUMN()-1),0) -> 00:48:06 | E12: =IF(ROWS(GPS_IMPORT!$1:6)<=COUNTIF(GPS_IMPORT!$A$2:$A$10000,$B$5),INDEX(GPS_IMPORT!$2:$10000,MATCH($B$5,(GPS_IMPORT!$A$2:$A$10000),0)+ROWS($1:6)-1,COLUMN()-1),0) -> 372819.6859 | F12: =IF(ROWS(GPS_IMPORT!$1:6)<=COUNTIF(GPS_IMPORT!$A$2:$A$10000,$B$5),INDEX(GPS_IMPORT!$2:$10000,MATCH($B$5,(GPS_IMPORT!$A$2:$A$10000),0)+ROWS($1:6)-1,COLUMN()-1),0) -> 2455642.194 | G12: =IF(ROWS(GPS_IMPORT!$1:6)<=COUNTIF(GPS_IMPORT!$A$2:$A$10000,$B$5),INDEX(GPS_IMPORT!$2:$10000,MATCH($B$5,(GPS_IMPORT!$A$2:$A$10000),0)+ROWS($1:6)-1,COLUMN()-1),0) -> 1050.170725 | H12: -0.001899999916 | I12: -0.004833333194 | J12: 0.002520666667 | K12: TRUE
A13: 7 | B13: =IF(ROWS(GPS_IMPORT!$1:7)<=COUNTIF(GPS_IMPORT!$A$2:$A$10000,$B$5),INDEX(GPS_IMPORT!$2:$10000,MATCH($B$5,(GPS_IMPORT!$A$2:$A$10000),0)+ROWS($1:7)-1,COLUMN()-1),0) -> SV4 | C13: =IF(ROWS(GPS_IMPORT!$1:7)<=COUNTIF(GPS_IMPORT!$A$2:$A$10000,$B$5),INDEX(GPS_IMPORT!$2:$10000,MATCH($B$5,(GPS_IMPORT!$A$2:$A$10000),0)+ROWS($1:7)-1,COLUMN()-1),0) -> 3.10.2019 | D13: =IF(ROWS(GPS_IMPORT!$1:7)<=COUNTIF(GPS_IMPORT!$A$2:$A$10000,$B$5),INDEX(GPS_IMPORT!$2:$10000,MATCH($B$5,(GPS_IMPORT!$A$2:$A$10000),0)+ROWS($1:7)-1,COLUMN()-1),0) -> 00:48:17.900 | E13: =IF(ROWS(GPS_IMPORT!$1:7)<=COUNTIF(GPS_IMPORT!$A$2:$A$10000,$B$5),INDEX(GPS_IMPORT!$2:$10000,MATCH($B$5,(GPS_IMPORT!$A$2:$A$10000),0)+ROWS($1:7)-1,COLUMN()-1),0) -> 372819.6879 | F13: =IF(ROWS(GPS_IMPORT!$1:7)<=COUNTIF(GPS_IMPORT!$A$2:$A$10000,$B$5),INDEX(GPS_IMPORT!$2:$10000,MATCH($B$5,(GPS_IMPORT!$A$2:$A$10000),0)+ROWS($1:7)-1,COLUMN()-1),0) -> 2455642.189 | G13: =IF(ROWS(GPS_IMPORT!$1:7)<=COUNTIF(GPS_IMPORT!$A$2:$A$10000,$B$5),INDEX(GPS_IMPORT!$2:$10000,MATCH($B$5,(GPS_IMPORT!$A$2:$A$10000),0)+ROWS($1:7)-1,COLUMN()-1),0) -> 1050.188883 | H13: -0.003899999952 | I13: 0.0001666671596 | J13: -0.01563733333 | K13: TRUE
A14: 8 | B14: =IF(ROWS(GPS_IMPORT!$1:8)<=COUNTIF(GPS_IMPORT!$A$2:$A$10000,$B$5),INDEX(GPS_IMPORT!$2:$10000,MATCH($B$5,(GPS_IMPORT!$A$2:$A$10000),0)+ROWS($1:8)-1,COLUMN()-1),0) -> SV4 | C14: =IF(ROWS(GPS_IMPORT!$1:8)<=COUNTIF(GPS_IMPORT!$A$2:$A$10000,$B$5),INDEX(GPS_IMPORT!$2:$10000,MATCH($B$5,(GPS_IMPORT!$A$2:$A$10000),0)+ROWS($1:8)-1,COLUMN()-1),0) -> 3.10.2019 | D14: =IF(ROWS(GPS_IMPORT!$1:8)<=COUNTIF(GPS_IMPORT!$A$2:$A$10000,$B$5),INDEX(GPS_IMPORT!$2:$10000,MATCH($B$5,(GPS_IMPORT!$A$2:$A$10000),0)+ROWS($1:8)-1,COLUMN()-1),0) -> 00:48:31 | E14: =IF(ROWS(GPS_IMPORT!$1:8)<=COUNTIF(GPS_IMPORT!$A$2:$A$10000,$B$5),INDEX(GPS_IMPORT!$2:$10000,MATCH($B$5,(GPS_IMPORT!$A$2:$A$10000),0)+ROWS($1:8)-1,COLUMN()-1),0) -> 372819.6954 | F14: =IF(ROWS(GPS_IMPORT!$1:8)<=COUNTIF(GPS_IMPORT!$A$2:$A$10000,$B$5),INDEX(GPS_IMPORT!$2:$10000,MATCH($B$5,(GPS_IMPORT!$A$2:$A$10000),0)+ROWS($1:8)-1,COLUMN()-1),0) -> 2455642.2 | G14: =IF(ROWS(GPS_IMPORT!$1:8)<=COUNTIF(GPS_IMPORT!$A$2:$A$10000,$B$5),INDEX(GPS_IMPORT!$2:$10000,MATCH($B$5,(GPS_IMPORT!$A$2:$A$10000),0)+ROWS($1:8)-1,COLUMN()-1),0) -> 1050.175234 | H14: -0.01139999996 | I14: -0.01083333325 | J14: -0.001988333333 | K14: TRUE
A15: 9 | B15: =IF(ROWS(GPS_IMPORT!$1:9)<=COUNTIF(GPS_IMPORT!$A$2:$A$10000,$B$5),INDEX(GPS_IMPORT!$2:$10000,MATCH($B$5,(GPS_IMPORT!$A$2:$A$10000),0)+ROWS($1:9)-1,COLUMN()-1),0) -> SV4 | C15: =IF(ROWS(GPS_IMPORT!$1:9)<=COUNTIF(GPS_IMPORT!$A$2:$A$10000,$B$5),INDEX(GPS_IMPORT!$2:$10000,MATCH($B$5,(GPS_IMPORT!$A$2:$A$10000),0)+ROWS($1:9)-1,COLUMN()-1),0) -> 3.10.2019 | D15: =IF(ROWS(GPS_IMPORT!$1:9)<=COUNTIF(GPS_IMPORT!$A$2:$A$10000,$B$5),INDEX(GPS_IMPORT!$2:$10000,MATCH($B$5,(GPS_IMPORT!$A$2:$A$10000),0)+ROWS($1:9)-1,COLUMN()-1),0) -> 00:48:48.800 | E15: =IF(ROWS(GPS_IMPORT!$1:9)<=COUNTIF(GPS_IMPORT!$A$2:$A$10000,$B$5),INDEX(GPS_IMPORT!$2:$10000,MATCH($B$5,(GPS_IMPORT!$A$2:$A$10000),0)+ROWS($1:9)-1,COLUMN()-1),0) -> 372819.6895 | F15: =IF(ROWS(GPS_IMPORT!$1:9)<=COUNTIF(GPS_IMPORT!$A$2:$A$10000,$B$5),INDEX(GPS_IMPORT!$2:$10000,MATCH($B$5,(GPS_IMPORT!$A$2:$A$10000),0)+ROWS($1:9)-1,COLUMN()-1),0) -> 2455642.204 | G15: =IF(ROWS(GPS_IMPORT!$1:9)<=COUNTIF(GPS_IMPORT!$A$2:$A$10000,$B$5),INDEX(GPS_IMPORT!$2:$10000,MATCH($B$5,(GPS_IMPORT!$A$2:$A$10000),0)+ROWS($1:9)-1,COLUMN()-1),0) -> 1050.171057 | H15: -0.005499999912 | I15: -0.01483333297 | J15: 0.002188666667 | K15: TRUE
A16: 10 | B16: =IF(ROWS(GPS_IMPORT!$1:10)<=COUNTIF(GPS_IMPORT!$A$2:$A$10000,$B$5),INDEX(GPS_IMPORT!$2:$10000,MATCH($B$5,(GPS_IMPORT!$A$2:$A$10000),0)+ROWS($1:10)-1,COLUMN()-1),0) -> SV4 | C16: =IF(ROWS(GPS_IMPORT!$1:10)<=COUNTIF(GPS_IMPORT!$A$2:$A$10000,$B$5),INDEX(GPS_IMPORT!$2:$10000,MATCH($B$5,(GPS_IMPORT!$A$2:$A$10000),0)+ROWS($1:10)-1,COLUMN()-1),0) -> 3.10.2019 | D16: =IF(ROWS(GPS_IMPORT!$1:10)<=COUNTIF(GPS_IMPORT!$A$2:$A$10000,$B$5),INDEX(GPS_IMPORT!$2:$10000,MATCH($B$5,(GPS_IMPORT!$A$2:$A$10000),0)+ROWS($1:10)-1,COLUMN()-1),0) -> 00:48:59.800 | E16: =IF(ROWS(GPS_IMPORT!$1:10)<=COUNTIF(GPS_IMPORT!$A$2:$A$10000,$B$5),INDEX(GPS_IMPORT!$2:$10000,MATCH($B$5,(GPS_IMPORT!$A$2:$A$10000),0)+ROWS($1:10)-1,COLUMN()-1),0) -> 372819.6942 | F16: =IF(ROWS(GPS_IMPORT!$1:10)<=COUNTIF(GPS_IMPORT!$A$2:$A$10000,$B$5),INDEX(GPS_IMPORT!$2:$10000,MATCH($B$5,(GPS_IMPORT!$A$2:$A$10000),0)+ROWS($1:10)-1,COLUMN()-1),0) -> 2455642.201 | G16: =IF(ROWS(GPS_IMPORT!$1:10)<=COUNTIF(GPS_IMPORT!$A$2:$A$10000,$B$5),INDEX(GPS_IMPORT!$2:$10000,MATCH($B$5,(GPS_IMPORT!$A$2:$A$10000),0)+ROWS($1:10)-1,COLUMN()-1),0) -> 1050.156585 | H16: -0.01019999996 | I16: -0.01183333294 | J16: 0.01666066667 | K16: TRUE
A17: 11 | B17: =IF(ROWS(GPS_IMPORT!$1:11)<=COUNTIF(GPS_IMPORT!$A$2:$A$10000,$B$5),INDEX(GPS_IMPORT!$2:$10000,MATCH($B$5,(GPS_IMPORT!$A$2:$A$10000),0)+ROWS($1:11)-1,COLUMN()-1),0) -> SV4 | C17: =IF(ROWS(GPS_IMPORT!$1:11)<=COUNTIF(GPS_IMPORT!$A$2:$A$10000,$B$5),INDEX(GPS_IMPORT!$2:$10000,MATCH($B$5,(GPS_IMPORT!$A$2:$A$10000),0)+ROWS($1:11)-1,COLUMN()-1),0) -> 3.10.2019 | D17: =IF(ROWS(GPS_IMPORT!$1:11)<=COUNTIF(GPS_IMPORT!$A$2:$A$10000,$B$5),INDEX(GPS_IMPORT!$2:$10000,MATCH($B$5,(GPS_IMPORT!$A$2:$A$10000),0)+ROWS($1:11)-1,COLUMN()-1),0) -> 00:49:11 | E17: =IF(ROWS(GPS_IMPORT!$1:11)<=COUNTIF(GPS_IMPORT!$A$2:$A$10000,$B$5),INDEX(GPS_IMPORT!$2:$10000,MATCH($B$5,(GPS_IMPORT!$A$2:$A$10000),0)+ROWS($1:11)-1,COLUMN()-1),0) -> 372819.685 | F17: =IF(ROWS(GPS_IMPORT!$1:11)<=COUNTIF(GPS_IMPORT!$A$2:$A$10000,$B$5),INDEX(GPS_IMPORT!$2:$10000,MATCH($B$5,(GPS_IMPORT!$A$2:$A$10000),0)+ROWS($1:11)-1,COLUMN()-1),0) -> 2455642.194 | G17: =IF(ROWS(GPS_IMPORT!$1:11)<=COUNTIF(GPS_IMPORT!$A$2:$A$10000,$B$5),INDEX(GPS_IMPORT!$2:$10000,MATCH($B$5,(GPS_IMPORT!$A$2:$A$10000),0)+ROWS($1:11)-1,COLUMN()-1),0) -> 1050.132344 | H17: -0.0009999999311 | I17: -0.004833333194 | J17: 0.04090166667 | K17: TRUE
A18: 12 | B18: =IF(ROWS(GPS_IMPORT!$1:12)<=COUNTIF(GPS_IMPORT!$A$2:$A$10000,$B$5),INDEX(GPS_IMPORT!$2:$10000,MATCH($B$5,(GPS_IMPORT!$A$2:$A$10000),0)+ROWS($1:12)-1,COLUMN()-1),0) -> SV4 | C18: =IF(ROWS(GPS_IMPORT!$1:12)<=COUNTIF(GPS_IMPORT!$A$2:$A$10000,$B$5),INDEX(GPS_IMPORT!$2:$10000,MATCH($B$5,(GPS_IMPORT!$A$2:$A$10000),0)+ROWS($1:12)-1,COLUMN()-1),0) -> 3.10.2019 | D18: =IF(ROWS(GPS_IMPORT!$1:12)<=COUNTIF(GPS_IMPORT!$A$2:$A$10000,$B$5),INDEX(GPS_IMPORT!$2:$10000,MATCH($B$5,(GPS_IMPORT!$A$2:$A$10000),0)+ROWS($1:12)-1,COLUMN()-1),0) -> 00:49:22.700 | E18: =IF(ROWS(GPS_IMPORT!$1:12)<=COUNTIF(GPS_IMPORT!$A$2:$A$10000,$B$5),INDEX(GPS_IMPORT!$2:$10000,MATCH($B$5,(GPS_IMPORT!$A$2:$A$10000),0)+ROWS($1:12)-1,COLUMN()-1),0) -> 372819.6831 | F18: =IF(ROWS(GPS_IMPORT!$1:12)<=COUNTIF(GPS_IMPORT!$A$2:$A$10000,$B$5),INDEX(GPS_IMPORT!$2:$10000,MATCH($B$5,(GPS_IMPORT!$A$2:$A$10000),0)+ROWS($1:12)-1,COLUMN()-1),0) -> 2455642.199 | G18: =IF(ROWS(GPS_IMPORT!$1:12)<=COUNTIF(GPS_IMPORT!$A$2:$A$10000,$B$5),INDEX(GPS_IMPORT!$2:$10000,MATCH($B$5,(GPS_IMPORT!$A$2:$A$10000),0)+ROWS($1:12)-1,COLUMN()-1),0) -> 1050.131785 | H18: 0.0009000000427 | I18: -0.009833333082 | J18: 0.04146066667 | K18: TRUE
A19: 13 | B19: =IF(ROWS(GPS_IMPORT!$1:13)<=COUNTIF(GPS_IMPORT!$A$2:$A$10000,$B$5),INDEX(GPS_IMPORT!$2:$10000,MATCH($B$5,(GPS_IMPORT!$A$2:$A$10000),0)+ROWS($1:13)-1,COLUMN()-1),0) -> 0 | C19: =IF(ROWS(GPS_IMPORT!$1:13)<=COUNTIF(GPS_IMPORT!$A$2:$A$10000,$B$5),INDEX(GPS_IMPORT!$2:$10000,MATCH($B$5,(GPS_IMPORT!$A$2:$A$10000),0)+ROWS($1:13)-1,COLUMN()-1),0) -> 00:00:00 | D19: =IF(ROWS(GPS_IMPORT!$1:13)<=COUNTIF(GPS_IMPORT!$A$2:$A$10000,$B$5),INDEX(GPS_IMPORT!$2:$10000,MATCH($B$5,(GPS_IMPORT!$A$2:$A$10000),0)+ROWS($1:13)-1,COLUMN()-1),0) -> 00:00:00 | E19: =IF(ROWS(GPS_IMPORT!$1:13)<=COUNTIF(GPS_IMPORT!$A$2:$A$10000,$B$5),INDEX(GPS_IMPORT!$2:$10000,MATCH($B$5,(GPS_IMPORT!$A$2:$A$10000),0)+ROWS($1:13)-1,COLUMN()-1),0) -> 0 | F19: =IF(ROWS(GPS_IMPORT!$1:13)<=COUNTIF(GPS_IMPORT!$A$2:$A$10000,$B$5),INDEX(GPS_IMPORT!$2:$10000,MATCH($B$5,(GPS_IMPORT!$A$2:$A$10000),0)+ROWS($1:13)-1,COLUMN()-1),0) -> 0 | G19: =IF(ROWS(GPS_IMPORT!$1:13)<=COUNTIF(GPS_IMPORT!$A$2:$A$10000,$B$5),INDEX(GPS_IMPORT!$2:$10000,MATCH($B$5,(GPS_IMPORT!$A$2:$A$10000),0)+ROWS($1:13)-1,COLUMN()-1),0) -> 0 | H19: =IF(E19>0,E$22-E19,0) -> 0 | I19: 0 | J19: 0 | K19: FALSE
A20: 14 | B20: =IF(ROWS(GPS_IMPORT!$1:14)<=COUNTIF(GPS_IMPORT!$A$2:$A$10000,$B$5),INDEX(GPS_IMPORT!$2:$10000,MATCH($B$5,(GPS_IMPORT!$A$2:$A$10000),0)+ROWS($1:14)-1,COLUMN()-1),0) -> 0 | C20: =IF(ROWS(GPS_IMPORT!$1:14)<=COUNTIF(GPS_IMPORT!$A$2:$A$10000,$B$5),INDEX(GPS_IMPORT!$2:$10000,MATCH($B$5,(GPS_IMPORT!$A$2:$A$10000),0)+ROWS($1:14)-1,COLUMN()-1),0) -> 00:00:00 | D20: =IF(ROWS(GPS_IMPORT!$1:14)<=COUNTIF(GPS_IMPORT!$A$2:$A$10000,$B$5),INDEX(GPS_IMPORT!$2:$10000,MATCH($B$5,(GPS_IMPORT!$A$2:$A$10000),0)+ROWS($1:14)-1,COLUMN()-1),0) -> 00:00:00 | E20: =IF(ROWS(GPS_IMPORT!$1:14)<=COUNTIF(GPS_IMPORT!$A$2:$A$10000,$B$5),INDEX(GPS_IMPORT!$2:$10000,MATCH($B$5,(GPS_IMPORT!$A$2:$A$10000),0)+ROWS($1:14)-1,COLUMN()-1),0) -> 0 | F20: =IF(ROWS(GPS_IMPORT!$1:14)<=COUNTIF(GPS_IMPORT!$A$2:$A$10000,$B$5),INDEX(GPS_IMPORT!$2:$10000,MATCH($B$5,(GPS_IMPORT!$A$2:$A$10000),0)+ROWS($1:14)-1,COLUMN()-1),0) -> 0 | G20: =IF(ROWS(GPS_IMPORT!$1:14)<=COUNTIF(GPS_IMPORT!$A$2:$A$10000,$B$5),INDEX(GPS_IMPORT!$2:$10000,MATCH($B$5,(GPS_IMPORT!$A$2:$A$10000),0)+ROWS($1:14)-1,COLUMN()-1),0) -> 0 | H20: 0 | I20: 0 | J20: 0 | K20: FALSE
A21: 15 | B21: =IF(ROWS(GPS_IMPORT!$1:15)<=COUNTIF(GPS_IMPORT!$A$2:$A$10000,$B$5),INDEX(GPS_IMPORT!$2:$10000,MATCH($B$5,(GPS_IMPORT!$A$2:$A$10000),0)+ROWS($1:15)-1,COLUMN()-1),0) -> 0 | C21: =IF(ROWS(GPS_IMPORT!$1:15)<=COUNTIF(GPS_IMPORT!$A$2:$A$10000,$B$5),INDEX(GPS_IMPORT!$2:$10000,MATCH($B$5,(GPS_IMPORT!$A$2:$A$10000),0)+ROWS($1:15)-1,COLUMN()-1),0) -> 00:00:00 | D21: =IF(ROWS(GPS_IMPORT!$1:15)<=COUNTIF(GPS_IMPORT!$A$2:$A$10000,$B$5),INDEX(GPS_IMPORT!$2:$10000,MATCH($B$5,(GPS_IMPORT!$A$2:$A$10000),0)+ROWS($1:15)-1,COLUMN()-1),0) -> 00:00:00 | E21: =IF(ROWS(GPS_IMPORT!$1:15)<=COUNTIF(GPS_IMPORT!$A$2:$A$10000,$B$5),INDEX(GPS_IMPORT!$2:$10000,MATCH($B$5,(GPS_IMPORT!$A$2:$A$10000),0)+ROWS($1:15)-1,COLUMN()-1),0) -> 0 | F21: =IF(ROWS(GPS_IMPORT!$1:15)<=COUNTIF(GPS_IMPORT!$A$2:$A$10000,$B$5),INDEX(GPS_IMPORT!$2:$10000,MATCH($B$5,(GPS_IMPORT!$A$2:$A$10000),0)+ROWS($1:15)-1,COLUMN()-1),0) -> 0 | G21: =IF(ROWS(GPS_IMPORT!$1:15)<=COUNTIF(GPS_IMPORT!$A$2:$A$10000,$B$5),INDEX(GPS_IMPORT!$2:$10000,MATCH($B$5,(GPS_IMPORT!$A$2:$A$10000),0)+ROWS($1:15)-1,COLUMN()-1),0) -> 0 | H21: 0 | I21: 0 | J21: 0 | K21: FALSE
D22: AVERAGE | E22: =(IF($K$7=TRUE,E7,0)+IF($K$8=TRUE,E8,0)+IF($K$9=TRUE,E9,0)+IF($K$10=TRUE,E10,0)+IF($K$11=TRUE,E11,0)+IF($K$12=TRUE,E12,0)+IF($K$13=TRUE,E13,0)+IF($K$14=TRUE,E14,0)+IF($K$15=TRUE,E15,0)+IF($K$16=TRUE,E16,0)+IF($K$17=TRUE,E17,0)+IF($K$18=TRUE,E18,0)+IF($K$19=TRUE,E19,0)+IF($K$20=TRUE,E20,0)+IF($K$21=TRUE,E21,0))/(IF($K$7=TRUE,1,0)+IF($K$8=TRUE,1,0)+IF($K$9=TRUE,1,0)+IF($K$10=TRUE,1,0)+IF($K$11=TRUE,1,0)+IF($K$12=TRUE,1,0)+IF($K$13=TRUE,1,0)+IF($K$14=TRUE,1,0)+IF($K$15=TRUE,1,0)+IF($K$16=TRUE,1,0)+IF($K$17=TRUE,1,0)+IF($K$18=TRUE,1,0)+IF($K$19=TRUE,1,0)+IF($K$20=TRUE,1,0)+IF($K$21=TRUE,1,0)) -> 372819.684 | F22: =(IF($K$7=TRUE,F7,0)+IF($K$8=TRUE,F8,0)+IF($K$9=TRUE,F9,0)+IF($K$10=TRUE,F10,0)+IF($K$11=TRUE,F11,0)+IF($K$12=TRUE,F12,0)+IF($K$13=TRUE,F13,0)+IF($K$14=TRUE,F14,0)+IF($K$15=TRUE,F15,0)+IF($K$16=TRUE,F16,0)+IF($K$17=TRUE,F17,0)+IF($K$18=TRUE,F18,0)+IF($K$19=TRUE,F19,0)+IF($K$20=TRUE,F20,0)+IF($K$21=TRUE,F21,0))/(IF($K$7=TRUE,1,0)+IF($K$8=TRUE,1,0)+IF($K$9=TRUE,1,0)+IF($K$10=TRUE,1,0)+IF($K$11=TRUE,1,0)+IF($K$12=TRUE,1,0)+IF($K$13=TRUE,1,0)+IF($K$14=TRUE,1,0)+IF($K$15=TRUE,1,0)+IF($K$16=TRUE,1,0)+IF($K$17=TRUE,1,0)+IF($K$18=TRUE,1,0)+IF($K$19=TRUE,1,0)+IF($K$20=TRUE,1,0)+IF($K$21=TRUE,1,0)) -> 2455642.189 | G22: =(IF($K$7=TRUE,G7,0)+IF($K$8=TRUE,G8,0)+IF($K$9=TRUE,G9,0)+IF($K$10=TRUE,G10,0)+IF($K$11=TRUE,G11,0)+IF($K$12=TRUE,G12,0)+IF($K$13=TRUE,G13,0)+IF($K$14=TRUE,G14,0)+IF($K$15=TRUE,G15,0)+IF($K$16=TRUE,G16,0)+IF($K$17=TRUE,G17,0)+IF($K$18=TRUE,G18,0)+IF($K$19=TRUE,G19,0)+IF($K$20=TRUE,G20,0)+IF($K$21=TRUE,G21,0))/ (IF($K$7=TRUE,1,0)+IF($K$8=TRUE,1,0)+IF($K$9=TRUE,1,0)+IF($K$10=TRUE,1,0)+IF($K$11=TRUE,1,0)+IF($K$12=TRUE,1,0)+IF($K$13=TRUE,1,0)+IF($K$14=TRUE,1,0)+IF($K$15=TRUE,1,0)+IF($K$16=TRUE,1,0)+IF($K$17=TRUE,1,0)+IF($K$18=TRUE,1,0)+IF($K$19=TRUE,1,0)+IF($K$20=TRUE,1,0)+IF($K$21=TRUE,1,0)) -> 1050.173246 | H22: RMSE: | I22: RMSE: | J22: RMSE:
G23: RMSE IN US SURVEY FEET: | H23: =SQRT(( (IF($K$7=TRUE,H7^2,0))+(IF($K$8=TRUE,H8^2,0))+(IF($K$9=TRUE,H9^2,0))+(IF($K$10=TRUE,H10^2,0))+(IF($K$11=TRUE,H11^2,0))+(IF($K$12=TRUE,H12^2,0))+(IF($K$13=TRUE,H13^2,0))+(IF($K$14=TRUE,H14^2,0))+(IF($K$15=TRUE,H15^2,0))+(IF($K$16=TRUE,H16^2,0))+(IF($K$17=TRUE,H17^2,0))+(IF($K$18=TRUE,H18^2,0))+(IF($K$19=TRUE,H19^2,0))+(IF($K$20=TRUE,H20^2,0))+(IF($K$21=TRUE,H21^2,0)))/ (IF($K$7=TRUE,1,0)+IF($K$8=TRUE,1,0)+IF($K$9=TRUE,1,0)+IF($K$10=TRUE,1,0)+IF($K$11=TRUE,1,0)+IF($K$12=TRUE,1,0)+IF($K$13=TRUE,1,0)+IF($K$14=TRUE,1,0)+IF($K$15=TRUE,1,0)+IF($K$16=TRUE,1,0)+IF($K$17=TRUE,1,0)+IF($K$18=TRUE,1,0)+IF($K$19=TRUE,1,0)+IF($K$20=TRUE,1,0)+IF($K$21=TRUE,1,0))) -> 0.008671889461 | I23: =SQRT(( (IF($K$7=TRUE,I7^2,0))+(IF($K$8=TRUE,I8^2,0))+(IF($K$9=TRUE,I9^2,0))+(IF($K$10=TRUE,I10^2,0))+(IF($K$11=TRUE,I11^2,0))+(IF($K$12=TRUE,I12^2,0))+(IF($K$13=TRUE,I13^2,0))+(IF($K$14=TRUE,I14^2,0))+(IF($K$15=TRUE,I15^2,0))+(IF($K$16=TRUE,I16^2,0))+(IF($K$17=TRUE,I17^2,0))+(IF($K$18=TRUE,I18^2,0))+(IF($K$19=TRUE,I19^2,0))+(IF($K$20=TRUE,I20^2,0))+(IF($K$21=TRUE,I21^2,0)))/ (IF($K$7=TRUE,1,0)+IF($K$8=TRUE,1,0)+IF($K$9=TRUE,1,0)+IF($K$10=TRUE,1,0)+IF($K$11=TRUE,1,0)+IF($K$12=TRUE,1,0)+IF($K$13=TRUE,1,0)+IF($K$14=TRUE,1,0)+IF($K$15=TRUE,1,0)+IF($K$16=TRUE,1,0)+IF($K$17=TRUE,1,0)+IF($K$18=TRUE,1,0)+IF($K$19=TRUE,1,0)+IF($K$20=TRUE,1,0)+IF($K$21=TRUE,1,0))) -> 0.01110430347 | J23: =SQRT(( (IF($K$7=TRUE,J7^2,0))+(IF($K$8=TRUE,J8^2,0))+(IF($K$9=TRUE,J9^2,0))+(IF($K$10=TRUE,J10^2,0))+(IF($K$11=TRUE,J11^2,0))+(IF($K$12=TRUE,J12^2,0))+(IF($K$13=TRUE,J13^2,0))+(IF($K$14=TRUE,J14^2,0))+(IF($K$15=TRUE,J15^2,0))+(IF($K$16=TRUE,J16^2,0))+(IF($K$17=TRUE,J17^2,0))+(IF($K$18=TRUE,J18^2,0))+(IF($K$19=TRUE,J19^2,0))+(IF($K$20=TRUE,J20^2,0))+(IF($K$21=TRUE,J21^2,0)))/ (IF($K$7=TRUE,1,0)+IF($K$8=TRUE,1,0)+IF($K$9=TRUE,1,0)+IF($K$10=TRUE,1,0)+IF($K$11=TRUE,1,0)+IF($K$12=TRUE,1,0)+IF($K$13=TRUE,1,0)+IF($K$14=TRUE,1,0)+IF($K$15=TRUE,1,0)+IF($K$16=TRUE,1,0)+IF($K$17=TRUE,1,0)+IF($K$18=TRUE,1,0)+IF($K$19=TRUE,1,0)+IF($K$20=TRUE,1,0)+IF($K$21=TRUE,1,0))) -> 0.02273541788
D24: 1
C25: UNITLESS GRID TO GROUND MULTIPLIER | D25: =IF(REPORT!C13="n/a","0.00000000",REPORT!C13) -> 1.00009018 | H25: =IF(H23<=0.029,"PASS","FAIL") -> PASS | I25: =IF(I23<=0.029,"PASS","FAIL") -> PASS | J25: =IF(J23<=0.039,"PASS","FAIL") -> PASS
A27: AVERAGED GPS-DERIVED POSITION | I27: Notes:
B28: MONUMENT COORDINATES | D28: NORTHING | E28: EASTING | F28: ORTHO HEIGHT
B29: US Survey Feet (GRID) | D29: =$E$22 -> 372819.684 | E29: =$F$22 -> 2455642.189 | F29: =$G$22 -> 1050.173246
A31: LEVELED ELEVATION
A32: US SURVEY FEET | C32: =IFERROR(VLOOKUP(B5,'LEVEL RUN'!A8:I59,9,FALSE),"N/A") -> N/A | D32: (Type the leveled elevation or N/A if no leveled elevation is available)
A33: MONUMENT HELD | D33: (Type the monument name from which leveling originated)
A34: LEVELED ELEVATION - GPS DERIVED ELEVATION = | E34: =IF(C32="N/A","N/A",C32-(F29*D24)) -> N/A
A36: FINAL MONUMENT COORDINATES
B37: MONUMENT COORDINATES | D37: NORTHING | E37: EASTING | F37: ELEVATION | G37: FEATURE CODE
B38: US SURVEY FEET (GRID) | D38: =$E$22*$D$24 -> 372819.684 | E38: =$F$22*$D$24 -> 2455642.189 | F38: =IF($C$32="N/A",($G$22*$D$24),$C$32) -> 1050.173246 | G38: =VLOOKUP($B$5,GPS_IMPORT!$A$2:$G$2000,7,FALSE) -> AERTAR
B39: US SURVEY FEET (GROUND) | D39: =$D$38*$D$25 -> 372853.3049 | E39: =$E$38*$D$25 -> 2455863.639 | F39: =IF($C$32="N/A",($G$22*$D$24),$C$32) -> 1050.173246 | G39: =G38 -> AERTAR
A41: ∆ North, ∆ East, and ∆ Ht. are the difference between the average northing, easting, and height for each observation. | I41: Mask Angle: | J41: 10°

Sheet SV5
A1: VRS GNSS Project Control Monument Coordinate Analysis
A3: Project: | B3: =REPORT!B2 -> FRA-71-29.4 | C3: GPS Antenna: | D3: LEICA GS14 | J3: Report Date: | K3: =REPORT!C49 -> 2019-04-25
A4: PID: | B4: =REPORT!E2 -> 106471 | C4: VRS Network: | D4: ODOT VRS | J4: Prepared By: | K4: =REPORT!C48 -> Kolton Wilson
A5: Point ID: | B5: SV5 | C5: No. of Sessions: | D5: =COUNTIF(GPS_IMPORT!A2:A1000,$B$5) -> 12 | J5: Checked By: | K5: =REPORT!C52 -> David Ogden
A6: SESSION # | B6: Point | C6: Observation Date | D6: Start Time | E6: Northing(sft) | F6: Easting(sft) | G6: Height(sft) | H6: ∆ Northing(sft) | I6: ∆ Easting(sft) | J6: ∆ Height(sft) | K6: Include in Solution?
A7: 1 | B7: =IF(ROWS(GPS_IMPORT!$1:1)<=COUNTIF(GPS_IMPORT!$A$2:$A$10000,$B$5),INDEX(GPS_IMPORT!$2:$10000,MATCH($B$5,(GPS_IMPORT!$A$2:$A$10000),0)+ROWS($1:1)-1,COLUMN()-1),0) -> SV5 | C7: =IF(ROWS(GPS_IMPORT!$1:1)<=COUNTIF(GPS_IMPORT!$A$2:$A$10000,$B$5),INDEX(GPS_IMPORT!$2:$10000,MATCH($B$5,(GPS_IMPORT!$A$2:$A$10000),0)+ROWS($1:1)-1,COLUMN()-1),0) -> 3.10.2019 | D7: =IF(ROWS(GPS_IMPORT!$1:1)<=COUNTIF(GPS_IMPORT!$A$2:$A$10000,$B$5),INDEX(GPS_IMPORT!$2:$10000,MATCH($B$5,(GPS_IMPORT!$A$2:$A$10000),0)+ROWS($1:1)-1,COLUMN()-1),0) -> 00:55:16 | E7: =IF(ROWS(GPS_IMPORT!$1:1)<=COUNTIF(GPS_IMPORT!$A$2:$A$10000,$B$5),INDEX(GPS_IMPORT!$2:$10000,MATCH($B$5,(GPS_IMPORT!$A$2:$A$10000),0)+ROWS($1:1)-1,COLUMN()-1),0) -> 372152.4575 | F7: =IF(ROWS(GPS_IMPORT!$1:1)<=COUNTIF(GPS_IMPORT!$A$2:$A$10000,$B$5),INDEX(GPS_IMPORT!$2:$10000,MATCH($B$5,(GPS_IMPORT!$A$2:$A$10000),0)+ROWS($1:1)-1,COLUMN()-1),0) -> 2457046.191 | G7: =IF(ROWS(GPS_IMPORT!$1:1)<=COUNTIF(GPS_IMPORT!$A$2:$A$10000,$B$5),INDEX(GPS_IMPORT!$2:$10000,MATCH($B$5,(GPS_IMPORT!$A$2:$A$10000),0)+ROWS($1:1)-1,COLUMN()-1),0) -> 1086.083648 | H7: =IF(E7>0,E$22-E7,0) -> -0.008300000045 | I7: -0.004499999806 | J7: 0.02957908333 | K7: TRUE
A8: 2 | B8: =IF(ROWS(GPS_IMPORT!$1:2)<=COUNTIF(GPS_IMPORT!$A$2:$A$10000,$B$5),INDEX(GPS_IMPORT!$2:$10000,MATCH($B$5,(GPS_IMPORT!$A$2:$A$10000),0)+ROWS($1:2)-1,COLUMN()-1),0) -> SV5 | C8: =IF(ROWS(GPS_IMPORT!$1:2)<=COUNTIF(GPS_IMPORT!$A$2:$A$10000,$B$5),INDEX(GPS_IMPORT!$2:$10000,MATCH($B$5,(GPS_IMPORT!$A$2:$A$10000),0)+ROWS($1:2)-1,COLUMN()-1),0) -> 3.10.2019 | D8: =IF(ROWS(GPS_IMPORT!$1:2)<=COUNTIF(GPS_IMPORT!$A$2:$A$10000,$B$5),INDEX(GPS_IMPORT!$2:$10000,MATCH($B$5,(GPS_IMPORT!$A$2:$A$10000),0)+ROWS($1:2)-1,COLUMN()-1),0) -> 00:55:26 | E8: =IF(ROWS(GPS_IMPORT!$1:2)<=COUNTIF(GPS_IMPORT!$A$2:$A$10000,$B$5),INDEX(GPS_IMPORT!$2:$10000,MATCH($B$5,(GPS_IMPORT!$A$2:$A$10000),0)+ROWS($1:2)-1,COLUMN()-1),0) -> 372152.4557 | F8: =IF(ROWS(GPS_IMPORT!$1:2)<=COUNTIF(GPS_IMPORT!$A$2:$A$10000,$B$5),INDEX(GPS_IMPORT!$2:$10000,MATCH($B$5,(GPS_IMPORT!$A$2:$A$10000),0)+ROWS($1:2)-1,COLUMN()-1),0) -> 2457046.191 | G8: =IF(ROWS(GPS_IMPORT!$1:2)<=COUNTIF(GPS_IMPORT!$A$2:$A$10000,$B$5),INDEX(GPS_IMPORT!$2:$10000,MATCH($B$5,(GPS_IMPORT!$A$2:$A$10000),0)+ROWS($1:2)-1,COLUMN()-1),0) -> 1086.079234 | H8: -0.006500000018 | I8: -0.004499999806 | J8: 0.03399308333 | K8: TRUE
A9: 3 | B9: =IF(ROWS(GPS_IMPORT!$1:3)<=COUNTIF(GPS_IMPORT!$A$2:$A$10000,$B$5),INDEX(GPS_IMPORT!$2:$10000,MATCH($B$5,(GPS_IMPORT!$A$2:$A$10000),0)+ROWS($1:3)-1,COLUMN()-1),0) -> SV5 | C9: =IF(ROWS(GPS_IMPORT!$1:3)<=COUNTIF(GPS_IMPORT!$A$2:$A$10000,$B$5),INDEX(GPS_IMPORT!$2:$10000,MATCH($B$5,(GPS_IMPORT!$A$2:$A$10000),0)+ROWS($1:3)-1,COLUMN()-1),0) -> 3.10.2019 | D9: =IF(ROWS(GPS_IMPORT!$1:3)<=COUNTIF(GPS_IMPORT!$A$2:$A$10000,$B$5),INDEX(GPS_IMPORT!$2:$10000,MATCH($B$5,(GPS_IMPORT!$A$2:$A$10000),0)+ROWS($1:3)-1,COLUMN()-1),0) -> 00:55:36 | E9: =IF(ROWS(GPS_IMPORT!$1:3)<=COUNTIF(GPS_IMPORT!$A$2:$A$10000,$B$5),INDEX(GPS_IMPORT!$2:$10000,MATCH($B$5,(GPS_IMPORT!$A$2:$A$10000),0)+ROWS($1:3)-1,COLUMN()-1),0) -> 372152.4524 | F9: =IF(ROWS(GPS_IMPORT!$1:3)<=COUNTIF(GPS_IMPORT!$A$2:$A$10000,$B$5),INDEX(GPS_IMPORT!$2:$10000,MATCH($B$5,(GPS_IMPORT!$A$2:$A$10000),0)+ROWS($1:3)-1,COLUMN()-1),0) -> 2457046.19 | G9: =IF(ROWS(GPS_IMPORT!$1:3)<=COUNTIF(GPS_IMPORT!$A$2:$A$10000,$B$5),INDEX(GPS_IMPORT!$2:$10000,MATCH($B$5,(GPS_IMPORT!$A$2:$A$10000),0)+ROWS($1:3)-1,COLUMN()-1),0) -> 1086.067662 | H9: -0.003200000036 | I9: -0.003499999642 | J9: 0.04556508333 | K9: TRUE
A10: 4 | B10: =IF(ROWS(GPS_IMPORT!$1:4)<=COUNTIF(GPS_IMPORT!$A$2:$A$10000,$B$5),INDEX(GPS_IMPORT!$2:$10000,MATCH($B$5,(GPS_IMPORT!$A$2:$A$10000),0)+ROWS($1:4)-1,COLUMN()-1),0) -> SV5 | C10: =IF(ROWS(GPS_IMPORT!$1:4)<=COUNTIF(GPS_IMPORT!$A$2:$A$10000,$B$5),INDEX(GPS_IMPORT!$2:$10000,MATCH($B$5,(GPS_IMPORT!$A$2:$A$10000),0)+ROWS($1:4)-1,COLUMN()-1),0) -> 3.10.2019 | D10: =IF(ROWS(GPS_IMPORT!$1:4)<=COUNTIF(GPS_IMPORT!$A$2:$A$10000,$B$5),INDEX(GPS_IMPORT!$2:$10000,MATCH($B$5,(GPS_IMPORT!$A$2:$A$10000),0)+ROWS($1:4)-1,COLUMN()-1),0) -> 00:55:46 | E10: =IF(ROWS(GPS_IMPORT!$1:4)<=COUNTIF(GPS_IMPORT!$A$2:$A$10000,$B$5),INDEX(GPS_IMPORT!$2:$10000,MATCH($B$5,(GPS_IMPORT!$A$2:$A$10000),0)+ROWS($1:4)-1,COLUMN()-1),0) -> 372152.4411 | F10: =IF(ROWS(GPS_IMPORT!$1:4)<=COUNTIF(GPS_IMPORT!$A$2:$A$10000,$B$5),INDEX(GPS_IMPORT!$2:$10000,MATCH($B$5,(GPS_IMPORT!$A$2:$A$10000),0)+ROWS($1:4)-1,COLUMN()-1),0) -> 2457046.183 | G10: =IF(ROWS(GPS_IMPORT!$1:4)<=COUNTIF(GPS_IMPORT!$A$2:$A$10000,$B$5),INDEX(GPS_IMPORT!$2:$10000,MATCH($B$5,(GPS_IMPORT!$A$2:$A$10000),0)+ROWS($1:4)-1,COLUMN()-1),0) -> 1086.081458 | H10: 0.008099999977 | I10: 0.003500000108 | J10: 0.03176908333 | K10: TRUE
A11: 5 | B11: =IF(ROWS(GPS_IMPORT!$1:5)<=COUNTIF(GPS_IMPORT!$A$2:$A$10000,$B$5),INDEX(GPS_IMPORT!$2:$10000,MATCH($B$5,(GPS_IMPORT!$A$2:$A$10000),0)+ROWS($1:5)-1,COLUMN()-1),0) -> SV5 | C11: =IF(ROWS(GPS_IMPORT!$1:5)<=COUNTIF(GPS_IMPORT!$A$2:$A$10000,$B$5),INDEX(GPS_IMPORT!$2:$10000,MATCH($B$5,(GPS_IMPORT!$A$2:$A$10000),0)+ROWS($1:5)-1,COLUMN()-1),0) -> 3.10.2019 | D11: =IF(ROWS(GPS_IMPORT!$1:5)<=COUNTIF(GPS_IMPORT!$A$2:$A$10000,$B$5),INDEX(GPS_IMPORT!$2:$10000,MATCH($B$5,(GPS_IMPORT!$A$2:$A$10000),0)+ROWS($1:5)-1,COLUMN()-1),0) -> 00:56:01.100 | E11: =IF(ROWS(GPS_IMPORT!$1:5)<=COUNTIF(GPS_IMPORT!$A$2:$A$10000,$B$5),INDEX(GPS_IMPORT!$2:$10000,MATCH($B$5,(GPS_IMPORT!$A$2:$A$10000),0)+ROWS($1:5)-1,COLUMN()-1),0) -> 372152.4418 | F11: =IF(ROWS(GPS_IMPORT!$1:5)<=COUNTIF(GPS_IMPORT!$A$2:$A$10000,$B$5),INDEX(GPS_IMPORT!$2:$10000,MATCH($B$5,(GPS_IMPORT!$A$2:$A$10000),0)+ROWS($1:5)-1,COLUMN()-1),0) -> 2457046.181 | G11: =IF(ROWS(GPS_IMPORT!$1:5)<=COUNTIF(GPS_IMPORT!$A$2:$A$10000,$B$5),INDEX(GPS_IMPORT!$2:$10000,MATCH($B$5,(GPS_IMPORT!$A$2:$A$10000),0)+ROWS($1:5)-1,COLUMN()-1),0) -> 1086.091511 | H11: 0.007400000002 | I11: 0.005500000436 | J11: 0.02171608333 | K11: TRUE
A12: 6 | B12: =IF(ROWS(GPS_IMPORT!$1:6)<=COUNTIF(GPS_IMPORT!$A$2:$A$10000,$B$5),INDEX(GPS_IMPORT!$2:$10000,MATCH($B$5,(GPS_IMPORT!$A$2:$A$10000),0)+ROWS($1:6)-1,COLUMN()-1),0) -> SV5 | C12: =IF(ROWS(GPS_IMPORT!$1:6)<=COUNTIF(GPS_IMPORT!$A$2:$A$10000,$B$5),INDEX(GPS_IMPORT!$2:$10000,MATCH($B$5,(GPS_IMPORT!$A$2:$A$10000),0)+ROWS($1:6)-1,COLUMN()-1),0) -> 3.10.2019 | D12: =IF(ROWS(GPS_IMPORT!$1:6)<=COUNTIF(GPS_IMPORT!$A$2:$A$10000,$B$5),INDEX(GPS_IMPORT!$2:$10000,MATCH($B$5,(GPS_IMPORT!$A$2:$A$10000),0)+ROWS($1:6)-1,COLUMN()-1),0) -> 00:56:11.800 | E12: =IF(ROWS(GPS_IMPORT!$1:6)<=COUNTIF(GPS_IMPORT!$A$2:$A$10000,$B$5),INDEX(GPS_IMPORT!$2:$10000,MATCH($B$5,(GPS_IMPORT!$A$2:$A$10000),0)+ROWS($1:6)-1,COLUMN()-1),0) -> 372152.4486 | F12: =IF(ROWS(GPS_IMPORT!$1:6)<=COUNTIF(GPS_IMPORT!$A$2:$A$10000,$B$5),INDEX(GPS_IMPORT!$2:$10000,MATCH($B$5,(GPS_IMPORT!$A$2:$A$10000),0)+ROWS($1:6)-1,COLUMN()-1),0) -> 2457046.177 | G12: =IF(ROWS(GPS_IMPORT!$1:6)<=COUNTIF(GPS_IMPORT!$A$2:$A$10000,$B$5),INDEX(GPS_IMPORT!$2:$10000,MATCH($B$5,(GPS_IMPORT!$A$2:$A$10000),0)+ROWS($1:6)-1,COLUMN()-1),0) -> 1086.103574 | H12: 0.0005999999703 | I12: 0.00950000016 | J12: 0.009653083333 | K12: TRUE
A13: 7 | B13: =IF(ROWS(GPS_IMPORT!$1:7)<=COUNTIF(GPS_IMPORT!$A$2:$A$10000,$B$5),INDEX(GPS_IMPORT!$2:$10000,MATCH($B$5,(GPS_IMPORT!$A$2:$A$10000),0)+ROWS($1:7)-1,COLUMN()-1),0) -> SV5 | C13: =IF(ROWS(GPS_IMPORT!$1:7)<=COUNTIF(GPS_IMPORT!$A$2:$A$10000,$B$5),INDEX(GPS_IMPORT!$2:$10000,MATCH($B$5,(GPS_IMPORT!$A$2:$A$10000),0)+ROWS($1:7)-1,COLUMN()-1),0) -> 3.10.2019 | D13: =IF(ROWS(GPS_IMPORT!$1:7)<=COUNTIF(GPS_IMPORT!$A$2:$A$10000,$B$5),INDEX(GPS_IMPORT!$2:$10000,MATCH($B$5,(GPS_IMPORT!$A$2:$A$10000),0)+ROWS($1:7)-1,COLUMN()-1),0) -> 00:56:22.700 | E13: =IF(ROWS(GPS_IMPORT!$1:7)<=COUNTIF(GPS_IMPORT!$A$2:$A$10000,$B$5),INDEX(GPS_IMPORT!$2:$10000,MATCH($B$5,(GPS_IMPORT!$A$2:$A$10000),0)+ROWS($1:7)-1,COLUMN()-1),0) -> 372152.4354 | F13: =IF(ROWS(GPS_IMPORT!$1:7)<=COUNTIF(GPS_IMPORT!$A$2:$A$10000,$B$5),INDEX(GPS_IMPORT!$2:$10000,MATCH($B$5,(GPS_IMPORT!$A$2:$A$10000),0)+ROWS($1:7)-1,COLUMN()-1),0) -> 2457046.177 | G13: =IF(ROWS(GPS_IMPORT!$1:7)<=COUNTIF(GPS_IMPORT!$A$2:$A$10000,$B$5),INDEX(GPS_IMPORT!$2:$10000,MATCH($B$5,(GPS_IMPORT!$A$2:$A$10000),0)+ROWS($1:7)-1,COLUMN()-1),0) -> 1086.134238 | H13: 0.01379999996 | I13: 0.00950000016 | J13: -0.02101091667 | K13: TRUE
A14: 8 | B14: =IF(ROWS(GPS_IMPORT!$1:8)<=COUNTIF(GPS_IMPORT!$A$2:$A$10000,$B$5),INDEX(GPS_IMPORT!$2:$10000,MATCH($B$5,(GPS_IMPORT!$A$2:$A$10000),0)+ROWS($1:8)-1,COLUMN()-1),0) -> SV5 | C14: =IF(ROWS(GPS_IMPORT!$1:8)<=COUNTIF(GPS_IMPORT!$A$2:$A$10000,$B$5),INDEX(GPS_IMPORT!$2:$10000,MATCH($B$5,(GPS_IMPORT!$A$2:$A$10000),0)+ROWS($1:8)-1,COLUMN()-1),0) -> 3.10.2019 | D14: =IF(ROWS(GPS_IMPORT!$1:8)<=COUNTIF(GPS_IMPORT!$A$2:$A$10000,$B$5),INDEX(GPS_IMPORT!$2:$10000,MATCH($B$5,(GPS_IMPORT!$A$2:$A$10000),0)+ROWS($1:8)-1,COLUMN()-1),0) -> 00:56:34.800 | E14: =IF(ROWS(GPS_IMPORT!$1:8)<=COUNTIF(GPS_IMPORT!$A$2:$A$10000,$B$5),INDEX(GPS_IMPORT!$2:$10000,MATCH($B$5,(GPS_IMPORT!$A$2:$A$10000),0)+ROWS($1:8)-1,COLUMN()-1),0) -> 372152.4531 | F14: =IF(ROWS(GPS_IMPORT!$1:8)<=COUNTIF(GPS_IMPORT!$A$2:$A$10000,$B$5),INDEX(GPS_IMPORT!$2:$10000,MATCH($B$5,(GPS_IMPORT!$A$2:$A$10000),0)+ROWS($1:8)-1,COLUMN()-1),0) -> 2457046.189 | G14: =IF(ROWS(GPS_IMPORT!$1:8)<=COUNTIF(GPS_IMPORT!$A$2:$A$10000,$B$5),INDEX(GPS_IMPORT!$2:$10000,MATCH($B$5,(GPS_IMPORT!$A$2:$A$10000),0)+ROWS($1:8)-1,COLUMN()-1),0) -> 1086.122991 | H14: -0.003900000011 | I14: -0.002499999478 | J14: -0.009763916667 | K14: TRUE
A15: 9 | B15: =IF(ROWS(GPS_IMPORT!$1:9)<=COUNTIF(GPS_IMPORT!$A$2:$A$10000,$B$5),INDEX(GPS_IMPORT!$2:$10000,MATCH($B$5,(GPS_IMPORT!$A$2:$A$10000),0)+ROWS($1:9)-1,COLUMN()-1),0) -> SV5 | C15: =IF(ROWS(GPS_IMPORT!$1:9)<=COUNTIF(GPS_IMPORT!$A$2:$A$10000,$B$5),INDEX(GPS_IMPORT!$2:$10000,MATCH($B$5,(GPS_IMPORT!$A$2:$A$10000),0)+ROWS($1:9)-1,COLUMN()-1),0) -> 3.10.2019 | D15: =IF(ROWS(GPS_IMPORT!$1:9)<=COUNTIF(GPS_IMPORT!$A$2:$A$10000,$B$5),INDEX(GPS_IMPORT!$2:$10000,MATCH($B$5,(GPS_IMPORT!$A$2:$A$10000),0)+ROWS($1:9)-1,COLUMN()-1),0) -> 00:56:58.900 | E15: =IF(ROWS(GPS_IMPORT!$1:9)<=COUNTIF(GPS_IMPORT!$A$2:$A$10000,$B$5),INDEX(GPS_IMPORT!$2:$10000,MATCH($B$5,(GPS_IMPORT!$A$2:$A$10000),0)+ROWS($1:9)-1,COLUMN()-1),0) -> 372152.4532 | F15: =IF(ROWS(GPS_IMPORT!$1:9)<=COUNTIF(GPS_IMPORT!$A$2:$A$10000,$B$5),INDEX(GPS_IMPORT!$2:$10000,MATCH($B$5,(GPS_IMPORT!$A$2:$A$10000),0)+ROWS($1:9)-1,COLUMN()-1),0) -> 2457046.187 | G15: =IF(ROWS(GPS_IMPORT!$1:9)<=COUNTIF(GPS_IMPORT!$A$2:$A$10000,$B$5),INDEX(GPS_IMPORT!$2:$10000,MATCH($B$5,(GPS_IMPORT!$A$2:$A$10000),0)+ROWS($1:9)-1,COLUMN()-1),0) -> 1086.141419 | H15: -0.004000000015 | I15: -0.0004999996163 | J15: -0.02819191667 | K15: TRUE
A16: 10 | B16: =IF(ROWS(GPS_IMPORT!$1:10)<=COUNTIF(GPS_IMPORT!$A$2:$A$10000,$B$5),INDEX(GPS_IMPORT!$2:$10000,MATCH($B$5,(GPS_IMPORT!$A$2:$A$10000),0)+ROWS($1:10)-1,COLUMN()-1),0) -> SV5 | C16: =IF(ROWS(GPS_IMPORT!$1:10)<=COUNTIF(GPS_IMPORT!$A$2:$A$10000,$B$5),INDEX(GPS_IMPORT!$2:$10000,MATCH($B$5,(GPS_IMPORT!$A$2:$A$10000),0)+ROWS($1:10)-1,COLUMN()-1),0) -> 3.10.2019 | D16: =IF(ROWS(GPS_IMPORT!$1:10)<=COUNTIF(GPS_IMPORT!$A$2:$A$10000,$B$5),INDEX(GPS_IMPORT!$2:$10000,MATCH($B$5,(GPS_IMPORT!$A$2:$A$10000),0)+ROWS($1:10)-1,COLUMN()-1),0) -> 00:57:19.800 | E16: =IF(ROWS(GPS_IMPORT!$1:10)<=COUNTIF(GPS_IMPORT!$A$2:$A$10000,$B$5),INDEX(GPS_IMPORT!$2:$10000,MATCH($B$5,(GPS_IMPORT!$A$2:$A$10000),0)+ROWS($1:10)-1,COLUMN()-1),0) -> 372152.4484 | F16: =IF(ROWS(GPS_IMPORT!$1:10)<=COUNTIF(GPS_IMPORT!$A$2:$A$10000,$B$5),INDEX(GPS_IMPORT!$2:$10000,MATCH($B$5,(GPS_IMPORT!$A$2:$A$10000),0)+ROWS($1:10)-1,COLUMN()-1),0) -> 2457046.187 | G16: =IF(ROWS(GPS_IMPORT!$1:10)<=COUNTIF(GPS_IMPORT!$A$2:$A$10000,$B$5),INDEX(GPS_IMPORT!$2:$10000,MATCH($B$5,(GPS_IMPORT!$A$2:$A$10000),0)+ROWS($1:10)-1,COLUMN()-1),0) -> 1086.148356 | H16: 0.0007999999798 | I16: -0.0004999996163 | J16: -0.03512891667 | K16: TRUE
A17: 11 | B17: =IF(ROWS(GPS_IMPORT!$1:11)<=COUNTIF(GPS_IMPORT!$A$2:$A$10000,$B$5),INDEX(GPS_IMPORT!$2:$10000,MATCH($B$5,(GPS_IMPORT!$A$2:$A$10000),0)+ROWS($1:11)-1,COLUMN()-1),0) -> SV5 | C17: =IF(ROWS(GPS_IMPORT!$1:11)<=COUNTIF(GPS_IMPORT!$A$2:$A$10000,$B$5),INDEX(GPS_IMPORT!$2:$10000,MATCH($B$5,(GPS_IMPORT!$A$2:$A$10000),0)+ROWS($1:11)-1,COLUMN()-1),0) -> 3.10.2019 | D17: =IF(ROWS(GPS_IMPORT!$1:11)<=COUNTIF(GPS_IMPORT!$A$2:$A$10000,$B$5),INDEX(GPS_IMPORT!$2:$10000,MATCH($B$5,(GPS_IMPORT!$A$2:$A$10000),0)+ROWS($1:11)-1,COLUMN()-1),0) -> 00:57:31.100 | E17: =IF(ROWS(GPS_IMPORT!$1:11)<=COUNTIF(GPS_IMPORT!$A$2:$A$10000,$B$5),INDEX(GPS_IMPORT!$2:$10000,MATCH($B$5,(GPS_IMPORT!$A$2:$A$10000),0)+ROWS($1:11)-1,COLUMN()-1),0) -> 372152.4541 | F17: =IF(ROWS(GPS_IMPORT!$1:11)<=COUNTIF(GPS_IMPORT!$A$2:$A$10000,$B$5),INDEX(GPS_IMPORT!$2:$10000,MATCH($B$5,(GPS_IMPORT!$A$2:$A$10000),0)+ROWS($1:11)-1,COLUMN()-1),0) -> 2457046.19 | G17: =IF(ROWS(GPS_IMPORT!$1:11)<=COUNTIF(GPS_IMPORT!$A$2:$A$10000,$B$5),INDEX(GPS_IMPORT!$2:$10000,MATCH($B$5,(GPS_IMPORT!$A$2:$A$10000),0)+ROWS($1:11)-1,COLUMN()-1),0) -> 1086.148505 | H17: -0.0049 | I17: -0.003499999642 | J17: -0.03527791667 | K17: TRUE
A18: 12 | B18: =IF(ROWS(GPS_IMPORT!$1:12)<=COUNTIF(GPS_IMPORT!$A$2:$A$10000,$B$5),INDEX(GPS_IMPORT!$2:$10000,MATCH($B$5,(GPS_IMPORT!$A$2:$A$10000),0)+ROWS($1:12)-1,COLUMN()-1),0) -> SV5 | C18: =IF(ROWS(GPS_IMPORT!$1:12)<=COUNTIF(GPS_IMPORT!$A$2:$A$10000,$B$5),INDEX(GPS_IMPORT!$2:$10000,MATCH($B$5,(GPS_IMPORT!$A$2:$A$10000),0)+ROWS($1:12)-1,COLUMN()-1),0) -> 3.10.2019 | D18: =IF(ROWS(GPS_IMPORT!$1:12)<=COUNTIF(GPS_IMPORT!$A$2:$A$10000,$B$5),INDEX(GPS_IMPORT!$2:$10000,MATCH($B$5,(GPS_IMPORT!$A$2:$A$10000),0)+ROWS($1:12)-1,COLUMN()-1),0) -> 00:57:41.700 | E18: =IF(ROWS(GPS_IMPORT!$1:12)<=COUNTIF(GPS_IMPORT!$A$2:$A$10000,$B$5),INDEX(GPS_IMPORT!$2:$10000,MATCH($B$5,(GPS_IMPORT!$A$2:$A$10000),0)+ROWS($1:12)-1,COLUMN()-1),0) -> 372152.4491 | F18: =IF(ROWS(GPS_IMPORT!$1:12)<=COUNTIF(GPS_IMPORT!$A$2:$A$10000,$B$5),INDEX(GPS_IMPORT!$2:$10000,MATCH($B$5,(GPS_IMPORT!$A$2:$A$10000),0)+ROWS($1:12)-1,COLUMN()-1),0) -> 2457046.195 | G18: =IF(ROWS(GPS_IMPORT!$1:12)<=COUNTIF(GPS_IMPORT!$A$2:$A$10000,$B$5),INDEX(GPS_IMPORT!$2:$10000,MATCH($B$5,(GPS_IMPORT!$A$2:$A$10000),0)+ROWS($1:12)-1,COLUMN()-1),0) -> 1086.156129 | H18: 9.999994654e-05 | I18: -0.008499999531 | J18: -0.04290191667 | K18: TRUE
A19: 13 | B19: =IF(ROWS(GPS_IMPORT!$1:13)<=COUNTIF(GPS_IMPORT!$A$2:$A$10000,$B$5),INDEX(GPS_IMPORT!$2:$10000,MATCH($B$5,(GPS_IMPORT!$A$2:$A$10000),0)+ROWS($1:13)-1,COLUMN()-1),0) -> 0 | C19: =IF(ROWS(GPS_IMPORT!$1:13)<=COUNTIF(GPS_IMPORT!$A$2:$A$10000,$B$5),INDEX(GPS_IMPORT!$2:$10000,MATCH($B$5,(GPS_IMPORT!$A$2:$A$10000),0)+ROWS($1:13)-1,COLUMN()-1),0) -> 00:00:00 | D19: =IF(ROWS(GPS_IMPORT!$1:13)<=COUNTIF(GPS_IMPORT!$A$2:$A$10000,$B$5),INDEX(GPS_IMPORT!$2:$10000,MATCH($B$5,(GPS_IMPORT!$A$2:$A$10000),0)+ROWS($1:13)-1,COLUMN()-1),0) -> 00:00:00 | E19: =IF(ROWS(GPS_IMPORT!$1:13)<=COUNTIF(GPS_IMPORT!$A$2:$A$10000,$B$5),INDEX(GPS_IMPORT!$2:$10000,MATCH($B$5,(GPS_IMPORT!$A$2:$A$10000),0)+ROWS($1:13)-1,COLUMN()-1),0) -> 0 | F19: =IF(ROWS(GPS_IMPORT!$1:13)<=COUNTIF(GPS_IMPORT!$A$2:$A$10000,$B$5),INDEX(GPS_IMPORT!$2:$10000,MATCH($B$5,(GPS_IMPORT!$A$2:$A$10000),0)+ROWS($1:13)-1,COLUMN()-1),0) -> 0 | G19: =IF(ROWS(GPS_IMPORT!$1:13)<=COUNTIF(GPS_IMPORT!$A$2:$A$10000,$B$5),INDEX(GPS_IMPORT!$2:$10000,MATCH($B$5,(GPS_IMPORT!$A$2:$A$10000),0)+ROWS($1:13)-1,COLUMN()-1),0) -> 0 | H19: =IF(E19>0,E$22-E19,0) -> 0 | I19: 0 | J19: 0 | K19: FALSE
A20: 14 | B20: =IF(ROWS(GPS_IMPORT!$1:14)<=COUNTIF(GPS_IMPORT!$A$2:$A$10000,$B$5),INDEX(GPS_IMPORT!$2:$10000,MATCH($B$5,(GPS_IMPORT!$A$2:$A$10000),0)+ROWS($1:14)-1,COLUMN()-1),0) -> 0 | C20: =IF(ROWS(GPS_IMPORT!$1:14)<=COUNTIF(GPS_IMPORT!$A$2:$A$10000,$B$5),INDEX(GPS_IMPORT!$2:$10000,MATCH($B$5,(GPS_IMPORT!$A$2:$A$10000),0)+ROWS($1:14)-1,COLUMN()-1),0) -> 00:00:00 | D20: =IF(ROWS(GPS_IMPORT!$1:14)<=COUNTIF(GPS_IMPORT!$A$2:$A$10000,$B$5),INDEX(GPS_IMPORT!$2:$10000,MATCH($B$5,(GPS_IMPORT!$A$2:$A$10000),0)+ROWS($1:14)-1,COLUMN()-1),0) -> 00:00:00 | E20: =IF(ROWS(GPS_IMPORT!$1:14)<=COUNTIF(GPS_IMPORT!$A$2:$A$10000,$B$5),INDEX(GPS_IMPORT!$2:$10000,MATCH($B$5,(GPS_IMPORT!$A$2:$A$10000),0)+ROWS($1:14)-1,COLUMN()-1),0) -> 0 | F20: =IF(ROWS(GPS_IMPORT!$1:14)<=COUNTIF(GPS_IMPORT!$A$2:$A$10000,$B$5),INDEX(GPS_IMPORT!$2:$10000,MATCH($B$5,(GPS_IMPORT!$A$2:$A$10000),0)+ROWS($1:14)-1,COLUMN()-1),0) -> 0 | G20: =IF(ROWS(GPS_IMPORT!$1:14)<=COUNTIF(GPS_IMPORT!$A$2:$A$10000,$B$5),INDEX(GPS_IMPORT!$2:$10000,MATCH($B$5,(GPS_IMPORT!$A$2:$A$10000),0)+ROWS($1:14)-1,COLUMN()-1),0) -> 0 | H20: 0 | I20: 0 | J20: 0 | K20: FALSE
A21: 15 | B21: =IF(ROWS(GPS_IMPORT!$1:15)<=COUNTIF(GPS_IMPORT!$A$2:$A$10000,$B$5),INDEX(GPS_IMPORT!$2:$10000,MATCH($B$5,(GPS_IMPORT!$A$2:$A$10000),0)+ROWS($1:15)-1,COLUMN()-1),0) -> 0 | C21: =IF(ROWS(GPS_IMPORT!$1:15)<=COUNTIF(GPS_IMPORT!$A$2:$A$10000,$B$5),INDEX(GPS_IMPORT!$2:$10000,MATCH($B$5,(GPS_IMPORT!$A$2:$A$10000),0)+ROWS($1:15)-1,COLUMN()-1),0) -> 00:00:00 | D21: =IF(ROWS(GPS_IMPORT!$1:15)<=COUNTIF(GPS_IMPORT!$A$2:$A$10000,$B$5),INDEX(GPS_IMPORT!$2:$10000,MATCH($B$5,(GPS_IMPORT!$A$2:$A$10000),0)+ROWS($1:15)-1,COLUMN()-1),0) -> 00:00:00 | E21: =IF(ROWS(GPS_IMPORT!$1:15)<=COUNTIF(GPS_IMPORT!$A$2:$A$10000,$B$5),INDEX(GPS_IMPORT!$2:$10000,MATCH($B$5,(GPS_IMPORT!$A$2:$A$10000),0)+ROWS($1:15)-1,COLUMN()-1),0) -> 0 | F21: =IF(ROWS(GPS_IMPORT!$1:15)<=COUNTIF(GPS_IMPORT!$A$2:$A$10000,$B$5),INDEX(GPS_IMPORT!$2:$10000,MATCH($B$5,(GPS_IMPORT!$A$2:$A$10000),0)+ROWS($1:15)-1,COLUMN()-1),0) -> 0 | G21: =IF(ROWS(GPS_IMPORT!$1:15)<=COUNTIF(GPS_IMPORT!$A$2:$A$10000,$B$5),INDEX(GPS_IMPORT!$2:$10000,MATCH($B$5,(GPS_IMPORT!$A$2:$A$10000),0)+ROWS($1:15)-1,COLUMN()-1),0) -> 0 | H21: 0 | I21: 0 | J21: 0 | K21: FALSE
D22: AVERAGE | E22: =(IF($K$7=TRUE,E7,0)+IF($K$8=TRUE,E8,0)+IF($K$9=TRUE,E9,0)+IF($K$10=TRUE,E10,0)+IF($K$11=TRUE,E11,0)+IF($K$12=TRUE,E12,0)+IF($K$13=TRUE,E13,0)+IF($K$14=TRUE,E14,0)+IF($K$15=TRUE,E15,0)+IF($K$16=TRUE,E16,0)+IF($K$17=TRUE,E17,0)+IF($K$18=TRUE,E18,0)+IF($K$19=TRUE,E19,0)+IF($K$20=TRUE,E20,0)+IF($K$21=TRUE,E21,0))/(IF($K$7=TRUE,1,0)+IF($K$8=TRUE,1,0)+IF($K$9=TRUE,1,0)+IF($K$10=TRUE,1,0)+IF($K$11=TRUE,1,0)+IF($K$12=TRUE,1,0)+IF($K$13=TRUE,1,0)+IF($K$14=TRUE,1,0)+IF($K$15=TRUE,1,0)+IF($K$16=TRUE,1,0)+IF($K$17=TRUE,1,0)+IF($K$18=TRUE,1,0)+IF($K$19=TRUE,1,0)+IF($K$20=TRUE,1,0)+IF($K$21=TRUE,1,0)) -> 372152.4492 | F22: =(IF($K$7=TRUE,F7,0)+IF($K$8=TRUE,F8,0)+IF($K$9=TRUE,F9,0)+IF($K$10=TRUE,F10,0)+IF($K$11=TRUE,F11,0)+IF($K$12=TRUE,F12,0)+IF($K$13=TRUE,F13,0)+IF($K$14=TRUE,F14,0)+IF($K$15=TRUE,F15,0)+IF($K$16=TRUE,F16,0)+IF($K$17=TRUE,F17,0)+IF($K$18=TRUE,F18,0)+IF($K$19=TRUE,F19,0)+IF($K$20=TRUE,F20,0)+IF($K$21=TRUE,F21,0))/(IF($K$7=TRUE,1,0)+IF($K$8=TRUE,1,0)+IF($K$9=TRUE,1,0)+IF($K$10=TRUE,1,0)+IF($K$11=TRUE,1,0)+IF($K$12=TRUE,1,0)+IF($K$13=TRUE,1,0)+IF($K$14=TRUE,1,0)+IF($K$15=TRUE,1,0)+IF($K$16=TRUE,1,0)+IF($K$17=TRUE,1,0)+IF($K$18=TRUE,1,0)+IF($K$19=TRUE,1,0)+IF($K$20=TRUE,1,0)+IF($K$21=TRUE,1,0)) -> 2457046.187 | G22: =(IF($K$7=TRUE,G7,0)+IF($K$8=TRUE,G8,0)+IF($K$9=TRUE,G9,0)+IF($K$10=TRUE,G10,0)+IF($K$11=TRUE,G11,0)+IF($K$12=TRUE,G12,0)+IF($K$13=TRUE,G13,0)+IF($K$14=TRUE,G14,0)+IF($K$15=TRUE,G15,0)+IF($K$16=TRUE,G16,0)+IF($K$17=TRUE,G17,0)+IF($K$18=TRUE,G18,0)+IF($K$19=TRUE,G19,0)+IF($K$20=TRUE,G20,0)+IF($K$21=TRUE,G21,0))/ (IF($K$7=TRUE,1,0)+IF($K$8=TRUE,1,0)+IF($K$9=TRUE,1,0)+IF($K$10=TRUE,1,0)+IF($K$11=TRUE,1,0)+IF($K$12=TRUE,1,0)+IF($K$13=TRUE,1,0)+IF($K$14=TRUE,1,0)+IF($K$15=TRUE,1,0)+IF($K$16=TRUE,1,0)+IF($K$17=TRUE,1,0)+IF($K$18=TRUE,1,0)+IF($K$19=TRUE,1,0)+IF($K$20=TRUE,1,0)+IF($K$21=TRUE,1,0)) -> 1086.113227 | H22: RMSE: | I22: RMSE: | J22: RMSE:
G23: RMSE IN US SURVEY FEET: | H23: =SQRT(( (IF($K$7=TRUE,H7^2,0))+(IF($K$8=TRUE,H8^2,0))+(IF($K$9=TRUE,H9^2,0))+(IF($K$10=TRUE,H10^2,0))+(IF($K$11=TRUE,H11^2,0))+(IF($K$12=TRUE,H12^2,0))+(IF($K$13=TRUE,H13^2,0))+(IF($K$14=TRUE,H14^2,0))+(IF($K$15=TRUE,H15^2,0))+(IF($K$16=TRUE,H16^2,0))+(IF($K$17=TRUE,H17^2,0))+(IF($K$18=TRUE,H18^2,0))+(IF($K$19=TRUE,H19^2,0))+(IF($K$20=TRUE,H20^2,0))+(IF($K$21=TRUE,H21^2,0)))/ (IF($K$7=TRUE,1,0)+IF($K$8=TRUE,1,0)+IF($K$9=TRUE,1,0)+IF($K$10=TRUE,1,0)+IF($K$11=TRUE,1,0)+IF($K$12=TRUE,1,0)+IF($K$13=TRUE,1,0)+IF($K$14=TRUE,1,0)+IF($K$15=TRUE,1,0)+IF($K$16=TRUE,1,0)+IF($K$17=TRUE,1,0)+IF($K$18=TRUE,1,0)+IF($K$19=TRUE,1,0)+IF($K$20=TRUE,1,0)+IF($K$21=TRUE,1,0))) -> 0.006379785784 | I23: =SQRT(( (IF($K$7=TRUE,I7^2,0))+(IF($K$8=TRUE,I8^2,0))+(IF($K$9=TRUE,I9^2,0))+(IF($K$10=TRUE,I10^2,0))+(IF($K$11=TRUE,I11^2,0))+(IF($K$12=TRUE,I12^2,0))+(IF($K$13=TRUE,I13^2,0))+(IF($K$14=TRUE,I14^2,0))+(IF($K$15=TRUE,I15^2,0))+(IF($K$16=TRUE,I16^2,0))+(IF($K$17=TRUE,I17^2,0))+(IF($K$18=TRUE,I18^2,0))+(IF($K$19=TRUE,I19^2,0))+(IF($K$20=TRUE,I20^2,0))+(IF($K$21=TRUE,I21^2,0)))/ (IF($K$7=TRUE,1,0)+IF($K$8=TRUE,1,0)+IF($K$9=TRUE,1,0)+IF($K$10=TRUE,1,0)+IF($K$11=TRUE,1,0)+IF($K$12=TRUE,1,0)+IF($K$13=TRUE,1,0)+IF($K$14=TRUE,1,0)+IF($K$15=TRUE,1,0)+IF($K$16=TRUE,1,0)+IF($K$17=TRUE,1,0)+IF($K$18=TRUE,1,0)+IF($K$19=TRUE,1,0)+IF($K$20=TRUE,1,0)+IF($K$21=TRUE,1,0))) -> 0.005530219946 | J23: =SQRT(( (IF($K$7=TRUE,J7^2,0))+(IF($K$8=TRUE,J8^2,0))+(IF($K$9=TRUE,J9^2,0))+(IF($K$10=TRUE,J10^2,0))+(IF($K$11=TRUE,J11^2,0))+(IF($K$12=TRUE,J12^2,0))+(IF($K$13=TRUE,J13^2,0))+(IF($K$14=TRUE,J14^2,0))+(IF($K$15=TRUE,J15^2,0))+(IF($K$16=TRUE,J16^2,0))+(IF($K$17=TRUE,J17^2,0))+(IF($K$18=TRUE,J18^2,0))+(IF($K$19=TRUE,J19^2,0))+(IF($K$20=TRUE,J20^2,0))+(IF($K$21=TRUE,J21^2,0)))/ (IF($K$7=TRUE,1,0)+IF($K$8=TRUE,1,0)+IF($K$9=TRUE,1,0)+IF($K$10=TRUE,1,0)+IF($K$11=TRUE,1,0)+IF($K$12=TRUE,1,0)+IF($K$13=TRUE,1,0)+IF($K$14=TRUE,1,0)+IF($K$15=TRUE,1,0)+IF($K$16=TRUE,1,0)+IF($K$17=TRUE,1,0)+IF($K$18=TRUE,1,0)+IF($K$19=TRUE,1,0)+IF($K$20=TRUE,1,0)+IF($K$21=TRUE,1,0))) -> 0.03072918964
D24: 1
C25: UNITLESS GRID TO GROUND MULTIPLIER | D25: =IF(REPORT!C13="n/a","0.00000000",REPORT!C13) -> 1.00009018 | H25: =IF(H23<=0.029,"PASS","FAIL") -> PASS | I25: =IF(I23<=0.029,"PASS","FAIL") -> PASS | J25: =IF(J23<=0.039,"PASS","FAIL") -> PASS
A27: AVERAGED GPS-DERIVED POSITION | I27: Notes:
B28: MONUMENT COORDINATES | D28: NORTHING | E28: EASTING | F28: ORTHO HEIGHT
B29: US Survey Feet (GRID) | D29: =$E$22 -> 372152.4492 | E29: =$F$22 -> 2457046.187 | F29: =$G$22 -> 1086.113227
A31: LEVELED ELEVATION
A32: US SURVEY FEET | C32: =IFERROR(VLOOKUP(B5,'LEVEL RUN'!A8:I59,9,FALSE),"N/A") -> N/A | D32: (Type the leveled elevation or N/A if no leveled elevation is available)
A33: MONUMENT HELD | D33: (Type the monument name from which leveling originated)
A34: LEVELED ELEVATION - GPS DERIVED ELEVATION = | E34: =IF(C32="N/A","N/A",C32-(F29*D24)) -> N/A
A36: FINAL MONUMENT COORDINATES
B37: MONUMENT COORDINATES | D37: NORTHING | E37: EASTING | F37: ELEVATION | G37: FEATURE CODE
B38: US SURVEY FEET (GRID) | D38: =$E$22*$D$24 -> 372152.4492 | E38: =$F$22*$D$24 -> 2457046.187 | F38: =IF($C$32="N/A",($G$22*$D$24),$C$32) -> 1086.113227 | G38: =VLOOKUP($B$5,GPS_IMPORT!$A$2:$G$2000,7,FALSE) -> AERTAR
B39: US SURVEY FEET (GROUND) | D39: =$D$38*$D$25 -> 372186.0099 | E39: =$E$38*$D$25 -> 2457267.763 | F39: =IF($C$32="N/A",($G$22*$D$24),$C$32) -> 1086.113227 | G39: =G38 -> AERTAR
A41: ∆ North, ∆ East, and ∆ Ht. are the difference between the average northing, easting, and height for each observation. | I41: Mask Angle: | J41: 10°

Sheet CNTL1
A1: VRS GNSS Project Control Monument Coordinate Analysis
A3: Project: | B3: =REPORT!B2 -> FRA-71-29.4 | C3: GPS Antenna: | D3: LEICA GS14 | J3: Report Date: | K3: =REPORT!C49 -> 2019-04-25
A4: PID: | B4: =REPORT!E2 -> 106471 | C4: VRS Network: | D4: ODOT VRS | J4: Prepared By: | K4: =REPORT!C48 -> Kolton Wilson
A5: Point ID: | B5: CNTL1 | C5: No. of Sessions: | D5: =COUNTIF(GPS_IMPORT!A2:A1000,$B$5) -> 12 | J5: Checked By: | K5: =REPORT!C52 -> David Ogden
A6: SESSION # | B6: Point | C6: Observation Date | D6: Start Time | E6: Northing(sft) | F6: Easting(sft) | G6: Height(sft) | H6: ∆ Northing(sft) | I6: ∆ Easting(sft) | J6: ∆ Height(sft) | K6: Include in Solution?
A7: 1 | B7: =IF(ROWS(GPS_IMPORT!$1:1)<=COUNTIF(GPS_IMPORT!$A$2:$A$10000,$B$5),INDEX(GPS_IMPORT!$2:$10000,MATCH($B$5,(GPS_IMPORT!$A$2:$A$10000),0)+ROWS($1:1)-1,COLUMN()-1),0) -> CNTL1 | C7: =IF(ROWS(GPS_IMPORT!$1:1)<=COUNTIF(GPS_IMPORT!$A$2:$A$10000,$B$5),INDEX(GPS_IMPORT!$2:$10000,MATCH($B$5,(GPS_IMPORT!$A$2:$A$10000),0)+ROWS($1:1)-1,COLUMN()-1),0) -> 3.10.2019 | D7: =IF(ROWS(GPS_IMPORT!$1:1)<=COUNTIF(GPS_IMPORT!$A$2:$A$10000,$B$5),INDEX(GPS_IMPORT!$2:$10000,MATCH($B$5,(GPS_IMPORT!$A$2:$A$10000),0)+ROWS($1:1)-1,COLUMN()-1),0) -> 00:37:16.500 | E7: =IF(ROWS(GPS_IMPORT!$1:1)<=COUNTIF(GPS_IMPORT!$A$2:$A$10000,$B$5),INDEX(GPS_IMPORT!$2:$10000,MATCH($B$5,(GPS_IMPORT!$A$2:$A$10000),0)+ROWS($1:1)-1,COLUMN()-1),0) -> 376931.9647 | F7: =IF(ROWS(GPS_IMPORT!$1:1)<=COUNTIF(GPS_IMPORT!$A$2:$A$10000,$B$5),INDEX(GPS_IMPORT!$2:$10000,MATCH($B$5,(GPS_IMPORT!$A$2:$A$10000),0)+ROWS($1:1)-1,COLUMN()-1),0) -> 2458075.603 | G7: =IF(ROWS(GPS_IMPORT!$1:1)<=COUNTIF(GPS_IMPORT!$A$2:$A$10000,$B$5),INDEX(GPS_IMPORT!$2:$10000,MATCH($B$5,(GPS_IMPORT!$A$2:$A$10000),0)+ROWS($1:1)-1,COLUMN()-1),0) -> 1021.869206 | H7: =IF(E7>0,E$22-E7,0) -> 0.003958333342 | I7: -0.004833333194 | J7: -0.01579908333 | K7: TRUE
A8: 2 | B8: =IF(ROWS(GPS_IMPORT!$1:2)<=COUNTIF(GPS_IMPORT!$A$2:$A$10000,$B$5),INDEX(GPS_IMPORT!$2:$10000,MATCH($B$5,(GPS_IMPORT!$A$2:$A$10000),0)+ROWS($1:2)-1,COLUMN()-1),0) -> CNTL1 | C8: =IF(ROWS(GPS_IMPORT!$1:2)<=COUNTIF(GPS_IMPORT!$A$2:$A$10000,$B$5),INDEX(GPS_IMPORT!$2:$10000,MATCH($B$5,(GPS_IMPORT!$A$2:$A$10000),0)+ROWS($1:2)-1,COLUMN()-1),0) -> 3.10.2019 | D8: =IF(ROWS(GPS_IMPORT!$1:2)<=COUNTIF(GPS_IMPORT!$A$2:$A$10000,$B$5),INDEX(GPS_IMPORT!$2:$10000,MATCH($B$5,(GPS_IMPORT!$A$2:$A$10000),0)+ROWS($1:2)-1,COLUMN()-1),0) -> 00:37:25.100 | E8: =IF(ROWS(GPS_IMPORT!$1:2)<=COUNTIF(GPS_IMPORT!$A$2:$A$10000,$B$5),INDEX(GPS_IMPORT!$2:$10000,MATCH($B$5,(GPS_IMPORT!$A$2:$A$10000),0)+ROWS($1:2)-1,COLUMN()-1),0) -> 376931.9664 | F8: =IF(ROWS(GPS_IMPORT!$1:2)<=COUNTIF(GPS_IMPORT!$A$2:$A$10000,$B$5),INDEX(GPS_IMPORT!$2:$10000,MATCH($B$5,(GPS_IMPORT!$A$2:$A$10000),0)+ROWS($1:2)-1,COLUMN()-1),0) -> 2458075.596 | G8: =IF(ROWS(GPS_IMPORT!$1:2)<=COUNTIF(GPS_IMPORT!$A$2:$A$10000,$B$5),INDEX(GPS_IMPORT!$2:$10000,MATCH($B$5,(GPS_IMPORT!$A$2:$A$10000),0)+ROWS($1:2)-1,COLUMN()-1),0) -> 1021.86035 | H8: 0.002258333378 | I8: 0.002166667022 | J8: -0.006943083333 | K8: TRUE
A9: 3 | B9: =IF(ROWS(GPS_IMPORT!$1:3)<=COUNTIF(GPS_IMPORT!$A$2:$A$10000,$B$5),INDEX(GPS_IMPORT!$2:$10000,MATCH($B$5,(GPS_IMPORT!$A$2:$A$10000),0)+ROWS($1:3)-1,COLUMN()-1),0) -> CNTL1 | C9: =IF(ROWS(GPS_IMPORT!$1:3)<=COUNTIF(GPS_IMPORT!$A$2:$A$10000,$B$5),INDEX(GPS_IMPORT!$2:$10000,MATCH($B$5,(GPS_IMPORT!$A$2:$A$10000),0)+ROWS($1:3)-1,COLUMN()-1),0) -> 3.10.2019 | D9: =IF(ROWS(GPS_IMPORT!$1:3)<=COUNTIF(GPS_IMPORT!$A$2:$A$10000,$B$5),INDEX(GPS_IMPORT!$2:$10000,MATCH($B$5,(GPS_IMPORT!$A$2:$A$10000),0)+ROWS($1:3)-1,COLUMN()-1),0) -> 00:37:34.200 | E9: =IF(ROWS(GPS_IMPORT!$1:3)<=COUNTIF(GPS_IMPORT!$A$2:$A$10000,$B$5),INDEX(GPS_IMPORT!$2:$10000,MATCH($B$5,(GPS_IMPORT!$A$2:$A$10000),0)+ROWS($1:3)-1,COLUMN()-1),0) -> 376931.9692 | F9: =IF(ROWS(GPS_IMPORT!$1:3)<=COUNTIF(GPS_IMPORT!$A$2:$A$10000,$B$5),INDEX(GPS_IMPORT!$2:$10000,MATCH($B$5,(GPS_IMPORT!$A$2:$A$10000),0)+ROWS($1:3)-1,COLUMN()-1),0) -> 2458075.598 | G9: =IF(ROWS(GPS_IMPORT!$1:3)<=COUNTIF(GPS_IMPORT!$A$2:$A$10000,$B$5),INDEX(GPS_IMPORT!$2:$10000,MATCH($B$5,(GPS_IMPORT!$A$2:$A$10000),0)+ROWS($1:3)-1,COLUMN()-1),0) -> 1021.865102 | H9: -0.000541666639 | I9: 0.000166666694 | J9: -0.01169508333 | K9: TRUE
A10: 4 | B10: =IF(ROWS(GPS_IMPORT!$1:4)<=COUNTIF(GPS_IMPORT!$A$2:$A$10000,$B$5),INDEX(GPS_IMPORT!$2:$10000,MATCH($B$5,(GPS_IMPORT!$A$2:$A$10000),0)+ROWS($1:4)-1,COLUMN()-1),0) -> CNTL1 | C10: =IF(ROWS(GPS_IMPORT!$1:4)<=COUNTIF(GPS_IMPORT!$A$2:$A$10000,$B$5),INDEX(GPS_IMPORT!$2:$10000,MATCH($B$5,(GPS_IMPORT!$A$2:$A$10000),0)+ROWS($1:4)-1,COLUMN()-1),0) -> 3.10.2019 | D10: =IF(ROWS(GPS_IMPORT!$1:4)<=COUNTIF(GPS_IMPORT!$A$2:$A$10000,$B$5),INDEX(GPS_IMPORT!$2:$10000,MATCH($B$5,(GPS_IMPORT!$A$2:$A$10000),0)+ROWS($1:4)-1,COLUMN()-1),0) -> 00:37:45.100 | E10: =IF(ROWS(GPS_IMPORT!$1:4)<=COUNTIF(GPS_IMPORT!$A$2:$A$10000,$B$5),INDEX(GPS_IMPORT!$2:$10000,MATCH($B$5,(GPS_IMPORT!$A$2:$A$10000),0)+ROWS($1:4)-1,COLUMN()-1),0) -> 376931.9678 | F10: =IF(ROWS(GPS_IMPORT!$1:4)<=COUNTIF(GPS_IMPORT!$A$2:$A$10000,$B$5),INDEX(GPS_IMPORT!$2:$10000,MATCH($B$5,(GPS_IMPORT!$A$2:$A$10000),0)+ROWS($1:4)-1,COLUMN()-1),0) -> 2458075.599 | G10: =IF(ROWS(GPS_IMPORT!$1:4)<=COUNTIF(GPS_IMPORT!$A$2:$A$10000,$B$5),INDEX(GPS_IMPORT!$2:$10000,MATCH($B$5,(GPS_IMPORT!$A$2:$A$10000),0)+ROWS($1:4)-1,COLUMN()-1),0) -> 1021.866611 | H10: 0.0008583333693 | I10: -0.0008333330043 | J10: -0.01320408333 | K10: TRUE
A11: 5 | B11: =IF(ROWS(GPS_IMPORT!$1:5)<=COUNTIF(GPS_IMPORT!$A$2:$A$10000,$B$5),INDEX(GPS_IMPORT!$2:$10000,MATCH($B$5,(GPS_IMPORT!$A$2:$A$10000),0)+ROWS($1:5)-1,COLUMN()-1),0) -> CNTL1 | C11: =IF(ROWS(GPS_IMPORT!$1:5)<=COUNTIF(GPS_IMPORT!$A$2:$A$10000,$B$5),INDEX(GPS_IMPORT!$2:$10000,MATCH($B$5,(GPS_IMPORT!$A$2:$A$10000),0)+ROWS($1:5)-1,COLUMN()-1),0) -> 3.10.2019 | D11: =IF(ROWS(GPS_IMPORT!$1:5)<=COUNTIF(GPS_IMPORT!$A$2:$A$10000,$B$5),INDEX(GPS_IMPORT!$2:$10000,MATCH($B$5,(GPS_IMPORT!$A$2:$A$10000),0)+ROWS($1:5)-1,COLUMN()-1),0) -> 00:38:03.100 | E11: =IF(ROWS(GPS_IMPORT!$1:5)<=COUNTIF(GPS_IMPORT!$A$2:$A$10000,$B$5),INDEX(GPS_IMPORT!$2:$10000,MATCH($B$5,(GPS_IMPORT!$A$2:$A$10000),0)+ROWS($1:5)-1,COLUMN()-1),0) -> 376931.9695 | F11: =IF(ROWS(GPS_IMPORT!$1:5)<=COUNTIF(GPS_IMPORT!$A$2:$A$10000,$B$5),INDEX(GPS_IMPORT!$2:$10000,MATCH($B$5,(GPS_IMPORT!$A$2:$A$10000),0)+ROWS($1:5)-1,COLUMN()-1),0) -> 2458075.591 | G11: =IF(ROWS(GPS_IMPORT!$1:5)<=COUNTIF(GPS_IMPORT!$A$2:$A$10000,$B$5),INDEX(GPS_IMPORT!$2:$10000,MATCH($B$5,(GPS_IMPORT!$A$2:$A$10000),0)+ROWS($1:5)-1,COLUMN()-1),0) -> 1021.868127 | H11: -0.0008416666533 | I11: 0.00716666691 | J11: -0.01472008333 | K11: TRUE
A12: 6 | B12: =IF(ROWS(GPS_IMPORT!$1:6)<=COUNTIF(GPS_IMPORT!$A$2:$A$10000,$B$5),INDEX(GPS_IMPORT!$2:$10000,MATCH($B$5,(GPS_IMPORT!$A$2:$A$10000),0)+ROWS($1:6)-1,COLUMN()-1),0) -> CNTL1 | C12: =IF(ROWS(GPS_IMPORT!$1:6)<=COUNTIF(GPS_IMPORT!$A$2:$A$10000,$B$5),INDEX(GPS_IMPORT!$2:$10000,MATCH($B$5,(GPS_IMPORT!$A$2:$A$10000),0)+ROWS($1:6)-1,COLUMN()-1),0) -> 3.10.2019 | D12: =IF(ROWS(GPS_IMPORT!$1:6)<=COUNTIF(GPS_IMPORT!$A$2:$A$10000,$B$5),INDEX(GPS_IMPORT!$2:$10000,MATCH($B$5,(GPS_IMPORT!$A$2:$A$10000),0)+ROWS($1:6)-1,COLUMN()-1),0) -> 00:38:14 | E12: =IF(ROWS(GPS_IMPORT!$1:6)<=COUNTIF(GPS_IMPORT!$A$2:$A$10000,$B$5),INDEX(GPS_IMPORT!$2:$10000,MATCH($B$5,(GPS_IMPORT!$A$2:$A$10000),0)+ROWS($1:6)-1,COLUMN()-1),0) -> 376931.9726 | F12: =IF(ROWS(GPS_IMPORT!$1:6)<=COUNTIF(GPS_IMPORT!$A$2:$A$10000,$B$5),INDEX(GPS_IMPORT!$2:$10000,MATCH($B$5,(GPS_IMPORT!$A$2:$A$10000),0)+ROWS($1:6)-1,COLUMN()-1),0) -> 2458075.593 | G12: =IF(ROWS(GPS_IMPORT!$1:6)<=COUNTIF(GPS_IMPORT!$A$2:$A$10000,$B$5),INDEX(GPS_IMPORT!$2:$10000,MATCH($B$5,(GPS_IMPORT!$A$2:$A$10000),0)+ROWS($1:6)-1,COLUMN()-1),0) -> 1021.854132 | H12: -0.003941666626 | I12: 0.005166667048 | J12: -0.0007250833335 | K12: TRUE
A13: 7 | B13: =IF(ROWS(GPS_IMPORT!$1:7)<=COUNTIF(GPS_IMPORT!$A$2:$A$10000,$B$5),INDEX(GPS_IMPORT!$2:$10000,MATCH($B$5,(GPS_IMPORT!$A$2:$A$10000),0)+ROWS($1:7)-1,COLUMN()-1),0) -> CNTL1 | C13: =IF(ROWS(GPS_IMPORT!$1:7)<=COUNTIF(GPS_IMPORT!$A$2:$A$10000,$B$5),INDEX(GPS_IMPORT!$2:$10000,MATCH($B$5,(GPS_IMPORT!$A$2:$A$10000),0)+ROWS($1:7)-1,COLUMN()-1),0) -> 3.10.2019 | D13: =IF(ROWS(GPS_IMPORT!$1:7)<=COUNTIF(GPS_IMPORT!$A$2:$A$10000,$B$5),INDEX(GPS_IMPORT!$2:$10000,MATCH($B$5,(GPS_IMPORT!$A$2:$A$10000),0)+ROWS($1:7)-1,COLUMN()-1),0) -> 00:38:25 | E13: =IF(ROWS(GPS_IMPORT!$1:7)<=COUNTIF(GPS_IMPORT!$A$2:$A$10000,$B$5),INDEX(GPS_IMPORT!$2:$10000,MATCH($B$5,(GPS_IMPORT!$A$2:$A$10000),0)+ROWS($1:7)-1,COLUMN()-1),0) -> 376931.9665 | F13: =IF(ROWS(GPS_IMPORT!$1:7)<=COUNTIF(GPS_IMPORT!$A$2:$A$10000,$B$5),INDEX(GPS_IMPORT!$2:$10000,MATCH($B$5,(GPS_IMPORT!$A$2:$A$10000),0)+ROWS($1:7)-1,COLUMN()-1),0) -> 2458075.596 | G13: =IF(ROWS(GPS_IMPORT!$1:7)<=COUNTIF(GPS_IMPORT!$A$2:$A$10000,$B$5),INDEX(GPS_IMPORT!$2:$10000,MATCH($B$5,(GPS_IMPORT!$A$2:$A$10000),0)+ROWS($1:7)-1,COLUMN()-1),0) -> 1021.851454 | H13: 0.002158333373 | I13: 0.002166667022 | J13: 0.001952916667 | K13: TRUE
A14: 8 | B14: =IF(ROWS(GPS_IMPORT!$1:8)<=COUNTIF(GPS_IMPORT!$A$2:$A$10000,$B$5),INDEX(GPS_IMPORT!$2:$10000,MATCH($B$5,(GPS_IMPORT!$A$2:$A$10000),0)+ROWS($1:8)-1,COLUMN()-1),0) -> CNTL1 | C14: =IF(ROWS(GPS_IMPORT!$1:8)<=COUNTIF(GPS_IMPORT!$A$2:$A$10000,$B$5),INDEX(GPS_IMPORT!$2:$10000,MATCH($B$5,(GPS_IMPORT!$A$2:$A$10000),0)+ROWS($1:8)-1,COLUMN()-1),0) -> 3.10.2019 | D14: =IF(ROWS(GPS_IMPORT!$1:8)<=COUNTIF(GPS_IMPORT!$A$2:$A$10000,$B$5),INDEX(GPS_IMPORT!$2:$10000,MATCH($B$5,(GPS_IMPORT!$A$2:$A$10000),0)+ROWS($1:8)-1,COLUMN()-1),0) -> 00:38:35 | E14: =IF(ROWS(GPS_IMPORT!$1:8)<=COUNTIF(GPS_IMPORT!$A$2:$A$10000,$B$5),INDEX(GPS_IMPORT!$2:$10000,MATCH($B$5,(GPS_IMPORT!$A$2:$A$10000),0)+ROWS($1:8)-1,COLUMN()-1),0) -> 376931.9654 | F14: =IF(ROWS(GPS_IMPORT!$1:8)<=COUNTIF(GPS_IMPORT!$A$2:$A$10000,$B$5),INDEX(GPS_IMPORT!$2:$10000,MATCH($B$5,(GPS_IMPORT!$A$2:$A$10000),0)+ROWS($1:8)-1,COLUMN()-1),0) -> 2458075.598 | G14: =IF(ROWS(GPS_IMPORT!$1:8)<=COUNTIF(GPS_IMPORT!$A$2:$A$10000,$B$5),INDEX(GPS_IMPORT!$2:$10000,MATCH($B$5,(GPS_IMPORT!$A$2:$A$10000),0)+ROWS($1:8)-1,COLUMN()-1),0) -> 1021.848056 | H14: 0.003258333367 | I14: 0.000166666694 | J14: 0.005350916667 | K14: TRUE
A15: 9 | B15: =IF(ROWS(GPS_IMPORT!$1:9)<=COUNTIF(GPS_IMPORT!$A$2:$A$10000,$B$5),INDEX(GPS_IMPORT!$2:$10000,MATCH($B$5,(GPS_IMPORT!$A$2:$A$10000),0)+ROWS($1:9)-1,COLUMN()-1),0) -> CNTL1 | C15: =IF(ROWS(GPS_IMPORT!$1:9)<=COUNTIF(GPS_IMPORT!$A$2:$A$10000,$B$5),INDEX(GPS_IMPORT!$2:$10000,MATCH($B$5,(GPS_IMPORT!$A$2:$A$10000),0)+ROWS($1:9)-1,COLUMN()-1),0) -> 3.10.2019 | D15: =IF(ROWS(GPS_IMPORT!$1:9)<=COUNTIF(GPS_IMPORT!$A$2:$A$10000,$B$5),INDEX(GPS_IMPORT!$2:$10000,MATCH($B$5,(GPS_IMPORT!$A$2:$A$10000),0)+ROWS($1:9)-1,COLUMN()-1),0) -> 00:38:50 | E15: =IF(ROWS(GPS_IMPORT!$1:9)<=COUNTIF(GPS_IMPORT!$A$2:$A$10000,$B$5),INDEX(GPS_IMPORT!$2:$10000,MATCH($B$5,(GPS_IMPORT!$A$2:$A$10000),0)+ROWS($1:9)-1,COLUMN()-1),0) -> 376931.9709 | F15: =IF(ROWS(GPS_IMPORT!$1:9)<=COUNTIF(GPS_IMPORT!$A$2:$A$10000,$B$5),INDEX(GPS_IMPORT!$2:$10000,MATCH($B$5,(GPS_IMPORT!$A$2:$A$10000),0)+ROWS($1:9)-1,COLUMN()-1),0) -> 2458075.601 | G15: =IF(ROWS(GPS_IMPORT!$1:9)<=COUNTIF(GPS_IMPORT!$A$2:$A$10000,$B$5),INDEX(GPS_IMPORT!$2:$10000,MATCH($B$5,(GPS_IMPORT!$A$2:$A$10000),0)+ROWS($1:9)-1,COLUMN()-1),0) -> 1021.834984 | H15: -0.002241666662 | I15: -0.002833332866 | J15: 0.01842291667 | K15: TRUE
A16: 10 | B16: =IF(ROWS(GPS_IMPORT!$1:10)<=COUNTIF(GPS_IMPORT!$A$2:$A$10000,$B$5),INDEX(GPS_IMPORT!$2:$10000,MATCH($B$5,(GPS_IMPORT!$A$2:$A$10000),0)+ROWS($1:10)-1,COLUMN()-1),0) -> CNTL1 | C16: =IF(ROWS(GPS_IMPORT!$1:10)<=COUNTIF(GPS_IMPORT!$A$2:$A$10000,$B$5),INDEX(GPS_IMPORT!$2:$10000,MATCH($B$5,(GPS_IMPORT!$A$2:$A$10000),0)+ROWS($1:10)-1,COLUMN()-1),0) -> 3.10.2019 | D16: =IF(ROWS(GPS_IMPORT!$1:10)<=COUNTIF(GPS_IMPORT!$A$2:$A$10000,$B$5),INDEX(GPS_IMPORT!$2:$10000,MATCH($B$5,(GPS_IMPORT!$A$2:$A$10000),0)+ROWS($1:10)-1,COLUMN()-1),0) -> 00:39:00 | E16: =IF(ROWS(GPS_IMPORT!$1:10)<=COUNTIF(GPS_IMPORT!$A$2:$A$10000,$B$5),INDEX(GPS_IMPORT!$2:$10000,MATCH($B$5,(GPS_IMPORT!$A$2:$A$10000),0)+ROWS($1:10)-1,COLUMN()-1),0) -> 376931.9714 | F16: =IF(ROWS(GPS_IMPORT!$1:10)<=COUNTIF(GPS_IMPORT!$A$2:$A$10000,$B$5),INDEX(GPS_IMPORT!$2:$10000,MATCH($B$5,(GPS_IMPORT!$A$2:$A$10000),0)+ROWS($1:10)-1,COLUMN()-1),0) -> 2458075.6 | G16: =IF(ROWS(GPS_IMPORT!$1:10)<=COUNTIF(GPS_IMPORT!$A$2:$A$10000,$B$5),INDEX(GPS_IMPORT!$2:$10000,MATCH($B$5,(GPS_IMPORT!$A$2:$A$10000),0)+ROWS($1:10)-1,COLUMN()-1),0) -> 1021.838636 | H16: -0.002741666627 | I16: -0.001833333168 | J16: 0.01477091667 | K16: TRUE
A17: 11 | B17: =IF(ROWS(GPS_IMPORT!$1:11)<=COUNTIF(GPS_IMPORT!$A$2:$A$10000,$B$5),INDEX(GPS_IMPORT!$2:$10000,MATCH($B$5,(GPS_IMPORT!$A$2:$A$10000),0)+ROWS($1:11)-1,COLUMN()-1),0) -> CNTL1 | C17: =IF(ROWS(GPS_IMPORT!$1:11)<=COUNTIF(GPS_IMPORT!$A$2:$A$10000,$B$5),INDEX(GPS_IMPORT!$2:$10000,MATCH($B$5,(GPS_IMPORT!$A$2:$A$10000),0)+ROWS($1:11)-1,COLUMN()-1),0) -> 3.10.2019 | D17: =IF(ROWS(GPS_IMPORT!$1:11)<=COUNTIF(GPS_IMPORT!$A$2:$A$10000,$B$5),INDEX(GPS_IMPORT!$2:$10000,MATCH($B$5,(GPS_IMPORT!$A$2:$A$10000),0)+ROWS($1:11)-1,COLUMN()-1),0) -> 00:39:11.200 | E17: =IF(ROWS(GPS_IMPORT!$1:11)<=COUNTIF(GPS_IMPORT!$A$2:$A$10000,$B$5),INDEX(GPS_IMPORT!$2:$10000,MATCH($B$5,(GPS_IMPORT!$A$2:$A$10000),0)+ROWS($1:11)-1,COLUMN()-1),0) -> 376931.9709 | F17: =IF(ROWS(GPS_IMPORT!$1:11)<=COUNTIF(GPS_IMPORT!$A$2:$A$10000,$B$5),INDEX(GPS_IMPORT!$2:$10000,MATCH($B$5,(GPS_IMPORT!$A$2:$A$10000),0)+ROWS($1:11)-1,COLUMN()-1),0) -> 2458075.601 | G17: =IF(ROWS(GPS_IMPORT!$1:11)<=COUNTIF(GPS_IMPORT!$A$2:$A$10000,$B$5),INDEX(GPS_IMPORT!$2:$10000,MATCH($B$5,(GPS_IMPORT!$A$2:$A$10000),0)+ROWS($1:11)-1,COLUMN()-1),0) -> 1021.840596 | H17: -0.002241666662 | I17: -0.002833332866 | J17: 0.01281091667 | K17: TRUE
A18: 12 | B18: =IF(ROWS(GPS_IMPORT!$1:12)<=COUNTIF(GPS_IMPORT!$A$2:$A$10000,$B$5),INDEX(GPS_IMPORT!$2:$10000,MATCH($B$5,(GPS_IMPORT!$A$2:$A$10000),0)+ROWS($1:12)-1,COLUMN()-1),0) -> CNTL1 | C18: =IF(ROWS(GPS_IMPORT!$1:12)<=COUNTIF(GPS_IMPORT!$A$2:$A$10000,$B$5),INDEX(GPS_IMPORT!$2:$10000,MATCH($B$5,(GPS_IMPORT!$A$2:$A$10000),0)+ROWS($1:12)-1,COLUMN()-1),0) -> 3.10.2019 | D18: =IF(ROWS(GPS_IMPORT!$1:12)<=COUNTIF(GPS_IMPORT!$A$2:$A$10000,$B$5),INDEX(GPS_IMPORT!$2:$10000,MATCH($B$5,(GPS_IMPORT!$A$2:$A$10000),0)+ROWS($1:12)-1,COLUMN()-1),0) -> 00:39:23.900 | E18: =IF(ROWS(GPS_IMPORT!$1:12)<=COUNTIF(GPS_IMPORT!$A$2:$A$10000,$B$5),INDEX(GPS_IMPORT!$2:$10000,MATCH($B$5,(GPS_IMPORT!$A$2:$A$10000),0)+ROWS($1:12)-1,COLUMN()-1),0) -> 376931.9686 | F18: =IF(ROWS(GPS_IMPORT!$1:12)<=COUNTIF(GPS_IMPORT!$A$2:$A$10000,$B$5),INDEX(GPS_IMPORT!$2:$10000,MATCH($B$5,(GPS_IMPORT!$A$2:$A$10000),0)+ROWS($1:12)-1,COLUMN()-1),0) -> 2458075.602 | G18: =IF(ROWS(GPS_IMPORT!$1:12)<=COUNTIF(GPS_IMPORT!$A$2:$A$10000,$B$5),INDEX(GPS_IMPORT!$2:$10000,MATCH($B$5,(GPS_IMPORT!$A$2:$A$10000),0)+ROWS($1:12)-1,COLUMN()-1),0) -> 1021.843629 | H18: 5.833333125e-05 | I18: -0.00383333303 | J18: 0.009777916667 | K18: TRUE
A19: 13 | B19: =IF(ROWS(GPS_IMPORT!$1:13)<=COUNTIF(GPS_IMPORT!$A$2:$A$10000,$B$5),INDEX(GPS_IMPORT!$2:$10000,MATCH($B$5,(GPS_IMPORT!$A$2:$A$10000),0)+ROWS($1:13)-1,COLUMN()-1),0) -> 0 | C19: =IF(ROWS(GPS_IMPORT!$1:13)<=COUNTIF(GPS_IMPORT!$A$2:$A$10000,$B$5),INDEX(GPS_IMPORT!$2:$10000,MATCH($B$5,(GPS_IMPORT!$A$2:$A$10000),0)+ROWS($1:13)-1,COLUMN()-1),0) -> 00:00:00 | D19: =IF(ROWS(GPS_IMPORT!$1:13)<=COUNTIF(GPS_IMPORT!$A$2:$A$10000,$B$5),INDEX(GPS_IMPORT!$2:$10000,MATCH($B$5,(GPS_IMPORT!$A$2:$A$10000),0)+ROWS($1:13)-1,COLUMN()-1),0) -> 00:00:00 | E19: =IF(ROWS(GPS_IMPORT!$1:13)<=COUNTIF(GPS_IMPORT!$A$2:$A$10000,$B$5),INDEX(GPS_IMPORT!$2:$10000,MATCH($B$5,(GPS_IMPORT!$A$2:$A$10000),0)+ROWS($1:13)-1,COLUMN()-1),0) -> 0 | F19: =IF(ROWS(GPS_IMPORT!$1:13)<=COUNTIF(GPS_IMPORT!$A$2:$A$10000,$B$5),INDEX(GPS_IMPORT!$2:$10000,MATCH($B$5,(GPS_IMPORT!$A$2:$A$10000),0)+ROWS($1:13)-1,COLUMN()-1),0) -> 0 | G19: =IF(ROWS(GPS_IMPORT!$1:13)<=COUNTIF(GPS_IMPORT!$A$2:$A$10000,$B$5),INDEX(GPS_IMPORT!$2:$10000,MATCH($B$5,(GPS_IMPORT!$A$2:$A$10000),0)+ROWS($1:13)-1,COLUMN()-1),0) -> 0 | H19: =IF(E19>0,E$22-E19,0) -> 0 | I19: 0 | J19: 0 | K19: FALSE
A20: 14 | B20: =IF(ROWS(GPS_IMPORT!$1:14)<=COUNTIF(GPS_IMPORT!$A$2:$A$10000,$B$5),INDEX(GPS_IMPORT!$2:$10000,MATCH($B$5,(GPS_IMPORT!$A$2:$A$10000),0)+ROWS($1:14)-1,COLUMN()-1),0) -> 0 | C20: =IF(ROWS(GPS_IMPORT!$1:14)<=COUNTIF(GPS_IMPORT!$A$2:$A$10000,$B$5),INDEX(GPS_IMPORT!$2:$10000,MATCH($B$5,(GPS_IMPORT!$A$2:$A$10000),0)+ROWS($1:14)-1,COLUMN()-1),0) -> 00:00:00 | D20: =IF(ROWS(GPS_IMPORT!$1:14)<=COUNTIF(GPS_IMPORT!$A$2:$A$10000,$B$5),INDEX(GPS_IMPORT!$2:$10000,MATCH($B$5,(GPS_IMPORT!$A$2:$A$10000),0)+ROWS($1:14)-1,COLUMN()-1),0) -> 00:00:00 | E20: =IF(ROWS(GPS_IMPORT!$1:14)<=COUNTIF(GPS_IMPORT!$A$2:$A$10000,$B$5),INDEX(GPS_IMPORT!$2:$10000,MATCH($B$5,(GPS_IMPORT!$A$2:$A$10000),0)+ROWS($1:14)-1,COLUMN()-1),0) -> 0 | F20: =IF(ROWS(GPS_IMPORT!$1:14)<=COUNTIF(GPS_IMPORT!$A$2:$A$10000,$B$5),INDEX(GPS_IMPORT!$2:$10000,MATCH($B$5,(GPS_IMPORT!$A$2:$A$10000),0)+ROWS($1:14)-1,COLUMN()-1),0) -> 0 | G20: =IF(ROWS(GPS_IMPORT!$1:14)<=COUNTIF(GPS_IMPORT!$A$2:$A$10000,$B$5),INDEX(GPS_IMPORT!$2:$10000,MATCH($B$5,(GPS_IMPORT!$A$2:$A$10000),0)+ROWS($1:14)-1,COLUMN()-1),0) -> 0 | H20: 0 | I20: 0 | J20: 0 | K20: FALSE
A21: 15 | B21: =IF(ROWS(GPS_IMPORT!$1:15)<=COUNTIF(GPS_IMPORT!$A$2:$A$10000,$B$5),INDEX(GPS_IMPORT!$2:$10000,MATCH($B$5,(GPS_IMPORT!$A$2:$A$10000),0)+ROWS($1:15)-1,COLUMN()-1),0) -> 0 | C21: =IF(ROWS(GPS_IMPORT!$1:15)<=COUNTIF(GPS_IMPORT!$A$2:$A$10000,$B$5),INDEX(GPS_IMPORT!$2:$10000,MATCH($B$5,(GPS_IMPORT!$A$2:$A$10000),0)+ROWS($1:15)-1,COLUMN()-1),0) -> 00:00:00 | D21: =IF(ROWS(GPS_IMPORT!$1:15)<=COUNTIF(GPS_IMPORT!$A$2:$A$10000,$B$5),INDEX(GPS_IMPORT!$2:$10000,MATCH($B$5,(GPS_IMPORT!$A$2:$A$10000),0)+ROWS($1:15)-1,COLUMN()-1),0) -> 00:00:00 | E21: =IF(ROWS(GPS_IMPORT!$1:15)<=COUNTIF(GPS_IMPORT!$A$2:$A$10000,$B$5),INDEX(GPS_IMPORT!$2:$10000,MATCH($B$5,(GPS_IMPORT!$A$2:$A$10000),0)+ROWS($1:15)-1,COLUMN()-1),0) -> 0 | F21: =IF(ROWS(GPS_IMPORT!$1:15)<=COUNTIF(GPS_IMPORT!$A$2:$A$10000,$B$5),INDEX(GPS_IMPORT!$2:$10000,MATCH($B$5,(GPS_IMPORT!$A$2:$A$10000),0)+ROWS($1:15)-1,COLUMN()-1),0) -> 0 | G21: =IF(ROWS(GPS_IMPORT!$1:15)<=COUNTIF(GPS_IMPORT!$A$2:$A$10000,$B$5),INDEX(GPS_IMPORT!$2:$10000,MATCH($B$5,(GPS_IMPORT!$A$2:$A$10000),0)+ROWS($1:15)-1,COLUMN()-1),0) -> 0 | H21: 0 | I21: 0 | J21: 0 | K21: FALSE
D22: AVERAGE | E22: =(IF($K$7=TRUE,E7,0)+IF($K$8=TRUE,E8,0)+IF($K$9=TRUE,E9,0)+IF($K$10=TRUE,E10,0)+IF($K$11=TRUE,E11,0)+IF($K$12=TRUE,E12,0)+IF($K$13=TRUE,E13,0)+IF($K$14=TRUE,E14,0)+IF($K$15=TRUE,E15,0)+IF($K$16=TRUE,E16,0)+IF($K$17=TRUE,E17,0)+IF($K$18=TRUE,E18,0)+IF($K$19=TRUE,E19,0)+IF($K$20=TRUE,E20,0)+IF($K$21=TRUE,E21,0))/(IF($K$7=TRUE,1,0)+IF($K$8=TRUE,1,0)+IF($K$9=TRUE,1,0)+IF($K$10=TRUE,1,0)+IF($K$11=TRUE,1,0)+IF($K$12=TRUE,1,0)+IF($K$13=TRUE,1,0)+IF($K$14=TRUE,1,0)+IF($K$15=TRUE,1,0)+IF($K$16=TRUE,1,0)+IF($K$17=TRUE,1,0)+IF($K$18=TRUE,1,0)+IF($K$19=TRUE,1,0)+IF($K$20=TRUE,1,0)+IF($K$21=TRUE,1,0)) -> 376931.9687 | F22: =(IF($K$7=TRUE,F7,0)+IF($K$8=TRUE,F8,0)+IF($K$9=TRUE,F9,0)+IF($K$10=TRUE,F10,0)+IF($K$11=TRUE,F11,0)+IF($K$12=TRUE,F12,0)+IF($K$13=TRUE,F13,0)+IF($K$14=TRUE,F14,0)+IF($K$15=TRUE,F15,0)+IF($K$16=TRUE,F16,0)+IF($K$17=TRUE,F17,0)+IF($K$18=TRUE,F18,0)+IF($K$19=TRUE,F19,0)+IF($K$20=TRUE,F20,0)+IF($K$21=TRUE,F21,0))/(IF($K$7=TRUE,1,0)+IF($K$8=TRUE,1,0)+IF($K$9=TRUE,1,0)+IF($K$10=TRUE,1,0)+IF($K$11=TRUE,1,0)+IF($K$12=TRUE,1,0)+IF($K$13=TRUE,1,0)+IF($K$14=TRUE,1,0)+IF($K$15=TRUE,1,0)+IF($K$16=TRUE,1,0)+IF($K$17=TRUE,1,0)+IF($K$18=TRUE,1,0)+IF($K$19=TRUE,1,0)+IF($K$20=TRUE,1,0)+IF($K$21=TRUE,1,0)) -> 2458075.598 | G22: =(IF($K$7=TRUE,G7,0)+IF($K$8=TRUE,G8,0)+IF($K$9=TRUE,G9,0)+IF($K$10=TRUE,G10,0)+IF($K$11=TRUE,G11,0)+IF($K$12=TRUE,G12,0)+IF($K$13=TRUE,G13,0)+IF($K$14=TRUE,G14,0)+IF($K$15=TRUE,G15,0)+IF($K$16=TRUE,G16,0)+IF($K$17=TRUE,G17,0)+IF($K$18=TRUE,G18,0)+IF($K$19=TRUE,G19,0)+IF($K$20=TRUE,G20,0)+IF($K$21=TRUE,G21,0))/ (IF($K$7=TRUE,1,0)+IF($K$8=TRUE,1,0)+IF($K$9=TRUE,1,0)+IF($K$10=TRUE,1,0)+IF($K$11=TRUE,1,0)+IF($K$12=TRUE,1,0)+IF($K$13=TRUE,1,0)+IF($K$14=TRUE,1,0)+IF($K$15=TRUE,1,0)+IF($K$16=TRUE,1,0)+IF($K$17=TRUE,1,0)+IF($K$18=TRUE,1,0)+IF($K$19=TRUE,1,0)+IF($K$20=TRUE,1,0)+IF($K$21=TRUE,1,0)) -> 1021.853407 | H22: RMSE: | I22: RMSE: | J22: RMSE:
G23: RMSE IN US SURVEY FEET: | H23: =SQRT(( (IF($K$7=TRUE,H7^2,0))+(IF($K$8=TRUE,H8^2,0))+(IF($K$9=TRUE,H9^2,0))+(IF($K$10=TRUE,H10^2,0))+(IF($K$11=TRUE,H11^2,0))+(IF($K$12=TRUE,H12^2,0))+(IF($K$13=TRUE,H13^2,0))+(IF($K$14=TRUE,H14^2,0))+(IF($K$15=TRUE,H15^2,0))+(IF($K$16=TRUE,H16^2,0))+(IF($K$17=TRUE,H17^2,0))+(IF($K$18=TRUE,H18^2,0))+(IF($K$19=TRUE,H19^2,0))+(IF($K$20=TRUE,H20^2,0))+(IF($K$21=TRUE,H21^2,0)))/ (IF($K$7=TRUE,1,0)+IF($K$8=TRUE,1,0)+IF($K$9=TRUE,1,0)+IF($K$10=TRUE,1,0)+IF($K$11=TRUE,1,0)+IF($K$12=TRUE,1,0)+IF($K$13=TRUE,1,0)+IF($K$14=TRUE,1,0)+IF($K$15=TRUE,1,0)+IF($K$16=TRUE,1,0)+IF($K$17=TRUE,1,0)+IF($K$18=TRUE,1,0)+IF($K$19=TRUE,1,0)+IF($K$20=TRUE,1,0)+IF($K$21=TRUE,1,0))) -> 0.002430520636 | I23: =SQRT(( (IF($K$7=TRUE,I7^2,0))+(IF($K$8=TRUE,I8^2,0))+(IF($K$9=TRUE,I9^2,0))+(IF($K$10=TRUE,I10^2,0))+(IF($K$11=TRUE,I11^2,0))+(IF($K$12=TRUE,I12^2,0))+(IF($K$13=TRUE,I13^2,0))+(IF($K$14=TRUE,I14^2,0))+(IF($K$15=TRUE,I15^2,0))+(IF($K$16=TRUE,I16^2,0))+(IF($K$17=TRUE,I17^2,0))+(IF($K$18=TRUE,I18^2,0))+(IF($K$19=TRUE,I19^2,0))+(IF($K$20=TRUE,I20^2,0))+(IF($K$21=TRUE,I21^2,0)))/ (IF($K$7=TRUE,1,0)+IF($K$8=TRUE,1,0)+IF($K$9=TRUE,1,0)+IF($K$10=TRUE,1,0)+IF($K$11=TRUE,1,0)+IF($K$12=TRUE,1,0)+IF($K$13=TRUE,1,0)+IF($K$14=TRUE,1,0)+IF($K$15=TRUE,1,0)+IF($K$16=TRUE,1,0)+IF($K$17=TRUE,1,0)+IF($K$18=TRUE,1,0)+IF($K$19=TRUE,1,0)+IF($K$20=TRUE,1,0)+IF($K$21=TRUE,1,0))) -> 0.003484090832 | J23: =SQRT(( (IF($K$7=TRUE,J7^2,0))+(IF($K$8=TRUE,J8^2,0))+(IF($K$9=TRUE,J9^2,0))+(IF($K$10=TRUE,J10^2,0))+(IF($K$11=TRUE,J11^2,0))+(IF($K$12=TRUE,J12^2,0))+(IF($K$13=TRUE,J13^2,0))+(IF($K$14=TRUE,J14^2,0))+(IF($K$15=TRUE,J15^2,0))+(IF($K$16=TRUE,J16^2,0))+(IF($K$17=TRUE,J17^2,0))+(IF($K$18=TRUE,J18^2,0))+(IF($K$19=TRUE,J19^2,0))+(IF($K$20=TRUE,J20^2,0))+(IF($K$21=TRUE,J21^2,0)))/ (IF($K$7=TRUE,1,0)+IF($K$8=TRUE,1,0)+IF($K$9=TRUE,1,0)+IF($K$10=TRUE,1,0)+IF($K$11=TRUE,1,0)+IF($K$12=TRUE,1,0)+IF($K$13=TRUE,1,0)+IF($K$14=TRUE,1,0)+IF($K$15=TRUE,1,0)+IF($K$16=TRUE,1,0)+IF($K$17=TRUE,1,0)+IF($K$18=TRUE,1,0)+IF($K$19=TRUE,1,0)+IF($K$20=TRUE,1,0)+IF($K$21=TRUE,1,0))) -> 0.01181772715
D24: 1
C25: UNITLESS GRID TO GROUND MULTIPLIER | D25: =IF(REPORT!C13="n/a","0.00000000",REPORT!C13) -> 1.00009018 | H25: =IF(H23<=0.029,"PASS","FAIL") -> PASS | I25: =IF(I23<=0.029,"PASS","FAIL") -> PASS | J25: =IF(J23<=0.039,"PASS","FAIL") -> PASS
A27: AVERAGED GPS-DERIVED POSITION | I27: Notes:
B28: MONUMENT COORDINATES | D28: NORTHING | E28: EASTING | F28: ORTHO HEIGHT
B29: US Survey Feet (GRID) | D29: =$E$22 -> 376931.9687 | E29: =$F$22 -> 2458075.598 | F29: =$G$22 -> 1021.853407
A31: LEVELED ELEVATION
A32: US SURVEY FEET | C32: =IFERROR(VLOOKUP(B5,'LEVEL RUN'!A8:I59,9,FALSE),"N/A") -> 1021.853 | D32: (Type the leveled elevation or N/A if no leveled elevation is available)
A33: MONUMENT HELD | D33: (Type the monument name from which leveling originated)
A34: LEVELED ELEVATION - GPS DERIVED ELEVATION = | E34: =IF(C32="N/A","N/A",C32-(F29*D24)) -> -0.0004069166666
A36: FINAL MONUMENT COORDINATES
B37: MONUMENT COORDINATES | D37: NORTHING | E37: EASTING | F37: ELEVATION | G37: FEATURE CODE
B38: US SURVEY FEET (GRID) | D38: =$E$22*$D$24 -> 376931.9687 | E38: =$F$22*$D$24 -> 2458075.598 | F38: =IF($C$32="N/A",($G$22*$D$24),$C$32) -> 1021.853 | G38: =VLOOKUP($B$5,GPS_IMPORT!$A$2:$G$2000,7,FALSE) -> IPINS
B39: US SURVEY FEET (GROUND) | D39: =$D$38*$D$25 -> 376965.9604 | E39: =$E$38*$D$25 -> 2458297.267 | F39: =IF($C$32="N/A",($G$22*$D$24),$C$32) -> 1021.853 | G39: =G38 -> IPINS
A41: ∆ North, ∆ East, and ∆ Ht. are the difference between the average northing, easting, and height for each observation. | I41: Mask Angle: | J41: 10°

Sheet CNTL2
A1: VRS GNSS Project Control Monument Coordinate Analysis
A3: Project: | B3: =REPORT!B2 -> FRA-71-29.4 | C3: GPS Antenna: | D3: LEICA GS14 | J3: Report Date: | K3: =REPORT!C49 -> 2019-04-25
A4: PID: | B4: =REPORT!E2 -> 106471 | C4: VRS Network: | D4: ODOT VRS | J4: Prepared By: | K4: =REPORT!C48 -> Kolton Wilson
A5: Point ID: | B5: CNTL2 | C5: No. of Sessions: | D5: =COUNTIF(GPS_IMPORT!A2:A1000,$B$5) -> 12 | J5: Checked By: | K5: =REPORT!C52 -> David Ogden
A6: SESSION # | B6: Point | C6: Observation Date | D6: Start Time | E6: Northing(sft) | F6: Easting(sft) | G6: Height(sft) | H6: ∆ Northing(sft) | I6: ∆ Easting(sft) | J6: ∆ Height(sft) | K6: Include in Solution?
A7: 1 | B7: =IF(ROWS(GPS_IMPORT!$1:1)<=COUNTIF(GPS_IMPORT!$A$2:$A$10000,$B$5),INDEX(GPS_IMPORT!$2:$10000,MATCH($B$5,(GPS_IMPORT!$A$2:$A$10000),0)+ROWS($1:1)-1,COLUMN()-1),0) -> CNTL2 | C7: =IF(ROWS(GPS_IMPORT!$1:1)<=COUNTIF(GPS_IMPORT!$A$2:$A$10000,$B$5),INDEX(GPS_IMPORT!$2:$10000,MATCH($B$5,(GPS_IMPORT!$A$2:$A$10000),0)+ROWS($1:1)-1,COLUMN()-1),0) -> 3.10.2019 | D7: =IF(ROWS(GPS_IMPORT!$1:1)<=COUNTIF(GPS_IMPORT!$A$2:$A$10000,$B$5),INDEX(GPS_IMPORT!$2:$10000,MATCH($B$5,(GPS_IMPORT!$A$2:$A$10000),0)+ROWS($1:1)-1,COLUMN()-1),0) -> 00:41:43.100 | E7: =IF(ROWS(GPS_IMPORT!$1:1)<=COUNTIF(GPS_IMPORT!$A$2:$A$10000,$B$5),INDEX(GPS_IMPORT!$2:$10000,MATCH($B$5,(GPS_IMPORT!$A$2:$A$10000),0)+ROWS($1:1)-1,COLUMN()-1),0) -> 376988.9551 | F7: =IF(ROWS(GPS_IMPORT!$1:1)<=COUNTIF(GPS_IMPORT!$A$2:$A$10000,$B$5),INDEX(GPS_IMPORT!$2:$10000,MATCH($B$5,(GPS_IMPORT!$A$2:$A$10000),0)+ROWS($1:1)-1,COLUMN()-1),0) -> 2458323.44 | G7: =IF(ROWS(GPS_IMPORT!$1:1)<=COUNTIF(GPS_IMPORT!$A$2:$A$10000,$B$5),INDEX(GPS_IMPORT!$2:$10000,MATCH($B$5,(GPS_IMPORT!$A$2:$A$10000),0)+ROWS($1:1)-1,COLUMN()-1),0) -> 1012.845392 | H7: =IF(E7>0,E$22-E7,0) -> 0.00237500004 | I7: 0.007416666951 | J7: 0.03099508333 | K7: TRUE
A8: 2 | B8: =IF(ROWS(GPS_IMPORT!$1:2)<=COUNTIF(GPS_IMPORT!$A$2:$A$10000,$B$5),INDEX(GPS_IMPORT!$2:$10000,MATCH($B$5,(GPS_IMPORT!$A$2:$A$10000),0)+ROWS($1:2)-1,COLUMN()-1),0) -> CNTL2 | C8: =IF(ROWS(GPS_IMPORT!$1:2)<=COUNTIF(GPS_IMPORT!$A$2:$A$10000,$B$5),INDEX(GPS_IMPORT!$2:$10000,MATCH($B$5,(GPS_IMPORT!$A$2:$A$10000),0)+ROWS($1:2)-1,COLUMN()-1),0) -> 3.10.2019 | D8: =IF(ROWS(GPS_IMPORT!$1:2)<=COUNTIF(GPS_IMPORT!$A$2:$A$10000,$B$5),INDEX(GPS_IMPORT!$2:$10000,MATCH($B$5,(GPS_IMPORT!$A$2:$A$10000),0)+ROWS($1:2)-1,COLUMN()-1),0) -> 00:41:56.400 | E8: =IF(ROWS(GPS_IMPORT!$1:2)<=COUNTIF(GPS_IMPORT!$A$2:$A$10000,$B$5),INDEX(GPS_IMPORT!$2:$10000,MATCH($B$5,(GPS_IMPORT!$A$2:$A$10000),0)+ROWS($1:2)-1,COLUMN()-1),0) -> 376988.9587 | F8: =IF(ROWS(GPS_IMPORT!$1:2)<=COUNTIF(GPS_IMPORT!$A$2:$A$10000,$B$5),INDEX(GPS_IMPORT!$2:$10000,MATCH($B$5,(GPS_IMPORT!$A$2:$A$10000),0)+ROWS($1:2)-1,COLUMN()-1),0) -> 2458323.446 | G8: =IF(ROWS(GPS_IMPORT!$1:2)<=COUNTIF(GPS_IMPORT!$A$2:$A$10000,$B$5),INDEX(GPS_IMPORT!$2:$10000,MATCH($B$5,(GPS_IMPORT!$A$2:$A$10000),0)+ROWS($1:2)-1,COLUMN()-1),0) -> 1012.862208 | H8: -0.001224999956 | I8: 0.001416666899 | J8: 0.01417908333 | K8: TRUE
A9: 3 | B9: =IF(ROWS(GPS_IMPORT!$1:3)<=COUNTIF(GPS_IMPORT!$A$2:$A$10000,$B$5),INDEX(GPS_IMPORT!$2:$10000,MATCH($B$5,(GPS_IMPORT!$A$2:$A$10000),0)+ROWS($1:3)-1,COLUMN()-1),0) -> CNTL2 | C9: =IF(ROWS(GPS_IMPORT!$1:3)<=COUNTIF(GPS_IMPORT!$A$2:$A$10000,$B$5),INDEX(GPS_IMPORT!$2:$10000,MATCH($B$5,(GPS_IMPORT!$A$2:$A$10000),0)+ROWS($1:3)-1,COLUMN()-1),0) -> 3.10.2019 | D9: =IF(ROWS(GPS_IMPORT!$1:3)<=COUNTIF(GPS_IMPORT!$A$2:$A$10000,$B$5),INDEX(GPS_IMPORT!$2:$10000,MATCH($B$5,(GPS_IMPORT!$A$2:$A$10000),0)+ROWS($1:3)-1,COLUMN()-1),0) -> 00:42:08.100 | E9: =IF(ROWS(GPS_IMPORT!$1:3)<=COUNTIF(GPS_IMPORT!$A$2:$A$10000,$B$5),INDEX(GPS_IMPORT!$2:$10000,MATCH($B$5,(GPS_IMPORT!$A$2:$A$10000),0)+ROWS($1:3)-1,COLUMN()-1),0) -> 376988.9565 | F9: =IF(ROWS(GPS_IMPORT!$1:3)<=COUNTIF(GPS_IMPORT!$A$2:$A$10000,$B$5),INDEX(GPS_IMPORT!$2:$10000,MATCH($B$5,(GPS_IMPORT!$A$2:$A$10000),0)+ROWS($1:3)-1,COLUMN()-1),0) -> 2458323.449 | G9: =IF(ROWS(GPS_IMPORT!$1:3)<=COUNTIF(GPS_IMPORT!$A$2:$A$10000,$B$5),INDEX(GPS_IMPORT!$2:$10000,MATCH($B$5,(GPS_IMPORT!$A$2:$A$10000),0)+ROWS($1:3)-1,COLUMN()-1),0) -> 1012.877662 | H9: 0.00097500009 | I9: -0.001583333127 | J9: -0.001274916667 | K9: TRUE
A10: 4 | B10: =IF(ROWS(GPS_IMPORT!$1:4)<=COUNTIF(GPS_IMPORT!$A$2:$A$10000,$B$5),INDEX(GPS_IMPORT!$2:$10000,MATCH($B$5,(GPS_IMPORT!$A$2:$A$10000),0)+ROWS($1:4)-1,COLUMN()-1),0) -> CNTL2 | C10: =IF(ROWS(GPS_IMPORT!$1:4)<=COUNTIF(GPS_IMPORT!$A$2:$A$10000,$B$5),INDEX(GPS_IMPORT!$2:$10000,MATCH($B$5,(GPS_IMPORT!$A$2:$A$10000),0)+ROWS($1:4)-1,COLUMN()-1),0) -> 3.10.2019 | D10: =IF(ROWS(GPS_IMPORT!$1:4)<=COUNTIF(GPS_IMPORT!$A$2:$A$10000,$B$5),INDEX(GPS_IMPORT!$2:$10000,MATCH($B$5,(GPS_IMPORT!$A$2:$A$10000),0)+ROWS($1:4)-1,COLUMN()-1),0) -> 00:42:19.200 | E10: =IF(ROWS(GPS_IMPORT!$1:4)<=COUNTIF(GPS_IMPORT!$A$2:$A$10000,$B$5),INDEX(GPS_IMPORT!$2:$10000,MATCH($B$5,(GPS_IMPORT!$A$2:$A$10000),0)+ROWS($1:4)-1,COLUMN()-1),0) -> 376988.951 | F10: =IF(ROWS(GPS_IMPORT!$1:4)<=COUNTIF(GPS_IMPORT!$A$2:$A$10000,$B$5),INDEX(GPS_IMPORT!$2:$10000,MATCH($B$5,(GPS_IMPORT!$A$2:$A$10000),0)+ROWS($1:4)-1,COLUMN()-1),0) -> 2458323.454 | G10: =IF(ROWS(GPS_IMPORT!$1:4)<=COUNTIF(GPS_IMPORT!$A$2:$A$10000,$B$5),INDEX(GPS_IMPORT!$2:$10000,MATCH($B$5,(GPS_IMPORT!$A$2:$A$10000),0)+ROWS($1:4)-1,COLUMN()-1),0) -> 1012.872436 | H10: 0.00647500006 | I10: -0.006583333015 | J10: 0.003951083333 | K10: TRUE
A11: 5 | B11: =IF(ROWS(GPS_IMPORT!$1:5)<=COUNTIF(GPS_IMPORT!$A$2:$A$10000,$B$5),INDEX(GPS_IMPORT!$2:$10000,MATCH($B$5,(GPS_IMPORT!$A$2:$A$10000),0)+ROWS($1:5)-1,COLUMN()-1),0) -> CNTL2 | C11: =IF(ROWS(GPS_IMPORT!$1:5)<=COUNTIF(GPS_IMPORT!$A$2:$A$10000,$B$5),INDEX(GPS_IMPORT!$2:$10000,MATCH($B$5,(GPS_IMPORT!$A$2:$A$10000),0)+ROWS($1:5)-1,COLUMN()-1),0) -> 3.10.2019 | D11: =IF(ROWS(GPS_IMPORT!$1:5)<=COUNTIF(GPS_IMPORT!$A$2:$A$10000,$B$5),INDEX(GPS_IMPORT!$2:$10000,MATCH($B$5,(GPS_IMPORT!$A$2:$A$10000),0)+ROWS($1:5)-1,COLUMN()-1),0) -> 00:42:34.200 | E11: =IF(ROWS(GPS_IMPORT!$1:5)<=COUNTIF(GPS_IMPORT!$A$2:$A$10000,$B$5),INDEX(GPS_IMPORT!$2:$10000,MATCH($B$5,(GPS_IMPORT!$A$2:$A$10000),0)+ROWS($1:5)-1,COLUMN()-1),0) -> 376988.9547 | F11: =IF(ROWS(GPS_IMPORT!$1:5)<=COUNTIF(GPS_IMPORT!$A$2:$A$10000,$B$5),INDEX(GPS_IMPORT!$2:$10000,MATCH($B$5,(GPS_IMPORT!$A$2:$A$10000),0)+ROWS($1:5)-1,COLUMN()-1),0) -> 2458323.453 | G11: =IF(ROWS(GPS_IMPORT!$1:5)<=COUNTIF(GPS_IMPORT!$A$2:$A$10000,$B$5),INDEX(GPS_IMPORT!$2:$10000,MATCH($B$5,(GPS_IMPORT!$A$2:$A$10000),0)+ROWS($1:5)-1,COLUMN()-1),0) -> 1012.89104 | H11: 0.002775000059 | I11: -0.005583333317 | J11: -0.01465291667 | K11: TRUE
A12: 6 | B12: =IF(ROWS(GPS_IMPORT!$1:6)<=COUNTIF(GPS_IMPORT!$A$2:$A$10000,$B$5),INDEX(GPS_IMPORT!$2:$10000,MATCH($B$5,(GPS_IMPORT!$A$2:$A$10000),0)+ROWS($1:6)-1,COLUMN()-1),0) -> CNTL2 | C12: =IF(ROWS(GPS_IMPORT!$1:6)<=COUNTIF(GPS_IMPORT!$A$2:$A$10000,$B$5),INDEX(GPS_IMPORT!$2:$10000,MATCH($B$5,(GPS_IMPORT!$A$2:$A$10000),0)+ROWS($1:6)-1,COLUMN()-1),0) -> 3.10.2019 | D12: =IF(ROWS(GPS_IMPORT!$1:6)<=COUNTIF(GPS_IMPORT!$A$2:$A$10000,$B$5),INDEX(GPS_IMPORT!$2:$10000,MATCH($B$5,(GPS_IMPORT!$A$2:$A$10000),0)+ROWS($1:6)-1,COLUMN()-1),0) -> 00:42:45.100 | E12: =IF(ROWS(GPS_IMPORT!$1:6)<=COUNTIF(GPS_IMPORT!$A$2:$A$10000,$B$5),INDEX(GPS_IMPORT!$2:$10000,MATCH($B$5,(GPS_IMPORT!$A$2:$A$10000),0)+ROWS($1:6)-1,COLUMN()-1),0) -> 376988.9511 | F12: =IF(ROWS(GPS_IMPORT!$1:6)<=COUNTIF(GPS_IMPORT!$A$2:$A$10000,$B$5),INDEX(GPS_IMPORT!$2:$10000,MATCH($B$5,(GPS_IMPORT!$A$2:$A$10000),0)+ROWS($1:6)-1,COLUMN()-1),0) -> 2458323.452 | G12: =IF(ROWS(GPS_IMPORT!$1:6)<=COUNTIF(GPS_IMPORT!$A$2:$A$10000,$B$5),INDEX(GPS_IMPORT!$2:$10000,MATCH($B$5,(GPS_IMPORT!$A$2:$A$10000),0)+ROWS($1:6)-1,COLUMN()-1),0) -> 1012.887639 | H12: 0.006375000055 | I12: -0.004583333153 | J12: -0.01125191667 | K12: TRUE
A13: 7 | B13: =IF(ROWS(GPS_IMPORT!$1:7)<=COUNTIF(GPS_IMPORT!$A$2:$A$10000,$B$5),INDEX(GPS_IMPORT!$2:$10000,MATCH($B$5,(GPS_IMPORT!$A$2:$A$10000),0)+ROWS($1:7)-1,COLUMN()-1),0) -> CNTL2 | C13: =IF(ROWS(GPS_IMPORT!$1:7)<=COUNTIF(GPS_IMPORT!$A$2:$A$10000,$B$5),INDEX(GPS_IMPORT!$2:$10000,MATCH($B$5,(GPS_IMPORT!$A$2:$A$10000),0)+ROWS($1:7)-1,COLUMN()-1),0) -> 3.10.2019 | D13: =IF(ROWS(GPS_IMPORT!$1:7)<=COUNTIF(GPS_IMPORT!$A$2:$A$10000,$B$5),INDEX(GPS_IMPORT!$2:$10000,MATCH($B$5,(GPS_IMPORT!$A$2:$A$10000),0)+ROWS($1:7)-1,COLUMN()-1),0) -> 00:42:56.200 | E13: =IF(ROWS(GPS_IMPORT!$1:7)<=COUNTIF(GPS_IMPORT!$A$2:$A$10000,$B$5),INDEX(GPS_IMPORT!$2:$10000,MATCH($B$5,(GPS_IMPORT!$A$2:$A$10000),0)+ROWS($1:7)-1,COLUMN()-1),0) -> 376988.9535 | F13: =IF(ROWS(GPS_IMPORT!$1:7)<=COUNTIF(GPS_IMPORT!$A$2:$A$10000,$B$5),INDEX(GPS_IMPORT!$2:$10000,MATCH($B$5,(GPS_IMPORT!$A$2:$A$10000),0)+ROWS($1:7)-1,COLUMN()-1),0) -> 2458323.444 | G13: =IF(ROWS(GPS_IMPORT!$1:7)<=COUNTIF(GPS_IMPORT!$A$2:$A$10000,$B$5),INDEX(GPS_IMPORT!$2:$10000,MATCH($B$5,(GPS_IMPORT!$A$2:$A$10000),0)+ROWS($1:7)-1,COLUMN()-1),0) -> 1012.879321 | H13: 0.003975000058 | I13: 0.003416666761 | J13: -0.002933916667 | K13: TRUE
A14: 8 | B14: =IF(ROWS(GPS_IMPORT!$1:8)<=COUNTIF(GPS_IMPORT!$A$2:$A$10000,$B$5),INDEX(GPS_IMPORT!$2:$10000,MATCH($B$5,(GPS_IMPORT!$A$2:$A$10000),0)+ROWS($1:8)-1,COLUMN()-1),0) -> CNTL2 | C14: =IF(ROWS(GPS_IMPORT!$1:8)<=COUNTIF(GPS_IMPORT!$A$2:$A$10000,$B$5),INDEX(GPS_IMPORT!$2:$10000,MATCH($B$5,(GPS_IMPORT!$A$2:$A$10000),0)+ROWS($1:8)-1,COLUMN()-1),0) -> 3.10.2019 | D14: =IF(ROWS(GPS_IMPORT!$1:8)<=COUNTIF(GPS_IMPORT!$A$2:$A$10000,$B$5),INDEX(GPS_IMPORT!$2:$10000,MATCH($B$5,(GPS_IMPORT!$A$2:$A$10000),0)+ROWS($1:8)-1,COLUMN()-1),0) -> 00:43:07 | E14: =IF(ROWS(GPS_IMPORT!$1:8)<=COUNTIF(GPS_IMPORT!$A$2:$A$10000,$B$5),INDEX(GPS_IMPORT!$2:$10000,MATCH($B$5,(GPS_IMPORT!$A$2:$A$10000),0)+ROWS($1:8)-1,COLUMN()-1),0) -> 376988.9523 | F14: =IF(ROWS(GPS_IMPORT!$1:8)<=COUNTIF(GPS_IMPORT!$A$2:$A$10000,$B$5),INDEX(GPS_IMPORT!$2:$10000,MATCH($B$5,(GPS_IMPORT!$A$2:$A$10000),0)+ROWS($1:8)-1,COLUMN()-1),0) -> 2458323.446 | G14: =IF(ROWS(GPS_IMPORT!$1:8)<=COUNTIF(GPS_IMPORT!$A$2:$A$10000,$B$5),INDEX(GPS_IMPORT!$2:$10000,MATCH($B$5,(GPS_IMPORT!$A$2:$A$10000),0)+ROWS($1:8)-1,COLUMN()-1),0) -> 1012.885921 | H14: 0.005175000057 | I14: 0.001416666899 | J14: -0.009533916667 | K14: TRUE
A15: 9 | B15: =IF(ROWS(GPS_IMPORT!$1:9)<=COUNTIF(GPS_IMPORT!$A$2:$A$10000,$B$5),INDEX(GPS_IMPORT!$2:$10000,MATCH($B$5,(GPS_IMPORT!$A$2:$A$10000),0)+ROWS($1:9)-1,COLUMN()-1),0) -> CNTL2 | C15: =IF(ROWS(GPS_IMPORT!$1:9)<=COUNTIF(GPS_IMPORT!$A$2:$A$10000,$B$5),INDEX(GPS_IMPORT!$2:$10000,MATCH($B$5,(GPS_IMPORT!$A$2:$A$10000),0)+ROWS($1:9)-1,COLUMN()-1),0) -> 3.10.2019 | D15: =IF(ROWS(GPS_IMPORT!$1:9)<=COUNTIF(GPS_IMPORT!$A$2:$A$10000,$B$5),INDEX(GPS_IMPORT!$2:$10000,MATCH($B$5,(GPS_IMPORT!$A$2:$A$10000),0)+ROWS($1:9)-1,COLUMN()-1),0) -> 00:43:23.200 | E15: =IF(ROWS(GPS_IMPORT!$1:9)<=COUNTIF(GPS_IMPORT!$A$2:$A$10000,$B$5),INDEX(GPS_IMPORT!$2:$10000,MATCH($B$5,(GPS_IMPORT!$A$2:$A$10000),0)+ROWS($1:9)-1,COLUMN()-1),0) -> 376988.9616 | F15: =IF(ROWS(GPS_IMPORT!$1:9)<=COUNTIF(GPS_IMPORT!$A$2:$A$10000,$B$5),INDEX(GPS_IMPORT!$2:$10000,MATCH($B$5,(GPS_IMPORT!$A$2:$A$10000),0)+ROWS($1:9)-1,COLUMN()-1),0) -> 2458323.445 | G15: =IF(ROWS(GPS_IMPORT!$1:9)<=COUNTIF(GPS_IMPORT!$A$2:$A$10000,$B$5),INDEX(GPS_IMPORT!$2:$10000,MATCH($B$5,(GPS_IMPORT!$A$2:$A$10000),0)+ROWS($1:9)-1,COLUMN()-1),0) -> 1012.862546 | H15: -0.004124999919 | I15: 0.002416667063 | J15: 0.01384108333 | K15: TRUE
A16: 10 | B16: =IF(ROWS(GPS_IMPORT!$1:10)<=COUNTIF(GPS_IMPORT!$A$2:$A$10000,$B$5),INDEX(GPS_IMPORT!$2:$10000,MATCH($B$5,(GPS_IMPORT!$A$2:$A$10000),0)+ROWS($1:10)-1,COLUMN()-1),0) -> CNTL2 | C16: =IF(ROWS(GPS_IMPORT!$1:10)<=COUNTIF(GPS_IMPORT!$A$2:$A$10000,$B$5),INDEX(GPS_IMPORT!$2:$10000,MATCH($B$5,(GPS_IMPORT!$A$2:$A$10000),0)+ROWS($1:10)-1,COLUMN()-1),0) -> 3.10.2019 | D16: =IF(ROWS(GPS_IMPORT!$1:10)<=COUNTIF(GPS_IMPORT!$A$2:$A$10000,$B$5),INDEX(GPS_IMPORT!$2:$10000,MATCH($B$5,(GPS_IMPORT!$A$2:$A$10000),0)+ROWS($1:10)-1,COLUMN()-1),0) -> 00:43:36.300 | E16: =IF(ROWS(GPS_IMPORT!$1:10)<=COUNTIF(GPS_IMPORT!$A$2:$A$10000,$B$5),INDEX(GPS_IMPORT!$2:$10000,MATCH($B$5,(GPS_IMPORT!$A$2:$A$10000),0)+ROWS($1:10)-1,COLUMN()-1),0) -> 376988.9594 | F16: =IF(ROWS(GPS_IMPORT!$1:10)<=COUNTIF(GPS_IMPORT!$A$2:$A$10000,$B$5),INDEX(GPS_IMPORT!$2:$10000,MATCH($B$5,(GPS_IMPORT!$A$2:$A$10000),0)+ROWS($1:10)-1,COLUMN()-1),0) -> 2458323.447 | G16: =IF(ROWS(GPS_IMPORT!$1:10)<=COUNTIF(GPS_IMPORT!$A$2:$A$10000,$B$5),INDEX(GPS_IMPORT!$2:$10000,MATCH($B$5,(GPS_IMPORT!$A$2:$A$10000),0)+ROWS($1:10)-1,COLUMN()-1),0) -> 1012.867202 | H16: -0.001924999931 | I16: 0.000416666735 | J16: 0.009185083333 | K16: TRUE
A17: 11 | B17: =IF(ROWS(GPS_IMPORT!$1:11)<=COUNTIF(GPS_IMPORT!$A$2:$A$10000,$B$5),INDEX(GPS_IMPORT!$2:$10000,MATCH($B$5,(GPS_IMPORT!$A$2:$A$10000),0)+ROWS($1:11)-1,COLUMN()-1),0) -> CNTL2 | C17: =IF(ROWS(GPS_IMPORT!$1:11)<=COUNTIF(GPS_IMPORT!$A$2:$A$10000,$B$5),INDEX(GPS_IMPORT!$2:$10000,MATCH($B$5,(GPS_IMPORT!$A$2:$A$10000),0)+ROWS($1:11)-1,COLUMN()-1),0) -> 3.10.2019 | D17: =IF(ROWS(GPS_IMPORT!$1:11)<=COUNTIF(GPS_IMPORT!$A$2:$A$10000,$B$5),INDEX(GPS_IMPORT!$2:$10000,MATCH($B$5,(GPS_IMPORT!$A$2:$A$10000),0)+ROWS($1:11)-1,COLUMN()-1),0) -> 00:43:47.600 | E17: =IF(ROWS(GPS_IMPORT!$1:11)<=COUNTIF(GPS_IMPORT!$A$2:$A$10000,$B$5),INDEX(GPS_IMPORT!$2:$10000,MATCH($B$5,(GPS_IMPORT!$A$2:$A$10000),0)+ROWS($1:11)-1,COLUMN()-1),0) -> 376988.9684 | F17: =IF(ROWS(GPS_IMPORT!$1:11)<=COUNTIF(GPS_IMPORT!$A$2:$A$10000,$B$5),INDEX(GPS_IMPORT!$2:$10000,MATCH($B$5,(GPS_IMPORT!$A$2:$A$10000),0)+ROWS($1:11)-1,COLUMN()-1),0) -> 2458323.449 | G17: =IF(ROWS(GPS_IMPORT!$1:11)<=COUNTIF(GPS_IMPORT!$A$2:$A$10000,$B$5),INDEX(GPS_IMPORT!$2:$10000,MATCH($B$5,(GPS_IMPORT!$A$2:$A$10000),0)+ROWS($1:11)-1,COLUMN()-1),0) -> 1012.88205 | H17: -0.01092499995 | I17: -0.001583333127 | J17: -0.005662916667 | K17: TRUE
A18: 12 | B18: =IF(ROWS(GPS_IMPORT!$1:12)<=COUNTIF(GPS_IMPORT!$A$2:$A$10000,$B$5),INDEX(GPS_IMPORT!$2:$10000,MATCH($B$5,(GPS_IMPORT!$A$2:$A$10000),0)+ROWS($1:12)-1,COLUMN()-1),0) -> CNTL2 | C18: =IF(ROWS(GPS_IMPORT!$1:12)<=COUNTIF(GPS_IMPORT!$A$2:$A$10000,$B$5),INDEX(GPS_IMPORT!$2:$10000,MATCH($B$5,(GPS_IMPORT!$A$2:$A$10000),0)+ROWS($1:12)-1,COLUMN()-1),0) -> 3.10.2019 | D18: =IF(ROWS(GPS_IMPORT!$1:12)<=COUNTIF(GPS_IMPORT!$A$2:$A$10000,$B$5),INDEX(GPS_IMPORT!$2:$10000,MATCH($B$5,(GPS_IMPORT!$A$2:$A$10000),0)+ROWS($1:12)-1,COLUMN()-1),0) -> 00:43:58.900 | E18: =IF(ROWS(GPS_IMPORT!$1:12)<=COUNTIF(GPS_IMPORT!$A$2:$A$10000,$B$5),INDEX(GPS_IMPORT!$2:$10000,MATCH($B$5,(GPS_IMPORT!$A$2:$A$10000),0)+ROWS($1:12)-1,COLUMN()-1),0) -> 376988.9674 | F18: =IF(ROWS(GPS_IMPORT!$1:12)<=COUNTIF(GPS_IMPORT!$A$2:$A$10000,$B$5),INDEX(GPS_IMPORT!$2:$10000,MATCH($B$5,(GPS_IMPORT!$A$2:$A$10000),0)+ROWS($1:12)-1,COLUMN()-1),0) -> 2458323.444 | G18: =IF(ROWS(GPS_IMPORT!$1:12)<=COUNTIF(GPS_IMPORT!$A$2:$A$10000,$B$5),INDEX(GPS_IMPORT!$2:$10000,MATCH($B$5,(GPS_IMPORT!$A$2:$A$10000),0)+ROWS($1:12)-1,COLUMN()-1),0) -> 1012.903228 | H18: -0.009924999962 | I18: 0.003416666761 | J18: -0.02684091667 | K18: TRUE
A19: 13 | B19: =IF(ROWS(GPS_IMPORT!$1:13)<=COUNTIF(GPS_IMPORT!$A$2:$A$10000,$B$5),INDEX(GPS_IMPORT!$2:$10000,MATCH($B$5,(GPS_IMPORT!$A$2:$A$10000),0)+ROWS($1:13)-1,COLUMN()-1),0) -> 0 | C19: =IF(ROWS(GPS_IMPORT!$1:13)<=COUNTIF(GPS_IMPORT!$A$2:$A$10000,$B$5),INDEX(GPS_IMPORT!$2:$10000,MATCH($B$5,(GPS_IMPORT!$A$2:$A$10000),0)+ROWS($1:13)-1,COLUMN()-1),0) -> 00:00:00 | D19: =IF(ROWS(GPS_IMPORT!$1:13)<=COUNTIF(GPS_IMPORT!$A$2:$A$10000,$B$5),INDEX(GPS_IMPORT!$2:$10000,MATCH($B$5,(GPS_IMPORT!$A$2:$A$10000),0)+ROWS($1:13)-1,COLUMN()-1),0) -> 00:00:00 | E19: =IF(ROWS(GPS_IMPORT!$1:13)<=COUNTIF(GPS_IMPORT!$A$2:$A$10000,$B$5),INDEX(GPS_IMPORT!$2:$10000,MATCH($B$5,(GPS_IMPORT!$A$2:$A$10000),0)+ROWS($1:13)-1,COLUMN()-1),0) -> 0 | F19: =IF(ROWS(GPS_IMPORT!$1:13)<=COUNTIF(GPS_IMPORT!$A$2:$A$10000,$B$5),INDEX(GPS_IMPORT!$2:$10000,MATCH($B$5,(GPS_IMPORT!$A$2:$A$10000),0)+ROWS($1:13)-1,COLUMN()-1),0) -> 0 | G19: =IF(ROWS(GPS_IMPORT!$1:13)<=COUNTIF(GPS_IMPORT!$A$2:$A$10000,$B$5),INDEX(GPS_IMPORT!$2:$10000,MATCH($B$5,(GPS_IMPORT!$A$2:$A$10000),0)+ROWS($1:13)-1,COLUMN()-1),0) -> 0 | H19: =IF(E19>0,E$22-E19,0) -> 0 | I19: 0 | J19: 0 | K19: FALSE
A20: 14 | B20: =IF(ROWS(GPS_IMPORT!$1:14)<=COUNTIF(GPS_IMPORT!$A$2:$A$10000,$B$5),INDEX(GPS_IMPORT!$2:$10000,MATCH($B$5,(GPS_IMPORT!$A$2:$A$10000),0)+ROWS($1:14)-1,COLUMN()-1),0) -> 0 | C20: =IF(ROWS(GPS_IMPORT!$1:14)<=COUNTIF(GPS_IMPORT!$A$2:$A$10000,$B$5),INDEX(GPS_IMPORT!$2:$10000,MATCH($B$5,(GPS_IMPORT!$A$2:$A$10000),0)+ROWS($1:14)-1,COLUMN()-1),0) -> 00:00:00 | D20: =IF(ROWS(GPS_IMPORT!$1:14)<=COUNTIF(GPS_IMPORT!$A$2:$A$10000,$B$5),INDEX(GPS_IMPORT!$2:$10000,MATCH($B$5,(GPS_IMPORT!$A$2:$A$10000),0)+ROWS($1:14)-1,COLUMN()-1),0) -> 00:00:00 | E20: =IF(ROWS(GPS_IMPORT!$1:14)<=COUNTIF(GPS_IMPORT!$A$2:$A$10000,$B$5),INDEX(GPS_IMPORT!$2:$10000,MATCH($B$5,(GPS_IMPORT!$A$2:$A$10000),0)+ROWS($1:14)-1,COLUMN()-1),0) -> 0 | F20: =IF(ROWS(GPS_IMPORT!$1:14)<=COUNTIF(GPS_IMPORT!$A$2:$A$10000,$B$5),INDEX(GPS_IMPORT!$2:$10000,MATCH($B$5,(GPS_IMPORT!$A$2:$A$10000),0)+ROWS($1:14)-1,COLUMN()-1),0) -> 0 | G20: =IF(ROWS(GPS_IMPORT!$1:14)<=COUNTIF(GPS_IMPORT!$A$2:$A$10000,$B$5),INDEX(GPS_IMPORT!$2:$10000,MATCH($B$5,(GPS_IMPORT!$A$2:$A$10000),0)+ROWS($1:14)-1,COLUMN()-1),0) -> 0 | H20: 0 | I20: =IF(F20>0,F$22-F20,0) -> 0 | J20: 0 | K20: FALSE
A21: 15 | B21: =IF(ROWS(GPS_IMPORT!$1:15)<=COUNTIF(GPS_IMPORT!$A$2:$A$10000,$B$5),INDEX(GPS_IMPORT!$2:$10000,MATCH($B$5,(GPS_IMPORT!$A$2:$A$10000),0)+ROWS($1:15)-1,COLUMN()-1),0) -> 0 | C21: =IF(ROWS(GPS_IMPORT!$1:15)<=COUNTIF(GPS_IMPORT!$A$2:$A$10000,$B$5),INDEX(GPS_IMPORT!$2:$10000,MATCH($B$5,(GPS_IMPORT!$A$2:$A$10000),0)+ROWS($1:15)-1,COLUMN()-1),0) -> 00:00:00 | D21: =IF(ROWS(GPS_IMPORT!$1:15)<=COUNTIF(GPS_IMPORT!$A$2:$A$10000,$B$5),INDEX(GPS_IMPORT!$2:$10000,MATCH($B$5,(GPS_IMPORT!$A$2:$A$10000),0)+ROWS($1:15)-1,COLUMN()-1),0) -> 00:00:00 | E21: =IF(ROWS(GPS_IMPORT!$1:15)<=COUNTIF(GPS_IMPORT!$A$2:$A$10000,$B$5),INDEX(GPS_IMPORT!$2:$10000,MATCH($B$5,(GPS_IMPORT!$A$2:$A$10000),0)+ROWS($1:15)-1,COLUMN()-1),0) -> 0 | F21: =IF(ROWS(GPS_IMPORT!$1:15)<=COUNTIF(GPS_IMPORT!$A$2:$A$10000,$B$5),INDEX(GPS_IMPORT!$2:$10000,MATCH($B$5,(GPS_IMPORT!$A$2:$A$10000),0)+ROWS($1:15)-1,COLUMN()-1),0) -> 0 | G21: =IF(ROWS(GPS_IMPORT!$1:15)<=COUNTIF(GPS_IMPORT!$A$2:$A$10000,$B$5),INDEX(GPS_IMPORT!$2:$10000,MATCH($B$5,(GPS_IMPORT!$A$2:$A$10000),0)+ROWS($1:15)-1,COLUMN()-1),0) -> 0 | H21: 0 | I21: 0 | J21: 0 | K21: FALSE
D22: AVERAGE | E22: =(IF($K$7=TRUE,E7,0)+IF($K$8=TRUE,E8,0)+IF($K$9=TRUE,E9,0)+IF($K$10=TRUE,E10,0)+IF($K$11=TRUE,E11,0)+IF($K$12=TRUE,E12,0)+IF($K$13=TRUE,E13,0)+IF($K$14=TRUE,E14,0)+IF($K$15=TRUE,E15,0)+IF($K$16=TRUE,E16,0)+IF($K$17=TRUE,E17,0)+IF($K$18=TRUE,E18,0)+IF($K$19=TRUE,E19,0)+IF($K$20=TRUE,E20,0)+IF($K$21=TRUE,E21,0))/(IF($K$7=TRUE,1,0)+IF($K$8=TRUE,1,0)+IF($K$9=TRUE,1,0)+IF($K$10=TRUE,1,0)+IF($K$11=TRUE,1,0)+IF($K$12=TRUE,1,0)+IF($K$13=TRUE,1,0)+IF($K$14=TRUE,1,0)+IF($K$15=TRUE,1,0)+IF($K$16=TRUE,1,0)+IF($K$17=TRUE,1,0)+IF($K$18=TRUE,1,0)+IF($K$19=TRUE,1,0)+IF($K$20=TRUE,1,0)+IF($K$21=TRUE,1,0)) -> 376988.9575 | F22: =(IF($K$7=TRUE,F7,0)+IF($K$8=TRUE,F8,0)+IF($K$9=TRUE,F9,0)+IF($K$10=TRUE,F10,0)+IF($K$11=TRUE,F11,0)+IF($K$12=TRUE,F12,0)+IF($K$13=TRUE,F13,0)+IF($K$14=TRUE,F14,0)+IF($K$15=TRUE,F15,0)+IF($K$16=TRUE,F16,0)+IF($K$17=TRUE,F17,0)+IF($K$18=TRUE,F18,0)+IF($K$19=TRUE,F19,0)+IF($K$20=TRUE,F20,0)+IF($K$21=TRUE,F21,0))/(IF($K$7=TRUE,1,0)+IF($K$8=TRUE,1,0)+IF($K$9=TRUE,1,0)+IF($K$10=TRUE,1,0)+IF($K$11=TRUE,1,0)+IF($K$12=TRUE,1,0)+IF($K$13=TRUE,1,0)+IF($K$14=TRUE,1,0)+IF($K$15=TRUE,1,0)+IF($K$16=TRUE,1,0)+IF($K$17=TRUE,1,0)+IF($K$18=TRUE,1,0)+IF($K$19=TRUE,1,0)+IF($K$20=TRUE,1,0)+IF($K$21=TRUE,1,0)) -> 2458323.447 | G22: =(IF($K$7=TRUE,G7,0)+IF($K$8=TRUE,G8,0)+IF($K$9=TRUE,G9,0)+IF($K$10=TRUE,G10,0)+IF($K$11=TRUE,G11,0)+IF($K$12=TRUE,G12,0)+IF($K$13=TRUE,G13,0)+IF($K$14=TRUE,G14,0)+IF($K$15=TRUE,G15,0)+IF($K$16=TRUE,G16,0)+IF($K$17=TRUE,G17,0)+IF($K$18=TRUE,G18,0)+IF($K$19=TRUE,G19,0)+IF($K$20=TRUE,G20,0)+IF($K$21=TRUE,G21,0))/ (IF($K$7=TRUE,1,0)+IF($K$8=TRUE,1,0)+IF($K$9=TRUE,1,0)+IF($K$10=TRUE,1,0)+IF($K$11=TRUE,1,0)+IF($K$12=TRUE,1,0)+IF($K$13=TRUE,1,0)+IF($K$14=TRUE,1,0)+IF($K$15=TRUE,1,0)+IF($K$16=TRUE,1,0)+IF($K$17=TRUE,1,0)+IF($K$18=TRUE,1,0)+IF($K$19=TRUE,1,0)+IF($K$20=TRUE,1,0)+IF($K$21=TRUE,1,0)) -> 1012.876387 | H22: RMSE: | I22: RMSE: | J22: RMSE:
G23: RMSE IN US SURVEY FEET: | H23: =SQRT(( (IF($K$7=TRUE,H7^2,0))+(IF($K$8=TRUE,H8^2,0))+(IF($K$9=TRUE,H9^2,0))+(IF($K$10=TRUE,H10^2,0))+(IF($K$11=TRUE,H11^2,0))+(IF($K$12=TRUE,H12^2,0))+(IF($K$13=TRUE,H13^2,0))+(IF($K$14=TRUE,H14^2,0))+(IF($K$15=TRUE,H15^2,0))+(IF($K$16=TRUE,H16^2,0))+(IF($K$17=TRUE,H17^2,0))+(IF($K$18=TRUE,H18^2,0))+(IF($K$19=TRUE,H19^2,0))+(IF($K$20=TRUE,H20^2,0))+(IF($K$21=TRUE,H21^2,0)))/ (IF($K$7=TRUE,1,0)+IF($K$8=TRUE,1,0)+IF($K$9=TRUE,1,0)+IF($K$10=TRUE,1,0)+IF($K$11=TRUE,1,0)+IF($K$12=TRUE,1,0)+IF($K$13=TRUE,1,0)+IF($K$14=TRUE,1,0)+IF($K$15=TRUE,1,0)+IF($K$16=TRUE,1,0)+IF($K$17=TRUE,1,0)+IF($K$18=TRUE,1,0)+IF($K$19=TRUE,1,0)+IF($K$20=TRUE,1,0)+IF($K$21=TRUE,1,0))) -> 0.005623777648 | I23: =SQRT(( (IF($K$7=TRUE,I7^2,0))+(IF($K$8=TRUE,I8^2,0))+(IF($K$9=TRUE,I9^2,0))+(IF($K$10=TRUE,I10^2,0))+(IF($K$11=TRUE,I11^2,0))+(IF($K$12=TRUE,I12^2,0))+(IF($K$13=TRUE,I13^2,0))+(IF($K$14=TRUE,I14^2,0))+(IF($K$15=TRUE,I15^2,0))+(IF($K$16=TRUE,I16^2,0))+(IF($K$17=TRUE,I17^2,0))+(IF($K$18=TRUE,I18^2,0))+(IF($K$19=TRUE,I19^2,0))+(IF($K$20=TRUE,I20^2,0))+(IF($K$21=TRUE,I21^2,0)))/ (IF($K$7=TRUE,1,0)+IF($K$8=TRUE,1,0)+IF($K$9=TRUE,1,0)+IF($K$10=TRUE,1,0)+IF($K$11=TRUE,1,0)+IF($K$12=TRUE,1,0)+IF($K$13=TRUE,1,0)+IF($K$14=TRUE,1,0)+IF($K$15=TRUE,1,0)+IF($K$16=TRUE,1,0)+IF($K$17=TRUE,1,0)+IF($K$18=TRUE,1,0)+IF($K$19=TRUE,1,0)+IF($K$20=TRUE,1,0)+IF($K$21=TRUE,1,0))) -> 0.003967751968 | J23: =SQRT(( (IF($K$7=TRUE,J7^2,0))+(IF($K$8=TRUE,J8^2,0))+(IF($K$9=TRUE,J9^2,0))+(IF($K$10=TRUE,J10^2,0))+(IF($K$11=TRUE,J11^2,0))+(IF($K$12=TRUE,J12^2,0))+(IF($K$13=TRUE,J13^2,0))+(IF($K$14=TRUE,J14^2,0))+(IF($K$15=TRUE,J15^2,0))+(IF($K$16=TRUE,J16^2,0))+(IF($K$17=TRUE,J17^2,0))+(IF($K$18=TRUE,J18^2,0))+(IF($K$19=TRUE,J19^2,0))+(IF($K$20=TRUE,J20^2,0))+(IF($K$21=TRUE,J21^2,0)))/ (IF($K$7=TRUE,1,0)+IF($K$8=TRUE,1,0)+IF($K$9=TRUE,1,0)+IF($K$10=TRUE,1,0)+IF($K$11=TRUE,1,0)+IF($K$12=TRUE,1,0)+IF($K$13=TRUE,1,0)+IF($K$14=TRUE,1,0)+IF($K$15=TRUE,1,0)+IF($K$16=TRUE,1,0)+IF($K$17=TRUE,1,0)+IF($K$18=TRUE,1,0)+IF($K$19=TRUE,1,0)+IF($K$20=TRUE,1,0)+IF($K$21=TRUE,1,0))) -> 0.01485552611
D24: 1
C25: UNITLESS GRID TO GROUND MULTIPLIER | D25: =IF(REPORT!C13="n/a","0.00000000",REPORT!C13) -> 1.00009018 | H25: =IF(H23<=0.029,"PASS","FAIL") -> PASS | I25: =IF(I23<=0.029,"PASS","FAIL") -> PASS | J25: =IF(J23<=0.039,"PASS","FAIL") -> PASS
A27: AVERAGED GPS-DERIVED POSITION | I27: Notes:
B28: MONUMENT COORDINATES | D28: NORTHING | E28: EASTING | F28: ORTHO HEIGHT
B29: US Survey Feet (GRID) | D29: =$E$22 -> 376988.9575 | E29: =$F$22 -> 2458323.447 | F29: =$G$22 -> 1012.876387
A31: LEVELED ELEVATION
A32: US SURVEY FEET | C32: =IFERROR(VLOOKUP(B5,'LEVEL RUN'!A8:I59,9,FALSE),"N/A") -> 1012.793333 | D32: (Type the leveled elevation or N/A if no leveled elevation is available)
A33: MONUMENT HELD | D33: (Type the monument name from which leveling originated)
A34: LEVELED ELEVATION - GPS DERIVED ELEVATION = | E34: =IF(C32="N/A","N/A",C32-(F29*D24)) -> -0.08305375
A36: FINAL MONUMENT COORDINATES
B37: MONUMENT COORDINATES | D37: NORTHING | E37: EASTING | F37: ELEVATION | G37: FEATURE CODE
B38: US SURVEY FEET (GRID) | D38: =$E$22*$D$24 -> 376988.9575 | E38: =$F$22*$D$24 -> 2458323.447 | F38: =IF($C$32="N/A",($G$22*$D$24),$C$32) -> 1012.793333 | G38: =VLOOKUP($B$5,GPS_IMPORT!$A$2:$G$2000,7,FALSE) -> IPINS
B39: US SURVEY FEET (GROUND) | D39: =$D$38*$D$25 -> 377022.9543 | E39: =$E$38*$D$25 -> 2458545.139 | F39: =IF($C$32="N/A",($G$22*$D$24),$C$32) -> 1012.793333 | G39: =G38 -> IPINS
A41: ∆ North, ∆ East, and ∆ Ht. are the difference between the average northing, easting, and height for each observation. | I41: Mask Angle: | J41: 10°

Sheet CNTL3
A1: VRS GNSS Project Control Monument Coordinate Analysis
A3: Project: | B3: =REPORT!B2 -> FRA-71-29.4 | C3: GPS Antenna: | D3: LEICA GS14 | J3: Report Date: | K3: =REPORT!C49 -> 2019-04-25
A4: PID: | B4: =REPORT!E2 -> 106471 | C4: VRS Network: | D4: ODOT VRS | J4: Prepared By: | K4: =REPORT!C48 -> Kolton Wilson
A5: Point ID: | B5: CNTL3 | C5: No. of Sessions: | D5: =COUNTIF(GPS_IMPORT!A2:A1000,$B$5) -> 12 | J5: Checked By: | K5: =REPORT!C52 -> David Ogden
A6: SESSION # | B6: Point | C6: Observation Date | D6: Start Time | E6: Northing(sft) | F6: Easting(sft) | G6: Height(sft) | H6: ∆ Northing(sft) | I6: ∆ Easting(sft) | J6: ∆ Height(sft) | K6: Include in Solution?
A7: 1 | B7: =IF(ROWS(GPS_IMPORT!$1:1)<=COUNTIF(GPS_IMPORT!$A$2:$A$10000,$B$5),INDEX(GPS_IMPORT!$2:$10000,MATCH($B$5,(GPS_IMPORT!$A$2:$A$10000),0)+ROWS($1:1)-1,COLUMN()-1),0) -> CNTL3 | C7: =IF(ROWS(GPS_IMPORT!$1:1)<=COUNTIF(GPS_IMPORT!$A$2:$A$10000,$B$5),INDEX(GPS_IMPORT!$2:$10000,MATCH($B$5,(GPS_IMPORT!$A$2:$A$10000),0)+ROWS($1:1)-1,COLUMN()-1),0) -> 3.10.2019 | D7: =IF(ROWS(GPS_IMPORT!$1:1)<=COUNTIF(GPS_IMPORT!$A$2:$A$10000,$B$5),INDEX(GPS_IMPORT!$2:$10000,MATCH($B$5,(GPS_IMPORT!$A$2:$A$10000),0)+ROWS($1:1)-1,COLUMN()-1),0) -> 00:46:28.100 | E7: =IF(ROWS(GPS_IMPORT!$1:1)<=COUNTIF(GPS_IMPORT!$A$2:$A$10000,$B$5),INDEX(GPS_IMPORT!$2:$10000,MATCH($B$5,(GPS_IMPORT!$A$2:$A$10000),0)+ROWS($1:1)-1,COLUMN()-1),0) -> 376669.8652 | F7: =IF(ROWS(GPS_IMPORT!$1:1)<=COUNTIF(GPS_IMPORT!$A$2:$A$10000,$B$5),INDEX(GPS_IMPORT!$2:$10000,MATCH($B$5,(GPS_IMPORT!$A$2:$A$10000),0)+ROWS($1:1)-1,COLUMN()-1),0) -> 2458138.111 | G7: =IF(ROWS(GPS_IMPORT!$1:1)<=COUNTIF(GPS_IMPORT!$A$2:$A$10000,$B$5),INDEX(GPS_IMPORT!$2:$10000,MATCH($B$5,(GPS_IMPORT!$A$2:$A$10000),0)+ROWS($1:1)-1,COLUMN()-1),0) -> 1034.830856 | H7: =IF(E7>0,E$22-E7,0) -> -0.007383333344 | I7: 0.006749999709 | J7: -0.05967991667 | K7: TRUE
A8: 2 | B8: =IF(ROWS(GPS_IMPORT!$1:2)<=COUNTIF(GPS_IMPORT!$A$2:$A$10000,$B$5),INDEX(GPS_IMPORT!$2:$10000,MATCH($B$5,(GPS_IMPORT!$A$2:$A$10000),0)+ROWS($1:2)-1,COLUMN()-1),0) -> CNTL3 | C8: =IF(ROWS(GPS_IMPORT!$1:2)<=COUNTIF(GPS_IMPORT!$A$2:$A$10000,$B$5),INDEX(GPS_IMPORT!$2:$10000,MATCH($B$5,(GPS_IMPORT!$A$2:$A$10000),0)+ROWS($1:2)-1,COLUMN()-1),0) -> 3.10.2019 | D8: =IF(ROWS(GPS_IMPORT!$1:2)<=COUNTIF(GPS_IMPORT!$A$2:$A$10000,$B$5),INDEX(GPS_IMPORT!$2:$10000,MATCH($B$5,(GPS_IMPORT!$A$2:$A$10000),0)+ROWS($1:2)-1,COLUMN()-1),0) -> 00:46:39.100 | E8: =IF(ROWS(GPS_IMPORT!$1:2)<=COUNTIF(GPS_IMPORT!$A$2:$A$10000,$B$5),INDEX(GPS_IMPORT!$2:$10000,MATCH($B$5,(GPS_IMPORT!$A$2:$A$10000),0)+ROWS($1:2)-1,COLUMN()-1),0) -> 376669.8685 | F8: =IF(ROWS(GPS_IMPORT!$1:2)<=COUNTIF(GPS_IMPORT!$A$2:$A$10000,$B$5),INDEX(GPS_IMPORT!$2:$10000,MATCH($B$5,(GPS_IMPORT!$A$2:$A$10000),0)+ROWS($1:2)-1,COLUMN()-1),0) -> 2458138.113 | G8: =IF(ROWS(GPS_IMPORT!$1:2)<=COUNTIF(GPS_IMPORT!$A$2:$A$10000,$B$5),INDEX(GPS_IMPORT!$2:$10000,MATCH($B$5,(GPS_IMPORT!$A$2:$A$10000),0)+ROWS($1:2)-1,COLUMN()-1),0) -> 1034.813615 | H8: -0.01068333333 | I8: 0.004749999847 | J8: -0.04243891667 | K8: TRUE
A9: 3 | B9: =IF(ROWS(GPS_IMPORT!$1:3)<=COUNTIF(GPS_IMPORT!$A$2:$A$10000,$B$5),INDEX(GPS_IMPORT!$2:$10000,MATCH($B$5,(GPS_IMPORT!$A$2:$A$10000),0)+ROWS($1:3)-1,COLUMN()-1),0) -> CNTL3 | C9: =IF(ROWS(GPS_IMPORT!$1:3)<=COUNTIF(GPS_IMPORT!$A$2:$A$10000,$B$5),INDEX(GPS_IMPORT!$2:$10000,MATCH($B$5,(GPS_IMPORT!$A$2:$A$10000),0)+ROWS($1:3)-1,COLUMN()-1),0) -> 3.10.2019 | D9: =IF(ROWS(GPS_IMPORT!$1:3)<=COUNTIF(GPS_IMPORT!$A$2:$A$10000,$B$5),INDEX(GPS_IMPORT!$2:$10000,MATCH($B$5,(GPS_IMPORT!$A$2:$A$10000),0)+ROWS($1:3)-1,COLUMN()-1),0) -> 00:46:50.200 | E9: =IF(ROWS(GPS_IMPORT!$1:3)<=COUNTIF(GPS_IMPORT!$A$2:$A$10000,$B$5),INDEX(GPS_IMPORT!$2:$10000,MATCH($B$5,(GPS_IMPORT!$A$2:$A$10000),0)+ROWS($1:3)-1,COLUMN()-1),0) -> 376669.8664 | F9: =IF(ROWS(GPS_IMPORT!$1:3)<=COUNTIF(GPS_IMPORT!$A$2:$A$10000,$B$5),INDEX(GPS_IMPORT!$2:$10000,MATCH($B$5,(GPS_IMPORT!$A$2:$A$10000),0)+ROWS($1:3)-1,COLUMN()-1),0) -> 2458138.112 | G9: =IF(ROWS(GPS_IMPORT!$1:3)<=COUNTIF(GPS_IMPORT!$A$2:$A$10000,$B$5),INDEX(GPS_IMPORT!$2:$10000,MATCH($B$5,(GPS_IMPORT!$A$2:$A$10000),0)+ROWS($1:3)-1,COLUMN()-1),0) -> 1034.802247 | H9: -0.008583333343 | I9: 0.005749999546 | J9: -0.03107091667 | K9: TRUE
A10: 4 | B10: =IF(ROWS(GPS_IMPORT!$1:4)<=COUNTIF(GPS_IMPORT!$A$2:$A$10000,$B$5),INDEX(GPS_IMPORT!$2:$10000,MATCH($B$5,(GPS_IMPORT!$A$2:$A$10000),0)+ROWS($1:4)-1,COLUMN()-1),0) -> CNTL3 | C10: =IF(ROWS(GPS_IMPORT!$1:4)<=COUNTIF(GPS_IMPORT!$A$2:$A$10000,$B$5),INDEX(GPS_IMPORT!$2:$10000,MATCH($B$5,(GPS_IMPORT!$A$2:$A$10000),0)+ROWS($1:4)-1,COLUMN()-1),0) -> 3.10.2019 | D10: =IF(ROWS(GPS_IMPORT!$1:4)<=COUNTIF(GPS_IMPORT!$A$2:$A$10000,$B$5),INDEX(GPS_IMPORT!$2:$10000,MATCH($B$5,(GPS_IMPORT!$A$2:$A$10000),0)+ROWS($1:4)-1,COLUMN()-1),0) -> 00:47:02 | E10: =IF(ROWS(GPS_IMPORT!$1:4)<=COUNTIF(GPS_IMPORT!$A$2:$A$10000,$B$5),INDEX(GPS_IMPORT!$2:$10000,MATCH($B$5,(GPS_IMPORT!$A$2:$A$10000),0)+ROWS($1:4)-1,COLUMN()-1),0) -> 376669.865 | F10: =IF(ROWS(GPS_IMPORT!$1:4)<=COUNTIF(GPS_IMPORT!$A$2:$A$10000,$B$5),INDEX(GPS_IMPORT!$2:$10000,MATCH($B$5,(GPS_IMPORT!$A$2:$A$10000),0)+ROWS($1:4)-1,COLUMN()-1),0) -> 2458138.109 | G10: =IF(ROWS(GPS_IMPORT!$1:4)<=COUNTIF(GPS_IMPORT!$A$2:$A$10000,$B$5),INDEX(GPS_IMPORT!$2:$10000,MATCH($B$5,(GPS_IMPORT!$A$2:$A$10000),0)+ROWS($1:4)-1,COLUMN()-1),0) -> 1034.793834 | H10: -0.007183333335 | I10: 0.008749999572 | J10: -0.02265791667 | K10: TRUE
A11: 5 | B11: =IF(ROWS(GPS_IMPORT!$1:5)<=COUNTIF(GPS_IMPORT!$A$2:$A$10000,$B$5),INDEX(GPS_IMPORT!$2:$10000,MATCH($B$5,(GPS_IMPORT!$A$2:$A$10000),0)+ROWS($1:5)-1,COLUMN()-1),0) -> CNTL3 | C11: =IF(ROWS(GPS_IMPORT!$1:5)<=COUNTIF(GPS_IMPORT!$A$2:$A$10000,$B$5),INDEX(GPS_IMPORT!$2:$10000,MATCH($B$5,(GPS_IMPORT!$A$2:$A$10000),0)+ROWS($1:5)-1,COLUMN()-1),0) -> 3.10.2019 | D11: =IF(ROWS(GPS_IMPORT!$1:5)<=COUNTIF(GPS_IMPORT!$A$2:$A$10000,$B$5),INDEX(GPS_IMPORT!$2:$10000,MATCH($B$5,(GPS_IMPORT!$A$2:$A$10000),0)+ROWS($1:5)-1,COLUMN()-1),0) -> 00:47:19.200 | E11: =IF(ROWS(GPS_IMPORT!$1:5)<=COUNTIF(GPS_IMPORT!$A$2:$A$10000,$B$5),INDEX(GPS_IMPORT!$2:$10000,MATCH($B$5,(GPS_IMPORT!$A$2:$A$10000),0)+ROWS($1:5)-1,COLUMN()-1),0) -> 376669.8498 | F11: =IF(ROWS(GPS_IMPORT!$1:5)<=COUNTIF(GPS_IMPORT!$A$2:$A$10000,$B$5),INDEX(GPS_IMPORT!$2:$10000,MATCH($B$5,(GPS_IMPORT!$A$2:$A$10000),0)+ROWS($1:5)-1,COLUMN()-1),0) -> 2458138.116 | G11: =IF(ROWS(GPS_IMPORT!$1:5)<=COUNTIF(GPS_IMPORT!$A$2:$A$10000,$B$5),INDEX(GPS_IMPORT!$2:$10000,MATCH($B$5,(GPS_IMPORT!$A$2:$A$10000),0)+ROWS($1:5)-1,COLUMN()-1),0) -> 1034.769674 | H11: 0.00801666663 | I11: 0.001749999821 | J11: 0.001502083333 | K11: TRUE
A12: 6 | B12: =IF(ROWS(GPS_IMPORT!$1:6)<=COUNTIF(GPS_IMPORT!$A$2:$A$10000,$B$5),INDEX(GPS_IMPORT!$2:$10000,MATCH($B$5,(GPS_IMPORT!$A$2:$A$10000),0)+ROWS($1:6)-1,COLUMN()-1),0) -> CNTL3 | C12: =IF(ROWS(GPS_IMPORT!$1:6)<=COUNTIF(GPS_IMPORT!$A$2:$A$10000,$B$5),INDEX(GPS_IMPORT!$2:$10000,MATCH($B$5,(GPS_IMPORT!$A$2:$A$10000),0)+ROWS($1:6)-1,COLUMN()-1),0) -> 3.10.2019 | D12: =IF(ROWS(GPS_IMPORT!$1:6)<=COUNTIF(GPS_IMPORT!$A$2:$A$10000,$B$5),INDEX(GPS_IMPORT!$2:$10000,MATCH($B$5,(GPS_IMPORT!$A$2:$A$10000),0)+ROWS($1:6)-1,COLUMN()-1),0) -> 00:47:30.100 | E12: =IF(ROWS(GPS_IMPORT!$1:6)<=COUNTIF(GPS_IMPORT!$A$2:$A$10000,$B$5),INDEX(GPS_IMPORT!$2:$10000,MATCH($B$5,(GPS_IMPORT!$A$2:$A$10000),0)+ROWS($1:6)-1,COLUMN()-1),0) -> 376669.8521 | F12: =IF(ROWS(GPS_IMPORT!$1:6)<=COUNTIF(GPS_IMPORT!$A$2:$A$10000,$B$5),INDEX(GPS_IMPORT!$2:$10000,MATCH($B$5,(GPS_IMPORT!$A$2:$A$10000),0)+ROWS($1:6)-1,COLUMN()-1),0) -> 2458138.114 | G12: =IF(ROWS(GPS_IMPORT!$1:6)<=COUNTIF(GPS_IMPORT!$A$2:$A$10000,$B$5),INDEX(GPS_IMPORT!$2:$10000,MATCH($B$5,(GPS_IMPORT!$A$2:$A$10000),0)+ROWS($1:6)-1,COLUMN()-1),0) -> 1034.771191 | H12: 0.005716666637 | I12: 0.003749999683 | J12: -1.491666671e-05 | K12: TRUE
A13: 7 | B13: =IF(ROWS(GPS_IMPORT!$1:7)<=COUNTIF(GPS_IMPORT!$A$2:$A$10000,$B$5),INDEX(GPS_IMPORT!$2:$10000,MATCH($B$5,(GPS_IMPORT!$A$2:$A$10000),0)+ROWS($1:7)-1,COLUMN()-1),0) -> CNTL3 | C13: =IF(ROWS(GPS_IMPORT!$1:7)<=COUNTIF(GPS_IMPORT!$A$2:$A$10000,$B$5),INDEX(GPS_IMPORT!$2:$10000,MATCH($B$5,(GPS_IMPORT!$A$2:$A$10000),0)+ROWS($1:7)-1,COLUMN()-1),0) -> 3.10.2019 | D13: =IF(ROWS(GPS_IMPORT!$1:7)<=COUNTIF(GPS_IMPORT!$A$2:$A$10000,$B$5),INDEX(GPS_IMPORT!$2:$10000,MATCH($B$5,(GPS_IMPORT!$A$2:$A$10000),0)+ROWS($1:7)-1,COLUMN()-1),0) -> 00:47:41.300 | E13: =IF(ROWS(GPS_IMPORT!$1:7)<=COUNTIF(GPS_IMPORT!$A$2:$A$10000,$B$5),INDEX(GPS_IMPORT!$2:$10000,MATCH($B$5,(GPS_IMPORT!$A$2:$A$10000),0)+ROWS($1:7)-1,COLUMN()-1),0) -> 376669.855 | F13: =IF(ROWS(GPS_IMPORT!$1:7)<=COUNTIF(GPS_IMPORT!$A$2:$A$10000,$B$5),INDEX(GPS_IMPORT!$2:$10000,MATCH($B$5,(GPS_IMPORT!$A$2:$A$10000),0)+ROWS($1:7)-1,COLUMN()-1),0) -> 2458138.119 | G13: =IF(ROWS(GPS_IMPORT!$1:7)<=COUNTIF(GPS_IMPORT!$A$2:$A$10000,$B$5),INDEX(GPS_IMPORT!$2:$10000,MATCH($B$5,(GPS_IMPORT!$A$2:$A$10000),0)+ROWS($1:7)-1,COLUMN()-1),0) -> 1034.768132 | H13: 0.002816666674 | I13: -0.001250000205 | J13: 0.003044083333 | K13: TRUE
A14: 8 | B14: =IF(ROWS(GPS_IMPORT!$1:8)<=COUNTIF(GPS_IMPORT!$A$2:$A$10000,$B$5),INDEX(GPS_IMPORT!$2:$10000,MATCH($B$5,(GPS_IMPORT!$A$2:$A$10000),0)+ROWS($1:8)-1,COLUMN()-1),0) -> CNTL3 | C14: =IF(ROWS(GPS_IMPORT!$1:8)<=COUNTIF(GPS_IMPORT!$A$2:$A$10000,$B$5),INDEX(GPS_IMPORT!$2:$10000,MATCH($B$5,(GPS_IMPORT!$A$2:$A$10000),0)+ROWS($1:8)-1,COLUMN()-1),0) -> 3.10.2019 | D14: =IF(ROWS(GPS_IMPORT!$1:8)<=COUNTIF(GPS_IMPORT!$A$2:$A$10000,$B$5),INDEX(GPS_IMPORT!$2:$10000,MATCH($B$5,(GPS_IMPORT!$A$2:$A$10000),0)+ROWS($1:8)-1,COLUMN()-1),0) -> 00:47:52 | E14: =IF(ROWS(GPS_IMPORT!$1:8)<=COUNTIF(GPS_IMPORT!$A$2:$A$10000,$B$5),INDEX(GPS_IMPORT!$2:$10000,MATCH($B$5,(GPS_IMPORT!$A$2:$A$10000),0)+ROWS($1:8)-1,COLUMN()-1),0) -> 376669.8502 | F14: =IF(ROWS(GPS_IMPORT!$1:8)<=COUNTIF(GPS_IMPORT!$A$2:$A$10000,$B$5),INDEX(GPS_IMPORT!$2:$10000,MATCH($B$5,(GPS_IMPORT!$A$2:$A$10000),0)+ROWS($1:8)-1,COLUMN()-1),0) -> 2458138.118 | G14: =IF(ROWS(GPS_IMPORT!$1:8)<=COUNTIF(GPS_IMPORT!$A$2:$A$10000,$B$5),INDEX(GPS_IMPORT!$2:$10000,MATCH($B$5,(GPS_IMPORT!$A$2:$A$10000),0)+ROWS($1:8)-1,COLUMN()-1),0) -> 1034.76109 | H14: 0.007616666669 | I14: -0.000250000041 | J14: 0.01008608333 | K14: TRUE
A15: 9 | B15: =IF(ROWS(GPS_IMPORT!$1:9)<=COUNTIF(GPS_IMPORT!$A$2:$A$10000,$B$5),INDEX(GPS_IMPORT!$2:$10000,MATCH($B$5,(GPS_IMPORT!$A$2:$A$10000),0)+ROWS($1:9)-1,COLUMN()-1),0) -> CNTL3 | C15: =IF(ROWS(GPS_IMPORT!$1:9)<=COUNTIF(GPS_IMPORT!$A$2:$A$10000,$B$5),INDEX(GPS_IMPORT!$2:$10000,MATCH($B$5,(GPS_IMPORT!$A$2:$A$10000),0)+ROWS($1:9)-1,COLUMN()-1),0) -> 3.10.2019 | D15: =IF(ROWS(GPS_IMPORT!$1:9)<=COUNTIF(GPS_IMPORT!$A$2:$A$10000,$B$5),INDEX(GPS_IMPORT!$2:$10000,MATCH($B$5,(GPS_IMPORT!$A$2:$A$10000),0)+ROWS($1:9)-1,COLUMN()-1),0) -> 00:48:09 | E15: =IF(ROWS(GPS_IMPORT!$1:9)<=COUNTIF(GPS_IMPORT!$A$2:$A$10000,$B$5),INDEX(GPS_IMPORT!$2:$10000,MATCH($B$5,(GPS_IMPORT!$A$2:$A$10000),0)+ROWS($1:9)-1,COLUMN()-1),0) -> 376669.8557 | F15: =IF(ROWS(GPS_IMPORT!$1:9)<=COUNTIF(GPS_IMPORT!$A$2:$A$10000,$B$5),INDEX(GPS_IMPORT!$2:$10000,MATCH($B$5,(GPS_IMPORT!$A$2:$A$10000),0)+ROWS($1:9)-1,COLUMN()-1),0) -> 2458138.123 | G15: =IF(ROWS(GPS_IMPORT!$1:9)<=COUNTIF(GPS_IMPORT!$A$2:$A$10000,$B$5),INDEX(GPS_IMPORT!$2:$10000,MATCH($B$5,(GPS_IMPORT!$A$2:$A$10000),0)+ROWS($1:9)-1,COLUMN()-1),0) -> 1034.738589 | H15: 0.002116666641 | I15: -0.005250000395 | J15: 0.03258708333 | K15: TRUE
A16: 10 | B16: =IF(ROWS(GPS_IMPORT!$1:10)<=COUNTIF(GPS_IMPORT!$A$2:$A$10000,$B$5),INDEX(GPS_IMPORT!$2:$10000,MATCH($B$5,(GPS_IMPORT!$A$2:$A$10000),0)+ROWS($1:10)-1,COLUMN()-1),0) -> CNTL3 | C16: =IF(ROWS(GPS_IMPORT!$1:10)<=COUNTIF(GPS_IMPORT!$A$2:$A$10000,$B$5),INDEX(GPS_IMPORT!$2:$10000,MATCH($B$5,(GPS_IMPORT!$A$2:$A$10000),0)+ROWS($1:10)-1,COLUMN()-1),0) -> 3.10.2019 | D16: =IF(ROWS(GPS_IMPORT!$1:10)<=COUNTIF(GPS_IMPORT!$A$2:$A$10000,$B$5),INDEX(GPS_IMPORT!$2:$10000,MATCH($B$5,(GPS_IMPORT!$A$2:$A$10000),0)+ROWS($1:10)-1,COLUMN()-1),0) -> 00:48:20.100 | E16: =IF(ROWS(GPS_IMPORT!$1:10)<=COUNTIF(GPS_IMPORT!$A$2:$A$10000,$B$5),INDEX(GPS_IMPORT!$2:$10000,MATCH($B$5,(GPS_IMPORT!$A$2:$A$10000),0)+ROWS($1:10)-1,COLUMN()-1),0) -> 376669.8592 | F16: =IF(ROWS(GPS_IMPORT!$1:10)<=COUNTIF(GPS_IMPORT!$A$2:$A$10000,$B$5),INDEX(GPS_IMPORT!$2:$10000,MATCH($B$5,(GPS_IMPORT!$A$2:$A$10000),0)+ROWS($1:10)-1,COLUMN()-1),0) -> 2458138.125 | G16: =IF(ROWS(GPS_IMPORT!$1:10)<=COUNTIF(GPS_IMPORT!$A$2:$A$10000,$B$5),INDEX(GPS_IMPORT!$2:$10000,MATCH($B$5,(GPS_IMPORT!$A$2:$A$10000),0)+ROWS($1:10)-1,COLUMN()-1),0) -> 1034.731296 | H16: -0.001383333351 | I16: -0.007250000257 | J16: 0.03988008333 | K16: TRUE
A17: 11 | B17: =IF(ROWS(GPS_IMPORT!$1:11)<=COUNTIF(GPS_IMPORT!$A$2:$A$10000,$B$5),INDEX(GPS_IMPORT!$2:$10000,MATCH($B$5,(GPS_IMPORT!$A$2:$A$10000),0)+ROWS($1:11)-1,COLUMN()-1),0) -> CNTL3 | C17: =IF(ROWS(GPS_IMPORT!$1:11)<=COUNTIF(GPS_IMPORT!$A$2:$A$10000,$B$5),INDEX(GPS_IMPORT!$2:$10000,MATCH($B$5,(GPS_IMPORT!$A$2:$A$10000),0)+ROWS($1:11)-1,COLUMN()-1),0) -> 3.10.2019 | D17: =IF(ROWS(GPS_IMPORT!$1:11)<=COUNTIF(GPS_IMPORT!$A$2:$A$10000,$B$5),INDEX(GPS_IMPORT!$2:$10000,MATCH($B$5,(GPS_IMPORT!$A$2:$A$10000),0)+ROWS($1:11)-1,COLUMN()-1),0) -> 00:48:32.200 | E17: =IF(ROWS(GPS_IMPORT!$1:11)<=COUNTIF(GPS_IMPORT!$A$2:$A$10000,$B$5),INDEX(GPS_IMPORT!$2:$10000,MATCH($B$5,(GPS_IMPORT!$A$2:$A$10000),0)+ROWS($1:11)-1,COLUMN()-1),0) -> 376669.8538 | F17: =IF(ROWS(GPS_IMPORT!$1:11)<=COUNTIF(GPS_IMPORT!$A$2:$A$10000,$B$5),INDEX(GPS_IMPORT!$2:$10000,MATCH($B$5,(GPS_IMPORT!$A$2:$A$10000),0)+ROWS($1:11)-1,COLUMN()-1),0) -> 2458138.126 | G17: =IF(ROWS(GPS_IMPORT!$1:11)<=COUNTIF(GPS_IMPORT!$A$2:$A$10000,$B$5),INDEX(GPS_IMPORT!$2:$10000,MATCH($B$5,(GPS_IMPORT!$A$2:$A$10000),0)+ROWS($1:11)-1,COLUMN()-1),0) -> 1034.740121 | H17: 0.004016666673 | I17: -0.008250000421 | J17: 0.03105508333 | K17: TRUE
A18: 12 | B18: =IF(ROWS(GPS_IMPORT!$1:12)<=COUNTIF(GPS_IMPORT!$A$2:$A$10000,$B$5),INDEX(GPS_IMPORT!$2:$10000,MATCH($B$5,(GPS_IMPORT!$A$2:$A$10000),0)+ROWS($1:12)-1,COLUMN()-1),0) -> CNTL3 | C18: =IF(ROWS(GPS_IMPORT!$1:12)<=COUNTIF(GPS_IMPORT!$A$2:$A$10000,$B$5),INDEX(GPS_IMPORT!$2:$10000,MATCH($B$5,(GPS_IMPORT!$A$2:$A$10000),0)+ROWS($1:12)-1,COLUMN()-1),0) -> 3.10.2019 | D18: =IF(ROWS(GPS_IMPORT!$1:12)<=COUNTIF(GPS_IMPORT!$A$2:$A$10000,$B$5),INDEX(GPS_IMPORT!$2:$10000,MATCH($B$5,(GPS_IMPORT!$A$2:$A$10000),0)+ROWS($1:12)-1,COLUMN()-1),0) -> 00:48:44.100 | E18: =IF(ROWS(GPS_IMPORT!$1:12)<=COUNTIF(GPS_IMPORT!$A$2:$A$10000,$B$5),INDEX(GPS_IMPORT!$2:$10000,MATCH($B$5,(GPS_IMPORT!$A$2:$A$10000),0)+ROWS($1:12)-1,COLUMN()-1),0) -> 376669.8529 | F18: =IF(ROWS(GPS_IMPORT!$1:12)<=COUNTIF(GPS_IMPORT!$A$2:$A$10000,$B$5),INDEX(GPS_IMPORT!$2:$10000,MATCH($B$5,(GPS_IMPORT!$A$2:$A$10000),0)+ROWS($1:12)-1,COLUMN()-1),0) -> 2458138.127 | G18: =IF(ROWS(GPS_IMPORT!$1:12)<=COUNTIF(GPS_IMPORT!$A$2:$A$10000,$B$5),INDEX(GPS_IMPORT!$2:$10000,MATCH($B$5,(GPS_IMPORT!$A$2:$A$10000),0)+ROWS($1:12)-1,COLUMN()-1),0) -> 1034.733468 | H18: 0.004916666658 | I18: -0.009250000119 | J18: 0.03770808333 | K18: TRUE
A19: 13 | B19: =IF(ROWS(GPS_IMPORT!$1:13)<=COUNTIF(GPS_IMPORT!$A$2:$A$10000,$B$5),INDEX(GPS_IMPORT!$2:$10000,MATCH($B$5,(GPS_IMPORT!$A$2:$A$10000),0)+ROWS($1:13)-1,COLUMN()-1),0) -> 0 | C19: =IF(ROWS(GPS_IMPORT!$1:13)<=COUNTIF(GPS_IMPORT!$A$2:$A$10000,$B$5),INDEX(GPS_IMPORT!$2:$10000,MATCH($B$5,(GPS_IMPORT!$A$2:$A$10000),0)+ROWS($1:13)-1,COLUMN()-1),0) -> 00:00:00 | D19: =IF(ROWS(GPS_IMPORT!$1:13)<=COUNTIF(GPS_IMPORT!$A$2:$A$10000,$B$5),INDEX(GPS_IMPORT!$2:$10000,MATCH($B$5,(GPS_IMPORT!$A$2:$A$10000),0)+ROWS($1:13)-1,COLUMN()-1),0) -> 00:00:00 | E19: =IF(ROWS(GPS_IMPORT!$1:13)<=COUNTIF(GPS_IMPORT!$A$2:$A$10000,$B$5),INDEX(GPS_IMPORT!$2:$10000,MATCH($B$5,(GPS_IMPORT!$A$2:$A$10000),0)+ROWS($1:13)-1,COLUMN()-1),0) -> 0 | F19: =IF(ROWS(GPS_IMPORT!$1:13)<=COUNTIF(GPS_IMPORT!$A$2:$A$10000,$B$5),INDEX(GPS_IMPORT!$2:$10000,MATCH($B$5,(GPS_IMPORT!$A$2:$A$10000),0)+ROWS($1:13)-1,COLUMN()-1),0) -> 0 | G19: =IF(ROWS(GPS_IMPORT!$1:13)<=COUNTIF(GPS_IMPORT!$A$2:$A$10000,$B$5),INDEX(GPS_IMPORT!$2:$10000,MATCH($B$5,(GPS_IMPORT!$A$2:$A$10000),0)+ROWS($1:13)-1,COLUMN()-1),0) -> 0 | H19: =IF(E19>0,E$22-E19,0) -> 0 | I19: 0 | J19: 0 | K19: FALSE
A20: 14 | B20: =IF(ROWS(GPS_IMPORT!$1:14)<=COUNTIF(GPS_IMPORT!$A$2:$A$10000,$B$5),INDEX(GPS_IMPORT!$2:$10000,MATCH($B$5,(GPS_IMPORT!$A$2:$A$10000),0)+ROWS($1:14)-1,COLUMN()-1),0) -> 0 | C20: =IF(ROWS(GPS_IMPORT!$1:14)<=COUNTIF(GPS_IMPORT!$A$2:$A$10000,$B$5),INDEX(GPS_IMPORT!$2:$10000,MATCH($B$5,(GPS_IMPORT!$A$2:$A$10000),0)+ROWS($1:14)-1,COLUMN()-1),0) -> 00:00:00 | D20: =IF(ROWS(GPS_IMPORT!$1:14)<=COUNTIF(GPS_IMPORT!$A$2:$A$10000,$B$5),INDEX(GPS_IMPORT!$2:$10000,MATCH($B$5,(GPS_IMPORT!$A$2:$A$10000),0)+ROWS($1:14)-1,COLUMN()-1),0) -> 00:00:00 | E20: =IF(ROWS(GPS_IMPORT!$1:14)<=COUNTIF(GPS_IMPORT!$A$2:$A$10000,$B$5),INDEX(GPS_IMPORT!$2:$10000,MATCH($B$5,(GPS_IMPORT!$A$2:$A$10000),0)+ROWS($1:14)-1,COLUMN()-1),0) -> 0 | F20: =IF(ROWS(GPS_IMPORT!$1:14)<=COUNTIF(GPS_IMPORT!$A$2:$A$10000,$B$5),INDEX(GPS_IMPORT!$2:$10000,MATCH($B$5,(GPS_IMPORT!$A$2:$A$10000),0)+ROWS($1:14)-1,COLUMN()-1),0) -> 0 | G20: =IF(ROWS(GPS_IMPORT!$1:14)<=COUNTIF(GPS_IMPORT!$A$2:$A$10000,$B$5),INDEX(GPS_IMPORT!$2:$10000,MATCH($B$5,(GPS_IMPORT!$A$2:$A$10000),0)+ROWS($1:14)-1,COLUMN()-1),0) -> 0 | H20: 0 | I20: =IF(F20>0,F$22-F20,0) -> 0 | J20: 0 | K20: FALSE
A21: 15 | B21: =IF(ROWS(GPS_IMPORT!$1:15)<=COUNTIF(GPS_IMPORT!$A$2:$A$10000,$B$5),INDEX(GPS_IMPORT!$2:$10000,MATCH($B$5,(GPS_IMPORT!$A$2:$A$10000),0)+ROWS($1:15)-1,COLUMN()-1),0) -> 0 | C21: =IF(ROWS(GPS_IMPORT!$1:15)<=COUNTIF(GPS_IMPORT!$A$2:$A$10000,$B$5),INDEX(GPS_IMPORT!$2:$10000,MATCH($B$5,(GPS_IMPORT!$A$2:$A$10000),0)+ROWS($1:15)-1,COLUMN()-1),0) -> 00:00:00 | D21: =IF(ROWS(GPS_IMPORT!$1:15)<=COUNTIF(GPS_IMPORT!$A$2:$A$10000,$B$5),INDEX(GPS_IMPORT!$2:$10000,MATCH($B$5,(GPS_IMPORT!$A$2:$A$10000),0)+ROWS($1:15)-1,COLUMN()-1),0) -> 00:00:00 | E21: =IF(ROWS(GPS_IMPORT!$1:15)<=COUNTIF(GPS_IMPORT!$A$2:$A$10000,$B$5),INDEX(GPS_IMPORT!$2:$10000,MATCH($B$5,(GPS_IMPORT!$A$2:$A$10000),0)+ROWS($1:15)-1,COLUMN()-1),0) -> 0 | F21: =IF(ROWS(GPS_IMPORT!$1:15)<=COUNTIF(GPS_IMPORT!$A$2:$A$10000,$B$5),INDEX(GPS_IMPORT!$2:$10000,MATCH($B$5,(GPS_IMPORT!$A$2:$A$10000),0)+ROWS($1:15)-1,COLUMN()-1),0) -> 0 | G21: =IF(ROWS(GPS_IMPORT!$1:15)<=COUNTIF(GPS_IMPORT!$A$2:$A$10000,$B$5),INDEX(GPS_IMPORT!$2:$10000,MATCH($B$5,(GPS_IMPORT!$A$2:$A$10000),0)+ROWS($1:15)-1,COLUMN()-1),0) -> 0 | H21: 0 | I21: 0 | J21: 0 | K21: FALSE
D22: AVERAGE | E22: =(IF($K$7=TRUE,E7,0)+IF($K$8=TRUE,E8,0)+IF($K$9=TRUE,E9,0)+IF($K$10=TRUE,E10,0)+IF($K$11=TRUE,E11,0)+IF($K$12=TRUE,E12,0)+IF($K$13=TRUE,E13,0)+IF($K$14=TRUE,E14,0)+IF($K$15=TRUE,E15,0)+IF($K$16=TRUE,E16,0)+IF($K$17=TRUE,E17,0)+IF($K$18=TRUE,E18,0)+IF($K$19=TRUE,E19,0)+IF($K$20=TRUE,E20,0)+IF($K$21=TRUE,E21,0))/(IF($K$7=TRUE,1,0)+IF($K$8=TRUE,1,0)+IF($K$9=TRUE,1,0)+IF($K$10=TRUE,1,0)+IF($K$11=TRUE,1,0)+IF($K$12=TRUE,1,0)+IF($K$13=TRUE,1,0)+IF($K$14=TRUE,1,0)+IF($K$15=TRUE,1,0)+IF($K$16=TRUE,1,0)+IF($K$17=TRUE,1,0)+IF($K$18=TRUE,1,0)+IF($K$19=TRUE,1,0)+IF($K$20=TRUE,1,0)+IF($K$21=TRUE,1,0)) -> 376669.8578 | F22: =(IF($K$7=TRUE,F7,0)+IF($K$8=TRUE,F8,0)+IF($K$9=TRUE,F9,0)+IF($K$10=TRUE,F10,0)+IF($K$11=TRUE,F11,0)+IF($K$12=TRUE,F12,0)+IF($K$13=TRUE,F13,0)+IF($K$14=TRUE,F14,0)+IF($K$15=TRUE,F15,0)+IF($K$16=TRUE,F16,0)+IF($K$17=TRUE,F17,0)+IF($K$18=TRUE,F18,0)+IF($K$19=TRUE,F19,0)+IF($K$20=TRUE,F20,0)+IF($K$21=TRUE,F21,0))/(IF($K$7=TRUE,1,0)+IF($K$8=TRUE,1,0)+IF($K$9=TRUE,1,0)+IF($K$10=TRUE,1,0)+IF($K$11=TRUE,1,0)+IF($K$12=TRUE,1,0)+IF($K$13=TRUE,1,0)+IF($K$14=TRUE,1,0)+IF($K$15=TRUE,1,0)+IF($K$16=TRUE,1,0)+IF($K$17=TRUE,1,0)+IF($K$18=TRUE,1,0)+IF($K$19=TRUE,1,0)+IF($K$20=TRUE,1,0)+IF($K$21=TRUE,1,0)) -> 2458138.118 | G22: =(IF($K$7=TRUE,G7,0)+IF($K$8=TRUE,G8,0)+IF($K$9=TRUE,G9,0)+IF($K$10=TRUE,G10,0)+IF($K$11=TRUE,G11,0)+IF($K$12=TRUE,G12,0)+IF($K$13=TRUE,G13,0)+IF($K$14=TRUE,G14,0)+IF($K$15=TRUE,G15,0)+IF($K$16=TRUE,G16,0)+IF($K$17=TRUE,G17,0)+IF($K$18=TRUE,G18,0)+IF($K$19=TRUE,G19,0)+IF($K$20=TRUE,G20,0)+IF($K$21=TRUE,G21,0))/ (IF($K$7=TRUE,1,0)+IF($K$8=TRUE,1,0)+IF($K$9=TRUE,1,0)+IF($K$10=TRUE,1,0)+IF($K$11=TRUE,1,0)+IF($K$12=TRUE,1,0)+IF($K$13=TRUE,1,0)+IF($K$14=TRUE,1,0)+IF($K$15=TRUE,1,0)+IF($K$16=TRUE,1,0)+IF($K$17=TRUE,1,0)+IF($K$18=TRUE,1,0)+IF($K$19=TRUE,1,0)+IF($K$20=TRUE,1,0)+IF($K$21=TRUE,1,0)) -> 1034.771176 | H22: RMSE: | I22: RMSE: | J22: RMSE:
G23: RMSE IN US SURVEY FEET: | H23: =SQRT(( (IF($K$7=TRUE,H7^2,0))+(IF($K$8=TRUE,H8^2,0))+(IF($K$9=TRUE,H9^2,0))+(IF($K$10=TRUE,H10^2,0))+(IF($K$11=TRUE,H11^2,0))+(IF($K$12=TRUE,H12^2,0))+(IF($K$13=TRUE,H13^2,0))+(IF($K$14=TRUE,H14^2,0))+(IF($K$15=TRUE,H15^2,0))+(IF($K$16=TRUE,H16^2,0))+(IF($K$17=TRUE,H17^2,0))+(IF($K$18=TRUE,H18^2,0))+(IF($K$19=TRUE,H19^2,0))+(IF($K$20=TRUE,H20^2,0))+(IF($K$21=TRUE,H21^2,0)))/ (IF($K$7=TRUE,1,0)+IF($K$8=TRUE,1,0)+IF($K$9=TRUE,1,0)+IF($K$10=TRUE,1,0)+IF($K$11=TRUE,1,0)+IF($K$12=TRUE,1,0)+IF($K$13=TRUE,1,0)+IF($K$14=TRUE,1,0)+IF($K$15=TRUE,1,0)+IF($K$16=TRUE,1,0)+IF($K$17=TRUE,1,0)+IF($K$18=TRUE,1,0)+IF($K$19=TRUE,1,0)+IF($K$20=TRUE,1,0)+IF($K$21=TRUE,1,0))) -> 0.00647763245 | I23: =SQRT(( (IF($K$7=TRUE,I7^2,0))+(IF($K$8=TRUE,I8^2,0))+(IF($K$9=TRUE,I9^2,0))+(IF($K$10=TRUE,I10^2,0))+(IF($K$11=TRUE,I11^2,0))+(IF($K$12=TRUE,I12^2,0))+(IF($K$13=TRUE,I13^2,0))+(IF($K$14=TRUE,I14^2,0))+(IF($K$15=TRUE,I15^2,0))+(IF($K$16=TRUE,I16^2,0))+(IF($K$17=TRUE,I17^2,0))+(IF($K$18=TRUE,I18^2,0))+(IF($K$19=TRUE,I19^2,0))+(IF($K$20=TRUE,I20^2,0))+(IF($K$21=TRUE,I21^2,0)))/ (IF($K$7=TRUE,1,0)+IF($K$8=TRUE,1,0)+IF($K$9=TRUE,1,0)+IF($K$10=TRUE,1,0)+IF($K$11=TRUE,1,0)+IF($K$12=TRUE,1,0)+IF($K$13=TRUE,1,0)+IF($K$14=TRUE,1,0)+IF($K$15=TRUE,1,0)+IF($K$16=TRUE,1,0)+IF($K$17=TRUE,1,0)+IF($K$18=TRUE,1,0)+IF($K$19=TRUE,1,0)+IF($K$20=TRUE,1,0)+IF($K$21=TRUE,1,0))) -> 0.005987834865 | J23: =SQRT(( (IF($K$7=TRUE,J7^2,0))+(IF($K$8=TRUE,J8^2,0))+(IF($K$9=TRUE,J9^2,0))+(IF($K$10=TRUE,J10^2,0))+(IF($K$11=TRUE,J11^2,0))+(IF($K$12=TRUE,J12^2,0))+(IF($K$13=TRUE,J13^2,0))+(IF($K$14=TRUE,J14^2,0))+(IF($K$15=TRUE,J15^2,0))+(IF($K$16=TRUE,J16^2,0))+(IF($K$17=TRUE,J17^2,0))+(IF($K$18=TRUE,J18^2,0))+(IF($K$19=TRUE,J19^2,0))+(IF($K$20=TRUE,J20^2,0))+(IF($K$21=TRUE,J21^2,0)))/ (IF($K$7=TRUE,1,0)+IF($K$8=TRUE,1,0)+IF($K$9=TRUE,1,0)+IF($K$10=TRUE,1,0)+IF($K$11=TRUE,1,0)+IF($K$12=TRUE,1,0)+IF($K$13=TRUE,1,0)+IF($K$14=TRUE,1,0)+IF($K$15=TRUE,1,0)+IF($K$16=TRUE,1,0)+IF($K$17=TRUE,1,0)+IF($K$18=TRUE,1,0)+IF($K$19=TRUE,1,0)+IF($K$20=TRUE,1,0)+IF($K$21=TRUE,1,0))) -> 0.0316141397
D24: 1
C25: UNITLESS GRID TO GROUND MULTIPLIER | D25: =IF(REPORT!C13="n/a","0.00000000",REPORT!C13) -> 1.00009018 | H25: =IF(H23<=0.029,"PASS","FAIL") -> PASS | I25: =IF(I23<=0.029,"PASS","FAIL") -> PASS | J25: =IF(J23<=0.039,"PASS","FAIL") -> PASS
A27: AVERAGED GPS-DERIVED POSITION | I27: Notes:
B28: MONUMENT COORDINATES | D28: NORTHING | E28: EASTING | F28: ORTHO HEIGHT
B29: US Survey Feet (GRID) | D29: =$E$22 -> 376669.8578 | E29: =$F$22 -> 2458138.118 | F29: =$G$22 -> 1034.771176
A31: LEVELED ELEVATION
A32: US SURVEY FEET | C32: =IFERROR(VLOOKUP(B5,'LEVEL RUN'!A8:I59,9,FALSE),"N/A") -> 1034.728 | D32: (Type the leveled elevation or N/A if no leveled elevation is available)
A33: MONUMENT HELD | D33: (Type the monument name from which leveling originated)
A34: LEVELED ELEVATION - GPS DERIVED ELEVATION = | E34: =IF(C32="N/A","N/A",C32-(F29*D24)) -> -0.04317608333
A36: FINAL MONUMENT COORDINATES
B37: MONUMENT COORDINATES | D37: NORTHING | E37: EASTING | F37: ELEVATION | G37: FEATURE CODE
B38: US SURVEY FEET (GRID) | D38: =$E$22*$D$24 -> 376669.8578 | E38: =$F$22*$D$24 -> 2458138.118 | F38: =IF($C$32="N/A",($G$22*$D$24),$C$32) -> 1034.728 | G38: =VLOOKUP($B$5,GPS_IMPORT!$A$2:$G$2000,7,FALSE) -> IPINS
B39: US SURVEY FEET (GROUND) | D39: =$D$38*$D$25 -> 376703.8259 | E39: =$E$38*$D$25 -> 2458359.793 | F39: =IF($C$32="N/A",($G$22*$D$24),$C$32) -> 1034.728 | G39: =G38 -> IPINS
A41: ∆ North, ∆ East, and ∆ Ht. are the difference between the average northing, easting, and height for each observation. | I41: Mask Angle: | J41: 10°

Sheet LEVEL RUN
A1: =REPORT!B2 -> FRA-71-29.4 | L1: PID: | M1: =REPORT!E2 -> 106471
A2: Adjustment factor only works for closed level loops. | E2: Instrument Used: | G2: Length in Miles: | I2: 0 | J2: Instrument: | L2: Date:
A3: SUM BS: | B3: =SUM(B7:B200) -> 38.323 | C3: SUM FS: | D3: =SUM(E8:E200) -> 38.325 | E3: Topcon DL-503 | G3: Misclosure: | I3: =B3-D3 -> -0.002 | J3: Notes: | L3: Weather:
A4: Misclosure must not exceed 0.04 ft x √E where E=Length of loop (miles) | G4: Adj Factor: | I4: =(I3/(COUNTA(B7:B200)))*-1 -> 0.0003333333333 | J4: Rod: | L4: Temperature:
A5: Please DELETE unused rows before printing!
A6: POINT | B6: BS | C6: HI | D6: FS | E6: SUMFS | F6: ELEV | G6: REC ELEV | H6: ADJ | I6: ADJ ELEV | J6: DESCRIPTION
A7: CNTL1 | B7: 2.556 | C7: =F7+B7 -> 1024.409 | E7: =IF(D7>0,IF(B7>0,D7,0)," ") ->  | F7: 1021.853 | I7: -
A8: CNTL2 | B8: 11.936 | C8: =IF(D8<>"",IF(OR(B8<>"",INDIRECT("D9")=0),IF(B7<>"",F7+B7,VLOOKUP(INDEX($B$7:B7,MATCH(9.99999999999999E+307,$B$7:B7)),$B$7:F7,5,FALSE)+INDEX($B$7:B7,MATCH(9.99999999999999E+307,$B$7:B7))),(VLOOKUP(INDEX($B$7:B7,MATCH(9.99999999999999E+307,$B$7:B7)),$B$7:F7,5,FALSE))+(INDEX($B$7:B7,MATCH(9.99999999999999E+307,$B$7:B7)))),"") -> 1024.409 | D8: 11.616 | E8: =IF(D8<>"",IF(OR(B8<>"",INDIRECT("D9")=0),D8,0),"") -> 11.616 | F8: =IF(D8<>"",C8-D8,"") -> 1012.793 | H8: =IF(D8<>"",IF(AND(B8<>"",B7<>""),$I$4+H7,VLOOKUP(INDEX($B$7:B7,MATCH(9.99999999999999E+307,$B$7:B7)),$B$7:H7,7,FALSE)+$I$4),"") -> 0.0003333333333 | I8: =IF(D8<>"",(F8+H8),"") -> 1012.793333
A9: TP1 | B9: 11.143 | C9: =IF(D9<>"",IF(OR(B9<>"",INDIRECT("D10")=0),IF(B8<>"",F8+B8,VLOOKUP(INDEX($B$7:B8,MATCH(9.99999999999999E+307,$B$7:B8)),$B$7:F8,5,FALSE)+INDEX($B$7:B8,MATCH(9.99999999999999E+307,$B$7:B8))),(VLOOKUP(INDEX($B$7:B8,MATCH(9.99999999999999E+307,$B$7:B8)),$B$7:F8,5,FALSE))+(INDEX($B$7:B8,MATCH(9.99999999999999E+307,$B$7:B8)))),"") -> 1024.729 | D9: 0.11 | E9: =IF(D9<>"",IF(OR(B9<>"",INDIRECT("D10")=0),D9,0),"") -> 0.11 | F9: =IF(D9<>"",C9-D9,"") -> 1024.619 | H9: =IF(D9<>"",IF(AND(B9<>"",B8<>""),$I$4+H8,VLOOKUP(INDEX($B$7:B8,MATCH(9.99999999999999E+307,$B$7:B8)),$B$7:H8,7,FALSE)+$I$4),"") -> 0.0006666666667 | I9: =IF(D9<>"",(F9+H9),"") -> 1024.619667
A10: CNTL3 | B10: 0.777 | C10: =IF(D10<>"",IF(OR(B10<>"",INDIRECT("D11")=0),IF(B9<>"",F9+B9,VLOOKUP(INDEX($B$7:B9,MATCH(9.99999999999999E+307,$B$7:B9)),$B$7:F9,5,FALSE)+INDEX($B$7:B9,MATCH(9.99999999999999E+307,$B$7:B9))),(VLOOKUP(INDEX($B$7:B9,MATCH(9.99999999999999E+307,$B$7:B9)),$B$7:F9,5,FALSE))+(INDEX($B$7:B9,MATCH(9.99999999999999E+307,$B$7:B9)))),"") -> 1035.762 | D10: 1.035 | E10: =IF(D10<>"",IF(OR(B10<>"",INDIRECT("D11")=0),D10,0),"") -> 1.035 | F10: 1034.727 | H10: =IF(D10<>"",IF(AND(B10<>"",B9<>""),$I$4+H9,VLOOKUP(INDEX($B$7:B9,MATCH(9.99999999999999E+307,$B$7:B9)),$B$7:H9,7,FALSE)+$I$4),"") -> 0.001 | I10: 1034.728
A11: TP2 | B11: 0.067 | C11: =IF(D11<>"",IF(OR(B11<>"",INDIRECT("D12")=0),IF(B10<>"",F10+B10,VLOOKUP(INDEX($B$7:B10,MATCH(9.99999999999999E+307,$B$7:B10)),$B$7:F10,5,FALSE)+INDEX($B$7:B10,MATCH(9.99999999999999E+307,$B$7:B10))),(VLOOKUP(INDEX($B$7:B10,MATCH(9.99999999999999E+307,$B$7:B10)),$B$7:F10,5,FALSE))+(INDEX($B$7:B10,MATCH(9.99999999999999E+307,$B$7:B10)))),"") -> 1035.504 | D11: 10.885 | E11: =IF(D11<>"",IF(OR(B11<>"",INDIRECT("D12")=0),D11,0),"") -> 10.885 | F11: 1024.619 | H11: =IF(D11<>"",IF(AND(B11<>"",B10<>""),$I$4+H10,VLOOKUP(INDEX($B$7:B10,MATCH(9.99999999999999E+307,$B$7:B10)),$B$7:H10,7,FALSE)+$I$4),"") -> 0.001333333333 | I11: 1024.620333
A12: CNTL2 | B12: 11.844 | C12: =IF(D12<>"",IF(OR(B12<>"",INDIRECT("D13")=0),IF(B11<>"",F11+B11,VLOOKUP(INDEX($B$7:B11,MATCH(9.99999999999999E+307,$B$7:B11)),$B$7:F11,5,FALSE)+INDEX($B$7:B11,MATCH(9.99999999999999E+307,$B$7:B11))),(VLOOKUP(INDEX($B$7:B11,MATCH(9.99999999999999E+307,$B$7:B11)),$B$7:F11,5,FALSE))+(INDEX($B$7:B11,MATCH(9.99999999999999E+307,$B$7:B11)))),"") -> 1024.686 | D12: 11.896 | E12: =IF(D12<>"",IF(OR(B12<>"",INDIRECT("D13")=0),D12,0),"") -> 11.896 | F12: 1012.79 | H12: =IF(D12<>"",IF(AND(B12<>"",B11<>""),$I$4+H11,VLOOKUP(INDEX($B$7:B11,MATCH(9.99999999999999E+307,$B$7:B11)),$B$7:H11,7,FALSE)+$I$4),"") -> 0.001666666667 | I12: 1012.791667
A13: CNTL1 | C13: =IF(D13<>"",IF(OR(B13<>"",INDIRECT("D14")=0),IF(B12<>"",F12+B12,VLOOKUP(INDEX($B$7:B12,MATCH(9.99999999999999E+307,$B$7:B12)),$B$7:F12,5,FALSE)+INDEX($B$7:B12,MATCH(9.99999999999999E+307,$B$7:B12))),(VLOOKUP(INDEX($B$7:B12,MATCH(9.99999999999999E+307,$B$7:B12)),$B$7:F12,5,FALSE))+(INDEX($B$7:B12,MATCH(9.99999999999999E+307,$B$7:B12)))),"") -> 1024.634 | D13: 2.783 | E13: =IF(D13<>"",IF(OR(B13<>"",INDIRECT("D14")=0),D13,0),"") -> 2.783 | F13: 1021.851 | H13: =IF(D13<>"",IF(AND(B13<>"",B12<>""),$I$4+H12,VLOOKUP(INDEX($B$7:B12,MATCH(9.99999999999999E+307,$B$7:B12)),$B$7:H12,7,FALSE)+$I$4),"") -> 0.002 | I13: 1021.853
C14: =IF(D14<>"",IF(OR(B14<>"",INDIRECT("D15")=0),IF(B13<>"",F13+B13,VLOOKUP(INDEX($B$7:B13,MATCH(9.99999999999999E+307,$B$7:B13)),$B$7:F13,5,FALSE)+INDEX($B$7:B13,MATCH(9.99999999999999E+307,$B$7:B13))),(VLOOKUP(INDEX($B$7:B13,MATCH(9.99999999999999E+307,$B$7:B13)),$B$7:F13,5,FALSE))+(INDEX($B$7:B13,MATCH(9.99999999999999E+307,$B$7:B13)))),"") ->  | E14: =IF(D14<>"",IF(OR(B14<>"",INDIRECT("D15")=0),D14,0),"") ->  | H14: =IF(D14<>"",IF(AND(B14<>"",B13<>""),$I$4+H13,VLOOKUP(INDEX($B$7:B13,MATCH(9.99999999999999E+307,$B$7:B13)),$B$7:H13,7,FALSE)+$I$4),"") -> 
C15: =IF(D15<>"",IF(OR(B15<>"",INDIRECT("D16")=0),IF(B14<>"",F14+B14,VLOOKUP(INDEX($B$7:B14,MATCH(9.99999999999999E+307,$B$7:B14)),$B$7:F14,5,FALSE)+INDEX($B$7:B14,MATCH(9.99999999999999E+307,$B$7:B14))),(VLOOKUP(INDEX($B$7:B14,MATCH(9.99999999999999E+307,$B$7:B14)),$B$7:F14,5,FALSE))+(INDEX($B$7:B14,MATCH(9.99999999999999E+307,$B$7:B14)))),"") ->  | E15: =IF(D15<>"",IF(OR(B15<>"",INDIRECT("D16")=0),D15,0),"") ->  | H15: =IF(D15<>"",IF(AND(B15<>"",B14<>""),$I$4+H14,VLOOKUP(INDEX($B$7:B14,MATCH(9.99999999999999E+307,$B$7:B14)),$B$7:H14,7,FALSE)+$I$4),"") -> 
C16: =IF(D16<>"",IF(OR(B16<>"",INDIRECT("D17")=0),IF(B15<>"",F15+B15,VLOOKUP(INDEX($B$7:B15,MATCH(9.99999999999999E+307,$B$7:B15)),$B$7:F15,5,FALSE)+INDEX($B$7:B15,MATCH(9.99999999999999E+307,$B$7:B15))),(VLOOKUP(INDEX($B$7:B15,MATCH(9.99999999999999E+307,$B$7:B15)),$B$7:F15,5,FALSE))+(INDEX($B$7:B15,MATCH(9.99999999999999E+307,$B$7:B15)))),"") ->  | E16: =IF(D16<>"",IF(OR(B16<>"",INDIRECT("D17")=0),D16,0),"") ->  | H16: =IF(D16<>"",IF(AND(B16<>"",B15<>""),$I$4+H15,VLOOKUP(INDEX($B$7:B15,MATCH(9.99999999999999E+307,$B$7:B15)),$B$7:H15,7,FALSE)+$I$4),"") -> 
C17: =IF(D17<>"",IF(OR(B17<>"",INDIRECT("D18")=0),IF(B16<>"",F16+B16,VLOOKUP(INDEX($B$7:B16,MATCH(9.99999999999999E+307,$B$7:B16)),$B$7:F16,5,FALSE)+INDEX($B$7:B16,MATCH(9.99999999999999E+307,$B$7:B16))),(VLOOKUP(INDEX($B$7:B16,MATCH(9.99999999999999E+307,$B$7:B16)),$B$7:F16,5,FALSE))+(INDEX($B$7:B16,MATCH(9.99999999999999E+307,$B$7:B16)))),"") ->  | E17: =IF(D17<>"",IF(OR(B17<>"",INDIRECT("D18")=0),D17,0),"") ->  | H17: =IF(D17<>"",IF(AND(B17<>"",B16<>""),$I$4+H16,VLOOKUP(INDEX($B$7:B16,MATCH(9.99999999999999E+307,$B$7:B16)),$B$7:H16,7,FALSE)+$I$4),"") -> 
C18: =IF(D18<>"",IF(OR(B18<>"",INDIRECT("D19")=0),IF(B17<>"",F17+B17,VLOOKUP(INDEX($B$7:B17,MATCH(9.99999999999999E+307,$B$7:B17)),$B$7:F17,5,FALSE)+INDEX($B$7:B17,MATCH(9.99999999999999E+307,$B$7:B17))),(VLOOKUP(INDEX($B$7:B17,MATCH(9.99999999999999E+307,$B$7:B17)),$B$7:F17,5,FALSE))+(INDEX($B$7:B17,MATCH(9.99999999999999E+307,$B$7:B17)))),"") ->  | E18: =IF(D18<>"",IF(OR(B18<>"",INDIRECT("D19")=0),D18,0),"") ->  | H18: =IF(D18<>"",IF(AND(B18<>"",B17<>""),$I$4+H17,VLOOKUP(INDEX($B$7:B17,MATCH(9.99999999999999E+307,$B$7:B17)),$B$7:H17,7,FALSE)+$I$4),"") -> 
C19: =IF(D19<>"",IF(OR(B19<>"",INDIRECT("D20")=0),IF(B18<>"",F18+B18,VLOOKUP(INDEX($B$7:B18,MATCH(9.99999999999999E+307,$B$7:B18)),$B$7:F18,5,FALSE)+INDEX($B$7:B18,MATCH(9.99999999999999E+307,$B$7:B18))),(VLOOKUP(INDEX($B$7:B18,MATCH(9.99999999999999E+307,$B$7:B18)),$B$7:F18,5,FALSE))+(INDEX($B$7:B18,MATCH(9.99999999999999E+307,$B$7:B18)))),"") ->  | E19: =IF(D19<>"",IF(OR(B19<>"",INDIRECT("D20")=0),D19,0),"") ->  | H19: =IF(D19<>"",IF(AND(B19<>"",B18<>""),$I$4+H18,VLOOKUP(INDEX($B$7:B18,MATCH(9.99999999999999E+307,$B$7:B18)),$B$7:H18,7,FALSE)+$I$4),"") -> 
C20: =IF(D20<>"",IF(OR(B20<>"",INDIRECT("D21")=0),IF(B19<>"",F19+B19,VLOOKUP(INDEX($B$7:B19,MATCH(9.99999999999999E+307,$B$7:B19)),$B$7:F19,5,FALSE)+INDEX($B$7:B19,MATCH(9.99999999999999E+307,$B$7:B19))),(VLOOKUP(INDEX($B$7:B19,MATCH(9.99999999999999E+307,$B$7:B19)),$B$7:F19,5,FALSE))+(INDEX($B$7:B19,MATCH(9.99999999999999E+307,$B$7:B19)))),"") ->  | E20: =IF(D20<>"",IF(OR(B20<>"",INDIRECT("D21")=0),D20,0),"") ->  | H20: =IF(D20<>"",IF(AND(B20<>"",B19<>""),$I$4+H19,VLOOKUP(INDEX($B$7:B19,MATCH(9.99999999999999E+307,$B$7:B19)),$B$7:H19,7,FALSE)+$I$4),"") -> 
C21: =IF(D21<>"",IF(OR(B21<>"",INDIRECT("D22")=0),IF(B20<>"",F20+B20,VLOOKUP(INDEX($B$7:B20,MATCH(9.99999999999999E+307,$B$7:B20)),$B$7:F20,5,FALSE)+INDEX($B$7:B20,MATCH(9.99999999999999E+307,$B$7:B20))),(VLOOKUP(INDEX($B$7:B20,MATCH(9.99999999999999E+307,$B$7:B20)),$B$7:F20,5,FALSE))+(INDEX($B$7:B20,MATCH(9.99999999999999E+307,$B$7:B20)))),"") ->  | E21: =IF(D21<>"",IF(OR(B21<>"",INDIRECT("D22")=0),D21,0),"") ->  | H21: =IF(D21<>"",IF(AND(B21<>"",B20<>""),$I$4+H20,VLOOKUP(INDEX($B$7:B20,MATCH(9.99999999999999E+307,$B$7:B20)),$B$7:H20,7,FALSE)+$I$4),"") -> 
C22: =IF(D22<>"",IF(OR(B22<>"",INDIRECT("D23")=0),IF(B21<>"",F21+B21,VLOOKUP(INDEX($B$7:B21,MATCH(9.99999999999999E+307,$B$7:B21)),$B$7:F21,5,FALSE)+INDEX($B$7:B21,MATCH(9.99999999999999E+307,$B$7:B21))),(VLOOKUP(INDEX($B$7:B21,MATCH(9.99999999999999E+307,$B$7:B21)),$B$7:F21,5,FALSE))+(INDEX($B$7:B21,MATCH(9.99999999999999E+307,$B$7:B21)))),"") ->  | E22: =IF(D22<>"",IF(OR(B22<>"",INDIRECT("D23")=0),D22,0),"") ->  | H22: =IF(D22<>"",IF(AND(B22<>"",B21<>""),$I$4+H21,VLOOKUP(INDEX($B$7:B21,MATCH(9.99999999999999E+307,$B$7:B21)),$B$7:H21,7,FALSE)+$I$4),"") -> 
C23: =IF(D23<>"",IF(OR(B23<>"",INDIRECT("D24")=0),IF(B22<>"",F22+B22,VLOOKUP(INDEX($B$7:B22,MATCH(9.99999999999999E+307,$B$7:B22)),$B$7:F22,5,FALSE)+INDEX($B$7:B22,MATCH(9.99999999999999E+307,$B$7:B22))),(VLOOKUP(INDEX($B$7:B22,MATCH(9.99999999999999E+307,$B$7:B22)),$B$7:F22,5,FALSE))+(INDEX($B$7:B22,MATCH(9.99999999999999E+307,$B$7:B22)))),"") ->  | E23: =IF(D23<>"",IF(OR(B23<>"",INDIRECT("D24")=0),D23,0),"") ->  | H23: =IF(D23<>"",IF(AND(B23<>"",B22<>""),$I$4+H22,VLOOKUP(INDEX($B$7:B22,MATCH(9.99999999999999E+307,$B$7:B22)),$B$7:H22,7,FALSE)+$I$4),"") -> 
C24: =IF(D24<>"",IF(OR(B24<>"",INDIRECT("D25")=0),IF(B23<>"",F23+B23,VLOOKUP(INDEX($B$7:B23,MATCH(9.99999999999999E+307,$B$7:B23)),$B$7:F23,5,FALSE)+INDEX($B$7:B23,MATCH(9.99999999999999E+307,$B$7:B23))),(VLOOKUP(INDEX($B$7:B23,MATCH(9.99999999999999E+307,$B$7:B23)),$B$7:F23,5,FALSE))+(INDEX($B$7:B23,MATCH(9.99999999999999E+307,$B$7:B23)))),"") ->  | E24: =IF(D24<>"",IF(OR(B24<>"",INDIRECT("D25")=0),D24,0),"") ->  | H24: =IF(D24<>"",IF(AND(B24<>"",B23<>""),$I$4+H23,VLOOKUP(INDEX($B$7:B23,MATCH(9.99999999999999E+307,$B$7:B23)),$B$7:H23,7,FALSE)+$I$4),"") -> 
C25: =IF(D25<>"",IF(OR(B25<>"",INDIRECT("D26")=0),IF(B24<>"",F24+B24,VLOOKUP(INDEX($B$7:B24,MATCH(9.99999999999999E+307,$B$7:B24)),$B$7:F24,5,FALSE)+INDEX($B$7:B24,MATCH(9.99999999999999E+307,$B$7:B24))),(VLOOKUP(INDEX($B$7:B24,MATCH(9.99999999999999E+307,$B$7:B24)),$B$7:F24,5,FALSE))+(INDEX($B$7:B24,MATCH(9.99999999999999E+307,$B$7:B24)))),"") ->  | E25: =IF(D25<>"",IF(OR(B25<>"",INDIRECT("D26")=0),D25,0),"") ->  | H25: =IF(D25<>"",IF(AND(B25<>"",B24<>""),$I$4+H24,VLOOKUP(INDEX($B$7:B24,MATCH(9.99999999999999E+307,$B$7:B24)),$B$7:H24,7,FALSE)+$I$4),"") -> 
C26: =IF(D26<>"",IF(OR(B26<>"",INDIRECT("D27")=0),IF(B25<>"",F25+B25,VLOOKUP(INDEX($B$7:B25,MATCH(9.99999999999999E+307,$B$7:B25)),$B$7:F25,5,FALSE)+INDEX($B$7:B25,MATCH(9.99999999999999E+307,$B$7:B25))),(VLOOKUP(INDEX($B$7:B25,MATCH(9.99999999999999E+307,$B$7:B25)),$B$7:F25,5,FALSE))+(INDEX($B$7:B25,MATCH(9.99999999999999E+307,$B$7:B25)))),"") ->  | E26: =IF(D26<>"",IF(OR(B26<>"",INDIRECT("D27")=0),D26,0),"") ->  | H26: =IF(D26<>"",IF(AND(B26<>"",B25<>""),$I$4+H25,VLOOKUP(INDEX($B$7:B25,MATCH(9.99999999999999E+307,$B$7:B25)),$B$7:H25,7,FALSE)+$I$4),"") -> 
C27: =IF(D27<>"",IF(OR(B27<>"",INDIRECT("D28")=0),IF(B26<>"",F26+B26,VLOOKUP(INDEX($B$7:B26,MATCH(9.99999999999999E+307,$B$7:B26)),$B$7:F26,5,FALSE)+INDEX($B$7:B26,MATCH(9.99999999999999E+307,$B$7:B26))),(VLOOKUP(INDEX($B$7:B26,MATCH(9.99999999999999E+307,$B$7:B26)),$B$7:F26,5,FALSE))+(INDEX($B$7:B26,MATCH(9.99999999999999E+307,$B$7:B26)))),"") ->  | E27: =IF(D27<>"",IF(OR(B27<>"",INDIRECT("D28")=0),D27,0),"") ->  | H27: =IF(D27<>"",IF(AND(B27<>"",B26<>""),$I$4+H26,VLOOKUP(INDEX($B$7:B26,MATCH(9.99999999999999E+307,$B$7:B26)),$B$7:H26,7,FALSE)+$I$4),"") -> 
C28: =IF(D28<>"",IF(OR(B28<>"",INDIRECT("D29")=0),IF(B27<>"",F27+B27,VLOOKUP(INDEX($B$7:B27,MATCH(9.99999999999999E+307,$B$7:B27)),$B$7:F27,5,FALSE)+INDEX($B$7:B27,MATCH(9.99999999999999E+307,$B$7:B27))),(VLOOKUP(INDEX($B$7:B27,MATCH(9.99999999999999E+307,$B$7:B27)),$B$7:F27,5,FALSE))+(INDEX($B$7:B27,MATCH(9.99999999999999E+307,$B$7:B27)))),"") ->  | E28: =IF(D28<>"",IF(OR(B28<>"",INDIRECT("D29")=0),D28,0),"") ->  | H28: =IF(D28<>"",IF(AND(B28<>"",B27<>""),$I$4+H27,VLOOKUP(INDEX($B$7:B27,MATCH(9.99999999999999E+307,$B$7:B27)),$B$7:H27,7,FALSE)+$I$4),"") -> 
C29: =IF(D29<>"",IF(OR(B29<>"",INDIRECT("D30")=0),IF(B28<>"",F28+B28,VLOOKUP(INDEX($B$7:B28,MATCH(9.99999999999999E+307,$B$7:B28)),$B$7:F28,5,FALSE)+INDEX($B$7:B28,MATCH(9.99999999999999E+307,$B$7:B28))),(VLOOKUP(INDEX($B$7:B28,MATCH(9.99999999999999E+307,$B$7:B28)),$B$7:F28,5,FALSE))+(INDEX($B$7:B28,MATCH(9.99999999999999E+307,$B$7:B28)))),"") ->  | E29: =IF(D29<>"",IF(OR(B29<>"",INDIRECT("D30")=0),D29,0),"") ->  | H29: =IF(D29<>"",IF(AND(B29<>"",B28<>""),$I$4+H28,VLOOKUP(INDEX($B$7:B28,MATCH(9.99999999999999E+307,$B$7:B28)),$B$7:H28,7,FALSE)+$I$4),"") -> 
C30: =IF(D30<>"",IF(OR(B30<>"",INDIRECT("D31")=0),IF(B29<>"",F29+B29,VLOOKUP(INDEX($B$7:B29,MATCH(9.99999999999999E+307,$B$7:B29)),$B$7:F29,5,FALSE)+INDEX($B$7:B29,MATCH(9.99999999999999E+307,$B$7:B29))),(VLOOKUP(INDEX($B$7:B29,MATCH(9.99999999999999E+307,$B$7:B29)),$B$7:F29,5,FALSE))+(INDEX($B$7:B29,MATCH(9.99999999999999E+307,$B$7:B29)))),"") ->  | E30: =IF(D30<>"",IF(OR(B30<>"",INDIRECT("D31")=0),D30,0),"") ->  | H30: =IF(D30<>"",IF(AND(B30<>"",B29<>""),$I$4+H29,VLOOKUP(INDEX($B$7:B29,MATCH(9.99999999999999E+307,$B$7:B29)),$B$7:H29,7,FALSE)+$I$4),"") -> 
C31: =IF(D31<>"",IF(OR(B31<>"",INDIRECT("D32")=0),IF(B30<>"",F30+B30,VLOOKUP(INDEX($B$7:B30,MATCH(9.99999999999999E+307,$B$7:B30)),$B$7:F30,5,FALSE)+INDEX($B$7:B30,MATCH(9.99999999999999E+307,$B$7:B30))),(VLOOKUP(INDEX($B$7:B30,MATCH(9.99999999999999E+307,$B$7:B30)),$B$7:F30,5,FALSE))+(INDEX($B$7:B30,MATCH(9.99999999999999E+307,$B$7:B30)))),"") ->  | E31: =IF(D31<>"",IF(OR(B31<>"",INDIRECT("D32")=0),D31,0),"") ->  | H31: =IF(D31<>"",IF(AND(B31<>"",B30<>""),$I$4+H30,VLOOKUP(INDEX($B$7:B30,MATCH(9.99999999999999E+307,$B$7:B30)),$B$7:H30,7,FALSE)+$I$4),"") -> 
C32: =IF(D32<>"",IF(OR(B32<>"",INDIRECT("D33")=0),IF(B31<>"",F31+B31,VLOOKUP(INDEX($B$7:B31,MATCH(9.99999999999999E+307,$B$7:B31)),$B$7:F31,5,FALSE)+INDEX($B$7:B31,MATCH(9.99999999999999E+307,$B$7:B31))),(VLOOKUP(INDEX($B$7:B31,MATCH(9.99999999999999E+307,$B$7:B31)),$B$7:F31,5,FALSE))+(INDEX($B$7:B31,MATCH(9.99999999999999E+307,$B$7:B31)))),"") ->  | E32: =IF(D32<>"",IF(OR(B32<>"",INDIRECT("D33")=0),D32,0),"") ->  | H32: =IF(D32<>"",IF(AND(B32<>"",B31<>""),$I$4+H31,VLOOKUP(INDEX($B$7:B31,MATCH(9.99999999999999E+307,$B$7:B31)),$B$7:H31,7,FALSE)+$I$4),"") -> 
C33: =IF(D33<>"",IF(OR(B33<>"",INDIRECT("D34")=0),IF(B32<>"",F32+B32,VLOOKUP(INDEX($B$7:B32,MATCH(9.99999999999999E+307,$B$7:B32)),$B$7:F32,5,FALSE)+INDEX($B$7:B32,MATCH(9.99999999999999E+307,$B$7:B32))),(VLOOKUP(INDEX($B$7:B32,MATCH(9.99999999999999E+307,$B$7:B32)),$B$7:F32,5,FALSE))+(INDEX($B$7:B32,MATCH(9.99999999999999E+307,$B$7:B32)))),"") ->  | E33: =IF(D33<>"",IF(OR(B33<>"",INDIRECT("D34")=0),D33,0),"") ->  | H33: =IF(D33<>"",IF(AND(B33<>"",B32<>""),$I$4+H32,VLOOKUP(INDEX($B$7:B32,MATCH(9.99999999999999E+307,$B$7:B32)),$B$7:H32,7,FALSE)+$I$4),"") -> 
C34: =IF(D34<>"",IF(OR(B34<>"",INDIRECT("D35")=0),IF(B33<>"",F33+B33,VLOOKUP(INDEX($B$7:B33,MATCH(9.99999999999999E+307,$B$7:B33)),$B$7:F33,5,FALSE)+INDEX($B$7:B33,MATCH(9.99999999999999E+307,$B$7:B33))),(VLOOKUP(INDEX($B$7:B33,MATCH(9.99999999999999E+307,$B$7:B33)),$B$7:F33,5,FALSE))+(INDEX($B$7:B33,MATCH(9.99999999999999E+307,$B$7:B33)))),"") ->  | E34: =IF(D34<>"",IF(OR(B34<>"",INDIRECT("D35")=0),D34,0),"") ->  | H34: =IF(D34<>"",IF(AND(B34<>"",B33<>""),$I$4+H33,VLOOKUP(INDEX($B$7:B33,MATCH(9.99999999999999E+307,$B$7:B33)),$B$7:H33,7,FALSE)+$I$4),"") -> 
C35: =IF(D35<>"",IF(OR(B35<>"",INDIRECT("D36")=0),IF(B34<>"",F34+B34,VLOOKUP(INDEX($B$7:B34,MATCH(9.99999999999999E+307,$B$7:B34)),$B$7:F34,5,FALSE)+INDEX($B$7:B34,MATCH(9.99999999999999E+307,$B$7:B34))),(VLOOKUP(INDEX($B$7:B34,MATCH(9.99999999999999E+307,$B$7:B34)),$B$7:F34,5,FALSE))+(INDEX($B$7:B34,MATCH(9.99999999999999E+307,$B$7:B34)))),"") ->  | E35: =IF(D35<>"",IF(OR(B35<>"",INDIRECT("D36")=0),D35,0),"") ->  | H35: =IF(D35<>"",IF(AND(B35<>"",B34<>""),$I$4+H34,VLOOKUP(INDEX($B$7:B34,MATCH(9.99999999999999E+307,$B$7:B34)),$B$7:H34,7,FALSE)+$I$4),"") -> 
C36: =IF(D36<>"",IF(OR(B36<>"",INDIRECT("D37")=0),IF(B35<>"",F35+B35,VLOOKUP(INDEX($B$7:B35,MATCH(9.99999999999999E+307,$B$7:B35)),$B$7:F35,5,FALSE)+INDEX($B$7:B35,MATCH(9.99999999999999E+307,$B$7:B35))),(VLOOKUP(INDEX($B$7:B35,MATCH(9.99999999999999E+307,$B$7:B35)),$B$7:F35,5,FALSE))+(INDEX($B$7:B35,MATCH(9.99999999999999E+307,$B$7:B35)))),"") ->  | E36: =IF(D36<>"",IF(OR(B36<>"",INDIRECT("D37")=0),D36,0),"") ->  | H36: =IF(D36<>"",IF(AND(B36<>"",B35<>""),$I$4+H35,VLOOKUP(INDEX($B$7:B35,MATCH(9.99999999999999E+307,$B$7:B35)),$B$7:H35,7,FALSE)+$I$4),"") -> 
C37: =IF(D37<>"",IF(OR(B37<>"",INDIRECT("D38")=0),IF(B36<>"",F36+B36,VLOOKUP(INDEX($B$7:B36,MATCH(9.99999999999999E+307,$B$7:B36)),$B$7:F36,5,FALSE)+INDEX($B$7:B36,MATCH(9.99999999999999E+307,$B$7:B36))),(VLOOKUP(INDEX($B$7:B36,MATCH(9.99999999999999E+307,$B$7:B36)),$B$7:F36,5,FALSE))+(INDEX($B$7:B36,MATCH(9.99999999999999E+307,$B$7:B36)))),"") ->  | E37: =IF(D37<>"",IF(OR(B37<>"",INDIRECT("D38")=0),D37,0),"") ->  | H37: =IF(D37<>"",IF(AND(B37<>"",B36<>""),$I$4+H36,VLOOKUP(INDEX($B$7:B36,MATCH(9.99999999999999E+307,$B$7:B36)),$B$7:H36,7,FALSE)+$I$4),"") -> 
C38: =IF(D38<>"",IF(OR(B38<>"",INDIRECT("D39")=0),IF(B37<>"",F37+B37,VLOOKUP(INDEX($B$7:B37,MATCH(9.99999999999999E+307,$B$7:B37)),$B$7:F37,5,FALSE)+INDEX($B$7:B37,MATCH(9.99999999999999E+307,$B$7:B37))),(VLOOKUP(INDEX($B$7:B37,MATCH(9.99999999999999E+307,$B$7:B37)),$B$7:F37,5,FALSE))+(INDEX($B$7:B37,MATCH(9.99999999999999E+307,$B$7:B37)))),"") ->  | E38: =IF(D38<>"",IF(OR(B38<>"",INDIRECT("D39")=0),D38,0),"") ->  | H38: =IF(D38<>"",IF(AND(B38<>"",B37<>""),$I$4+H37,VLOOKUP(INDEX($B$7:B37,MATCH(9.99999999999999E+307,$B$7:B37)),$B$7:H37,7,FALSE)+$I$4),"") -> 
C39: =IF(D39<>"",IF(OR(B39<>"",INDIRECT("D40")=0),IF(B38<>"",F38+B38,VLOOKUP(INDEX($B$7:B38,MATCH(9.99999999999999E+307,$B$7:B38)),$B$7:F38,5,FALSE)+INDEX($B$7:B38,MATCH(9.99999999999999E+307,$B$7:B38))),(VLOOKUP(INDEX($B$7:B38,MATCH(9.99999999999999E+307,$B$7:B38)),$B$7:F38,5,FALSE))+(INDEX($B$7:B38,MATCH(9.99999999999999E+307,$B$7:B38)))),"") ->  | E39: =IF(D39<>"",IF(OR(B39<>"",INDIRECT("D40")=0),D39,0),"") ->  | H39: =IF(D39<>"",IF(AND(B39<>"",B38<>""),$I$4+H38,VLOOKUP(INDEX($B$7:B38,MATCH(9.99999999999999E+307,$B$7:B38)),$B$7:H38,7,FALSE)+$I$4),"") -> 
